{"text_format":"1","workbook":"xlsx","n_sheets":16,"sheets":["Indicator lookup","Indicators & Thresholds","Labels","Recommended Sources","Country Overview","Supply Chain","Geopolitical Scale","Source Types","References","Experts","Legislation","Assessment of Indicators","Risk Mitigation (RM)","RM Documents","Lookup-Description","Type of variables"],"not_rendered":{"charts":0,"images":0,"macros":1,"external_links":0,"defined_names":77,"comments":0,"pivot_tables":0},"unopened":[],"bounds":{"document_bytes":16777216,"sheet_cells":100000,"rows_first":2000,"rows_last":500,"rows_between":2000,"halvings":0,"cell_chars":16384,"cell_head_chars":4096},"cells_cut":0,"cells_raw":0,"read":"whole","date_system":"1900"}

{"sheet":"Indicator lookup","index":0,"n_rows":197,"n_cols":4,"rows_kept":197,"cut":false,"hidden":true,"merged":[]}
["Indicator for Lookup",null,"Indicators","Reason"]
["01. Land tenure rights are secured and registered according to legal requirements.",null,"01. Land tenure rights are secured and registered according to legal requirements.","01. 1.     Identified laws are not consistently upheld by all entities, are often ignored, are not enforced by relevant authorities, or any combination thereof;"]
["02. Land management rights are in place and registered according to legal requirements.",null,"01. Land tenure rights are secured and registered according to legal requirements.","01. 2.     Violations of identified laws are not efficiently followed up on by the relevant entities;"]
["03. Forest concession licenses are in place and are issued and registered according to legal requirements.",null,"01. Land tenure rights are secured and registered according to legal requirements.","01. 3.     Violations of identified laws are not followed up by preventive actions taken by the relevant entities."]
["04. Harvesting permits are in place and are issued and registered according to legal requirements.",null,"02. Land management rights are in place and registered according to legal requirements.","02. 1.     Identified laws are not consistently upheld by all entities, are often ignored, are not enforced by relevant authorities, or any combination thereof;"]
["05. Legal requirements for land-use and management planning are complied with.",null,"02. Land management rights are in place and registered according to legal requirements.","02. 2.     Violations of identified laws are not efficiently followed up on by the relevant entities;"]
["06. Legal requirements for payment of royalties, land/area taxes and fees are complied with.",null,"02. Land management rights are in place and registered according to legal requirements.","02. 3.     Violations of identified laws are not followed up by preventive actions taken by the relevant entities."]
["07. Legal requirements for payment of value-added taxes and/or other sales taxes are complied with.",null,"03. Forest concession licenses are in place and are issued and registered according to legal requirements.","03. 1.  Identified laws are not consistently upheld by all entities, are often ignored, are not enforced by relevant authorities, or any combination thereof;"]
["08. Legal requirements for payment of corporate taxes are complied with, including profit taxes.",null,"03. Forest concession licenses are in place and are issued and registered according to legal requirements.","03. 2.  Violations of identified laws are not efficiently followed up on by the relevant entities;"]
["09. Legal requirements for payment of trade and/or export taxes and fees are complied with.",null,"03. Forest concession licenses are in place and are issued and registered according to legal requirements.","03. 3.  Violations of identified laws are not followed up by preventive actions taken by the relevant entities."]
["10. Legal requirements related to corruption, including bribery, fraud and conflict of interest, are complied with.",null,"04. Harvesting permits are in place and are issued and registered according to legal requirements.","04. 1.  Identified laws are not consistently upheld by all entities, are often ignored, are not enforced by relevant authorities, or any combination thereof;"]
["11. All forms of bribery and corruption are avoided.",null,"04. Harvesting permits are in place and are issued and registered according to legal requirements.","04. 2. Violations of identified laws are not efficiently followed up on by the relevant entities;"]
["12. Data and document falsification do not occur.",null,"04. Harvesting permits are in place and are issued and registered according to legal requirements.","04. 3. Violations of identified laws are not followed up by preventive actions taken by the relevant entities"]
["13. Legal requirements for management activities and related operational requirements are complied with.",null,"05. Legal requirements for land-use and management planning are complied with.","05. 1. Identified laws are not consistently upheld by all entities, are often ignored, are not enforced by relevant authorities, or any combination thereof;"]
["14.  Development and maintenance of infrastructure associated with management activities comply with applicable codes and legal requirements for the protection of environmental values.",null,"05. Legal requirements for land-use and management planning are complied with.","05. 2. Violations of identified laws are not efficiently followed up on by the relevant entities;"]
["15.  Development and maintenance of infrastructure associated with management activities is done in a way that minimises adverse impacts on environmental values.",null,"05. Legal requirements for land-use and management planning are complied with.","05. 3. Violations of identified laws are not followed up by preventive actions taken by the relevant entities"]
["16. Legal requirements related to biodiversity conservation, protected sites, and the protection of endemic, rare, threatened, or endangered species and their habitats are complied with.  ",null,"06. Legal requirements for payment of royalties, land/area taxes and fees are complied with.","06. 1. Identified laws are not consistently upheld by all entities, are often ignored, are not enforced by relevant authorities, or any combination thereof;"]
["17. Legal requirements relating to the harvesting, collection, and trade of CITES species are complied with.",null,"06. Legal requirements for payment of royalties, land/area taxes and fees are complied with.","06. 2.  Violations of identified laws are not efficiently followed up on by the relevant entities;"]
["18. The volume and impacts of waste from management activities comply with legal requirements, and are managed and minimised.",null,"06. Legal requirements for payment of royalties, land/area taxes and fees are complied with.","06. 3.  Violations of identified laws are not followed up by preventive actions taken by the relevant entities."]
["19. Pollution resulting from management activities comply with legal requirements, and is controlled and minimised.",null,"07. Legal requirements for payment of value-added taxes and/or other sales taxes are complied with.","07. 1  Identified laws are not consistently upheld by all entities, are often ignored, are not enforced by relevant authorities, or any combination thereof;"]
["20. Water resources are protected and used responsibly in compliance with legal requirements, and with the aim of ensuring long-term viability.",null,"07. Legal requirements for payment of value-added taxes and/or other sales taxes are complied with.","07. 2   Violations of identified laws are not followed up by preventive actions taken by the relevant entities."]
["21. Negative impacts on soils from management activities are minimised, and comply with legal requirements.",null,"07. Legal requirements for payment of value-added taxes and/or other sales taxes are complied with.","07. 3 Violations of identified laws are not followed up by preventive actions taken by the relevant entities."]
["22.  Legal requirements related to occupational health and safety are complied with.",null,"08. Legal requirements for payment of corporate taxes are complied with, including profit taxes.","08. 1 Identified laws are not consistently upheld by all entities, are often ignored, are not enforced by relevant authorities, or any combination thereof;"]
["23. Facilities and activities are safe and support worker’s health, and workers have access to and use appropriate Personal Protective Equipment commensurate with the activities undertaken.",null,"08. Legal requirements for payment of corporate taxes are complied with, including profit taxes.","08. 2  Violations of identified laws are not efficiently followed up on by the relevant entities;"]
["24. The use, application, storage, and disposal of chemicals in management activities addresses the protection of the environment and human health and safety and complies with legal requirements.",null,"08. Legal requirements for payment of corporate taxes are complied with, including profit taxes.","08. 3 Violations of identified laws are not followed up by preventive actions taken by the relevant entities."]
["25. Human rights protected under international law, as enshrined in national law, are complied with.",null,"09. Legal requirements for payment of trade and/or export taxes and fees are complied with.","09. 1  Identified laws are not consistently upheld by all entities, are often ignored, are not enforced by relevant authorities, or any combination thereof;"]
["26. Harvest or trade in products do not contribute to a violation of international human rights or is not associated with armed conflicts.",null,"09. Legal requirements for payment of trade and/or export taxes and fees are complied with.","09. 2 Violations of identified laws are not efficiently followed up on by the relevant entities;"]
["27. Legal requirements related to child labour and employment of young workers are complied with.",null,"09. Legal requirements for payment of trade and/or export taxes and fees are complied with.","09. 3 Violations of identified laws are not followed up by preventive actions taken by the relevant entities."]
["28. Child labour is not present, and the employment of young workers is responsibly managed, including related rights as specified in the ILO Fundamental Principles and Rights at Work.",null,"10. Legal requirements related to corruption, including bribery, fraud and conflict of interest, are complied with.","10. 1.     Identified laws are not consistently upheld by all entities, are often ignored, are not enforced by relevant authorities, or any combination thereof;"]
["29. Legal requirements related to modern slavery, including forced and compulsory labour, are complied with.",null,"10. Legal requirements related to corruption, including bribery, fraud and conflict of interest, are complied with.","10. 2.     Violations of identified laws are not efficiently followed up on by the relevant entities;"]
["30. Modern slavery, including forced and compulsory labour are not used, promoted, or supported in any way, including as specified in the ILO Fundamental Principles and Rights at Work.",null,"10. Legal requirements related to corruption, including bribery, fraud and conflict of interest, are complied with.","10. 3.     Violations of identified laws are not followed up by preventive actions taken by the relevant entities."]
["31. Legal requirements related to the Freedom of Association, the Right to Organise and the Right to Collective Bargaining are complied with.",null,"11. All forms of bribery and corruption are avoided.","11. 1.     Applicable legislation for the area under assessment covers the requirements under this indicator, but the risk assessment for indicator 10 confirms a designation of ‘non-negligible risk’;"]
["32. Labour rights related to the Freedom of Association, the Right to Organise and the Right to Collective Bargaining are respected, including as specified in the ILO Fundamental Principles and Rights at Work.",null,"11. All forms of bribery and corruption are avoided.","11. 2.     Applicable legislation for the area under assessment contradicts indicator requirement(s);"]
["33. Legal requirements related to the recruitment and employment of workers are complied with.",null,"11. All forms of bribery and corruption are avoided.","11. 3.     Evidence indicates widespread or systematic violation of requirements covered under this indicator."]
["34. Legal requirements related to the contracts and working permits, and requirements for competence certifications and other training requirements are complied with.",null,"12. Data and document falsification do not occur.","12. 1.     Applicable legislation for the area under assessment covers the requirements under this indicator, but the risk assessment for indicator 10 confirms a designation of ‘non-negligible risk’;"]
["35. Legal requirements related to workers’ wages and other payments, such as social insurance contributions and the payment of social and income taxes withheld by the employer on behalf of the worker, are complied with.",null,"12. Data and document falsification do not occur.","12. 2.     Applicable legislation for the area under assessment contradicts indicator requirement(s);"]
["36. Legal requirements related to working hours, overtime, rest time and time off are complied with.",null,"12. Data and document falsification do not occur.","12. 3.     Evidence indicates widespread or systematic violation of requirements covered under this indicator."]
["37. Labour rights related to recruitment and employment...are upheld, including as specified in the ILO Fundamental Principles and Rights at Work are upheld.",null,"13. Legal requirements for management activities and related operational requirements are complied with.","13. 1.     Identified laws are not consistently upheld by all entities, are often ignored, are not enforced by relevant authorities, or any combination thereof;"]
["38. Legal requirements related to discrimination against workers are complied with.",null,"13. Legal requirements for management activities and related operational requirements are complied with.","13. 2.     Violations of identified laws are not efficiently followed up on by the relevant entities;"]
["39. There is no discrimination against workers in processes related to hiring, remuneration and access to training, promotion, termination, or retirement, including related rights as specified in the ILO Fundamental Principles and Rights at Work.",null,"13. Legal requirements for management activities and related operational requirements are complied with.","13. 3.     Violations of identified laws are not followed up by preventive actions taken by the relevant entities."]
["40. Legal requirements related to gender equality in the workplace are complied with.",null,"14.  Development and maintenance of infrastructure associated with management activities comply with applicable codes and legal requirements for the protection of environmental values.","14. 1.     Identified laws are not consistently upheld by all entities, are often ignored, are not enforced by relevant authorities, or any combination thereof;"]
["41. Gender equality is protected following best practice… as specified in the ILO Fundamental Principles and Rights at Work.",null,"14.  Development and maintenance of infrastructure associated with management activities comply with applicable codes and legal requirements for the protection of environmental values.","14. 2.     Violations of identified laws are not efficiently followed up on by the relevant entities;"]
["42. Legal requirements related to the rights of Indigenous Peoples are complied with.",null,"14.  Development and maintenance of infrastructure associated with management activities comply with applicable codes and legal requirements for the protection of environmental values.","14. 3.     Violations of identified laws are not followed up by preventive actions taken by the relevant entities."]
["43.  The rights of Indigenous Peoples, including land tenure and management, are respected and upheld according to the principles of FPIC.",null,"15.  Development and maintenance of infrastructure associated with management activities is done in a way that minimises adverse impacts on environmental values.","15. 1.     Applicable legislation for the area under assessment covers the requirements under this indicator, but the risk assessment for indicator 14 confirms a designation of ‘non-negligible risk’;"]
["44. Legal requirements related to the rights of Traditional Peoples are complied with.",null,"15.  Development and maintenance of infrastructure associated with management activities is done in a way that minimises adverse impacts on environmental values.","15. 2.     Applicable legislation for the area under assessment contradicts indicator requirement(s);"]
["45. The rights of Traditional Peoples, including land tenure and management, are respected and upheld according to the principles of FPIC.",null,"15.  Development and maintenance of infrastructure associated with management activities is done in a way that minimises adverse impacts on environmental values.","15. 3.     Evidence indicates widespread or systematic violation of requirements covered under this indicator. "]
["46. Legally recognised customary and community rights are identified and respected.",null,"16. Legal requirements related to biodiversity conservation, protected sites, and the protection of endemic, rare, threatened, or endangered species and their habitats are complied with.  ","16. 1.     Identified laws are not consistently upheld by all entities, are often ignored, are not enforced by relevant authorities, or any combination thereof;"]
["47. The rights of local communities are respected and upheld.",null,"16. Legal requirements related to biodiversity conservation, protected sites, and the protection of endemic, rare, threatened, or endangered species and their habitats are complied with.  ","16. 2.     Violations of identified laws are not efficiently followed up on by the relevant entities;"]
["48. Interaction with Indigenous Peoples, Traditional Peoples and local communities is conducted in a respectful and culturally appropriate manner.",null,"16. Legal requirements related to biodiversity conservation, protected sites, and the protection of endemic, rare, threatened, or endangered species and their habitats are complied with.  ","16. 3.     Violations of identified laws are not followed up by preventive actions taken by the relevant entities."]
["49. Legal requirements related to the trade and transport of products are complied with.",null,"17. Legal requirements relating to the harvesting, collection, and trade of CITES species are complied with.","17. 1.     Identified laws are not consistently upheld by all entities, are often ignored, are not enforced by relevant authorities, or any combination thereof;"]
["50. Legal requirements related to applicable trade restrictions and sanctions are complied with.",null,"17. Legal requirements relating to the harvesting, collection, and trade of CITES species are complied with.","17. 2.     Violations of identified laws are not efficiently followed up on by the relevant entities;"]
["51. Legal requirements related to the classification of products are complied with.",null,"17. Legal requirements relating to the harvesting, collection, and trade of CITES species are complied with.","17. 3.     Violations of identified laws are not followed up by preventive actions taken by the relevant entities."]
["52. Legal requirements related to the export and/or import of products are complied with.",null,"18. The volume and impacts of waste from management activities comply with legal requirements, and are managed and minimised.","18. 1.        Identified laws are not consistently upheld by all entities, are often ignored, are not enforced by relevant authorities, or any combination thereof;"]
["53. Legal requirements relating to offshore trading and transfer pricing are complied with.",null,"18. The volume and impacts of waste from management activities comply with legal requirements, and are managed and minimised.","18. 2.        Violations of identified laws are not efficiently followed up on by the relevant entities;"]
["54. Legal requirements relating to due diligence or due care are complied with.",null,"18. The volume and impacts of waste from management activities comply with legal requirements, and are managed and minimised.","18. 3.        Violations of identified laws are not followed up by preventive actions taken by the relevant entities;"]
["55. There is no conversion from natural forest and no transformation of plantations to agricultural use since 31 December 2020",null,"18. The volume and impacts of waste from management activities comply with legal requirements, and are managed and minimised.","18. 4.        Applicable legislation for the area under assessment contradicts indicator requirement(s);"]
["56. There is no conversion from natural forest to land uses other than agriculture since 31 December 2020. ",null,"18. The volume and impacts of waste from management activities comply with legal requirements, and are managed and minimised.","18. 5.        Evidence indicates widespread or systematic violation of requirements covered under this indicator."]
["57. There is no degradation of natural forests since 31 December 2020.",null,"19. Pollution resulting from management activities comply with legal requirements, and is controlled and minimised.","19. 1.     Identified laws are not consistently upheld by all entities, are often ignored, are not enforced by relevant authorities, or any combination thereof; "]
["58. Concentrations of biological diversity including endemic species, and rare, threatened, or endangered species that are significant at global, regional or national levels are identified and protected, maintained or enhanced (HCV1).",null,"19. Pollution resulting from management activities comply with legal requirements, and is controlled and minimised.","19. 2.     Violations of identified laws are not efficiently followed up on by the relevant entities; "]
["59. Intact forest landscapes and large landscape-level ecosystems and ecosystem mosaics that are significant at global, regional, or national level.....are identified and protected, maintained or enhanced (HCV2).",null,"19. Pollution resulting from management activities comply with legal requirements, and is controlled and minimised.","19. 3.     Violations of identified laws are not followed up by preventive actions taken by the relevant entities; "]
["60. Rare, threatened, or endangered ecosystems, habitats or refugia are identified and protected, maintained, or enhanced (HCV3).",null,"19. Pollution resulting from management activities comply with legal requirements, and is controlled and minimised.","19. 4.     Applicable legislation for the area under assessment contradicts indicator requirements;"]
["61. Basic ecosystem services in critical situations, including the protection of water catchments and control of erosion of vulnerable soils and slopes, are identified and protected (HCV4).",null,"19. Pollution resulting from management activities comply with legal requirements, and is controlled and minimised.","19. 5.     Evidence indicates widespread or systematic violation of requirements covered under this indicator."]
["62. Sites and resources fundamental for satisfying the basic needs of local communities or Indigenous Peoples are identified and protected (HCV5).",null,"20. Water resources are protected and used responsibly in compliance with legal requirements, and with the aim of ensuring long-term viability.","20. 1.      Identified laws are not consistently upheld by all entities, are often ignored, are not enforced by relevant authorities, or any combination thereof; "]
["63. Sites, resources, habitats, and landscapes of global or national cultural, archaeological, or historical significance... of local communities or Indigenous Peoples are identified and protected (HCV6).",null,"20. Water resources are protected and used responsibly in compliance with legal requirements, and with the aim of ensuring long-term viability.","20. 2.      Violations of identified laws are not efficiently followed up on by the relevant entities; "]
["64. There is no commercial use of GMO.",null,"20. Water resources are protected and used responsibly in compliance with legal requirements, and with the aim of ensuring long-term viability.","20. 3.      Violations of identified laws are not followed up by preventive actions taken by the relevant entities; "]
[null,null,"20. Water resources are protected and used responsibly in compliance with legal requirements, and with the aim of ensuring long-term viability.","20. 4.      Applicable legislation for the area under assessment contradicts indicator requirement(s);"]
[null,null,"20. Water resources are protected and used responsibly in compliance with legal requirements, and with the aim of ensuring long-term viability.","20. 5.      Evidence indicates widespread or systematic violation of requirements covered under this indicator."]
[null,null,"21. Negative impacts on soils from management activities are minimised, and comply with legal requirements.","21. 1.        Identified laws are not consistently upheld by all entities, are often ignored, are not enforced by relevant authorities, or any combination thereof; "]
[null,null,"21. Negative impacts on soils from management activities are minimised, and comply with legal requirements.","21. 2.        Violations of identified laws are not efficiently followed up on by the relevant entities; "]
[null,null,"21. Negative impacts on soils from management activities are minimised, and comply with legal requirements.","21. 3.        Violations of identified laws are not followed up by preventive actions taken by the relevant entities; "]
[null,null,"21. Negative impacts on soils from management activities are minimised, and comply with legal requirements.","21. 4.        Applicable legislation for the area under assessment contradicts indicator requirement(s);"]
[null,null,"21. Negative impacts on soils from management activities are minimised, and comply with legal requirements.","21. 5.        Evidence indicates widespread or systematic violation of requirements covered under this indicator."]
[null,null,"22.  Legal requirements related to occupational health and safety are complied with.","22. 1.     Identified laws are not consistently upheld by all entities, are often ignored, are not enforced by relevant authorities, or any combination thereof;"]
[null,null,"22.  Legal requirements related to occupational health and safety are complied with.","22. 2.     Violations of identified laws are not efficiently followed up on by the relevant entities;"]
[null,null,"22.  Legal requirements related to occupational health and safety are complied with.","22. 3.     Violations of identified laws are not followed up by preventive actions taken by the relevant entities."]
[null,null,"23. Facilities and activities are safe and support worker’s health, and workers have access to and use appropriate Personal Protective Equipment commensurate with the activities undertaken.","23. 1.     Applicable legislation for the area under assessment covers the requirements under this indicator, and the country has ratified the Occupational Safety and Health Convention (C155)[1] and Promotional Framework for Occupational Safety and Health Convention (C187)[2], but the risk assessment for indicator 22 confirms a designation of ‘non-negligible risk’;"]
[null,null,"23. Facilities and activities are safe and support worker’s health, and workers have access to and use appropriate Personal Protective Equipment commensurate with the activities undertaken.","23. 2.     Applicable legislation for the area under assessment contradicts indicator requirement(s);"]
[null,null,"23. Facilities and activities are safe and support worker’s health, and workers have access to and use appropriate Personal Protective Equipment commensurate with the activities undertaken.","23. 3.     Evidence indicates widespread or systematic violation of requirements covered under this indicator;"]
[null,null,"23. Facilities and activities are safe and support worker’s health, and workers have access to and use appropriate Personal Protective Equipment commensurate with the activities undertaken.","23. 4.       The non-fatal occupational injuries in the area under assessment are more than 591.5 per 100'000 workers and occupational fatalities are more than 2.45 per 100’000 workers."]
[null,null,"24. The use, application, storage, and disposal of chemicals in management activities addresses the protection of the environment and human health and safety and complies with legal requirements.","24. 1.        Identified laws are not consistently upheld by all entities, are often ignored, are not enforced by relevant authorities, or any combination thereof; "]
[null,null,"24. The use, application, storage, and disposal of chemicals in management activities addresses the protection of the environment and human health and safety and complies with legal requirements.","24. 2.        Violations of identified laws are not efficiently followed up on by the relevant entities; "]
[null,null,"24. The use, application, storage, and disposal of chemicals in management activities addresses the protection of the environment and human health and safety and complies with legal requirements.","24. 3.        Violations of identified laws are not followed up by preventive actions taken by the relevant entities; "]
[null,null,"24. The use, application, storage, and disposal of chemicals in management activities addresses the protection of the environment and human health and safety and complies with legal requirements.","24. 4.        Applicable legislation for the area under assessment contradicts indicator requirement(s);"]
[null,null,"24. The use, application, storage, and disposal of chemicals in management activities addresses the protection of the environment and human health and safety and complies with legal requirements.","24. 5.        Evidence indicates widespread or systematic violation of requirements covered under this indicator. "]
[null,null,"25. Human rights protected under international law, as enshrined in national law, are complied with.","25. 1.     Identified laws are not consistently upheld by all entities, are often ignored, are not enforced by relevant authorities, or any combination thereof;"]
[null,null,"25. Human rights protected under international law, as enshrined in national law, are complied with.","25. 2.     Violations of identified laws are not efficiently followed up on by the relevant entities;"]
[null,null,"25. Human rights protected under international law, as enshrined in national law, are complied with.","25. 3.     Violations of identified laws are not followed up by preventive actions taken by the relevant entities."]
[null,null,"26. Harvest or trade in products do not contribute to a violation of international human rights or is not associated with armed conflicts.","26. 1.     The area is a source of conflict timber[3];"]
[null,null,"26. Harvest or trade in products do not contribute to a violation of international human rights or is not associated with armed conflicts.","26. 2.     The area is covered by a UN security ban on exporting timber;"]
[null,null,"26. Harvest or trade in products do not contribute to a violation of international human rights or is not associated with armed conflicts.","26. 3.     The area is covered by any other international ban on timber export;"]
[null,null,"26. Harvest or trade in products do not contribute to a violation of international human rights or is not associated with armed conflicts.","26. 4.     Operators in the area are involved in the supply or trade of conflict timber (identified entities should be specified whenever possible while maintaining compliance with the law);"]
[null,null,"26. Harvest or trade in products do not contribute to a violation of international human rights or is not associated with armed conflicts.","26. 5.     Individuals or entities in the forest sector are facing UN sanctions;"]
[null,null,"26. Harvest or trade in products do not contribute to a violation of international human rights or is not associated with armed conflicts.","26. 6.     There are rapidly changing circumstances within the area under assessment that pose a serious risk to the integrity or reputation of the FSC certification scheme. "]
[null,null,"27. Legal requirements related to child labour and employment of young workers are complied with.","27. 1.     Identified laws are not consistently upheld by all entities, are often ignored, are not enforced by relevant authorities, or any combination thereof;"]
[null,null,"27. Legal requirements related to child labour and employment of young workers are complied with.","27. 2.     Violations of identified laws are not efficiently followed up on by the relevant entities;"]
[null,null,"27. Legal requirements related to child labour and employment of young workers are complied with.","27. 3.     Violations of identified laws are not followed up by preventive actions taken by the relevant entities."]
[null,null,"28. Child labour is not present, and the employment of young workers is responsibly managed, including related rights as specified in the ILO Fundamental Principles and Rights at Work.","28. 1.     Applicable legislation for the area under assessment covers all ILO Fundamental Principles and Rights at Work, but the risk assessment for indicator 27 confirms a designation of ‘non-negligible risk’;"]
[null,null,"28. Child labour is not present, and the employment of young workers is responsibly managed, including related rights as specified in the ILO Fundamental Principles and Rights at Work.","28. 2.     Applicable legislation for the area under assessment contradicts indicator requirement(s);"]
[null,null,"28. Child labour is not present, and the employment of young workers is responsibly managed, including related rights as specified in the ILO Fundamental Principles and Rights at Work.","28. 3.     There is substantial evidence of widespread or systematic violation of labour rights against child labour, including as specified in the ILO Fundamental Principles and Rights at Work."]
[null,null,"29. Legal requirements related to modern slavery, including forced and compulsory labour, are complied with.","29. 1.     Identified laws are not consistently upheld by all entities, are often ignored, are not enforced by relevant authorities, or any combination thereof;"]
[null,null,"29. Legal requirements related to modern slavery, including forced and compulsory labour, are complied with.","29. 2.     Violations of identified laws are not efficiently followed up on by the relevant entities;"]
[null,null,"29. Legal requirements related to modern slavery, including forced and compulsory labour, are complied with.","29. 3.     Violations of identified laws are not followed up by preventive actions taken by the relevant entities."]
[null,null,"30. Modern slavery, including forced and compulsory labour are not used, promoted, or supported in any way, including as specified in the ILO Fundamental Principles and Rights at Work.","30. 1.     Applicable legislation for the area under assessment covers all ILO Fundamental Principles and Rights at Work, but the risk assessment for indicator 29 confirms a designation of ‘non-negligible risk’;"]
[null,null,"30. Modern slavery, including forced and compulsory labour are not used, promoted, or supported in any way, including as specified in the ILO Fundamental Principles and Rights at Work.","30. 2.     Applicable legislation for the area under assessment contradicts indicator requirement(s);"]
[null,null,"30. Modern slavery, including forced and compulsory labour are not used, promoted, or supported in any way, including as specified in the ILO Fundamental Principles and Rights at Work.","30. 3.     There is substantial evidence of widespread or systematic violation of labour rights against modern slavery, including forced and compulsory labour, including as specified in the ILO Fundamental Principles and Rights at Work."]
[null,null,"31. Legal requirements related to the Freedom of Association, the Right to Organise and the Right to Collective Bargaining are complied with.","31. 1.     Identified laws are not consistently upheld by all entities, are often ignored, are not enforced by relevant authorities, or any combination thereof;"]
[null,null,"31. Legal requirements related to the Freedom of Association, the Right to Organise and the Right to Collective Bargaining are complied with.","31. 2.     Violations of identified laws are not efficiently followed up on by the relevant entities;"]
[null,null,"31. Legal requirements related to the Freedom of Association, the Right to Organise and the Right to Collective Bargaining are complied with.","31. 3.     Violations of identified laws are not followed up by preventive actions taken by the relevant entities."]
[null,null,"32. Labour rights related to the Freedom of Association, the Right to Organise and the Right to Collective Bargaining are respected, including as specified in the ILO Fundamental Principles and Rights at Work.","32. 1.     Applicable legislation for the area under assessment covers all ILO Fundamental Principles and Rights at Work but the risk assessment for indicator 31 confirms a designation of ‘non-negligible risk’;"]
[null,null,"32. Labour rights related to the Freedom of Association, the Right to Organise and the Right to Collective Bargaining are respected, including as specified in the ILO Fundamental Principles and Rights at Work.","32. 2.     Applicable legislation for the area under assessment contradicts indicator requirement(s);"]
[null,null,"32. Labour rights related to the Freedom of Association, the Right to Organise and the Right to Collective Bargaining are respected, including as specified in the ILO Fundamental Principles and Rights at Work.","32. 3.     There is substantial evidence of widespread or systematic violation of the Freedom of Association, the Right to Organise and the Right to Collective Bargaining, including as specified in ILO Fundamental Principles and Rights at Work."]
[null,null,"33. Legal requirements related to the recruitment and employment of workers are complied with.","33. 1.     Identified laws are not consistently upheld by all entities, are often ignored, are not enforced by relevant authorities, or any combination thereof;"]
[null,null,"33. Legal requirements related to the recruitment and employment of workers are complied with.","33. 2.     Violations of identified laws are not efficiently followed up on by the relevant entities;"]
[null,null,"33. Legal requirements related to the recruitment and employment of workers are complied with.","33. 3.     Violations of identified laws are not followed up by preventive actions taken by the relevant entities."]
[null,null,"34. Legal requirements related to the contracts and working permits, and requirements for competence certifications and other training requirements are complied with.","34. 1.     Identified laws are not consistently upheld by all entities, are often ignored, are not enforced by relevant authorities, or any combination thereof;"]
[null,null,"34. Legal requirements related to the contracts and working permits, and requirements for competence certifications and other training requirements are complied with.","34. 2.     Violations of identified laws are not efficiently followed up on by the relevant entities;"]
[null,null,"34. Legal requirements related to the contracts and working permits, and requirements for competence certifications and other training requirements are complied with.","34. 3.     Violations of identified laws are not followed up by preventive actions taken by the relevant entities."]
[null,null,"35. Legal requirements related to workers’ wages and other payments, such as social insurance contributions and the payment of social and income taxes withheld by the employer on behalf of the worker, are complied with.","35. 1.     Identified laws are not consistently upheld by all entities, are often ignored, are not enforced by relevant authorities, or any combination thereof;"]
[null,null,"35. Legal requirements related to workers’ wages and other payments, such as social insurance contributions and the payment of social and income taxes withheld by the employer on behalf of the worker, are complied with.","35. 2.     Violations of identified laws are not efficiently followed up on by the relevant entities;"]
[null,null,"35. Legal requirements related to workers’ wages and other payments, such as social insurance contributions and the payment of social and income taxes withheld by the employer on behalf of the worker, are complied with.","35. 3.     Violations of identified laws are not followed up by preventive actions taken by the relevant entities."]
[null,null,"36. Legal requirements related to working hours, overtime, rest time and time off are complied with.","36. 1.     Identified laws are not consistently upheld by all entities, are often ignored, are not enforced by relevant authorities, or any combination thereof;"]
[null,null,"36. Legal requirements related to working hours, overtime, rest time and time off are complied with.","36. 2.     Violations of identified laws are not efficiently followed up on by the relevant entities;"]
[null,null,"36. Legal requirements related to working hours, overtime, rest time and time off are complied with.","36. 3.     Violations of identified laws are not followed up by preventive actions taken by the relevant entities."]
[null,null,"37. Labour rights related to recruitment and employment...are upheld, including as specified in the ILO Fundamental Principles and Rights at Work are upheld.","37. 1.     Applicable legislation for the area under assessment covers all ILO Fundamental Principles and Rights at Work, but the risk assessment for indicators 33, 34, 35, and 36 confirm a designation of ‘non-negligible risk’;"]
[null,null,"37. Labour rights related to recruitment and employment...are upheld, including as specified in the ILO Fundamental Principles and Rights at Work are upheld.","37. 2.     Applicable legislation for the area under assessment contradicts indicator requirement(s);"]
[null,null,"37. Labour rights related to recruitment and employment...are upheld, including as specified in the ILO Fundamental Principles and Rights at Work are upheld.","37. 3.     There is substantial evidence of widespread or systematic violation of requirements covered under this indicator."]
[null,null,"38. Legal requirements related to discrimination against workers are complied with.","38. 1.     Identified laws are not consistently upheld by all entities, are often ignored, are not enforced by relevant authorities, or any combination thereof;"]
[null,null,"38. Legal requirements related to discrimination against workers are complied with.","38. 2.     Violations of identified laws are not efficiently followed up on by the relevant entities;"]
[null,null,"38. Legal requirements related to discrimination against workers are complied with.","38. 3.     Violations of identified laws are not followed up by preventive actions taken by the relevant entities."]
[null,null,"39. There is no discrimination against workers in processes related to hiring, remuneration and access to training, promotion, termination, or retirement, including related rights as specified in the ILO Fundamental Principles and Rights at Work.","39. 1.     Applicable legislation for the area under assessment covers all ILO Fundamental Principles and Rights at Work but the risk assessment for indicator 38 confirms a designation of ‘non-negligible risk’;"]
[null,null,"39. There is no discrimination against workers in processes related to hiring, remuneration and access to training, promotion, termination, or retirement, including related rights as specified in the ILO Fundamental Principles and Rights at Work.","39. 2.     Applicable legislation for the area under assessment contradicts indicator requirement(s);"]
[null,null,"39. There is no discrimination against workers in processes related to hiring, remuneration and access to training, promotion, termination, or retirement, including related rights as specified in the ILO Fundamental Principles and Rights at Work.","39. 3.     There is substantial evidence of widespread or systematic violation of requirements covered under this indicator."]
[null,null,"40. Legal requirements related to gender equality in the workplace are complied with.","40. 1.     Identified laws are not consistently upheld by all entities, are often ignored, are not enforced by relevant authorities, or any combination thereof;"]
[null,null,"40. Legal requirements related to gender equality in the workplace are complied with.","40. 2.     Violations of identified laws are not efficiently followed up on by the relevant entities;"]
[null,null,"40. Legal requirements related to gender equality in the workplace are complied with.","40. 3.     Violations of identified laws are not followed up by preventive actions taken by the relevant entities."]
[null,null,"41. Gender equality is protected following best practice… as specified in the ILO Fundamental Principles and Rights at Work.","41. 1.     Applicable legislation for the area under assessment covers all ILO Fundamental Principles and Rights at Work, but the risk assessment for indicator 40 confirms a designation of ‘non-negligible risk’;"]
[null,null,"41. Gender equality is protected following best practice… as specified in the ILO Fundamental Principles and Rights at Work.","41. 2.     Applicable legislation for the area under assessment contradicts indicator requirement(s);"]
[null,null,"41. Gender equality is protected following best practice… as specified in the ILO Fundamental Principles and Rights at Work.","41. 3.     There is substantial evidence of widespread or systematic violation of requirements covered under this indicator."]
[null,null,"42. Legal requirements related to the rights of Indigenous Peoples are complied with.","42. 1.     Identified laws are not consistently upheld by all entities, are often ignored, are not enforced by relevant authorities, or any combination thereof;"]
[null,null,"42. Legal requirements related to the rights of Indigenous Peoples are complied with.","42. 2.     Violations of identified laws are not efficiently followed up on by the relevant entities;"]
[null,null,"42. Legal requirements related to the rights of Indigenous Peoples are complied with.","42. 3.     Violations of identified laws are not followed up by preventive actions taken by the relevant entities."]
[null,null,"43.  The rights of Indigenous Peoples, including land tenure and management, are respected and upheld according to the principles of FPIC.","43. 1.     The presence of Indigenous Peoples is confirmed or likely within the area under assessment. The applicable legislation for the area under assessment covers ILO provisions governing the identification and rights of Indigenous Peoples,[4] but the risk assessment for indicator 42 confirms a designation of ‘non-negligible risk’;"]
[null,null,"43.  The rights of Indigenous Peoples, including land tenure and management, are respected and upheld according to the principles of FPIC.","43. 2.     The presence of Indigenous Peoples is confirmed or likely within the area under assessment. The applicable legislation for the area under assessment covers the United Nations Declaration on the Rights of Indigenous Peoples[5] (UNDRIP) but the risk assessment for indicator 42 confirms a designation of 'non-negligible risk';"]
[null,null,"43.  The rights of Indigenous Peoples, including land tenure and management, are respected and upheld according to the principles of FPIC.","43. 3.     The presence of Indigenous Peoples is confirmed or likely within the area. The applicable legislation for the area under assessment contradicts indicator requirement(s);"]
[null,null,"43.  The rights of Indigenous Peoples, including land tenure and management, are respected and upheld according to the principles of FPIC.","43. 4.     Substantial evidence of the widespread or systematic violation of Indigenous Peoples’ rights exists; "]
[null,null,"43.  The rights of Indigenous Peoples, including land tenure and management, are respected and upheld according to the principles of FPIC.","43. 5.     Indigenous Peoples are not aware of their rights;"]
[null,null,"43.  The rights of Indigenous Peoples, including land tenure and management, are respected and upheld according to the principles of FPIC.","43. 6.     There is evidence of conflict(s) of substantial magnitude[6] pertaining to the rights of Indigenous Peoples. Laws and regulations or other legally established processes do not exist that serve the resolution of conflicts in the area concerned, or, such processes exist but are not recognized by affected stakeholders as being fair and equitable."]
[null,null,"44. Legal requirements related to the rights of Traditional Peoples are complied with.","44. 1.     Identified laws are not consistently upheld by all entities, are often ignored, are not enforced by relevant authorities, or any combination thereof;"]
[null,null,"44. Legal requirements related to the rights of Traditional Peoples are complied with.","44. 2.     Violations of identified laws are not efficiently followed up on by the relevant entities;"]
[null,null,"44. Legal requirements related to the rights of Traditional Peoples are complied with.","44. 3.     Violations of identified laws are not followed up by preventive actions taken by the relevant entities."]
[null,null,"45. The rights of Traditional Peoples, including land tenure and management, are respected and upheld according to the principles of FPIC.","45. 1.     The presence of Traditional Peoples is confirmed or likely within the area under assessment. The applicable legislation for the area under assessment covers ILO provisions governing the identification and rights of Traditional Peoples,[7] but the risk assessment for indicator 44 confirms a designation of ‘non-negligible risk’;"]
[null,null,"45. The rights of Traditional Peoples, including land tenure and management, are respected and upheld according to the principles of FPIC.","45. 2.     The presence of Traditional Peoples is confirmed or likely within the area under assessment. The applicable legislation for the area under assessment contradicts indicator requirement(s);"]
[null,null,"45. The rights of Traditional Peoples, including land tenure and management, are respected and upheld according to the principles of FPIC.","45. 3.     Substantial evidence of widespread or systematic violation of Traditional Peoples’ rights exists; "]
[null,null,"45. The rights of Traditional Peoples, including land tenure and management, are respected and upheld according to the principles of FPIC.","45. 4.     Traditional Peoples are not aware of their rights;"]
[null,null,"45. The rights of Traditional Peoples, including land tenure and management, are respected and upheld according to the principles of FPIC.","45. 5.     There is evidence of conflict(s) of substantial magnitude[8] pertaining to the rights of Traditional Peoples. Laws and regulations or other legally established processes do not exist that serve the resolution of conflicts in the area concerned, or, such processes exist but are not recognized by affected stakeholders as being fair and equitable."]
[null,null,"46. Legally recognised customary and community rights are identified and respected.","46. 1.     Identified laws are not consistently upheld by all entities, are often ignored, are not enforced by relevant authorities, or any combination thereof;"]
[null,null,"46. Legally recognised customary and community rights are identified and respected.","46. 2.     Violations of identified laws are not efficiently followed up on by the relevant entities;"]
[null,null,"46. Legally recognised customary and community rights are identified and respected.","46. 3.     Violations of identified laws are not followed up by preventive actions taken by the relevant entities."]
[null,null,"47. The rights of local communities are respected and upheld.","47. 1.     The presence of local communities is confirmed or likely within the area under assessment. The applicable legislation for the area under assessment covers ILO provisions governing the identification and rights of local communities, but the risk assessment for indicator 46 confirms a designation of 'non-negligible risk';"]
[null,null,"47. The rights of local communities are respected and upheld.","47. 2.     The presence of local communities is confirmed or likely within the area under assessment. The applicable legislation for the area under assessment contradicts indicator requirement(s);"]
[null,null,"47. The rights of local communities are respected and upheld.","47. 3.     Local communities are not aware of their rights;"]
[null,null,"47. The rights of local communities are respected and upheld.","47. 4.     Evidence indicates widespread or systematic violation of the rights of local communities."]
[null,null,"48. Interaction with Indigenous Peoples, Traditional Peoples and local communities is conducted in a respectful and culturally appropriate manner.","48. 1.     Applicable legislation for the area under assessment covers the requirements under this indicator, but the risk assessment for indicators 42, 44, and 46 confirms a designation of ‘non-negligible risk’;"]
[null,null,"48. Interaction with Indigenous Peoples, Traditional Peoples and local communities is conducted in a respectful and culturally appropriate manner.","48. 2.     Applicable legislation for the area under assessment contradicts indicator requirement(s);"]
[null,null,"48. Interaction with Indigenous Peoples, Traditional Peoples and local communities is conducted in a respectful and culturally appropriate manner.","48. 3.     Evidence indicates widespread or systematic violation of requirements covered under this indicator."]
[null,null,"49. Legal requirements related to the trade and transport of products are complied with.","49. 1.     Identified laws are not consistently upheld by all entities, are often ignored, are not enforced by relevant authorities, or any combination thereof;"]
[null,null,"49. Legal requirements related to the trade and transport of products are complied with.","49. 2.     Violations of identified laws are not efficiently followed up on by the relevant entities;"]
[null,null,"49. Legal requirements related to the trade and transport of products are complied with.","49. 3.     Violations of identified laws are not followed up by preventive actions taken by the relevant entities."]
[null,null,"50. Legal requirements related to applicable trade restrictions and sanctions are complied with.","50. 1.     Identified laws are not consistently upheld by all entities, are often ignored, are not enforced by relevant authorities, or any combination thereof;"]
[null,null,"50. Legal requirements related to applicable trade restrictions and sanctions are complied with.","50. 2.     Violations of identified laws are not efficiently followed up on by the relevant entities;"]
[null,null,"50. Legal requirements related to applicable trade restrictions and sanctions are complied with.","50. 3.     Violations of identified laws are not followed up by preventive actions taken by the relevant entities."]
[null,null,"51. Legal requirements related to the classification of products are complied with.","51. 1.     Identified laws are not consistently upheld by all entities, are often ignored, are not enforced by relevant authorities, or any combination thereof;"]
[null,null,"51. Legal requirements related to the classification of products are complied with.","51. 2.     Violations of identified laws are not efficiently followed up on by the relevant entities;"]
[null,null,"51. Legal requirements related to the classification of products are complied with.","51. 3.     Violations of identified laws are not followed up by preventive actions taken by the relevant entities."]
[null,null,"52. Legal requirements related to the export and/or import of products are complied with.","52. 1.     Identified laws are not consistently upheld by all entities, are often ignored, are not enforced by relevant authorities, or any combination thereof;"]
[null,null,"52. Legal requirements related to the export and/or import of products are complied with.","52. 2.     Violations of identified laws are not efficiently followed up on by the relevant entities;"]
[null,null,"52. Legal requirements related to the export and/or import of products are complied with.","52. 3.     Violations of identified laws are not followed up by preventive actions taken by the relevant entities."]
[null,null,"53. Legal requirements relating to offshore trading and transfer pricing are complied with.","53. 1.     Identified laws are not consistently upheld by all entities, are often ignored, are not enforced by relevant authorities, or any combination thereof;"]
[null,null,"53. Legal requirements relating to offshore trading and transfer pricing are complied with.","53. 2.     Violations of identified laws are not efficiently followed up on by the relevant entities;"]
[null,null,"53. Legal requirements relating to offshore trading and transfer pricing are complied with.","53. 3.     Violations of identified laws are not followed up by preventive actions taken by the relevant entities."]
[null,null,"54. Legal requirements relating to due diligence or due care are complied with.","54. 1.     Identified laws are not consistently upheld by all entities, are often ignored, are not enforced by relevant authorities, or any combination thereof;"]
[null,null,"54. Legal requirements relating to due diligence or due care are complied with.","54. 2.     Violations of identified laws are not efficiently followed up on by the relevant entities;"]
[null,null,"54. Legal requirements relating to due diligence or due care are complied with.","54. 3.     Violations of identified laws are not followed up by preventive actions taken by the relevant entities."]
[null,null,"55. There is no conversion from natural forest and no transformation of plantations to agricultural use since 31 December 2020","55. 1.     Evidence indicates that conversion from natural forest to agriculture is occurring."]
[null,null,"56. There is no conversion from natural forest to land uses other than agriculture since 31 December 2020. ","56. 1.     The applicable legislation for the area under assessment covers laws that prevent conversion from natural forest to land uses other than agriculture to the extent of 0.02% gross annual loss of natural forest area, but the risk assessment for relevant indicators on legal compliance confirms a designation of ‘non-negligible risk’; or"]
[null,null,"56. There is no conversion from natural forest to land uses other than agriculture since 31 December 2020. ","56. 2.     Any of the following are true: a) Conversion of natural forests to land uses other than agriculture since 31 December 2020 in the area under assessment is more than 0.02% gross annual loss of natural forest area; b) Evidence indicates that degradation of natural forests is occurring on a widespread or systematic basis. c) There are projects that allow for conversion of natural forest in areas containing environmental values, and evidence indicates that conversion is happening."]
[null,null,"57. There is no degradation of natural forests since 31 December 2020.","57. 1.   The applicable legislation for the area under assessment covers laws that prevent total natural forest degradation to 0.02% of the total natural forest area, but the risk assessment for relevant indicators on legal compliance confirms a designation of ‘non-negligible risk’; or"]
[null,null,"57. There is no degradation of natural forests since 31 December 2020.","57. 2.   Any of the following are true: a) The degradation since 31 December 2020 in the area under assessment is more than 0.02% of the total natural forest area on average per year; b) Evidence indicates that forest degradation is occurring on a widespread or systematic basis."]
[null,null,"58. Concentrations of biological diversity including endemic species, and rare, threatened, or endangered species that are significant at global, regional or national levels are identified and protected, maintained or enhanced (HCV1).","58. 1.     HCV 1 is identified, or its occurrence is likely in the area under assessment and is threatened by management activities."]
[null,null,"59. Intact forest landscapes and large landscape-level ecosystems and ecosystem mosaics that are significant at global, regional, or national level.....are identified and protected, maintained or enhanced (HCV2).","59. 1.     HCV 2 is identified, or its occurrence is likely in the area under assessment and is threatened by management activities."]
[null,null,"60. Rare, threatened, or endangered ecosystems, habitats or refugia are identified and protected, maintained, or enhanced (HCV3).","60. 1.     HCV 3 is identified, or its occurrence is likely in the area under assessment and is threatened by management activities."]
[null,null,"61. Basic ecosystem services in critical situations, including the protection of water catchments and control of erosion of vulnerable soils and slopes, are identified and protected (HCV4).","61. 1.     HCV 4 is identified, or its occurrence is likely in the area under assessment and is threatened by management activities."]
[null,null,"62. Sites and resources fundamental for satisfying the basic needs of local communities or Indigenous Peoples are identified and protected (HCV5).","62. 1.     HCV 5 is identified, or its occurrence is likely in the area under assessment and is threatened by management activities."]
[null,null,"63. Sites, resources, habitats, and landscapes of global or national cultural, archaeological, or historical significance... of local communities or Indigenous Peoples are identified and protected (HCV6).","63. 1.     HCV 6 is identified, or its occurrence is likely in the area under assessment and is threatened by management activities."]
[null,null,"64. There is no commercial use of GMO.","64. 1.     GMO use is legal, according to applicable legislation of the area under assessment;"]
[null,null,"64. There is no commercial use of GMO.","64. 2.     GMO use is illegal according to applicable legislation of the area under assessment, but any of the following are true: a)    Evidence of the implementation of the ban does not exist; b)    Evidence indicates a systematic violation of the ban; c) When laws are violated, violations are not efficiently followed up on by relevant entities, d) When laws are violated, identified root causes are not addressed through the implementation of preventive actions by relevant entities."]
[null,null,"64. There is no commercial use of GMO.","64. 3.     There is evidence of commercial use of GMO species. "]

{"sheet":"Indicators & Thresholds","index":1,"n_rows":68,"n_cols":5,"rows_kept":68,"cut":false,"hidden":false,"merged":[]}
[null,"Reference: Indicators, Risk Thresholds, and Related EUDR Clauses",null,"Key"]
[null,null,null,null,"EUDR related indicator"]
[null,null,null,null,"Indicator that goes beyond/not explicitly addressed by EUDR"]
["Indicator Category","Indicators","Risk Threshold","Related EUDR Clause"]
["Land Use and Management","01. Land tenure rights are secured and registered according to legal requirements.","1. 1.     Identified laws are not consistently upheld by all entities, are often ignored, are not enforced by relevant authorities, or any combination thereof; \n1. 2.     Violations of identified laws are not efficiently followed up on by the relevant entities;\n1. 3.     Violations of identified laws are not followed up by preventive actions taken by the relevant entities.","Art. 2 (40a)"]
["Land Use and Management","02. Land management rights are in place and registered according to legal requirements.","2. 1.     Identified laws are not consistently upheld by all entities, are often ignored, are not enforced by relevant authorities, or any combination thereof;\n2. 2.     Violations of identified laws are not efficiently followed up on by the relevant entities;\n2. 3.     Violations of identified laws are not followed up by preventive actions taken by the relevant entities.\n","Art. 2 (40a)"]
["Land Use and Management","03. Forest concession licenses are in place and are issued and registered according to legal requirements.","3. 1.  Identified laws are not consistently upheld by all entities, are often ignored, are not enforced by relevant authorities, or any combination thereof;\n3. 2. Violations of identified laws are not efficiently followed up on by the relevant entities;\n3. 3.  Violations of identified laws are not followed up by preventive actions taken by the relevant entities.","Art. 2 (40a)"]
["Land Use and Management","04. Harvesting permits are in place and are issued and registered according to legal requirements.","4. 1.     Identified laws are not consistently upheld by all entities, are often ignored, are not enforced by relevant authorities, or any combination thereof;\n4. 2.     Violations of identified laws are not efficiently followed up on by the relevant entities;\n4. 3.     Violations of identified laws are not followed up by preventive actions taken by the relevant entities.","Art. 2 (40c)"]
["Land Use and Management","05. Legal requirements for land-use and management planning are complied with.","5. 1.     Identified laws are not consistently upheld by all entities, are often ignored, are not enforced by relevant authorities, or any combination thereof;\n5. 2.     Violations of identified laws are not efficiently followed up on by the relevant entities;\n5. 3.     Violations of identified laws are not followed up by preventive actions taken by the relevant entities.","Art. 2 (40a)"]
["Taxes and Fees","06. Legal requirements for payment of royalties, land/area taxes and fees are complied with.","6. 1.     Identified laws are not consistently upheld by all entities, are often ignored, are not enforced by relevant authorities, or any combination thereof;\n6. 2.     Violations of identified laws are not efficiently followed up on by the relevant entities;\n6. 3.     Violations of identified laws are not followed up by preventive actions taken by the relevant entities.","Art. 2 (40h)"]
["Taxes and Fees","07. Legal requirements for payment of value-added taxes and/or other sales taxes are complied with.","7. 1.     Identified laws are not consistently upheld by all entities, are often ignored, are not enforced by relevant authorities, or any combination thereof;\n7. 2.     Violations of identified laws are not efficiently followed up on by the relevant entities;\n7. 3.     Violations of identified laws are not followed up by preventive actions taken by the relevant entities.","Art. 2 (40h)"]
["Taxes and Fees","08. Legal requirements for payment of corporate taxes are complied with, including profit taxes.","8. 1.     Identified laws are not consistently upheld by all entities, are often ignored, are not enforced by relevant authorities, or any combination thereof;\n8. 2.     Violations of identified laws are not efficiently followed up on by the relevant entities;\n8. 3.     Violations of identified laws are not followed up by preventive actions taken by the relevant entities.","Art. 2 (40h)"]
["Taxes and Fees","09. Legal requirements for payment of trade and/or export taxes and fees are complied with.","9. 1.     Identified laws are not consistently upheld by all entities, are often ignored, are not enforced by relevant authorities, or any combination thereof;\n9. 2.     Violations of identified laws are not efficiently followed up on by the relevant entities;\n9. 3.     Violations of identified laws are not followed up by preventive actions taken by the relevant entities.","Art. 2 (40h)"]
["Corruption and document or data falsification","10. Legal requirements related to corruption, including bribery, fraud and conflict of interest, are complied with.","10. 1.     Identified laws are not consistently upheld by all entities, are often ignored, are not enforced by relevant authorities, or any combination thereof;\n10. 2.     Violations of identified laws are not efficiently followed up on by the relevant entities;\n10. 3.     Violations of identified laws are not followed up by preventive actions taken by the relevant entities.\n","Art. 2 (40h)"]
["Corruption and document or data falsification","11. All forms of bribery and corruption are avoided.","11. 1.     Applicable legislation for the area under assessment covers the requirements under this indicator, but the risk assessment for indicator 10 confirms a designation of ‘non-negligible risk’;\n11. 2.     Applicable legislation for the area under assessment contradicts indicator requirement(s);\n11. 3.     Evidence indicates widespread or systematic violation of requirements covered under this indicator.","Art. 10 (2h)"]
["Corruption and document or data falsification","12. Data and document falsification do not occur.","12. 1.     Applicable legislation for the area under assessment covers the requirements under this indicator, but the risk assessment for indicator 10 confirms a designation of ‘non-negligible risk’;\n12. 2.     Applicable legislation for the area under assessment contradicts indicator requirement(s);\n12. 3.     Evidence indicates widespread or systematic violation of requirements covered under this indicator.","Art. 10 (2h)"]
["Management activities and environmental protection","13. Legal requirements for management activities and related operational requirements are complied with.","13. 1.     Identified laws are not consistently upheld by all entities, are often ignored, are not enforced by relevant authorities, or any combination thereof;\n13. 2.     Violations of identified laws are not efficiently followed up on by the relevant entities;\n13. 3.     Violations of identified laws are not followed up by preventive actions taken by the relevant entities.","Art. 2 (40c)"]
["Management activities and environmental protection","14.  Development and maintenance of infrastructure associated with management activities comply with applicable codes and legal requirements for the protection of environmental values.","14. 1.     Identified laws are not consistently upheld by all entities, are often ignored, are not enforced by relevant authorities, or any combination thereof;\n14. 2.     Violations of identified laws are not efficiently followed up on by the relevant entities;\n14. 3.     Violations of identified laws are not followed up by preventive actions taken by the relevant entities.\n","Art. 2 (40b)"]
["Management activities and environmental protection","15.  Development and maintenance of infrastructure associated with management activities is done in a way that minimises adverse impacts on environmental values.","15. 1.     Applicable legislation for the area under assessment covers the requirements under this indicator, but the risk assessment for indicator 14 confirms a designation of ‘non-negligible risk’;\n15. 2.     Applicable legislation for the area under assessment contradicts indicator requirement(s);\n15. 3.     Evidence indicates widespread or systematic violation of requirements covered under this indicator. \n"]
["Management activities and environmental protection","16. Legal requirements related to biodiversity conservation, protected sites, and the protection of endemic, rare, threatened, or endangered species and their habitats are complied with.  ","16. 1.     Identified laws are not consistently upheld by all entities, are often ignored, are not enforced by relevant authorities, or any combination thereof;\n16. 2.     Violations of identified laws are not efficiently followed up on by the relevant entities;\n16. 3.     Violations of identified laws are not followed up by preventive actions taken by the relevant entities.","Art. 2 (40c); Art. 2 (40b)"]
["Management activities and environmental protection","17. Legal requirements relating to the harvesting, collection, and trade of CITES species are complied with.","17. 1.     Identified laws are not consistently upheld by all entities, are often ignored, are not enforced by relevant authorities, or any combination thereof;\n17. 2.     Violations of identified laws are not efficiently followed up on by the relevant entities;\n17. 3.     Violations of identified laws are not followed up by preventive actions taken by the relevant entities.","Art. 2 (40b)"]
["Management activities and environmental protection","18. The volume and impacts of waste from management activities comply with legal requirements, and are managed and minimised.","18. 1.        Identified laws are not consistently upheld by all entities, are often ignored, are not enforced by relevant authorities, or any combination thereof;\n18. 2.        Violations of identified laws are not efficiently followed up on by the relevant entities;\n18. 3.        Violations of identified laws are not followed up by preventive actions taken by the relevant entities;\n18. 4.        Applicable legislation for the area under assessment contradicts indicator requirement(s);\n18. 5.        Evidence indicates widespread or systematic violation of requirements covered under this indicator.\n\n\n","Art. 2 (40b)"]
["Management activities and environmental protection","19. Pollution resulting from management activities comply with legal requirements, and is controlled and minimised.","19. 1.     Identified laws are not consistently upheld by all entities, are often ignored, are not enforced by relevant authorities, or any combination thereof; \n19. 2.     Violations of identified laws are not efficiently followed up on by the relevant entities; \n19. 3.     Violations of identified laws are not followed up by preventive actions taken by the relevant entities; \n19. 4.     Applicable legislation for the area under assessment contradicts indicator requirements;\n19. 5.     Evidence indicates widespread or systematic violation of requirements covered under this indicator.\n","Art. 2 (40b)"]
["Management activities and environmental protection","20. Water resources are protected and used responsibly in compliance with legal requirements, and with the aim of ensuring long-term viability.","20. 1.      Identified laws are not consistently upheld by all entities, are often ignored, are not enforced by relevant authorities, or any combination thereof; \n20. 2.      Violations of identified laws are not efficiently followed up on by the relevant entities; \n20. 3.      Violations of identified laws are not followed up by preventive actions taken by the relevant entities; \n20. 4.      Applicable legislation for the area under assessment contradicts indicator requirement(s);\n20. 5.      Evidence indicates widespread or systematic violation of requirements covered under this indicator.\n","Art. 2 (40b)"]
["Management activities and environmental protection","21. Negative impacts on soils from management activities are minimised, and comply with legal requirements.","21. 1.        Identified laws are not consistently upheld by all entities, are often ignored, are not enforced by relevant authorities, or any combination thereof; \n21. 2.        Violations of identified laws are not efficiently followed up on by the relevant entities;  \n21. 3.        Violations of identified laws are not followed up by preventive actions taken by the relevant entities; \n21. 4.        Applicable legislation for the area under assessment contradicts indicator requirement(s);\n21. 5.        Evidence indicates widespread or systematic violation of requirements covered under this indicator.\n\n","Art. 2 (40b)"]
["Health and safety","22.  Legal requirements related to occupational health and safety are complied with.","22. 1.     Identified laws are not consistently upheld by all entities, are often ignored, are not enforced by relevant authorities, or any combination thereof;\n22. 2.     Violations of identified laws are not efficiently followed up on by the relevant entities;\n22. 3.     Violations of identified laws are not followed up by preventive actions taken by the relevant entities.\n","Art. 2(40e)"]
["Health and safety","23. Facilities and activities are safe and support worker’s health, and workers have access to and use appropriate Personal Protective Equipment commensurate with the activities undertaken.","23. 1.     Applicable legislation for the area under assessment covers the requirements under this indicator, and the country has ratified the Occupational Safety and Health Convention (C155)[1] and Promotional Framework for Occupational Safety and Health Convention (C187)[2], but the risk assessment for indicator 22 confirms a designation of ‘non-negligible risk’;\n23. 2.     Applicable legislation for the area under assessment contradicts indicator requirement(s);\n23. 3.     Evidence indicates widespread or systematic violation of requirements covered under this indicator;\n23. 4.       The non-fatal occupational injuries in the area under assessment are more than 591.5 per 100'000 workers and occupational fatalities are more than 2.45 per 100’000 workers.\n\n"]
["Health and safety","24. The use, application, storage, and disposal of chemicals in management activities addresses the protection of the environment and human health and safety and complies with legal requirements.","24. 1.        Identified laws are not consistently upheld by all entities, are often ignored, are not enforced by relevant authorities, or any combination thereof; \n24. 2.        Violations of identified laws are not efficiently followed up on by the relevant entities; \n24. 3.        Violations of identified laws are not followed up by preventive actions taken by the relevant entities; \n24. 4.        Applicable legislation for the area under assessment contradicts indicator requirement(s);\n24. 5.        Evidence indicates widespread or systematic violation of requirements covered under this indicator. \n","Art. 2 (40b)"]
["Human and labour rights","25. Human rights protected under international law, as enshrined in national law, are complied with.","25. 1.     Identified laws are not consistently upheld by all entities, are often ignored, are not enforced by relevant authorities, or any combination thereof;\n25. 2.     Violations of identified laws are not efficiently followed up on by the relevant entities;\n25. 3.     Violations of identified laws are not followed up by preventive actions taken by the relevant entities.\n","Art. 2 (40f)"]
["Human and labour rights","26. Harvest or trade in products do not contribute to a violation of international human rights or is not associated with armed conflicts.","26. 1.     The area is a source of conflict timber;\n26. 2.     The area is covered by a UN security ban on exporting timber;\n26. 3.     The area is covered by any other international ban on timber export;\n26. 4.     Operators in the area are involved in the supply or trade of conflict timber (identified entities should be specified whenever possible while maintaining compliance with the law);\n26. 5.     Individuals or entities in the forest sector are facing UN sanctions;\n26. 6.     There are rapidly changing circumstances within the area under assessment that pose a serious risk to the integrity or reputation of the FSC certification scheme. \n\n\n\n","Art. 10 (2h)"]
["Human and labour rights","27. Legal requirements related to child labour and employment of young workers are complied with.","27. 1.     Identified laws are not consistently upheld by all entities, are often ignored, are not enforced by relevant authorities, or any combination thereof;\n27. 2.     Violations of identified laws are not efficiently followed up on by the relevant entities;\n27. 3.     Violations of identified laws are not followed up by preventive actions taken by the relevant entities.\n","Art. 2 (40e)"]
["Human and labour rights","28. Child labour is not present, and the employment of young workers is responsibly managed, including related rights as specified in the ILO Fundamental Principles and Rights at Work.","28. 1.     Applicable legislation for the area under assessment covers all ILO Fundamental Principles and Rights at Work, but the risk assessment for indicator 27 confirms a designation of ‘non-negligible risk’;\n28. 2.     Applicable legislation for the area under assessment contradicts indicator requirement(s);\n28. 3.     There is substantial evidence of widespread or systematic violation of labour rights against child labour, including as specified in the ILO Fundamental Principles and Rights at Work.\n"]
["Human and labour rights","29. Legal requirements related to modern slavery, including forced and compulsory labour, are complied with.","29. 1.     Identified laws are not consistently upheld by all entities, are often ignored, are not enforced by relevant authorities, or any combination thereof;\n29. 2.     Violations of identified laws are not efficiently followed up on by the relevant entities;\n29. 3.     Violations of identified laws are not followed up by preventive actions taken by the relevant entities.","Art. 2 (40e)"]
["Human and labour rights","30. Modern slavery, including forced and compulsory labour are not used, promoted, or supported in any way, including as specified in the ILO Fundamental Principles and Rights at Work.","30. 1.     Applicable legislation for the area under assessment covers all ILO Fundamental Principles and Rights at Work, but the risk assessment for indicator 29 confirms a designation of ‘non-negligible risk’;\n30. 2.     Applicable legislation for the area under assessment contradicts indicator requirement(s);\n30. 3.     There is substantial evidence of widespread or systematic violation of labour rights against modern slavery, including forced and compulsory labour, including as specified in the ILO Fundamental Principles and Rights at Work.\n"]
["Human and labour rights","31. Legal requirements related to the Freedom of Association, the Right to Organise and the Right to Collective Bargaining are complied with.","31. 1.     Identified laws are not consistently upheld by all entities, are often ignored, are not enforced by relevant authorities, or any combination thereof;\n31. 2.     Violations of identified laws are not efficiently followed up on by the relevant entities;\n31. 3.     Violations of identified laws are not followed up by preventive actions taken by the relevant entities.","Art. 2 (40e)"]
["Human and labour rights","32. Labour rights related to the Freedom of Association, the Right to Organise and the Right to Collective Bargaining are respected, including as specified in the ILO Fundamental Principles and Rights at Work.","32. 1.     Applicable legislation for the area under assessment covers all ILO Fundamental Principles and Rights at Work but the risk assessment for indicator 31 confirms a designation of ‘non-negligible risk’;\n32. 2.     Applicable legislation for the area under assessment contradicts indicator requirement(s);\n32. 3.     There is substantial evidence of widespread or systematic violation of the Freedom of Association, the Right to Organise and the Right to Collective Bargaining, including as specified in ILO Fundamental Principles and Rights at Work."]
["Human and labour rights","33. Legal requirements related to the recruitment and employment of workers are complied with.","33. 1.     Identified laws are not consistently upheld by all entities, are often ignored, are not enforced by relevant authorities, or any combination thereof;\n33. 2.     Violations of identified laws are not efficiently followed up on by the relevant entities;\n33. 3.     Violations of identified laws are not followed up by preventive actions taken by the relevant entities.","Art. 2 (40e)"]
["Human and labour rights","34. Legal requirements related to the contracts and working permits, and requirements for competence certifications and other training requirements are complied with.","34. 1.     Identified laws are not consistently upheld by all entities, are often ignored, are not enforced by relevant authorities, or any combination thereof;\n34. 2.     Violations of identified laws are not efficiently followed up on by the relevant entities;\n34. 3.     Violations of identified laws are not followed up by preventive actions taken by the relevant entities.\n","Art. 2 (40e)"]
["Human and labour rights","35. Legal requirements related to workers’ wages and other payments, such as social insurance contributions and the payment of social and income taxes withheld by the employer on behalf of the worker, are complied with.","35. 1.     Identified laws are not consistently upheld by all entities, are often ignored, are not enforced by relevant authorities, or any combination thereof;\n35. 2.     Violations of identified laws are not efficiently followed up on by the relevant entities;\n35. 3.     Violations of identified laws are not followed up by preventive actions taken by the relevant entities.","Art. 2 (40e)"]
["Human and labour rights","36. Legal requirements related to working hours, overtime, rest time and time off are complied with.","36. 1.     Identified laws are not consistently upheld by all entities, are often ignored, are not enforced by relevant authorities, or any combination thereof;\n36. 2.     Violations of identified laws are not efficiently followed up on by the relevant entities;\n36. 3.     Violations of identified laws are not followed up by preventive actions taken by the relevant entities.","Art. 2 (40e)"]
["Human and labour rights","37. Labour rights related to recruitment and employment, contracts, training, workers’ wages and other payments, working hours, overtime, rest time and time off are upheld, including as specified in the ILO Fundamental Principles and Rights at Work are upheld.","37. 1.     Applicable legislation for the area under assessment covers all ILO Fundamental Principles and Rights at Work, but the risk assessment for indicators 33, 34, 35, and 36 confirm a designation of ‘non-negligible risk’;\n37. 2.     Applicable legislation for the area under assessment contradicts indicator requirement(s);\n37. 3.     There is substantial evidence of widespread or systematic violation of requirements covered under this indicator."]
["Human and labour rights","38. Legal requirements related to discrimination against workers are complied with.","38. 1.     Identified laws are not consistently upheld by all entities, are often ignored, are not enforced by relevant authorities, or any combination thereof;\n38. 2.     Violations of identified laws are not efficiently followed up on by the relevant entities;\n38. 3.     Violations of identified laws are not followed up by preventive actions taken by the relevant entities.","Art. 2 (40e)"]
["Human and labour rights","39. There is no discrimination against workers in processes related to hiring, remuneration and access to training, promotion, termination, or retirement, including related rights as specified in the ILO Fundamental Principles and Rights at Work.","39. 1.     Applicable legislation for the area under assessment covers all ILO Fundamental Principles and Rights at Work but the risk assessment for indicator 38 confirms a designation of ‘non-negligible risk’;\n39. 2.     Applicable legislation for the area under assessment contradicts indicator requirement(s);\n39. 3.     There is substantial evidence of widespread or systematic violation of requirements covered under this indicator.\n"]
["Human and labour rights","40. Legal requirements related to gender equality in the workplace are complied with.","40. 1.     Identified laws are not consistently upheld by all entities, are often ignored, are not enforced by relevant authorities, or any combination thereof;\n40. 2.     Violations of identified laws are not efficiently followed up on by the relevant entities;\n40. 3.     Violations of identified laws are not followed up by preventive actions taken by the relevant entities.\n","Art. 2 (40e)"]
["Human and labour rights","41. Gender equality is protected following best practices, including ensuring availability of job opportunities, equal remuneration for work of equal value and sufficient maternity and paternity leave, and other related rights as specified in the ILO Fundamental Principles and Rights at Work.","41. 1.     Applicable legislation for the area under assessment covers all ILO Fundamental Principles and Rights at Work, but the risk assessment for indicator 40 confirms a designation of ‘non-negligible risk’;\n41. 2.     Applicable legislation for the area under assessment contradicts indicator requirement(s);\n41. 3.     There is substantial evidence of widespread or systematic violation of requirements covered under this indicator.\n"]
["Third parties rights","42. Legal requirements related to the rights of Indigenous Peoples are complied with.","42. 1.     Identified laws are not consistently upheld by all entities, are often ignored, are not enforced by relevant authorities, or any combination thereof;\n42. 2.     Violations of identified laws are not efficiently followed up on by the relevant entities;\n42. 3.     Violations of identified laws are not followed up by preventive actions taken by the relevant entities.\n","Art. 2 (40d); Art. 2 (40g)"]
["Third parties rights","43.  The rights of Indigenous Peoples, including land tenure and management, are respected and upheld according to the principles of FPIC.","43. 1.     The presence of Indigenous Peoples is confirmed or likely within the area under assessment. The applicable legislation for the area under assessment covers ILO provisions governing the identification and rights of Indigenous Peoples,[4] but the risk assessment for indicator 42 confirms a designation of ‘non-negligible risk’;\n43. 2.     The presence of Indigenous Peoples is confirmed or likely within the area under assessment. The applicable legislation for the area under assessment covers the United Nations Declaration on the Rights of Indigenous Peoples[5] (UNDRIP) but the risk assessment for indicator 42 confirms a designation of 'non-negligible risk';\n43. 3.     The presence of Indigenous Peoples is confirmed or likely within the area. The applicable legislation for the area under assessment contradicts indicator requirement(s);\n43. 4.     Substantial evidence of the widespread or systematic violation of Indigenous Peoples’ rights exists; \n43. 5.     Indigenous Peoples are not aware of their rights;\n43. 6.     There is evidence of conflict(s) of substantial magnitude[6] pertaining to the rights of Indigenous Peoples. Laws and regulations or other legally established processes do not exist that serve the resolution of conflicts in the area concerned, or, such processes exist but are not recognized by affected stakeholders as being fair and equitable.\n\n","Art. 10 (2e)"]
["Third parties rights","44. Legal requirements related to the rights of Traditional Peoples are complied with.","44. 1.     Identified laws are not consistently upheld by all entities, are often ignored, are not enforced by relevant authorities, or any combination thereof;\n44. 2.     Violations of identified laws are not efficiently followed up on by the relevant entities;\n44. 3.     Violations of identified laws are not followed up by preventive actions taken by the relevant entities.","Art. 2 (40g)"]
["Third parties rights","45. The rights of Traditional Peoples, including land tenure and management, are respected and upheld according to the principles of FPIC.","45. 1.     The presence of Traditional Peoples is confirmed or likely within the area under assessment. The applicable legislation for the area under assessment covers ILO provisions governing the identification and rights of Traditional Peoples,[7] but the risk assessment for indicator 44 confirms a designation of ‘non-negligible risk’;\n45. 2.     The presence of Traditional Peoples is confirmed or likely within the area under assessment. The applicable legislation for the area under assessment contradicts indicator requirement(s);\n45. 3.     Substantial evidence of widespread or systematic violation of Traditional Peoples’ rights exists; \n45. 4.     Traditional Peoples are not aware of their rights;\n45. 5.     There is evidence of conflict(s) of substantial magnitude[8] pertaining to the rights of Traditional Peoples. Laws and regulations or other legally established processes do not exist that serve the resolution of conflicts in the area concerned, or, such processes exist but are not recognized by affected stakeholders as being fair and equitable.\n\n","Recital (42)"]
["Third parties rights","46. Legally recognised customary and community rights are identified and respected.","46. 1.     Identified laws are not consistently upheld by all entities, are often ignored, are not enforced by relevant authorities, or any combination thereof;\n46. 2.     Violations of identified laws are not efficiently followed up on by the relevant entities;\n46. 3.     Violations of identified laws are not followed up by preventive actions taken by the relevant entities.","Art. 2 (40g)"]
["Third parties rights","47. The rights of local communities are respected and upheld.","47. 1.     The presence of local communities is confirmed or likely within the area under assessment. The applicable legislation for the area under assessment covers ILO provisions governing the identification and rights of local communities, but the risk assessment for indicator 46 confirms a designation of 'non-negligible risk';\n47. 2.     The presence of local communities is confirmed or likely within the area under assessment. The applicable legislation for the area under assessment contradicts indicator requirement(s);\n47. 3.     Local communities are not aware of their rights;\n47. 4.     Evidence indicates widespread or systematic violation of the rights of local communities."," Recital (42)"]
["Third parties rights","48. Interaction with Indigenous Peoples, Traditional Peoples and local communities is conducted in a respectful and culturally appropriate manner.","48. 1.     Applicable legislation for the area under assessment covers the requirements under this indicator, but the risk assessment for indicators 42, 44, and 46 confirms a designation of ‘non-negligible risk’;\n48. 2.     Applicable legislation for the area under assessment contradicts indicator requirement(s);\n48. 3.     Evidence indicates widespread or systematic violation of requirements covered under this indicator.\n","Art. 2 (40d); Art. 10 (2d)"]
["Trade and transport","49. Legal requirements related to the trade and transport of products are complied with.","49. 1.     Identified laws are not consistently upheld by all entities, are often ignored, are not enforced by relevant authorities, or any combination thereof;\n49. 2.     Violations of identified laws are not efficiently followed up on by the relevant entities;\n49. 3.     Violations of identified laws are not followed up by preventive actions taken by the relevant entities.","Art. 2 (40h)"]
["Trade and transport","50. Legal requirements related to applicable trade restrictions and sanctions are complied with.","50. 1.     Identified laws are not consistently upheld by all entities, are often ignored, are not enforced by relevant authorities, or any combination thereof;\n50. 2.     Violations of identified laws are not efficiently followed up on by the relevant entities;\n50. 3.     Violations of identified laws are not followed up by preventive actions taken by the relevant entities.","Art. 2 (40h); Art. 10 (2h)"]
["Trade and transport","51. Legal requirements related to the classification of products are complied with.","51. 1.     Identified laws are not consistently upheld by all entities, are often ignored, are not enforced by relevant authorities, or any combination thereof;\n51. 2.     Violations of identified laws are not efficiently followed up on by the relevant entities; \n51. 3.     Violations of identified laws are not followed up by preventive actions taken by the relevant entities.","Art. 2 (40h)"]
["Trade and transport","52. Legal requirements related to the export and/or import of products are complied with.","52. 1.     Identified laws are not consistently upheld by all entities, are often ignored, are not enforced by relevant authorities, or any combination thereof;\n52. 2.     Violations of identified laws are not efficiently followed up on by the relevant entities;\n52. 3.     Violations of identified laws are not followed up by preventive actions taken by the relevant entities.","Art. 2 (40h)"]
["Trade and transport","53. Legal requirements relating to offshore trading and transfer pricing are complied with.","53. 1.     Identified laws are not consistently upheld by all entities, are often ignored, are not enforced by relevant authorities, or any combination thereof;\n53. 2.     Violations of identified laws are not efficiently followed up on by the relevant entities;\n53. 3.     Violations of identified laws are not followed up by preventive actions taken by the relevant entities.\n","Art. 2 (40h)"]
["Due diligence and due care","54. Legal requirements relating to due diligence or due care are complied with.","54. 1.     Identified laws are not consistently upheld by all entities, are often ignored, are not enforced by relevant authorities, or any combination thereof;\n54. 2.     Violations of identified laws are not efficiently followed up on by the relevant entities;\n54. 3.     Violations of identified laws are not followed up by preventive actions taken by the relevant entities.","Art. 2 (40h)"]
["Conversion and forest degradation","55. There is no conversion from natural forest and no transformation of plantations to agricultural use since 31 December 2020. ","55. 1.     Evidence indicates that conversion from natural forest and/or transformation of plantations to agricultural use is occurring. ","Art. 2 (3) (4) (5) (6) (13a)"]
["Conversion and forest degradation","56. There is no conversion from natural forest to land uses other than agriculture since 31 December 2020. ","56. 1.     The applicable legislation for the area under assessment covers laws that prevent conversion from natural forest to land uses other than agriculture to the extent of 0.02% gross annual loss of natural forest area, but the risk assessment for relevant indicators on legal compliance confirms a designation of ‘non-negligible risk’; or\n56. 2.     Any of the following are true: a) Conversion of natural forests to land uses other than agriculture since 31 December 2020 in the area under assessment is more than 0.02% gross annual loss of natural forest area; b) Evidence indicates that degradation of natural forests is occurring on a widespread or systematic basis. c) There are projects that allow for conversion of natural forest in areas containing environmental values, and evidence indicates that conversion is happening."]
["Conversion and forest degradation","57. There is no degradation of natural forests since 31 December 2020.","57. 1.   The applicable legislation for the area under assessment covers laws that prevent total natural forest degradation to 0.02% of the total natural forest area, but the risk assessment for relevant indicators on legal compliance confirms a designation of ‘non-negligible risk’; or\n57. 2.   Any of the following are true: a) The degradation since 31 December 2020 in the area under assessment is more than 0.02% of the total natural forest area on average per year; b) Evidence indicates that forest degradation is occurring on a widespread or systematic basis.","Art. 2 (7) (8) (9) (10) (11) (12) (13b)"]
["High Conservation Values","58. Concentrations of biological diversity including endemic species, and rare, threatened, or endangered species that are significant at global, regional or national levels are identified and protected, maintained or enhanced (HCV1).","58. 1.     HCV 1 is identified, or its occurrence is likely in the area under assessment and is threatened by management activities."]
["High Conservation Values","59. Intact forest landscapes and large landscape-level ecosystems and ecosystem mosaics that are significant at global, regional, or national levels, and which contain viable populations of the great majority of the naturally-occurring species in natural patterns of distribution and abundance, are identified and protected, maintained or enhanced (HCV2).","59. 1.     HCV 2 is identified, or its occurrence is likely in the area under assessment and is threatened by management activities."]
["High Conservation Values","60. Rare, threatened, or endangered ecosystems, habitats or refugia are identified and protected, maintained, or enhanced (HCV3).","60. 1.     HCV 3 is identified, or its occurrence is likely in the area under assessment and is threatened by management activities."]
["High Conservation Values","61. Basic ecosystem services in critical situations, including the protection of water catchments and control of erosion of vulnerable soils and slopes, are identified and protected (HCV4).","61. 1.     HCV 4 is identified, or its occurrence is likely in the area under assessment and is threatened by management activities."]
["High Conservation Values","62. Sites and resources fundamental for satisfying the basic needs of local communities or Indigenous Peoples are identified and protected (HCV5).","62. 1.     HCV 5 is identified, or its occurrence is likely in the area under assessment and is threatened by management activities."]
["High Conservation Values","63. Sites, resources, habitats, and landscapes of global or national cultural, archaeological, or historical significance, and/or of critical cultural, ecological, economic or religious/sacred importance for the traditional cultures of local communities or Indigenous Peoples are identified and protected (HCV6).","63. 1.     HCV 6 is identified, or its occurrence is likely in the area under assessment and is threatened by management activities."]
["Genetically modified organisms","64. There is no commercial use of GMO.","64. 1.     GMO use is legal, according to applicable legislation of the area under assessment;\n64. 2.     GMO use is illegal according to applicable legislation of the area under assessment, but any of the following are true: a)    Evidence of the implementation of the ban does not exist; b)    Evidence indicates a systematic violation of the ban; c) When laws are violated, violations are not efficiently followed up on by relevant entities, d) When laws are violated, identified root causes are not addressed through the implementation of preventive actions by relevant entities.\n64. 3.     There is evidence of commercial use of GMO species. "]

{"sheet":"Labels","index":2,"n_rows":67,"n_cols":30,"rows_kept":67,"cut":false,"hidden":true,"merged":[]}
["Categories",null,null,"Land use and management","Taxes and fees","Corruption and document or data falsification","Management activities and environmental protection","Health and safety","Human and labour rights","Third parties rights","Trade and transport","Due diligence and due care","Conversion and forest degradation","High Conservation Values","Genetically modified organisms",null,null,null,null,null,"01-05: Land use and management"]
["Land use and management",null,null,"01. Land tenure rights are secured and registered according to legal requirements.","06. Legal requirements for payment of royalties, land/area taxes and fees are complied with.","10. Legal requirements related to corruption, including bribery, fraud and conflict of interest, are complied with.","13. Legal requirements for management activities and related operational requirements are complied with.","22.  Legal requirements related to occupational health and safety are complied with.","25. Human rights protected under international law, as enshrined in national law, are complied with.","42. Legal requirements related to the rights of Indigenous Peoples are complied with.","49. Legal requirements related to the trade and transport of products are complied with.","54. Legal requirements relating to due diligence or due care are complied with.","55. There is no conversion from natural forest and no transformation of plantations to agricultural use since 31 December 2020","58. Concentrations of biological diversity including endemic species, and rare, threatened, or endangered species that are significant at global, regional or national levels are identified and protected, maintained or enhanced (HCV1).","64. There is no commercial use of GMO.",null,null,null,null,null,"06-09: Taxes and fees",null,null,null,null,null,null,null,null,"1. Land tenure rights are secured and registered according to legal requirements."]
["Taxes and fees",null,null,"02. Land management rights are in place and registered according to legal requirements.","07. Legal requirements for payment of value-added taxes and/or other sales taxes are complied with.","11. All forms of bribery and corruption are avoided.","14.  Development and maintenance of infrastructure associated with management activities comply with applicable codes and legal requirements for the protection of environmental values.","23. Facilities and activities are safe and support worker’s health, and workers have access to and use appropriate Personal Protective Equipment commensurate with the activities undertaken.","26. Harvest or trade in products do not contribute to a violation of international human rights or is not associated with armed conflicts.","43.  The rights of Indigenous Peoples, including land tenure and management, are respected and upheld according to the principles of FPIC.","50. Legal requirements related to applicable trade restrictions and sanctions are complied with.",null,"56. There is no conversion from natural forest to land uses other than agriculture since 31 December 2020. ","59. Intact forest landscapes and large landscape-level ecosystems and ecosystem mosaics that are significant at global, regional, or national level.....are identified and protected, maintained or enhanced (HCV2).",null,null,null,null,null,null,"10-12: Corruption and document or data falsification",null,null,null,null,null,null,null,null,"2. Land management rights are in place and registered according to legal requirements."]
["Corruption and document or data falsification",null,null,"03. Forest concession licenses are in place and are issued and registered according to legal requirements.","08. Legal requirements for payment of corporate taxes are complied with, including profit taxes.","12. Data and document falsification do not occur.","15.  Development and maintenance of infrastructure associated with management activities is done in a way that minimises adverse impacts on environmental values.","24. The use, application, storage, and disposal of chemicals in management activities addresses the protection of the environment and human health and safety and complies with legal requirements.","27. Legal requirements related to child labour and employment of young workers are complied with.","44. Legal requirements related to the rights of Traditional Peoples are complied with.","51. Legal requirements related to the classification of products are complied with.",null,"57. There is no degradation of natural forests since 31 December 2020.","60. Rare, threatened, or endangered ecosystems, habitats or refugia are identified and protected, maintained, or enhanced (HCV3).",null,null,null,null,null,null,"13-21: Management activities and environmental protection",null,null,null,null,null,null,null,null,"3. Forest concession licenses are in place and are issued and registered according to legal requirements."]
["Management activities and environmental protection",null,null,"04. Harvesting permits are in place and are issued and registered according to legal requirements.","09. Legal requirements for payment of trade and/or export taxes and fees are complied with.",null,"16. Legal requirements related to biodiversity conservation, protected sites, and the protection of endemic, rare, threatened, or endangered species and their habitats are complied with.  ",null,"28. Child labour is not present, and the employment of young workers is responsibly managed, including related rights as specified in the ILO Fundamental Principles and Rights at Work.","45. The rights of Traditional Peoples, including land tenure and management, are respected and upheld according to the principles of FPIC.","52. Legal requirements related to the export and/or import of products are complied with.",null,null,"61. Basic ecosystem services in critical situations, including the protection of water catchments and control of erosion of vulnerable soils and slopes, are identified and protected (HCV4).",null,null,null,null,null,null,"22-24: Health and safety",null,null,null,null,null,null,null,null,"4. Harvesting permits are in place and are issued and registered according to legal requirements."]
["Health and safety",null,null,"05. Legal requirements for land-use and management planning are complied with.",null,null,"17. Legal requirements relating to the harvesting, collection, and trade of CITES species are complied with.",null,"29. Legal requirements related to modern slavery, including forced and compulsory labour, are complied with.","46. Legally recognised customary and community rights are identified and respected.","53. Legal requirements relating to offshore trading and transfer pricing are complied with.",null,null,"62. Sites and resources fundamental for satisfying the basic needs of local communities or Indigenous Peoples are identified and protected (HCV5).",null,null,null,null,null,null,"25-41: Human and labour rights",null,null,null,null,null,null,null,null,"5. Legal requirements for land-use and management planning are complied with."]
["Human and labour rights",null,null,null,null,null,"18. The volume and impacts of waste from management activities comply with legal requirements, and are managed and minimised.",null,"30. Modern slavery, including forced and compulsory labour are not used, promoted, or supported in any way, including as specified in the ILO Fundamental Principles and Rights at Work.","47. The rights of local communities are respected and upheld.",null,null,null,"63. Sites, resources, habitats, and landscapes of global or national cultural, archaeological, or historical significance... of local communities or Indigenous Peoples are identified and protected (HCV6).",null,null,null,null,null,null,"42-48: Third parties rights",null,null,null,null,null,null,null,null,"6. Legal requirements for payment of royalties, land/area taxes and fees are complied with."]
["Third parties rights",null,null,null,null,null,"19. Pollution resulting from management activities comply with legal requirements, and is controlled and minimised.",null,"31. Legal requirements related to the Freedom of Association, the Right to Organise and the Right to Collective Bargaining are complied with.","48. Interaction with Indigenous Peoples, Traditional Peoples and local communities is conducted in a respectful and culturally appropriate manner.",null,null,null,null,null,null,null,null,null,null,"49-53: Trade and transport",null,null,null,null,null,null,null,null,"7. Legal requirements for payment of value-added taxes and/or other sales taxes are complied with."]
["Trade and transport",null,null,null,null,null,"20. Water resources are protected and used responsibly in compliance with legal requirements, and with the aim of ensuring long-term viability.",null,"32. Labour rights related to the Freedom of Association, the Right to Organise and the Right to Collective Bargaining are respected, including as specified in the ILO Fundamental Principles and Rights at Work.",null,null,null,null,null,null,null,null,null,null,null,"54: Due diligence and due care",null,null,null,null,null,null,null,null,"8. Legal requirements for payment of corporate taxes are complied with, including profit taxes."]
["Due diligence and due care",null,null,null,null,null,"21. Negative impacts on soils from management activities are minimised, and comply with legal requirements.",null,"33. Legal requirements related to the recruitment and employment of workers are complied with.",null,null,null,null,null,null,null,null,null,null,null,"55-57: Conversion and forest degradation",null,null,null,null,null,null,null,null,"9. Legal requirements for payment of trade and/or export taxes and fees are complied with."]
["Conversion and forest degradation",null,null,null,null,null,null,null,"34. Legal requirements related to the contracts and working permits, and requirements for competence certifications and other training requirements are complied with.",null,null,null,null,null,null,null,null,null,null,null,"58-63: High Conservation Values",null,null,null,null,null,null,null,null,"10. Legal requirements related to corruption, including bribery, fraud and conflict of interest, are complied with."]
["High Conservation Values",null,null,null,null,null,null,null,"35. Legal requirements related to workers’ wages and other payments, such as social insurance contributions and the payment of social and income taxes withheld by the employer on behalf of the worker, are complied with.",null,null,null,null,null,null,null,null,null,null,null,"64: Genetically modified organisms",null,null,null,null,null,null,null,null,"11. All forms of bribery and corruption are avoided."]
["Genetically modified organisms",null,null,null,null,null,null,null,"36. Legal requirements related to working hours, overtime, rest time and time off are complied with.",null,null,null,null,null,null,null,null,null,null,null,null,null,null,null,null,null,null,null,null,"12. Data and document falsification do not occur."]
[null,null,null,null,null,null,null,null,"37. Labour rights related to recruitment and employment...are upheld, including as specified in the ILO Fundamental Principles and Rights at Work are upheld.",null,null,null,null,null,null,null,null,null,null,null,null,null,null,null,null,null,null,null,null,"13. Legal requirements for management activities and related operational requirements are complied with."]
[null,null,null,null,null,null,null,null,"38. Legal requirements related to discrimination against workers are complied with.",null,null,null,null,null,null,null,null,null,null,null,null,null,null,null,null,null,null,null,null,"14.  Development and maintenance of infrastructure associated with management activities comply with applicable codes and legal requirements for the protection of environmental values."]
[null,null,null,null,null,null,null,null,"39. There is no discrimination against workers in processes related to hiring, remuneration and access to training, promotion, termination, or retirement, including related rights as specified in the ILO Fundamental Principles and Rights at Work.",null,null,null,null,null,null,null,null,null,null,null,null,null,null,null,null,null,null,null,null,"15.  Development and maintenance of infrastructure associated with management activities is done in a way that minimises adverse impacts on environmental values."]
[null,null,null,null,null,null,null,null,"40. Legal requirements related to gender equality in the workplace are complied with.",null,null,null,null,null,null,null,null,null,null,null,null,null,null,null,null,null,null,null,null,"16. Legal requirements related to biodiversity conservation, protected sites, and the protection of endemic, rare, threatened, or endangered species and their habitats are complied with.  "]
[null,null,null,null,null,null,null,null,"41. Gender equality is protected following best practice… as specified in the ILO Fundamental Principles and Rights at Work.",null,null,null,null,null,null,null,null,null,null,null,null,null,null,null,null,null,null,null,null,"17. Legal requirements relating to the harvesting, collection, and trade of CITES species are complied with."]
[null,null,null,null,null,null,null,null,null,null,null,null,null,null,null,null,null,null,null,null,null,null,null,null,null,null,null,null,null,"18. The volume and impacts of waste from management activities comply with legal requirements, and are managed and minimised."]
[null,null,null,null,null,null,null,null,null,null,null,null,null,null,null,null,null,null,null,null,null,null,null,null,null,null,null,null,null,"19. Pollution resulting from management activities comply with legal requirements, and is controlled and minimised."]
[null,null,null,null,null,null,null,null,null,null,null,null,null,null,null,null,null,null,null,null,null,null,null,null,null,null,null,null,null,"20. Water resources are protected and used responsibly in compliance with legal requirements, and with the aim of ensuring long-term viability."]
[null,null,null,null,null,null,null,null,null,null,null,null,null,null,null,null,null,null,null,null,null,null,null,null,null,null,null,null,null,"21. Negative impacts on soils from management activities are minimised, and comply with legal requirements."]
[null,null,null,null,null,null,null,null,null,null,null,null,null,null,null,null,null,null,null,null,null,null,null,null,null,null,null,null,null,"22.  Legal requirements related to occupational health and safety are complied with."]
[null,null,null,null,null,null,null,null,null,null,null,null,null,null,null,null,null,null,null,null,null,null,null,null,null,null,null,null,null,"23. Facilities and activities are safe and support worker’s health, and workers have access to and use appropriate Personal Protective Equipment commensurate with the activities undertaken."]
[null,null,null,null,null,null,null,null,null,null,null,null,null,null,null,null,null,null,null,null,null,null,null,null,null,null,null,null,null,"24. The use, application, storage, and disposal of chemicals in management activities addresses the protection of the environment and human health and safety and complies with legal requirements."]
[null,null,null,null,null,null,null,null,null,null,null,null,null,null,null,null,null,null,null,null,null,null,null,null,null,null,null,null,null,"25. Human rights protected under international law, as enshrined in national law, are complied with."]
[null,null,null,null,null,null,null,null,null,null,null,null,null,null,null,null,null,null,null,null,null,null,null,null,null,null,null,null,null,"26. Harvest or trade in products do not contribute to a violation of international human rights or is not associated with armed conflicts."]
[null,null,null,null,null,null,null,null,null,null,null,null,null,null,null,null,null,null,null,null,null,null,null,null,null,null,null,null,null,"27. Legal requirements related to child labour and employment of young workers are complied with."]
[null,null,null,null,null,null,null,null,null,null,null,null,null,null,null,null,null,null,null,null,null,null,null,null,null,null,null,null,null,"28. Child labour is not present, and the employment of young workers is responsibly managed, including related rights as specified in the ILO Fundamental Principles and Rights at Work."]
[null,null,null,null,null,null,null,null,null,null,null,null,null,null,null,null,null,null,null,null,null,null,null,null,null,null,null,null,null,"29. Legal requirements related to modern slavery, including forced and compulsory labour, are complied with."]
[null,null,null,null,null,null,null,null,null,null,null,null,null,null,null,null,null,null,null,null,null,null,null,null,null,null,null,null,null,"30. Modern slavery, including forced and compulsory labour are not used, promoted, or supported in any way, including as specified in the ILO Fundamental Principles and Rights at Work."]
[null,null,null,null,null,null,null,null,null,null,null,null,null,null,null,null,null,null,null,null,null,null,null,null,null,null,null,null,null,"31. Legal requirements related to the Freedom of Association, the Right to Organise and the Right to Collective Bargaining are complied with."]
[null,null,null,null,null,null,null,null,null,null,null,null,null,null,null,null,null,null,null,null,null,null,null,null,null,null,null,null,null,"32. Labour rights related to the Freedom of Association, the Right to Organise and the Right to Collective Bargaining are respected, including as specified in the ILO Fundamental Principles and Rights at Work."]
[null,null,null,null,null,null,null,null,null,null,null,null,null,null,null,null,null,null,null,null,null,null,null,null,null,null,null,null,null,"33. Legal requirements related to the recruitment and employment of workers are complied with."]
[null,null,null,null,null,null,null,null,null,null,null,null,null,null,null,null,null,null,null,null,null,null,null,null,null,null,null,null,null,"34. Legal requirements related to the contracts and working permits, and requirements for competence certifications and other training requirements are complied with."]
[null,null,null,null,null,null,null,null,null,null,null,null,null,null,null,null,null,null,null,null,null,null,null,null,null,null,null,null,null,"35. Legal requirements related to workers’ wages and other payments, such as social insurance contributions and the payment of social and income taxes withheld by the employer on behalf of the worker, are complied with."]
[null,null,null,null,null,null,null,null,null,null,null,null,null,null,null,null,null,null,null,null,null,null,null,null,null,null,null,null,null,"36. Legal requirements related to working hours, overtime, rest time and time off are complied with."]
[null,null,null,null,null,null,null,null,null,null,null,null,null,null,null,null,null,null,null,null,null,null,null,null,null,null,null,null,null,"37. Labour rights related to recruitment and employment, contracts, training, workers’ wages and other payments, working hours, overtime, rest time and time off are upheld, including as specified in the ILO Fundamental Principles and Rights at Work are upheld."]
[null,null,null,null,null,null,null,null,null,null,null,null,null,null,null,null,null,null,null,null,null,null,null,null,null,null,null,null,null,"38. Legal requirements related to discrimination against workers are complied with."]
[null,null,null,null,null,null,null,null,null,null,null,null,null,null,null,null,null,null,null,null,null,null,null,null,null,null,null,null,null,"39. There is no discrimination against workers in processes related to hiring, remuneration and access to training, promotion, termination, or retirement, including related rights as specified in the ILO Fundamental Principles and Rights at Work."]
[null,null,null,null,null,null,null,null,null,null,null,null,null,null,null,null,null,null,null,null,null,null,null,null,null,null,null,null,null,"40. Legal requirements related to gender equality in the workplace are complied with."]
[null,null,null,null,null,null,null,null,null,null,null,null,null,null,null,null,null,null,null,null,null,null,null,null,null,null,null,null,null,"41. Gender equality is protected following best practices, including ensuring availability of job opportunities, equal remuneration for work of equal value and sufficient maternity and paternity leave, and other related rights as specified in the ILO Fundamental Principles and Rights at Work."]
[null,null,null,null,null,null,null,null,null,null,null,null,null,null,null,null,null,null,null,null,null,null,null,null,null,null,null,null,null,"42. Legal requirements related to the rights of Indigenous Peoples are complied with."]
[null,null,null,null,null,null,null,null,null,null,null,null,null,null,null,null,null,null,null,null,null,null,null,null,null,null,null,null,null,"43.  The rights of Indigenous Peoples, including land tenure and management, are respected and upheld according to the principles of FPIC."]
[null,null,null,null,null,null,null,null,null,null,null,null,null,null,null,null,null,null,null,null,null,null,null,null,null,null,null,null,null,"44. Legal requirements related to the rights of Traditional Peoples are complied with."]
[null,null,null,null,null,null,null,null,null,null,null,null,null,null,null,null,null,null,null,null,null,null,null,null,null,null,null,null,null,"45. The rights of Traditional Peoples, including land tenure and management, are respected and upheld according to the principles of FPIC."]
[null,null,null,null,null,null,null,null,null,null,null,null,null,null,null,null,null,null,null,null,null,null,null,null,null,null,null,null,null,"46. Legally recognised customary and community rights are identified and respected."]
[null,null,null,null,null,null,null,null,null,null,null,null,null,null,null,null,null,null,null,null,null,null,null,null,null,null,null,null,null,"47. The rights of local communities are respected and upheld."]
[null,null,null,null,null,null,null,null,null,null,null,null,null,null,null,null,null,null,null,null,null,null,null,null,null,null,null,null,null,"48. Interaction with Indigenous Peoples, Traditional Peoples and local communities is conducted in a respectful and culturally appropriate manner."]
[null,null,null,null,null,null,null,null,null,null,null,null,null,null,null,null,null,null,null,null,null,null,null,null,null,null,null,null,null,"49. Legal requirements related to the trade and transport of products are complied with."]
[null,null,null,null,null,null,null,null,null,null,null,null,null,null,null,null,null,null,null,null,null,null,null,null,null,null,null,null,null,"50. Legal requirements related to applicable trade restrictions and sanctions are complied with."]
[null,null,null,null,null,null,null,null,null,null,null,null,null,null,null,null,null,null,null,null,null,null,null,null,null,null,null,null,null,"51. Legal requirements related to the classification of products are complied with."]
[null,null,null,null,null,null,null,null,null,null,null,null,null,null,null,null,null,null,null,null,null,null,null,null,null,null,null,null,null,"52. Legal requirements related to the export and/or import of products are complied with."]
[null,null,null,null,null,null,null,null,null,null,null,null,null,null,null,null,null,null,null,null,null,null,null,null,null,null,null,null,null,"53. Legal requirements relating to offshore trading and transfer pricing are complied with."]
[null,null,null,null,null,null,null,null,null,null,null,null,null,null,null,null,null,null,null,null,null,null,null,null,null,null,null,null,null,"54. Legal requirements relating to due diligence or due care are complied with."]
[null,null,null,null,null,null,null,null,null,null,null,null,null,null,null,null,null,null,null,null,null,null,null,null,null,null,null,null,null,"55. There is no conversion from natural forest to agriculture since 31 December 2020. "]
[null,null,null,null,null,null,null,null,null,null,null,null,null,null,null,null,null,null,null,null,null,null,null,null,null,null,null,null,null,"56. There is no conversion from natural forest to land uses other than agriculture since 31 December 2020. "]
[null,null,null,null,null,null,null,null,null,null,null,null,null,null,null,null,null,null,null,null,null,null,null,null,null,null,null,null,null,"57. There is no degradation of natural forests since 31 December 2020."]
[null,null,null,null,null,null,null,null,null,null,null,null,null,null,null,null,null,null,null,null,null,null,null,null,null,null,null,null,null,"58. Concentrations of biological diversity including endemic species, and rare, threatened, or endangered species that are significant at global, regional or national levels are identified and protected, maintained or enhanced (HCV1)."]
[null,null,null,null,null,null,null,null,null,null,null,null,null,null,null,null,null,null,null,null,null,null,null,null,null,null,null,null,null,"59. Intact forest landscapes and large landscape-level ecosystems and ecosystem mosaics that are significant at global, regional, or national levels, and which contain viable populations of the great majority of the naturally-occurring species in natural patterns of distribution and abundance, are identified and protected, maintained or enhanced (HCV2)."]
[null,null,null,null,null,null,null,null,null,null,null,null,null,null,null,null,null,null,null,null,null,null,null,null,null,null,null,null,null,"60. Rare, threatened, or endangered ecosystems, habitats or refugia are identified and protected, maintained, or enhanced (HCV3)."]
[null,null,null,null,null,null,null,null,null,null,null,null,null,null,null,null,null,null,null,null,null,null,null,null,null,null,null,null,null,"61. Basic ecosystem services in critical situations, including the protection of water catchments and control of erosion of vulnerable soils and slopes, are identified and protected (HCV4)."]
[null,null,null,null,null,null,null,null,null,null,null,null,null,null,null,null,null,null,null,null,null,null,null,null,null,null,null,null,null,"62. Sites and resources fundamental for satisfying the basic needs of local communities or Indigenous Peoples are identified and protected (HCV5)."]
[null,null,null,null,null,null,null,null,null,null,null,null,null,null,null,null,null,null,null,null,null,null,null,null,null,null,null,null,null,"63. Sites, resources, habitats, and landscapes of global or national cultural, archaeological, or historical significance, and/or of critical cultural, ecological, economic or religious/sacred importance for the traditional cultures of local communities or Indigenous Peoples are identified and protected (HCV6)."]
[null,null,null,null,null,null,null,null,null,null,null,null,null,null,null,null,null,null,null,null,null,null,null,null,null,null,null,null,null,"64. There is no commercial use of GMO."]
[null,null,null,null,null,null,null,null,null,null,null,null,null,null,null,null,null,null,null,null,null,null,null,null,null,null,null,null,null,"65. Sites, resources, habitats, and landscapes of global or national cultural, archaeological, or historical significance... for the traditional cultures of local communities or Indigenous Peoples are identified and protected (HCV6)."]
[null,null,null,null,null,null,null,null,null,null,null,null,null,null,null,null,null,null,null,null,null,null,null,null,null,null,null,null,null,"66. There is no commercial use of GMO (trees)."]

{"sheet":"Recommended Sources","index":3,"n_rows":944,"n_cols":11,"rows_kept":944,"cut":false,"hidden":false,"merged":[]}
[]
["Name","Type","Affiliated Organization(s)","Link","Key topic","Forest Type","Geographical application","Attribute","Value","Column1","Description"]
["Assessing and Monitoring Forest Governance","Report/Document","Program on Forests (PROFOR)","https://www.profor.info/node/1998","Overarching Sources",null,"Global","Geographical application2","Africa",null,{"$f":"VLOOKUP(DescriptionTable[[#This Row],[Name]],descriptions[],2,FALSE)","v":"A guide to diagnosing strengths and weaknesses in forest governance using a tool developed by PROFOR (Program on Forests). The tool consists of a set of indicators and a protocol for scoring the indicators. The indicators are in the form of multiple-choice questions about aspects of forest governance. Some cover general features of governance, some touch on specifics, and some serve as proxies for factors that are difficult to assess directly. As a whole, the tool examines forest sector governance broadly, serving as a self-assessment to identify areas deserving improvement. "}]
["Assessing and Monitoring Forest Governance","Report/Document","Program on Forests (PROFOR)","https://www.profor.info/node/1998","Overarching Sources",null,"Global","Geographical application3","Latin America",null,{"$f":"VLOOKUP(DescriptionTable[[#This Row],[Name]],descriptions[],2,FALSE)","v":"A guide to diagnosing strengths and weaknesses in forest governance using a tool developed by PROFOR (Program on Forests). The tool consists of a set of indicators and a protocol for scoring the indicators. The indicators are in the form of multiple-choice questions about aspects of forest governance. Some cover general features of governance, some touch on specifics, and some serve as proxies for factors that are difficult to assess directly. As a whole, the tool examines forest sector governance broadly, serving as a self-assessment to identify areas deserving improvement. "}]
["Assessing and Monitoring Forest Governance","Report/Document","Program on Forests (PROFOR)","https://www.profor.info/node/1998","Overarching Sources",null,"Global","Geographical application4","Asia Pacific",null,{"$f":"VLOOKUP(DescriptionTable[[#This Row],[Name]],descriptions[],2,FALSE)","v":"A guide to diagnosing strengths and weaknesses in forest governance using a tool developed by PROFOR (Program on Forests). The tool consists of a set of indicators and a protocol for scoring the indicators. The indicators are in the form of multiple-choice questions about aspects of forest governance. Some cover general features of governance, some touch on specifics, and some serve as proxies for factors that are difficult to assess directly. As a whole, the tool examines forest sector governance broadly, serving as a self-assessment to identify areas deserving improvement. "}]
["Assessing and Monitoring Forest Governance","Report/Document","Program on Forests (PROFOR)","https://www.profor.info/node/1998","Overarching Sources",null,"Global","Geographical application42","Europe",null,{"$f":"VLOOKUP(DescriptionTable[[#This Row],[Name]],descriptions[],2,FALSE)","v":"A guide to diagnosing strengths and weaknesses in forest governance using a tool developed by PROFOR (Program on Forests). The tool consists of a set of indicators and a protocol for scoring the indicators. The indicators are in the form of multiple-choice questions about aspects of forest governance. Some cover general features of governance, some touch on specifics, and some serve as proxies for factors that are difficult to assess directly. As a whole, the tool examines forest sector governance broadly, serving as a self-assessment to identify areas deserving improvement. "}]
["Assessing and Monitoring Forest Governance","Report/Document","Program on Forests (PROFOR)","https://www.profor.info/node/1998","Overarching Sources",null,"Global","Geographical application5","North America",null,{"$f":"VLOOKUP(DescriptionTable[[#This Row],[Name]],descriptions[],2,FALSE)","v":"A guide to diagnosing strengths and weaknesses in forest governance using a tool developed by PROFOR (Program on Forests). The tool consists of a set of indicators and a protocol for scoring the indicators. The indicators are in the form of multiple-choice questions about aspects of forest governance. Some cover general features of governance, some touch on specifics, and some serve as proxies for factors that are difficult to assess directly. As a whole, the tool examines forest sector governance broadly, serving as a self-assessment to identify areas deserving improvement. "}]
["Governance of Forests Initiative (GFI) Indicator Framework (Version 1) ","Report/Document","World Resources Institute ","https://www.wri.org/research/governance-forests-initiative-indicator-framework-version-1","Overarching Sources",null,"Global","Geographical application2","Africa",null,{"$f":"VLOOKUP(DescriptionTable[[#This Row],[Name]],descriptions[],2,FALSE)","v":"The GFI seeks to apply principles of good governance to the challenges of sustaining forests in developing countries. It provides a common definition and conceptual framework for understanding the meaning of good governance of forests across different country contexts, and a practical tool for civil society organizations to diagnose the integrity of institutions and processes that govern forests in their countries. It also provides measurable, reportable and verifiable indicators of good forest governance."}]
["Governance of Forests Initiative (GFI) Indicator Framework (Version 1) ","Report/Document","World Resources Institute ","https://www.wri.org/research/governance-forests-initiative-indicator-framework-version-1","Overarching Sources",null,"Global","Geographical application3","Latin America",null,{"$f":"VLOOKUP(DescriptionTable[[#This Row],[Name]],descriptions[],2,FALSE)","v":"The GFI seeks to apply principles of good governance to the challenges of sustaining forests in developing countries. It provides a common definition and conceptual framework for understanding the meaning of good governance of forests across different country contexts, and a practical tool for civil society organizations to diagnose the integrity of institutions and processes that govern forests in their countries. It also provides measurable, reportable and verifiable indicators of good forest governance."}]
["Governance of Forests Initiative (GFI) Indicator Framework (Version 1) ","Report/Document","World Resources Institute ","https://www.wri.org/research/governance-forests-initiative-indicator-framework-version-1","Overarching Sources",null,"Global","Geographical application4","Asia Pacific",null,{"$f":"VLOOKUP(DescriptionTable[[#This Row],[Name]],descriptions[],2,FALSE)","v":"The GFI seeks to apply principles of good governance to the challenges of sustaining forests in developing countries. It provides a common definition and conceptual framework for understanding the meaning of good governance of forests across different country contexts, and a practical tool for civil society organizations to diagnose the integrity of institutions and processes that govern forests in their countries. It also provides measurable, reportable and verifiable indicators of good forest governance."}]
["Governance of Forests Initiative (GFI) Indicator Framework (Version 1) ","Report/Document","World Resources Institute ","https://www.wri.org/research/governance-forests-initiative-indicator-framework-version-1","Overarching Sources",null,"Global","Geographical application42","Europe",null,{"$f":"VLOOKUP(DescriptionTable[[#This Row],[Name]],descriptions[],2,FALSE)","v":"The GFI seeks to apply principles of good governance to the challenges of sustaining forests in developing countries. It provides a common definition and conceptual framework for understanding the meaning of good governance of forests across different country contexts, and a practical tool for civil society organizations to diagnose the integrity of institutions and processes that govern forests in their countries. It also provides measurable, reportable and verifiable indicators of good forest governance."}]
["Governance of Forests Initiative (GFI) Indicator Framework (Version 1) ","Report/Document","World Resources Institute ","https://www.wri.org/research/governance-forests-initiative-indicator-framework-version-1","Overarching Sources",null,"Global","Geographical application5","North America",null,{"$f":"VLOOKUP(DescriptionTable[[#This Row],[Name]],descriptions[],2,FALSE)","v":"The GFI seeks to apply principles of good governance to the challenges of sustaining forests in developing countries. It provides a common definition and conceptual framework for understanding the meaning of good governance of forests across different country contexts, and a practical tool for civil society organizations to diagnose the integrity of institutions and processes that govern forests in their countries. It also provides measurable, reportable and verifiable indicators of good forest governance."}]
["FSC Forest Stewardship Standards (FSS)","List of publications","Forest Stewardship Council (FSC)","https://connect.fsc.org/document-centre","Overarching Sources",null,"Global","Geographical application2","Africa",null,{"$f":"VLOOKUP(DescriptionTable[[#This Row],[Name]],descriptions[],2,FALSE)","v":"FSC standards for responsible forest management certification, which are adapted to the national or sub-national level based on the International Generic Indicators (IGI), following the FSC Principles and Criteria for Forest Stewardship. These standards reflect the diverse legal, social and geographical conditions of forests in different parts of the world. NOTE: A country with a high percentage of FSC certified areas may be used as an important source to support a 'negligible risk' designation in a country/region. "}]
["FSC Forest Stewardship Standards (FSS)","List of publications","Forest Stewardship Council (FSC)","https://connect.fsc.org/document-centre","Overarching Sources",null,"Global","Geographical application3","Latin America",null,{"$f":"VLOOKUP(DescriptionTable[[#This Row],[Name]],descriptions[],2,FALSE)","v":"FSC standards for responsible forest management certification, which are adapted to the national or sub-national level based on the International Generic Indicators (IGI), following the FSC Principles and Criteria for Forest Stewardship. These standards reflect the diverse legal, social and geographical conditions of forests in different parts of the world. NOTE: A country with a high percentage of FSC certified areas may be used as an important source to support a 'negligible risk' designation in a country/region. "}]
["FSC Forest Stewardship Standards (FSS)","List of publications","Forest Stewardship Council (FSC)","https://connect.fsc.org/document-centre","Overarching Sources",null,"Global","Geographical application4","Asia Pacific",null,{"$f":"VLOOKUP(DescriptionTable[[#This Row],[Name]],descriptions[],2,FALSE)","v":"FSC standards for responsible forest management certification, which are adapted to the national or sub-national level based on the International Generic Indicators (IGI), following the FSC Principles and Criteria for Forest Stewardship. These standards reflect the diverse legal, social and geographical conditions of forests in different parts of the world. NOTE: A country with a high percentage of FSC certified areas may be used as an important source to support a 'negligible risk' designation in a country/region. "}]
["FSC Forest Stewardship Standards (FSS)","List of publications","Forest Stewardship Council (FSC)","https://connect.fsc.org/document-centre","Overarching Sources",null,"Global","Geographical application42","Europe",null,{"$f":"VLOOKUP(DescriptionTable[[#This Row],[Name]],descriptions[],2,FALSE)","v":"FSC standards for responsible forest management certification, which are adapted to the national or sub-national level based on the International Generic Indicators (IGI), following the FSC Principles and Criteria for Forest Stewardship. These standards reflect the diverse legal, social and geographical conditions of forests in different parts of the world. NOTE: A country with a high percentage of FSC certified areas may be used as an important source to support a 'negligible risk' designation in a country/region. "}]
["FSC Forest Stewardship Standards (FSS)","List of publications","Forest Stewardship Council (FSC)","https://connect.fsc.org/document-centre","Overarching Sources",null,"Global","Geographical application5","North America",null,{"$f":"VLOOKUP(DescriptionTable[[#This Row],[Name]],descriptions[],2,FALSE)","v":"FSC standards for responsible forest management certification, which are adapted to the national or sub-national level based on the International Generic Indicators (IGI), following the FSC Principles and Criteria for Forest Stewardship. These standards reflect the diverse legal, social and geographical conditions of forests in different parts of the world. NOTE: A country with a high percentage of FSC certified areas may be used as an important source to support a 'negligible risk' designation in a country/region. "}]
["FSC FSS Risk Assessments","List of publications","Forest Stewardship Council (FSC)","https://connect.fsc.org/document-centre","Overarching Sources",null,"Global","Geographical application2","Africa",null,{"$f":"VLOOKUP(DescriptionTable[[#This Row],[Name]],descriptions[],2,FALSE)","v":"Assessment of the risk of nonconformity with the requirements of a FSS, developed according to FSC-PRO-60-010. The resulting FSS Risk Assessment considers the likelihood and impact of non-conformity with indicators of the FSS in the national or regional context. FSS Risk Assessments will assist certification bodies to focus on the criteria or indicators of the FSS with greater risk of non-conformity."}]
["FSC FSS Risk Assessments","List of publications","Forest Stewardship Council (FSC)","https://connect.fsc.org/document-centre","Overarching Sources",null,"Global","Geographical application3","Latin America",null,{"$f":"VLOOKUP(DescriptionTable[[#This Row],[Name]],descriptions[],2,FALSE)","v":"Assessment of the risk of nonconformity with the requirements of a FSS, developed according to FSC-PRO-60-010. The resulting FSS Risk Assessment considers the likelihood and impact of non-conformity with indicators of the FSS in the national or regional context. FSS Risk Assessments will assist certification bodies to focus on the criteria or indicators of the FSS with greater risk of non-conformity."}]
["FSC FSS Risk Assessments","List of publications","Forest Stewardship Council (FSC)","https://connect.fsc.org/document-centre","Overarching Sources",null,"Global","Geographical application4","Asia Pacific",null,{"$f":"VLOOKUP(DescriptionTable[[#This Row],[Name]],descriptions[],2,FALSE)","v":"Assessment of the risk of nonconformity with the requirements of a FSS, developed according to FSC-PRO-60-010. The resulting FSS Risk Assessment considers the likelihood and impact of non-conformity with indicators of the FSS in the national or regional context. FSS Risk Assessments will assist certification bodies to focus on the criteria or indicators of the FSS with greater risk of non-conformity."}]
["FSC FSS Risk Assessments","List of publications","Forest Stewardship Council (FSC)","https://connect.fsc.org/document-centre","Overarching Sources",null,"Global","Geographical application42","Europe",null,{"$f":"VLOOKUP(DescriptionTable[[#This Row],[Name]],descriptions[],2,FALSE)","v":"Assessment of the risk of nonconformity with the requirements of a FSS, developed according to FSC-PRO-60-010. The resulting FSS Risk Assessment considers the likelihood and impact of non-conformity with indicators of the FSS in the national or regional context. FSS Risk Assessments will assist certification bodies to focus on the criteria or indicators of the FSS with greater risk of non-conformity."}]
["FSC FSS Risk Assessments","List of publications","Forest Stewardship Council (FSC)","https://connect.fsc.org/document-centre","Overarching Sources",null,"Global","Geographical application5","North America",null,{"$f":"VLOOKUP(DescriptionTable[[#This Row],[Name]],descriptions[],2,FALSE)","v":"Assessment of the risk of nonconformity with the requirements of a FSS, developed according to FSC-PRO-60-010. The resulting FSS Risk Assessment considers the likelihood and impact of non-conformity with indicators of the FSS in the national or regional context. FSS Risk Assessments will assist certification bodies to focus on the criteria or indicators of the FSS with greater risk of non-conformity."}]
["Global Forest Watch ","Database","World Resources Institute ","http://www.globalforestwatch.org/","Overarching Sources",null,"Global","Geographical application2","Africa",null,{"$f":"VLOOKUP(DescriptionTable[[#This Row],[Name]],descriptions[],2,FALSE)","v":"Applies to High Conservation Values and Deforestation and Forest Degradation. An online platform that provides data and tools for monitoring forests. By harnessing cutting-edge technology, GFW allows anyone to access near real-time information about where and how forests are changing around the world. The Dashboard includes information categorised at country level addressing the fields of Land Cover, Forest Change, Fires, and Climate."}]
["Global Forest Watch ","Database","World Resources Institute ","http://www.globalforestwatch.org/","Overarching Sources",null,"Global","Geographical application3","Latin America",null,{"$f":"VLOOKUP(DescriptionTable[[#This Row],[Name]],descriptions[],2,FALSE)","v":"Applies to High Conservation Values and Deforestation and Forest Degradation. An online platform that provides data and tools for monitoring forests. By harnessing cutting-edge technology, GFW allows anyone to access near real-time information about where and how forests are changing around the world. The Dashboard includes information categorised at country level addressing the fields of Land Cover, Forest Change, Fires, and Climate."}]
["Global Forest Watch ","Database","World Resources Institute ","http://www.globalforestwatch.org/","Overarching Sources",null,"Global","Geographical application4","Asia Pacific",null,{"$f":"VLOOKUP(DescriptionTable[[#This Row],[Name]],descriptions[],2,FALSE)","v":"Applies to High Conservation Values and Deforestation and Forest Degradation. An online platform that provides data and tools for monitoring forests. By harnessing cutting-edge technology, GFW allows anyone to access near real-time information about where and how forests are changing around the world. The Dashboard includes information categorised at country level addressing the fields of Land Cover, Forest Change, Fires, and Climate."}]
["Global Forest Watch ","Database","World Resources Institute ","http://www.globalforestwatch.org/","Overarching Sources",null,"Global","Geographical application42","Europe",null,{"$f":"VLOOKUP(DescriptionTable[[#This Row],[Name]],descriptions[],2,FALSE)","v":"Applies to High Conservation Values and Deforestation and Forest Degradation. An online platform that provides data and tools for monitoring forests. By harnessing cutting-edge technology, GFW allows anyone to access near real-time information about where and how forests are changing around the world. The Dashboard includes information categorised at country level addressing the fields of Land Cover, Forest Change, Fires, and Climate."}]
["Global Forest Watch ","Database","World Resources Institute ","http://www.globalforestwatch.org/","Overarching Sources",null,"Global","Geographical application5","North America",null,{"$f":"VLOOKUP(DescriptionTable[[#This Row],[Name]],descriptions[],2,FALSE)","v":"Applies to High Conservation Values and Deforestation and Forest Degradation. An online platform that provides data and tools for monitoring forests. By harnessing cutting-edge technology, GFW allows anyone to access near real-time information about where and how forests are changing around the world. The Dashboard includes information categorised at country level addressing the fields of Land Cover, Forest Change, Fires, and Climate."}]
["Forest Stewardship Council Risk Assessment Platform","Database","Forest Stewardship Council (FSC)","https://connect.fsc.org/chain-custody-certification/fsc-risk-assessment-platform","Overarching Sources",null,"Global","Geographical application2","Africa",null,{"$f":"VLOOKUP(DescriptionTable[[#This Row],[Name]],descriptions[],2,FALSE)","v":"Provides a simplified, easy-to-use overview of the contents of approved FSC risk assessments."}]
["Forest Stewardship Council Risk Assessment Platform","Database","Forest Stewardship Council (FSC)","https://connect.fsc.org/chain-custody-certification/fsc-risk-assessment-platform","Overarching Sources",null,"Global","Geographical application3","Latin America",null,{"$f":"VLOOKUP(DescriptionTable[[#This Row],[Name]],descriptions[],2,FALSE)","v":"Provides a simplified, easy-to-use overview of the contents of approved FSC risk assessments."}]
["Forest Stewardship Council Risk Assessment Platform","Database","Forest Stewardship Council (FSC)","https://connect.fsc.org/chain-custody-certification/fsc-risk-assessment-platform","Overarching Sources",null,"Global","Geographical application4","Asia Pacific ",null,{"$f":"VLOOKUP(DescriptionTable[[#This Row],[Name]],descriptions[],2,FALSE)","v":"Provides a simplified, easy-to-use overview of the contents of approved FSC risk assessments."}]
["Forest Stewardship Council Risk Assessment Platform","Database","Forest Stewardship Council (FSC)","https://connect.fsc.org/chain-custody-certification/fsc-risk-assessment-platform","Overarching Sources",null,"Global","Geographical application42","Europe",null,{"$f":"VLOOKUP(DescriptionTable[[#This Row],[Name]],descriptions[],2,FALSE)","v":"Provides a simplified, easy-to-use overview of the contents of approved FSC risk assessments."}]
["Forest Stewardship Council Risk Assessment Platform","Database","Forest Stewardship Council (FSC)","https://connect.fsc.org/chain-custody-certification/fsc-risk-assessment-platform","Overarching Sources",null,"Global","Geographical application5","North America",null,{"$f":"VLOOKUP(DescriptionTable[[#This Row],[Name]],descriptions[],2,FALSE)","v":"Provides a simplified, easy-to-use overview of the contents of approved FSC risk assessments."}]
["Center for International Forestry Research (CIFOR): Publications","List of publications","Center for International Forestry Research (CIFOR)","http://www.cifor.org/","Overarching Sources",null,"Global","Geographical application2","Africa",null,{"$f":"VLOOKUP(DescriptionTable[[#This Row],[Name]],descriptions[],2,FALSE)","v":"CIFOR publishes over 400 publications every year on forests and climate change, landscape restoration, rights, forest policy, agroforestry, etc. in multiple languages."}]
["Center for International Forestry Research (CIFOR): Publications","List of publications","Center for International Forestry Research (CIFOR)","http://www.cifor.org/","Overarching Sources",null,"Global","Geographical application3","Latin America",null,{"$f":"VLOOKUP(DescriptionTable[[#This Row],[Name]],descriptions[],2,FALSE)","v":"CIFOR publishes over 400 publications every year on forests and climate change, landscape restoration, rights, forest policy, agroforestry, etc. in multiple languages."}]
["Center for International Forestry Research (CIFOR): Publications","List of publications","Center for International Forestry Research (CIFOR)","http://www.cifor.org/","Overarching Sources",null,"Global","Geographical application4","Asia Pacific ",null,{"$f":"VLOOKUP(DescriptionTable[[#This Row],[Name]],descriptions[],2,FALSE)","v":"CIFOR publishes over 400 publications every year on forests and climate change, landscape restoration, rights, forest policy, agroforestry, etc. in multiple languages."}]
["Center for International Forestry Research (CIFOR): Publications","List of publications","Center for International Forestry Research (CIFOR)","http://www.cifor.org/","Overarching Sources",null,"Global","Geographical application42","Europe",null,{"$f":"VLOOKUP(DescriptionTable[[#This Row],[Name]],descriptions[],2,FALSE)","v":"CIFOR publishes over 400 publications every year on forests and climate change, landscape restoration, rights, forest policy, agroforestry, etc. in multiple languages."}]
["Center for International Forestry Research (CIFOR): Publications","List of publications","Center for International Forestry Research (CIFOR)","http://www.cifor.org/","Overarching Sources",null,"Global","Geographical application5","North America",null,{"$f":"VLOOKUP(DescriptionTable[[#This Row],[Name]],descriptions[],2,FALSE)","v":"CIFOR publishes over 400 publications every year on forests and climate change, landscape restoration, rights, forest policy, agroforestry, etc. in multiple languages."}]
["US AID: Country Profiles","Database","US AID","http://www.usaid.gov/","Overarching Sources",null,"Global","Geographical application2","Africa",null,{"$f":"VLOOKUP(DescriptionTable[[#This Row],[Name]],descriptions[],2,FALSE)","v":"Deseminates USAID knowledge on fields including Human Rignts, Environment, Water and Sanitation, Anti-Corruption, Gender Equality, etc. and including country profiles."}]
["US AID: Country Profiles","Database","US AID","http://www.usaid.gov/","Overarching Sources",null,"Global","Geographical application3","Latin America",null,{"$f":"VLOOKUP(DescriptionTable[[#This Row],[Name]],descriptions[],2,FALSE)","v":"Deseminates USAID knowledge on fields including Human Rignts, Environment, Water and Sanitation, Anti-Corruption, Gender Equality, etc. and including country profiles."}]
["US AID: Country Profiles","Database","US AID","http://www.usaid.gov/","Overarching Sources",null,"Global","Geographical application4","Asia Pacific ",null,{"$f":"VLOOKUP(DescriptionTable[[#This Row],[Name]],descriptions[],2,FALSE)","v":"Deseminates USAID knowledge on fields including Human Rignts, Environment, Water and Sanitation, Anti-Corruption, Gender Equality, etc. and including country profiles."}]
["US AID: Country Profiles","Database","US AID","http://www.usaid.gov/","Overarching Sources",null,"Global","Geographical application42","Europe",null,{"$f":"VLOOKUP(DescriptionTable[[#This Row],[Name]],descriptions[],2,FALSE)","v":"Deseminates USAID knowledge on fields including Human Rignts, Environment, Water and Sanitation, Anti-Corruption, Gender Equality, etc. and including country profiles."}]
["US AID: Country Profiles","Database","US AID","http://www.usaid.gov/","Overarching Sources",null,"Global","Geographical application5","North America",null,{"$f":"VLOOKUP(DescriptionTable[[#This Row],[Name]],descriptions[],2,FALSE)","v":"Deseminates USAID knowledge on fields including Human Rignts, Environment, Water and Sanitation, Anti-Corruption, Gender Equality, etc. and including country profiles."}]
["Index of Economic Freedom","Database","The Heritage Foundation","https://www.heritage.org/index/explore","Overarching Sources",null,"Global","Geographical application2","Africa",null,{"$f":"VLOOKUP(DescriptionTable[[#This Row],[Name]],descriptions[],2,FALSE)","v":"Measure economic freedom based on 12 quantitative and qualitative factors, grouped into four broad categories, or pillars, of economic freedom: Rule of Law (property rights, government integrity, judicial effectiveness), Government Size (government spending, tax burden, fiscal health), Regulatory Efficiency (business freedom, labor freedom, monetary freedom), Open Markets (trade freedom, investment freedom, financial freedom)"}]
["Index of Economic Freedom","Database","The Heritage Foundation","https://www.heritage.org/index/explore","Overarching Sources",null,"Global","Geographical application3","Latin America",null,{"$f":"VLOOKUP(DescriptionTable[[#This Row],[Name]],descriptions[],2,FALSE)","v":"Measure economic freedom based on 12 quantitative and qualitative factors, grouped into four broad categories, or pillars, of economic freedom: Rule of Law (property rights, government integrity, judicial effectiveness), Government Size (government spending, tax burden, fiscal health), Regulatory Efficiency (business freedom, labor freedom, monetary freedom), Open Markets (trade freedom, investment freedom, financial freedom)"}]
["Index of Economic Freedom","Database","The Heritage Foundation","https://www.heritage.org/index/explore","Overarching Sources",null,"Global","Geographical application4","Asia Pacific ",null,{"$f":"VLOOKUP(DescriptionTable[[#This Row],[Name]],descriptions[],2,FALSE)","v":"Measure economic freedom based on 12 quantitative and qualitative factors, grouped into four broad categories, or pillars, of economic freedom: Rule of Law (property rights, government integrity, judicial effectiveness), Government Size (government spending, tax burden, fiscal health), Regulatory Efficiency (business freedom, labor freedom, monetary freedom), Open Markets (trade freedom, investment freedom, financial freedom)"}]
["Index of Economic Freedom","Database","The Heritage Foundation","https://www.heritage.org/index/explore","Overarching Sources",null,"Global","Geographical application42","Europe",null,{"$f":"VLOOKUP(DescriptionTable[[#This Row],[Name]],descriptions[],2,FALSE)","v":"Measure economic freedom based on 12 quantitative and qualitative factors, grouped into four broad categories, or pillars, of economic freedom: Rule of Law (property rights, government integrity, judicial effectiveness), Government Size (government spending, tax burden, fiscal health), Regulatory Efficiency (business freedom, labor freedom, monetary freedom), Open Markets (trade freedom, investment freedom, financial freedom)"}]
["Index of Economic Freedom","Database","The Heritage Foundation","https://www.heritage.org/index/explore","Overarching Sources",null,"Global","Geographical application5","North America",null,{"$f":"VLOOKUP(DescriptionTable[[#This Row],[Name]],descriptions[],2,FALSE)","v":"Measure economic freedom based on 12 quantitative and qualitative factors, grouped into four broad categories, or pillars, of economic freedom: Rule of Law (property rights, government integrity, judicial effectiveness), Government Size (government spending, tax burden, fiscal health), Regulatory Efficiency (business freedom, labor freedom, monetary freedom), Open Markets (trade freedom, investment freedom, financial freedom)"}]
["Environmental Performance Index (EPI)","Rank, Score and Analysis","Yale University","https://epi.yale.edu/downloads","Overarching Sources",null,"Global","Geographical application2","Africa",null,{"$f":"VLOOKUP(DescriptionTable[[#This Row],[Name]],descriptions[],2,FALSE)","v":"Applies to High Conservation Values and Protection of Environmental Values. Provides a data-driven summary of the state of sustainability around the world, using 40 performance indicators across 11 issue categories. The EPI ranks 180 countries on their progress toward improving environmental health, protecting ecosystem vitality, and mitigating climate change. "}]
["Environmental Performance Index (EPI)","Rank, Score and Analysis","Yale University","https://epi.yale.edu/downloads","Overarching Sources",null,"Global","Geographical application3","Latin America",null,{"$f":"VLOOKUP(DescriptionTable[[#This Row],[Name]],descriptions[],2,FALSE)","v":"Applies to High Conservation Values and Protection of Environmental Values. Provides a data-driven summary of the state of sustainability around the world, using 40 performance indicators across 11 issue categories. The EPI ranks 180 countries on their progress toward improving environmental health, protecting ecosystem vitality, and mitigating climate change. "}]
["Environmental Performance Index (EPI)","Rank, Score and Analysis","Yale University","https://epi.yale.edu/downloads","Overarching Sources",null,"Global","Geographical application4","Asia Pacific ",null,{"$f":"VLOOKUP(DescriptionTable[[#This Row],[Name]],descriptions[],2,FALSE)","v":"Applies to High Conservation Values and Protection of Environmental Values. Provides a data-driven summary of the state of sustainability around the world, using 40 performance indicators across 11 issue categories. The EPI ranks 180 countries on their progress toward improving environmental health, protecting ecosystem vitality, and mitigating climate change. "}]
["Environmental Performance Index (EPI)","Rank, Score and Analysis","Yale University","https://epi.yale.edu/downloads","Overarching Sources",null,"Global","Geographical application42","Europe",null,{"$f":"VLOOKUP(DescriptionTable[[#This Row],[Name]],descriptions[],2,FALSE)","v":"Applies to High Conservation Values and Protection of Environmental Values. Provides a data-driven summary of the state of sustainability around the world, using 40 performance indicators across 11 issue categories. The EPI ranks 180 countries on their progress toward improving environmental health, protecting ecosystem vitality, and mitigating climate change. "}]
["Environmental Performance Index (EPI)","Rank, Score and Analysis","Yale University","https://epi.yale.edu/downloads","Overarching Sources",null,"Global","Geographical application5","North America",null,{"$f":"VLOOKUP(DescriptionTable[[#This Row],[Name]],descriptions[],2,FALSE)","v":"Applies to High Conservation Values and Protection of Environmental Values. Provides a data-driven summary of the state of sustainability around the world, using 40 performance indicators across 11 issue categories. The EPI ranks 180 countries on their progress toward improving environmental health, protecting ecosystem vitality, and mitigating climate change. "}]
["SDG Tracker: Our World in Data","Database","Global Change Data Lab and University of Oxford","https://ourworldindata.org/sdgs","Overarching Sources",null,"Global","Geographical application2","Africa",null,{"$f":"VLOOKUP(DescriptionTable[[#This Row],[Name]],descriptions[],2,FALSE)","v":"Presents data across all available indicators from the Our World in Data database, using official statistics from the UN and other international organizations. This free, open-access information tracks global progress towards the SDGs and allows people worldwide to hold their governments accountable for achieving the agreed goals."}]
["SDG Tracker: Our World in Data","Database","Global Change Data Lab and University of Oxford","https://ourworldindata.org/sdgs","Overarching Sources",null,"Global","Geographical application3","Latin America",null,{"$f":"VLOOKUP(DescriptionTable[[#This Row],[Name]],descriptions[],2,FALSE)","v":"Presents data across all available indicators from the Our World in Data database, using official statistics from the UN and other international organizations. This free, open-access information tracks global progress towards the SDGs and allows people worldwide to hold their governments accountable for achieving the agreed goals."}]
["SDG Tracker: Our World in Data","Database","Global Change Data Lab and University of Oxford","https://ourworldindata.org/sdgs","Overarching Sources",null,"Global","Geographical application4","Asia Pacific ",null,{"$f":"VLOOKUP(DescriptionTable[[#This Row],[Name]],descriptions[],2,FALSE)","v":"Presents data across all available indicators from the Our World in Data database, using official statistics from the UN and other international organizations. This free, open-access information tracks global progress towards the SDGs and allows people worldwide to hold their governments accountable for achieving the agreed goals."}]
["SDG Tracker: Our World in Data","Database","Global Change Data Lab and University of Oxford","https://ourworldindata.org/sdgs","Overarching Sources",null,"Global","Geographical application42","Europe",null,{"$f":"VLOOKUP(DescriptionTable[[#This Row],[Name]],descriptions[],2,FALSE)","v":"Presents data across all available indicators from the Our World in Data database, using official statistics from the UN and other international organizations. This free, open-access information tracks global progress towards the SDGs and allows people worldwide to hold their governments accountable for achieving the agreed goals."}]
["SDG Tracker: Our World in Data","Database","Global Change Data Lab and University of Oxford","https://ourworldindata.org/sdgs","Overarching Sources",null,"Global","Geographical application5","North America",null,{"$f":"VLOOKUP(DescriptionTable[[#This Row],[Name]],descriptions[],2,FALSE)","v":"Presents data across all available indicators from the Our World in Data database, using official statistics from the UN and other international organizations. This free, open-access information tracks global progress towards the SDGs and allows people worldwide to hold their governments accountable for achieving the agreed goals."}]
["Chatham House: Country Profiles","Rank, Score and Analysis","Chatham House: Royal Institute of International Affairs","https://forestgovernance.chathamhouse.org/ ","Overall governance",null,"Global","Geographical application2","Africa",null,{"$f":"VLOOKUP(DescriptionTable[[#This Row],[Name]],descriptions[],2,FALSE)","v":"Chatham House is a reputable platform for in-depth policy research and debate on forest governance. This website delivers forest policy assessment for several countries, estimates of legal and illegal timber trade, and stimulate innovation towards just and sustainable forest economies."}]
["Chatham House: Country Profiles","Rank, Score and Analysis","Chatham House: Royal Institute of International Affairs","https://forestgovernance.chathamhouse.org/ ","Overall governance",null,"Global","Geographical application3","Latin America",null,{"$f":"VLOOKUP(DescriptionTable[[#This Row],[Name]],descriptions[],2,FALSE)","v":"Chatham House is a reputable platform for in-depth policy research and debate on forest governance. This website delivers forest policy assessment for several countries, estimates of legal and illegal timber trade, and stimulate innovation towards just and sustainable forest economies."}]
["Chatham House: Country Profiles","Rank, Score and Analysis","Chatham House: Royal Institute of International Affairs","https://forestgovernance.chathamhouse.org/ ","Overall governance",null,"Global","Geographical application4","Asia Pacific ",null,{"$f":"VLOOKUP(DescriptionTable[[#This Row],[Name]],descriptions[],2,FALSE)","v":"Chatham House is a reputable platform for in-depth policy research and debate on forest governance. This website delivers forest policy assessment for several countries, estimates of legal and illegal timber trade, and stimulate innovation towards just and sustainable forest economies."}]
["Chatham House: Country Profiles","Rank, Score and Analysis","Chatham House: Royal Institute of International Affairs","https://forestgovernance.chathamhouse.org/ ","Overall governance",null,"Global","Geographical application42","Europe",null,{"$f":"VLOOKUP(DescriptionTable[[#This Row],[Name]],descriptions[],2,FALSE)","v":"Chatham House is a reputable platform for in-depth policy research and debate on forest governance. This website delivers forest policy assessment for several countries, estimates of legal and illegal timber trade, and stimulate innovation towards just and sustainable forest economies."}]
["Chatham House: Country Profiles","Rank, Score and Analysis","Chatham House: Royal Institute of International Affairs","https://forestgovernance.chathamhouse.org/ ","Overall governance",null,"Global","Geographical application5","North America",null,{"$f":"VLOOKUP(DescriptionTable[[#This Row],[Name]],descriptions[],2,FALSE)","v":"Chatham House is a reputable platform for in-depth policy research and debate on forest governance. This website delivers forest policy assessment for several countries, estimates of legal and illegal timber trade, and stimulate innovation towards just and sustainable forest economies."}]
["ELDIS regional and country profiles ","List of publications","Institute of Development Studies, University of Sussex, UK","http://www.eldis.org","Overall governance",null,"Global","Geographical application2","Africa",null,{"$f":"VLOOKUP(DescriptionTable[[#This Row],[Name]],descriptions[],2,FALSE)","v":"ELDIS provides free access to relevant, up-to-date and diverse research on international development issues. Our database includes over 50,000 summaries and provides free links to full-text research and policy documents from over 8,000 publishers."}]
["ELDIS regional and country profiles ","List of publications","Institute of Development Studies, University of Sussex, UK","http://www.eldis.org","Overall governance",null,"Global","Geographical application3","Latin America",null,{"$f":"VLOOKUP(DescriptionTable[[#This Row],[Name]],descriptions[],2,FALSE)","v":"ELDIS provides free access to relevant, up-to-date and diverse research on international development issues. Our database includes over 50,000 summaries and provides free links to full-text research and policy documents from over 8,000 publishers."}]
["ELDIS regional and country profiles ","List of publications","Institute of Development Studies, University of Sussex, UK","http://www.eldis.org","Overall governance",null,"Global","Geographical application4","Asia Pacific ",null,{"$f":"VLOOKUP(DescriptionTable[[#This Row],[Name]],descriptions[],2,FALSE)","v":"ELDIS provides free access to relevant, up-to-date and diverse research on international development issues. Our database includes over 50,000 summaries and provides free links to full-text research and policy documents from over 8,000 publishers."}]
["ELDIS regional and country profiles ","List of publications","Institute of Development Studies, University of Sussex, UK","http://www.eldis.org","Overall governance",null,"Global","Geographical application42","Europe",null,{"$f":"VLOOKUP(DescriptionTable[[#This Row],[Name]],descriptions[],2,FALSE)","v":"ELDIS provides free access to relevant, up-to-date and diverse research on international development issues. Our database includes over 50,000 summaries and provides free links to full-text research and policy documents from over 8,000 publishers."}]
["ELDIS regional and country profiles ","List of publications","Institute of Development Studies, University of Sussex, UK","http://www.eldis.org","Overall governance",null,"Global","Geographical application5","North America",null,{"$f":"VLOOKUP(DescriptionTable[[#This Row],[Name]],descriptions[],2,FALSE)","v":"ELDIS provides free access to relevant, up-to-date and diverse research on international development issues. Our database includes over 50,000 summaries and provides free links to full-text research and policy documents from over 8,000 publishers."}]
["Environmental Investigation Agency (EIA) Crime Tracker","Database","Environmental Investigation Agency, UK","https://eia-international.org/global-environmental-crime-tracker/","Overall governance",null,"Asia, Africa and Europe","Geographical application2","Asia Pacific",null,{"$f":"VLOOKUP(DescriptionTable[[#This Row],[Name]],descriptions[],2,FALSE)","v":"The interactive Global Environmental Crime Tracker consists up-to-date data collected from publicly available information, including government reports, enforcement agency press releases and non-governmental and academic papers. EIA monitors, collects and analyses data on the illegal trade in wildlife, timber and dangerous global warming refrigerant gases. It tracks the global trends through dashboards and maps that illustrate the smuggling and trafficking hotspots as well as the transportation routes and we chart the links between the criminal networks and key individuals involved. The Tracker covers criminal activities in Asia, Africa and Europe. Not an exhaustive dataset, represents only a fraction of actual enforcement and illegal trade activity globally."}]
["Environmental Investigation Agency (EIA) Crime Tracker","Database","Environmental Investigation Agency, UK","https://eia-international.org/global-environmental-crime-tracker/","Overall governance",null,"Asia, Africa and Europe","Geographical application3"," Africa",null,{"$f":"VLOOKUP(DescriptionTable[[#This Row],[Name]],descriptions[],2,FALSE)","v":"The interactive Global Environmental Crime Tracker consists up-to-date data collected from publicly available information, including government reports, enforcement agency press releases and non-governmental and academic papers. EIA monitors, collects and analyses data on the illegal trade in wildlife, timber and dangerous global warming refrigerant gases. It tracks the global trends through dashboards and maps that illustrate the smuggling and trafficking hotspots as well as the transportation routes and we chart the links between the criminal networks and key individuals involved. The Tracker covers criminal activities in Asia, Africa and Europe. Not an exhaustive dataset, represents only a fraction of actual enforcement and illegal trade activity globally."}]
["Environmental Investigation Agency (EIA) Crime Tracker","Database","Environmental Investigation Agency, UK","https://eia-international.org/global-environmental-crime-tracker/","Overall governance",null,"Asia, Africa and Europe","Geographical application4"," Europe",null,{"$f":"VLOOKUP(DescriptionTable[[#This Row],[Name]],descriptions[],2,FALSE)","v":"The interactive Global Environmental Crime Tracker consists up-to-date data collected from publicly available information, including government reports, enforcement agency press releases and non-governmental and academic papers. EIA monitors, collects and analyses data on the illegal trade in wildlife, timber and dangerous global warming refrigerant gases. It tracks the global trends through dashboards and maps that illustrate the smuggling and trafficking hotspots as well as the transportation routes and we chart the links between the criminal networks and key individuals involved. The Tracker covers criminal activities in Asia, Africa and Europe. Not an exhaustive dataset, represents only a fraction of actual enforcement and illegal trade activity globally."}]
["VPA Africa-Latin America Country Profiles","Database","EU FLEGT (Forest Law Enforcement Governance and Trade) Process","https://www.euflegt.efi.int/home","Overall governance",null,"Africa, Latin America","Geographical application2","Africa",null,{"$f":"VLOOKUP(DescriptionTable[[#This Row],[Name]],descriptions[],2,FALSE)","v":"The VPA Africa – Latin America Facility supports the negotiation and implementation of Voluntary Partnership Agreements (VPAs) on Forest Law Enforcement Governance and Trade (FLEGT). VPAs are a key component of the EU FLEGT Action Plan to address illegal logging and the trade in associated timber products."}]
["VPA Africa-Latin America Country Profiles","Database","EU FLEGT (Forest Law Enforcement Governance and Trade) Process","https://www.euflegt.efi.int/home","Overall governance",null,"Africa, Latin America","Geographical application3"," Latin America",null,{"$f":"VLOOKUP(DescriptionTable[[#This Row],[Name]],descriptions[],2,FALSE)","v":"The VPA Africa – Latin America Facility supports the negotiation and implementation of Voluntary Partnership Agreements (VPAs) on Forest Law Enforcement Governance and Trade (FLEGT). VPAs are a key component of the EU FLEGT Action Plan to address illegal logging and the trade in associated timber products."}]
["Forest Legality Alliance: Tools and Resources","Rank, Score and Analysis","Forest Legality Initiative, USA","http://www.forestlegality.org","Overall governance",null,"Global","Geographical application2","Africa",null,{"$f":"VLOOKUP(DescriptionTable[[#This Row],[Name]],descriptions[],2,FALSE)","v":"The Open Timber Portal (OTP) is a web platform that promotes compliance with legal requirements in timber harvest and trade. It seeks to bring transparency to timber operations and improve access to country-specific information about forest management and harvesting, while increasing the effectiveness of regulations on illegal logging. The World Forest ID collects georeferenced physical wood samples from at-risk forests across the globe and help build international analytic capacity whereby partner laboratories can assist in developing reference databases. "}]
["Forest Legality Alliance: Tools and Resources","Rank, Score and Analysis","Forest Legality Initiative, USA","http://www.forestlegality.org","Overall governance",null,"Global","Geographical application3","Latin America",null,{"$f":"VLOOKUP(DescriptionTable[[#This Row],[Name]],descriptions[],2,FALSE)","v":"The Open Timber Portal (OTP) is a web platform that promotes compliance with legal requirements in timber harvest and trade. It seeks to bring transparency to timber operations and improve access to country-specific information about forest management and harvesting, while increasing the effectiveness of regulations on illegal logging. The World Forest ID collects georeferenced physical wood samples from at-risk forests across the globe and help build international analytic capacity whereby partner laboratories can assist in developing reference databases. "}]
["Forest Legality Alliance: Tools and Resources","Rank, Score and Analysis","Forest Legality Initiative, USA","http://www.forestlegality.org","Overall governance",null,"Global","Geographical application4","Asia Pacific ",null,{"$f":"VLOOKUP(DescriptionTable[[#This Row],[Name]],descriptions[],2,FALSE)","v":"The Open Timber Portal (OTP) is a web platform that promotes compliance with legal requirements in timber harvest and trade. It seeks to bring transparency to timber operations and improve access to country-specific information about forest management and harvesting, while increasing the effectiveness of regulations on illegal logging. The World Forest ID collects georeferenced physical wood samples from at-risk forests across the globe and help build international analytic capacity whereby partner laboratories can assist in developing reference databases. "}]
["Forest Legality Alliance: Tools and Resources","Rank, Score and Analysis","Forest Legality Initiative, USA","http://www.forestlegality.org","Overall governance",null,"Global","Geographical application42","Europe",null,{"$f":"VLOOKUP(DescriptionTable[[#This Row],[Name]],descriptions[],2,FALSE)","v":"The Open Timber Portal (OTP) is a web platform that promotes compliance with legal requirements in timber harvest and trade. It seeks to bring transparency to timber operations and improve access to country-specific information about forest management and harvesting, while increasing the effectiveness of regulations on illegal logging. The World Forest ID collects georeferenced physical wood samples from at-risk forests across the globe and help build international analytic capacity whereby partner laboratories can assist in developing reference databases. "}]
["Forest Legality Alliance: Tools and Resources","Rank, Score and Analysis","Forest Legality Initiative, USA","http://www.forestlegality.org","Overall governance",null,"Global","Geographical application5","North America",null,{"$f":"VLOOKUP(DescriptionTable[[#This Row],[Name]],descriptions[],2,FALSE)","v":"The Open Timber Portal (OTP) is a web platform that promotes compliance with legal requirements in timber harvest and trade. It seeks to bring transparency to timber operations and improve access to country-specific information about forest management and harvesting, while increasing the effectiveness of regulations on illegal logging. The World Forest ID collects georeferenced physical wood samples from at-risk forests across the globe and help build international analytic capacity whereby partner laboratories can assist in developing reference databases. "}]
["INTERPOL records on Environmental Crime","Database","International Criminal Police Organisation (INTERPOL)","https://www.interpol.int/en/Crimes/Environmental-crime","Overall governance",null,"Global","Geographical application2","Africa",null,{"$f":"VLOOKUP(DescriptionTable[[#This Row],[Name]],descriptions[],2,FALSE)","v":"Provides a range of reports, case studies and other resources related to Environmental Crime ranging from wildlife trafficking and overfishing of protected species, to illegal logging and the dumping of hazardous waste."}]
["INTERPOL records on Environmental Crime","Database","International Criminal Police Organisation (INTERPOL)","https://www.interpol.int/en/Crimes/Environmental-crime","Overall governance",null,"Global","Geographical application3","Latin America",null,{"$f":"VLOOKUP(DescriptionTable[[#This Row],[Name]],descriptions[],2,FALSE)","v":"Provides a range of reports, case studies and other resources related to Environmental Crime ranging from wildlife trafficking and overfishing of protected species, to illegal logging and the dumping of hazardous waste."}]
["INTERPOL records on Environmental Crime","Database","International Criminal Police Organisation (INTERPOL)","https://www.interpol.int/en/Crimes/Environmental-crime","Overall governance",null,"Global","Geographical application4","Asia Pacific ",null,{"$f":"VLOOKUP(DescriptionTable[[#This Row],[Name]],descriptions[],2,FALSE)","v":"Provides a range of reports, case studies and other resources related to Environmental Crime ranging from wildlife trafficking and overfishing of protected species, to illegal logging and the dumping of hazardous waste."}]
["INTERPOL records on Environmental Crime","Database","International Criminal Police Organisation (INTERPOL)","https://www.interpol.int/en/Crimes/Environmental-crime","Overall governance",null,"Global","Geographical application42","Europe",null,{"$f":"VLOOKUP(DescriptionTable[[#This Row],[Name]],descriptions[],2,FALSE)","v":"Provides a range of reports, case studies and other resources related to Environmental Crime ranging from wildlife trafficking and overfishing of protected species, to illegal logging and the dumping of hazardous waste."}]
["INTERPOL records on Environmental Crime","Database","International Criminal Police Organisation (INTERPOL)","https://www.interpol.int/en/Crimes/Environmental-crime","Overall governance",null,"Global","Geographical application5","North America",null,{"$f":"VLOOKUP(DescriptionTable[[#This Row],[Name]],descriptions[],2,FALSE)","v":"Provides a range of reports, case studies and other resources related to Environmental Crime ranging from wildlife trafficking and overfishing of protected species, to illegal logging and the dumping of hazardous waste."}]
["Public summaries of FSC forest management certification reports published at connect.fsc.org","List of publications","Forest Stewardship Council (FSC)","https://connect.fsc.org/fsc-public-certificate-search","Overall governance",null,"Global","Geographical application2","Africa",null,{"$f":"VLOOKUP(DescriptionTable[[#This Row],[Name]],descriptions[],2,FALSE)","v":"These summaries contain information on legal areas where non compliances have been identified during the certification process."}]
["Public summaries of FSC forest management certification reports published at connect.fsc.org","List of publications","Forest Stewardship Council (FSC)","https://connect.fsc.org/fsc-public-certificate-search","Overall governance",null,"Global","Geographical application3","Latin America",null,{"$f":"VLOOKUP(DescriptionTable[[#This Row],[Name]],descriptions[],2,FALSE)","v":"These summaries contain information on legal areas where non compliances have been identified during the certification process."}]
["Public summaries of FSC forest management certification reports published at connect.fsc.org","List of publications","Forest Stewardship Council (FSC)","https://connect.fsc.org/fsc-public-certificate-search","Overall governance",null,"Global","Geographical application4","Asia Pacific ",null,{"$f":"VLOOKUP(DescriptionTable[[#This Row],[Name]],descriptions[],2,FALSE)","v":"These summaries contain information on legal areas where non compliances have been identified during the certification process."}]
["Public summaries of FSC forest management certification reports published at connect.fsc.org","List of publications","Forest Stewardship Council (FSC)","https://connect.fsc.org/fsc-public-certificate-search","Overall governance",null,"Global","Geographical application42","Europe",null,{"$f":"VLOOKUP(DescriptionTable[[#This Row],[Name]],descriptions[],2,FALSE)","v":"These summaries contain information on legal areas where non compliances have been identified during the certification process."}]
["Public summaries of FSC forest management certification reports published at connect.fsc.org","List of publications","Forest Stewardship Council (FSC)","https://connect.fsc.org/fsc-public-certificate-search","Overall governance",null,"Global","Geographical application5","North America",null,{"$f":"VLOOKUP(DescriptionTable[[#This Row],[Name]],descriptions[],2,FALSE)","v":"These summaries contain information on legal areas where non compliances have been identified during the certification process."}]
["Worldwide Governance Indicators","Rank, Score and Analysis","World Bank","http://info.worldbank.org/governance/wgi/Home/Reports","Overall governance",null,"Global","Geographical application2","Africa",null,{"$f":"VLOOKUP(DescriptionTable[[#This Row],[Name]],descriptions[],2,FALSE)","v":"Aggregates individual governance indicators for over 200 countries and territories (most recently for 1996–2021), for six dimensions of governance: Voice and Accountability, Political Stability and Absence of Violence, Government Effectiveness, Regulatory Quality, Rule of Law, and Control of Corruption. Data comprises from more than 30 think tanks, international organizations, nongovernmental organizations, and private firms across the world selected on the basis of three key criteria: they are produced by credible organizations, they provide comparable cross-country data, and they are regularly updated."}]
["Worldwide Governance Indicators","Rank, Score and Analysis","World Bank","http://info.worldbank.org/governance/wgi/Home/Reports","Overall governance",null,"Global","Geographical application3","Latin America",null,{"$f":"VLOOKUP(DescriptionTable[[#This Row],[Name]],descriptions[],2,FALSE)","v":"Aggregates individual governance indicators for over 200 countries and territories (most recently for 1996–2021), for six dimensions of governance: Voice and Accountability, Political Stability and Absence of Violence, Government Effectiveness, Regulatory Quality, Rule of Law, and Control of Corruption. Data comprises from more than 30 think tanks, international organizations, nongovernmental organizations, and private firms across the world selected on the basis of three key criteria: they are produced by credible organizations, they provide comparable cross-country data, and they are regularly updated."}]
["Worldwide Governance Indicators","Rank, Score and Analysis","World Bank","http://info.worldbank.org/governance/wgi/Home/Reports","Overall governance",null,"Global","Geographical application4","Asia Pacific ",null,{"$f":"VLOOKUP(DescriptionTable[[#This Row],[Name]],descriptions[],2,FALSE)","v":"Aggregates individual governance indicators for over 200 countries and territories (most recently for 1996–2021), for six dimensions of governance: Voice and Accountability, Political Stability and Absence of Violence, Government Effectiveness, Regulatory Quality, Rule of Law, and Control of Corruption. Data comprises from more than 30 think tanks, international organizations, nongovernmental organizations, and private firms across the world selected on the basis of three key criteria: they are produced by credible organizations, they provide comparable cross-country data, and they are regularly updated."}]
["Worldwide Governance Indicators","Rank, Score and Analysis","World Bank","http://info.worldbank.org/governance/wgi/Home/Reports","Overall governance",null,"Global","Geographical application42","Europe",null,{"$f":"VLOOKUP(DescriptionTable[[#This Row],[Name]],descriptions[],2,FALSE)","v":"Aggregates individual governance indicators for over 200 countries and territories (most recently for 1996–2021), for six dimensions of governance: Voice and Accountability, Political Stability and Absence of Violence, Government Effectiveness, Regulatory Quality, Rule of Law, and Control of Corruption. Data comprises from more than 30 think tanks, international organizations, nongovernmental organizations, and private firms across the world selected on the basis of three key criteria: they are produced by credible organizations, they provide comparable cross-country data, and they are regularly updated."}]
["Worldwide Governance Indicators","Rank, Score and Analysis","World Bank","http://info.worldbank.org/governance/wgi/Home/Reports","Overall governance",null,"Global","Geographical application5","North America",null,{"$f":"VLOOKUP(DescriptionTable[[#This Row],[Name]],descriptions[],2,FALSE)","v":"Aggregates individual governance indicators for over 200 countries and territories (most recently for 1996–2021), for six dimensions of governance: Voice and Accountability, Political Stability and Absence of Violence, Government Effectiveness, Regulatory Quality, Rule of Law, and Control of Corruption. Data comprises from more than 30 think tanks, international organizations, nongovernmental organizations, and private firms across the world selected on the basis of three key criteria: they are produced by credible organizations, they provide comparable cross-country data, and they are regularly updated."}]
["Project Profiles: FAO-EU FLEGT (Forest Law Enforcement Governance and Trade) Programme ","Database","UN Food and Agriculture Programme (FAO)","https://www.fao.org/in-action/fao-eu-flegt-programme/our-projects/en/#/web/map","Overall governance",null,"Global","Geographical application2","Africa",null,{"$f":"VLOOKUP(DescriptionTable[[#This Row],[Name]],descriptions[],2,FALSE)","v":"The FAO-EU FLEGT Programme provides technical support and resources to projects in 23 countries globally. The database provides detailed information on the projects.  "}]
["Project Profiles: FAO-EU FLEGT (Forest Law Enforcement Governance and Trade) Programme ","Database","UN Food and Agriculture Programme (FAO)","https://www.fao.org/in-action/fao-eu-flegt-programme/our-projects/en/#/web/map","Overall governance",null,"Global","Geographical application3","Latin America",null,{"$f":"VLOOKUP(DescriptionTable[[#This Row],[Name]],descriptions[],2,FALSE)","v":"The FAO-EU FLEGT Programme provides technical support and resources to projects in 23 countries globally. The database provides detailed information on the projects.  "}]
["Project Profiles: FAO-EU FLEGT (Forest Law Enforcement Governance and Trade) Programme ","Database","UN Food and Agriculture Programme (FAO)","https://www.fao.org/in-action/fao-eu-flegt-programme/our-projects/en/#/web/map","Overall governance",null,"Global","Geographical application4","Asia Pacific ",null,{"$f":"VLOOKUP(DescriptionTable[[#This Row],[Name]],descriptions[],2,FALSE)","v":"The FAO-EU FLEGT Programme provides technical support and resources to projects in 23 countries globally. The database provides detailed information on the projects.  "}]
["Project Profiles: FAO-EU FLEGT (Forest Law Enforcement Governance and Trade) Programme ","Database","UN Food and Agriculture Programme (FAO)","https://www.fao.org/in-action/fao-eu-flegt-programme/our-projects/en/#/web/map","Overall governance",null,"Global","Geographical application42","Europe",null,{"$f":"VLOOKUP(DescriptionTable[[#This Row],[Name]],descriptions[],2,FALSE)","v":"The FAO-EU FLEGT Programme provides technical support and resources to projects in 23 countries globally. The database provides detailed information on the projects.  "}]
["Project Profiles: FAO-EU FLEGT (Forest Law Enforcement Governance and Trade) Programme ","Database","UN Food and Agriculture Programme (FAO)","https://www.fao.org/in-action/fao-eu-flegt-programme/our-projects/en/#/web/map","Overall governance",null,"Global","Geographical application5","North America",null,{"$f":"VLOOKUP(DescriptionTable[[#This Row],[Name]],descriptions[],2,FALSE)","v":"The FAO-EU FLEGT Programme provides technical support and resources to projects in 23 countries globally. The database provides detailed information on the projects.  "}]
["Global Land Governance Index","Index","International Land Coalition (ILC)","https://www.landexglobal.org/en/","Legal Tenure and Management Rights",null,"Global","Geographical application2","Africa",null,{"$f":"VLOOKUP(DescriptionTable[[#This Row],[Name]],descriptions[],2,FALSE)","v":"LANDex monitors land governance according to the 10 Commitments of the International Land Coalition. The data, collected and centralised from various sources, gives a comprehensive understanding of the state of land governance in each country according to the legal framework, levels of implementation and outcomes. Each country's LANDex score is set on a scale of 0-100, where 100 is the most desirable. The country score reflects an average of all the LANDex indicators in the country, which are also set on a standard scale of 0-100."}]
["Global Land Governance Index","Index","International Land Coalition (ILC)","https://www.landexglobal.org/en/","Legal Tenure and Management Rights",null,"Global","Geographical application3","Latin America",null,{"$f":"VLOOKUP(DescriptionTable[[#This Row],[Name]],descriptions[],2,FALSE)","v":"LANDex monitors land governance according to the 10 Commitments of the International Land Coalition. The data, collected and centralised from various sources, gives a comprehensive understanding of the state of land governance in each country according to the legal framework, levels of implementation and outcomes. Each country's LANDex score is set on a scale of 0-100, where 100 is the most desirable. The country score reflects an average of all the LANDex indicators in the country, which are also set on a standard scale of 0-100."}]
["Global Land Governance Index","Index","International Land Coalition (ILC)","https://www.landexglobal.org/en/","Legal Tenure and Management Rights",null,"Global","Geographical application4","Asia Pacific ",null,{"$f":"VLOOKUP(DescriptionTable[[#This Row],[Name]],descriptions[],2,FALSE)","v":"LANDex monitors land governance according to the 10 Commitments of the International Land Coalition. The data, collected and centralised from various sources, gives a comprehensive understanding of the state of land governance in each country according to the legal framework, levels of implementation and outcomes. Each country's LANDex score is set on a scale of 0-100, where 100 is the most desirable. The country score reflects an average of all the LANDex indicators in the country, which are also set on a standard scale of 0-100."}]
["Global Land Governance Index","Index","International Land Coalition (ILC)","https://www.landexglobal.org/en/","Legal Tenure and Management Rights",null,"Global","Geographical application42","Europe",null,{"$f":"VLOOKUP(DescriptionTable[[#This Row],[Name]],descriptions[],2,FALSE)","v":"LANDex monitors land governance according to the 10 Commitments of the International Land Coalition. The data, collected and centralised from various sources, gives a comprehensive understanding of the state of land governance in each country according to the legal framework, levels of implementation and outcomes. Each country's LANDex score is set on a scale of 0-100, where 100 is the most desirable. The country score reflects an average of all the LANDex indicators in the country, which are also set on a standard scale of 0-100."}]
["Global Land Governance Index","Index","International Land Coalition (ILC)","https://www.landexglobal.org/en/","Legal Tenure and Management Rights",null,"Global","Geographical application5","North America",null,{"$f":"VLOOKUP(DescriptionTable[[#This Row],[Name]],descriptions[],2,FALSE)","v":"LANDex monitors land governance according to the 10 Commitments of the International Land Coalition. The data, collected and centralised from various sources, gives a comprehensive understanding of the state of land governance in each country according to the legal framework, levels of implementation and outcomes. Each country's LANDex score is set on a scale of 0-100, where 100 is the most desirable. The country score reflects an average of all the LANDex indicators in the country, which are also set on a standard scale of 0-100."}]
["LandMark- Global Platform of Indigenous and Community Lands","Maps and Dataset","Liz Alden Wily, Independent Land Tenure Specialist, Aliansi Masyarakat Adat Nusantara (AMAN), Foundation for Ecological Security (FES), Instituto del Bien Común (IBC), International Land Coalition (ILC), Philippine Association for Intercultural Development, Inc. (PAFID), Rainforest Foundation UK (RFUK), Red Amazónica de Información Socioambiental Georreferenciada (RAISG), Rights and Resource Initiative (RRI), Union of Indigenous Nomadic Tribes of Iran (UNINOMAD) / Centre for Sustainable Development (CENESTA), World Atlas of Indigenous Peoples' Territories (WAIPT), World Resources Institute (WRI) ","https://www.landmarkmap.org/data/","Legal Tenure and Management Rights",null,"Global","Geographical application2","Africa",null,{"$f":"VLOOKUP(DescriptionTable[[#This Row],[Name]],descriptions[],2,FALSE)","v":"The platform includes maps and data on indigenous and community lands that are publicly available as well as information directly from individuals and organizations with their permission as detailed in a data-sharing agreement. Data are generated from research (e.g., legal reviews, literature reviews, interviews), expert knowledge, and spatial data analysis. The contributing individuals and organizations are documented under the Data Providers tab whom fully responsible for the accuracy of the data. Amendments will be made on a periodic basis. "}]
["LandMark- Global Platform of Indigenous and Community Lands","Maps and Dataset","Liz Alden Wily, Independent Land Tenure Specialist, Aliansi Masyarakat Adat Nusantara (AMAN), Foundation for Ecological Security (FES), Instituto del Bien Común (IBC), International Land Coalition (ILC), Philippine Association for Intercultural Development, Inc. (PAFID), Rainforest Foundation UK (RFUK), Red Amazónica de Información Socioambiental Georreferenciada (RAISG), Rights and Resource Initiative (RRI), Union of Indigenous Nomadic Tribes of Iran (UNINOMAD) / Centre for Sustainable Development (CENESTA), World Atlas of Indigenous Peoples' Territories (WAIPT), World Resources Institute (WRI) ","https://www.landmarkmap.org/data/","Legal Tenure and Management Rights",null,"Global","Geographical application3","Latin America",null,{"$f":"VLOOKUP(DescriptionTable[[#This Row],[Name]],descriptions[],2,FALSE)","v":"The platform includes maps and data on indigenous and community lands that are publicly available as well as information directly from individuals and organizations with their permission as detailed in a data-sharing agreement. Data are generated from research (e.g., legal reviews, literature reviews, interviews), expert knowledge, and spatial data analysis. The contributing individuals and organizations are documented under the Data Providers tab whom fully responsible for the accuracy of the data. Amendments will be made on a periodic basis. "}]
["LandMark- Global Platform of Indigenous and Community Lands","Maps and Dataset","Liz Alden Wily, Independent Land Tenure Specialist, Aliansi Masyarakat Adat Nusantara (AMAN), Foundation for Ecological Security (FES), Instituto del Bien Común (IBC), International Land Coalition (ILC), Philippine Association for Intercultural Development, Inc. (PAFID), Rainforest Foundation UK (RFUK), Red Amazónica de Información Socioambiental Georreferenciada (RAISG), Rights and Resource Initiative (RRI), Union of Indigenous Nomadic Tribes of Iran (UNINOMAD) / Centre for Sustainable Development (CENESTA), World Atlas of Indigenous Peoples' Territories (WAIPT), World Resources Institute (WRI) ","https://www.landmarkmap.org/data/","Legal Tenure and Management Rights",null,"Global","Geographical application4","Asia Pacific ",null,{"$f":"VLOOKUP(DescriptionTable[[#This Row],[Name]],descriptions[],2,FALSE)","v":"The platform includes maps and data on indigenous and community lands that are publicly available as well as information directly from individuals and organizations with their permission as detailed in a data-sharing agreement. Data are generated from research (e.g., legal reviews, literature reviews, interviews), expert knowledge, and spatial data analysis. The contributing individuals and organizations are documented under the Data Providers tab whom fully responsible for the accuracy of the data. Amendments will be made on a periodic basis. "}]
["LandMark- Global Platform of Indigenous and Community Lands","Maps and Dataset","Liz Alden Wily, Independent Land Tenure Specialist, Aliansi Masyarakat Adat Nusantara (AMAN), Foundation for Ecological Security (FES), Instituto del Bien Común (IBC), International Land Coalition (ILC), Philippine Association for Intercultural Development, Inc. (PAFID), Rainforest Foundation UK (RFUK), Red Amazónica de Información Socioambiental Georreferenciada (RAISG), Rights and Resource Initiative (RRI), Union of Indigenous Nomadic Tribes of Iran (UNINOMAD) / Centre for Sustainable Development (CENESTA), World Atlas of Indigenous Peoples' Territories (WAIPT), World Resources Institute (WRI) ","https://www.landmarkmap.org/data/","Legal Tenure and Management Rights",null,"Global","Geographical application42","Europe",null,{"$f":"VLOOKUP(DescriptionTable[[#This Row],[Name]],descriptions[],2,FALSE)","v":"The platform includes maps and data on indigenous and community lands that are publicly available as well as information directly from individuals and organizations with their permission as detailed in a data-sharing agreement. Data are generated from research (e.g., legal reviews, literature reviews, interviews), expert knowledge, and spatial data analysis. The contributing individuals and organizations are documented under the Data Providers tab whom fully responsible for the accuracy of the data. Amendments will be made on a periodic basis. "}]
["LandMark- Global Platform of Indigenous and Community Lands","Maps and Dataset","Liz Alden Wily, Independent Land Tenure Specialist, Aliansi Masyarakat Adat Nusantara (AMAN), Foundation for Ecological Security (FES), Instituto del Bien Común (IBC), International Land Coalition (ILC), Philippine Association for Intercultural Development, Inc. (PAFID), Rainforest Foundation UK (RFUK), Red Amazónica de Información Socioambiental Georreferenciada (RAISG), Rights and Resource Initiative (RRI), Union of Indigenous Nomadic Tribes of Iran (UNINOMAD) / Centre for Sustainable Development (CENESTA), World Atlas of Indigenous Peoples' Territories (WAIPT), World Resources Institute (WRI) ","https://www.landmarkmap.org/data/","Legal Tenure and Management Rights",null,"Global","Geographical application5","North America",null,{"$f":"VLOOKUP(DescriptionTable[[#This Row],[Name]],descriptions[],2,FALSE)","v":"The platform includes maps and data on indigenous and community lands that are publicly available as well as information directly from individuals and organizations with their permission as detailed in a data-sharing agreement. Data are generated from research (e.g., legal reviews, literature reviews, interviews), expert knowledge, and spatial data analysis. The contributing individuals and organizations are documented under the Data Providers tab whom fully responsible for the accuracy of the data. Amendments will be made on a periodic basis. "}]
["Property Rights Score : World Bank TCdata360","Score","World Bank","https://tcdata360.worldbank.org/indicators/prop.rgt.scr?country=BRA&indicator=750&viz=line_chart&years=2013,2018","Legal Tenure and Management Rights",null,"Global","Geographical application2","Africa",null,{"$f":"VLOOKUP(DescriptionTable[[#This Row],[Name]],descriptions[],2,FALSE)","v":"The property rights component is a qualitative assessment of the extent to which a country's legal framework allows individuals to freely accumulate private property, secured by clear laws that are enforced effectively by the government. It measures the degree to which a country's laws protect private property rights and the extent to which those laws are respected. It also assesses the likelihood that private property will be expropriated by the state and analyzes the independence of the judiciary, the existence of corruption within the judiciary, and the ability of individuals and businesses to enforcecontracts."}]
["Property Rights Score : World Bank TCdata360","Score","World Bank","https://tcdata360.worldbank.org/indicators/prop.rgt.scr?country=BRA&indicator=750&viz=line_chart&years=2013,2018","Legal Tenure and Management Rights",null,"Global","Geographical application3","Latin America",null,{"$f":"VLOOKUP(DescriptionTable[[#This Row],[Name]],descriptions[],2,FALSE)","v":"The property rights component is a qualitative assessment of the extent to which a country's legal framework allows individuals to freely accumulate private property, secured by clear laws that are enforced effectively by the government. It measures the degree to which a country's laws protect private property rights and the extent to which those laws are respected. It also assesses the likelihood that private property will be expropriated by the state and analyzes the independence of the judiciary, the existence of corruption within the judiciary, and the ability of individuals and businesses to enforcecontracts."}]
["Property Rights Score : World Bank TCdata360","Score","World Bank","https://tcdata360.worldbank.org/indicators/prop.rgt.scr?country=BRA&indicator=750&viz=line_chart&years=2013,2018","Legal Tenure and Management Rights",null,"Global","Geographical application4","Asia Pacific ",null,{"$f":"VLOOKUP(DescriptionTable[[#This Row],[Name]],descriptions[],2,FALSE)","v":"The property rights component is a qualitative assessment of the extent to which a country's legal framework allows individuals to freely accumulate private property, secured by clear laws that are enforced effectively by the government. It measures the degree to which a country's laws protect private property rights and the extent to which those laws are respected. It also assesses the likelihood that private property will be expropriated by the state and analyzes the independence of the judiciary, the existence of corruption within the judiciary, and the ability of individuals and businesses to enforcecontracts."}]
["Property Rights Score : World Bank TCdata360","Score","World Bank","https://tcdata360.worldbank.org/indicators/prop.rgt.scr?country=BRA&indicator=750&viz=line_chart&years=2013,2018","Legal Tenure and Management Rights",null,"Global","Geographical application42","Europe",null,{"$f":"VLOOKUP(DescriptionTable[[#This Row],[Name]],descriptions[],2,FALSE)","v":"The property rights component is a qualitative assessment of the extent to which a country's legal framework allows individuals to freely accumulate private property, secured by clear laws that are enforced effectively by the government. It measures the degree to which a country's laws protect private property rights and the extent to which those laws are respected. It also assesses the likelihood that private property will be expropriated by the state and analyzes the independence of the judiciary, the existence of corruption within the judiciary, and the ability of individuals and businesses to enforcecontracts."}]
["Property Rights Score : World Bank TCdata360","Score","World Bank","https://tcdata360.worldbank.org/indicators/prop.rgt.scr?country=BRA&indicator=750&viz=line_chart&years=2013,2018","Legal Tenure and Management Rights",null,"Global","Geographical application5","North America",null,{"$f":"VLOOKUP(DescriptionTable[[#This Row],[Name]],descriptions[],2,FALSE)","v":"The property rights component is a qualitative assessment of the extent to which a country's legal framework allows individuals to freely accumulate private property, secured by clear laws that are enforced effectively by the government. It measures the degree to which a country's laws protect private property rights and the extent to which those laws are respected. It also assesses the likelihood that private property will be expropriated by the state and analyzes the independence of the judiciary, the existence of corruption within the judiciary, and the ability of individuals and businesses to enforcecontracts."}]
["The Global Economy :  Property Rights Index ","Rank ","The Global Economy","https://www.theglobaleconomy.com/rankings/herit_property_rights/","Legal Tenure and Management Rights",null,"Global","Geographical application2","Africa",null,{"$f":"VLOOKUP(DescriptionTable[[#This Row],[Name]],descriptions[],2,FALSE)","v":"The property rights index measures the degree to which a country’s laws protect private property rights and the degree to which its government enforces those laws. It also assesses the likelihood that private property will be expropriated and analyzes the independence of the judiciary, the existence of corruption within the judiciary, and the ability of individuals and businesses to enforce contracts. Higher index values denote more certain legal protection of property (The highest value being 100 and the lowest is 0). The indicator is available from 1995 to 2023. "}]
["The Global Economy :  Property Rights Index ","Rank ","The Global Economy","https://www.theglobaleconomy.com/rankings/herit_property_rights/","Legal Tenure and Management Rights",null,"Global","Geographical application3","Latin America",null,{"$f":"VLOOKUP(DescriptionTable[[#This Row],[Name]],descriptions[],2,FALSE)","v":"The property rights index measures the degree to which a country’s laws protect private property rights and the degree to which its government enforces those laws. It also assesses the likelihood that private property will be expropriated and analyzes the independence of the judiciary, the existence of corruption within the judiciary, and the ability of individuals and businesses to enforce contracts. Higher index values denote more certain legal protection of property (The highest value being 100 and the lowest is 0). The indicator is available from 1995 to 2023. "}]
["The Global Economy :  Property Rights Index ","Rank ","The Global Economy","https://www.theglobaleconomy.com/rankings/herit_property_rights/","Legal Tenure and Management Rights",null,"Global","Geographical application4","Asia Pacific ",null,{"$f":"VLOOKUP(DescriptionTable[[#This Row],[Name]],descriptions[],2,FALSE)","v":"The property rights index measures the degree to which a country’s laws protect private property rights and the degree to which its government enforces those laws. It also assesses the likelihood that private property will be expropriated and analyzes the independence of the judiciary, the existence of corruption within the judiciary, and the ability of individuals and businesses to enforce contracts. Higher index values denote more certain legal protection of property (The highest value being 100 and the lowest is 0). The indicator is available from 1995 to 2023. "}]
["The Global Economy :  Property Rights Index ","Rank ","The Global Economy","https://www.theglobaleconomy.com/rankings/herit_property_rights/","Legal Tenure and Management Rights",null,"Global","Geographical application42","Europe",null,{"$f":"VLOOKUP(DescriptionTable[[#This Row],[Name]],descriptions[],2,FALSE)","v":"The property rights index measures the degree to which a country’s laws protect private property rights and the degree to which its government enforces those laws. It also assesses the likelihood that private property will be expropriated and analyzes the independence of the judiciary, the existence of corruption within the judiciary, and the ability of individuals and businesses to enforce contracts. Higher index values denote more certain legal protection of property (The highest value being 100 and the lowest is 0). The indicator is available from 1995 to 2023. "}]
["The Global Economy :  Property Rights Index ","Rank ","The Global Economy","https://www.theglobaleconomy.com/rankings/herit_property_rights/","Legal Tenure and Management Rights",null,"Global","Geographical application5","North America",null,{"$f":"VLOOKUP(DescriptionTable[[#This Row],[Name]],descriptions[],2,FALSE)","v":"The property rights index measures the degree to which a country’s laws protect private property rights and the degree to which its government enforces those laws. It also assesses the likelihood that private property will be expropriated and analyzes the independence of the judiciary, the existence of corruption within the judiciary, and the ability of individuals and businesses to enforce contracts. Higher index values denote more certain legal protection of property (The highest value being 100 and the lowest is 0). The indicator is available from 1995 to 2023. "}]
["International Property Rights Index ","Rank","Knoema","https://knoema.com/atlas/topics/World-Rankings/World-Rankings/International-property-rights-index","Legal Tenure and Management Rights",null,"Global","Geographical application2","Africa",null,{"$f":"VLOOKUP(DescriptionTable[[#This Row],[Name]],descriptions[],2,FALSE)","v":"Critical economic, social and demographic indicator for all countries and regions selected from 200+ public datasets by a team of experts."}]
["International Property Rights Index ","Rank","Knoema","https://knoema.com/atlas/topics/World-Rankings/World-Rankings/International-property-rights-index","Legal Tenure and Management Rights",null,"Global","Geographical application3","Latin America",null,{"$f":"VLOOKUP(DescriptionTable[[#This Row],[Name]],descriptions[],2,FALSE)","v":"Critical economic, social and demographic indicator for all countries and regions selected from 200+ public datasets by a team of experts."}]
["International Property Rights Index ","Rank","Knoema","https://knoema.com/atlas/topics/World-Rankings/World-Rankings/International-property-rights-index","Legal Tenure and Management Rights",null,"Global","Geographical application4","Asia Pacific ",null,{"$f":"VLOOKUP(DescriptionTable[[#This Row],[Name]],descriptions[],2,FALSE)","v":"Critical economic, social and demographic indicator for all countries and regions selected from 200+ public datasets by a team of experts."}]
["International Property Rights Index ","Rank","Knoema","https://knoema.com/atlas/topics/World-Rankings/World-Rankings/International-property-rights-index","Legal Tenure and Management Rights",null,"Global","Geographical application42","Europe",null,{"$f":"VLOOKUP(DescriptionTable[[#This Row],[Name]],descriptions[],2,FALSE)","v":"Critical economic, social and demographic indicator for all countries and regions selected from 200+ public datasets by a team of experts."}]
["International Property Rights Index ","Rank","Knoema","https://knoema.com/atlas/topics/World-Rankings/World-Rankings/International-property-rights-index","Legal Tenure and Management Rights",null,"Global","Geographical application5","North America",null,{"$f":"VLOOKUP(DescriptionTable[[#This Row],[Name]],descriptions[],2,FALSE)","v":"Critical economic, social and demographic indicator for all countries and regions selected from 200+ public datasets by a team of experts."}]
["Global Property Rights Index ","Rank, Score and Analysis","Prindex","https://www.prindex.net/data/","Legal Tenure and Management Rights",null,"Global","Geographical application2","Africa",null,{"$f":"VLOOKUP(DescriptionTable[[#This Row],[Name]],descriptions[],2,FALSE)","v":"Provides comparable open-source data on perceptions of tenure security at the global and local level conducting policy-relevant research and offering monitoring, evaluation and learning (MEL) services."}]
["Global Property Rights Index ","Rank, Score and Analysis","Prindex","https://www.prindex.net/data/","Legal Tenure and Management Rights",null,"Global","Geographical application3","Latin America",null,{"$f":"VLOOKUP(DescriptionTable[[#This Row],[Name]],descriptions[],2,FALSE)","v":"Provides comparable open-source data on perceptions of tenure security at the global and local level conducting policy-relevant research and offering monitoring, evaluation and learning (MEL) services."}]
["Global Property Rights Index ","Rank, Score and Analysis","Prindex","https://www.prindex.net/data/","Legal Tenure and Management Rights",null,"Global","Geographical application4","Asia Pacific ",null,{"$f":"VLOOKUP(DescriptionTable[[#This Row],[Name]],descriptions[],2,FALSE)","v":"Provides comparable open-source data on perceptions of tenure security at the global and local level conducting policy-relevant research and offering monitoring, evaluation and learning (MEL) services."}]
["Global Property Rights Index ","Rank, Score and Analysis","Prindex","https://www.prindex.net/data/","Legal Tenure and Management Rights",null,"Global","Geographical application42","Europe",null,{"$f":"VLOOKUP(DescriptionTable[[#This Row],[Name]],descriptions[],2,FALSE)","v":"Provides comparable open-source data on perceptions of tenure security at the global and local level conducting policy-relevant research and offering monitoring, evaluation and learning (MEL) services."}]
["Global Property Rights Index ","Rank, Score and Analysis","Prindex","https://www.prindex.net/data/","Legal Tenure and Management Rights",null,"Global","Geographical application5","North America",null,{"$f":"VLOOKUP(DescriptionTable[[#This Row],[Name]],descriptions[],2,FALSE)","v":"Provides comparable open-source data on perceptions of tenure security at the global and local level conducting policy-relevant research and offering monitoring, evaluation and learning (MEL) services."}]
["Land Matrix Dataset ","Dataset","International Land Coalition (ILC)","landmatrix.org/map/","Management and Harvesing Planning",null,"Global","Geographical application2","Africa",null,{"$f":"VLOOKUP(DescriptionTable[[#This Row],[Name]],descriptions[],2,FALSE)","v":"An independent land monitoring initiative that promotes transparency and accountability in decisions over Large Scale Land Aquisitions (LSLAs) in low- and middle-income countries by capturing and sharing data about these deals at global, regional, and national level. The open access platform shares detailed information about deals in almost 100 countries, including intended, concluded, and failed attempts to acquire land through purchase, lease or concession for a wide range of intended uses, from agricultural production, timber extraction, and renewable energy production, to carbon trading, industry, conservation, and tourism."}]
["Land Matrix Dataset ","Dataset","International Land Coalition (ILC)","landmatrix.org/map/","Management and Harvesing Planning",null,"Global","Geographical application3","Latin America",null,{"$f":"VLOOKUP(DescriptionTable[[#This Row],[Name]],descriptions[],2,FALSE)","v":"An independent land monitoring initiative that promotes transparency and accountability in decisions over Large Scale Land Aquisitions (LSLAs) in low- and middle-income countries by capturing and sharing data about these deals at global, regional, and national level. The open access platform shares detailed information about deals in almost 100 countries, including intended, concluded, and failed attempts to acquire land through purchase, lease or concession for a wide range of intended uses, from agricultural production, timber extraction, and renewable energy production, to carbon trading, industry, conservation, and tourism."}]
["Land Matrix Dataset ","Dataset","International Land Coalition (ILC)","landmatrix.org/map/","Management and Harvesing Planning",null,"Global","Geographical application4","Asia Pacific ",null,{"$f":"VLOOKUP(DescriptionTable[[#This Row],[Name]],descriptions[],2,FALSE)","v":"An independent land monitoring initiative that promotes transparency and accountability in decisions over Large Scale Land Aquisitions (LSLAs) in low- and middle-income countries by capturing and sharing data about these deals at global, regional, and national level. The open access platform shares detailed information about deals in almost 100 countries, including intended, concluded, and failed attempts to acquire land through purchase, lease or concession for a wide range of intended uses, from agricultural production, timber extraction, and renewable energy production, to carbon trading, industry, conservation, and tourism."}]
["Land Matrix Dataset ","Dataset","International Land Coalition (ILC)","landmatrix.org/map/","Management and Harvesing Planning",null,"Global","Geographical application42","Europe",null,{"$f":"VLOOKUP(DescriptionTable[[#This Row],[Name]],descriptions[],2,FALSE)","v":"An independent land monitoring initiative that promotes transparency and accountability in decisions over Large Scale Land Aquisitions (LSLAs) in low- and middle-income countries by capturing and sharing data about these deals at global, regional, and national level. The open access platform shares detailed information about deals in almost 100 countries, including intended, concluded, and failed attempts to acquire land through purchase, lease or concession for a wide range of intended uses, from agricultural production, timber extraction, and renewable energy production, to carbon trading, industry, conservation, and tourism."}]
["Land Matrix Dataset ","Dataset","International Land Coalition (ILC)","landmatrix.org/map/","Management and Harvesing Planning",null,"Global","Geographical application5","North America",null,{"$f":"VLOOKUP(DescriptionTable[[#This Row],[Name]],descriptions[],2,FALSE)","v":"An independent land monitoring initiative that promotes transparency and accountability in decisions over Large Scale Land Aquisitions (LSLAs) in low- and middle-income countries by capturing and sharing data about these deals at global, regional, and national level. The open access platform shares detailed information about deals in almost 100 countries, including intended, concluded, and failed attempts to acquire land through purchase, lease or concession for a wide range of intended uses, from agricultural production, timber extraction, and renewable energy production, to carbon trading, industry, conservation, and tourism."}]
["Tax Statistics: OCED (Organisation for Economic Co-operation and Development)","Percentage of tax, tax in local currency","Organisation for Economic Co-operation and Development (OCED)","https://www.oecd.org/ctp/tax-policy/tax-database/","Taxes and Fees, Corporate Taxes",null,"Global","Geographical application2","Africa",null,{"$f":"VLOOKUP(DescriptionTable[[#This Row],[Name]],descriptions[],2,FALSE)","v":"Comparative information on a range of tax rates and statistics in the OECD member countries, and corporate tax statistics and effective tax rates for inclusive framework countries, covering personal income tax rates and social security contributions applying to labour income, corporate tax rates and statistics, effective tax rates, tax rates on consumption, and environmental taxes."}]
["Tax Statistics: OCED (Organisation for Economic Co-operation and Development)","Percentage of tax, tax in local currency","Organisation for Economic Co-operation and Development (OCED)","https://www.oecd.org/ctp/tax-policy/tax-database/","Taxes and Fees, Corporate Taxes",null,"Global","Geographical application3","Latin America",null,{"$f":"VLOOKUP(DescriptionTable[[#This Row],[Name]],descriptions[],2,FALSE)","v":"Comparative information on a range of tax rates and statistics in the OECD member countries, and corporate tax statistics and effective tax rates for inclusive framework countries, covering personal income tax rates and social security contributions applying to labour income, corporate tax rates and statistics, effective tax rates, tax rates on consumption, and environmental taxes."}]
["Tax Statistics: OCED (Organisation for Economic Co-operation and Development)","Percentage of tax, tax in local currency","Organisation for Economic Co-operation and Development (OCED)","https://www.oecd.org/ctp/tax-policy/tax-database/","Taxes and Fees, Corporate Taxes",null,"Global","Geographical application4","Asia Pacific ",null,{"$f":"VLOOKUP(DescriptionTable[[#This Row],[Name]],descriptions[],2,FALSE)","v":"Comparative information on a range of tax rates and statistics in the OECD member countries, and corporate tax statistics and effective tax rates for inclusive framework countries, covering personal income tax rates and social security contributions applying to labour income, corporate tax rates and statistics, effective tax rates, tax rates on consumption, and environmental taxes."}]
["Tax Statistics: OCED (Organisation for Economic Co-operation and Development)","Percentage of tax, tax in local currency","Organisation for Economic Co-operation and Development (OCED)","https://www.oecd.org/ctp/tax-policy/tax-database/","Taxes and Fees, Corporate Taxes",null,"Global","Geographical application42","Europe",null,{"$f":"VLOOKUP(DescriptionTable[[#This Row],[Name]],descriptions[],2,FALSE)","v":"Comparative information on a range of tax rates and statistics in the OECD member countries, and corporate tax statistics and effective tax rates for inclusive framework countries, covering personal income tax rates and social security contributions applying to labour income, corporate tax rates and statistics, effective tax rates, tax rates on consumption, and environmental taxes."}]
["Tax Statistics: OCED (Organisation for Economic Co-operation and Development)","Percentage of tax, tax in local currency","Organisation for Economic Co-operation and Development (OCED)","https://www.oecd.org/ctp/tax-policy/tax-database/","Taxes and Fees, Corporate Taxes",null,"Global","Geographical application5","North America",null,{"$f":"VLOOKUP(DescriptionTable[[#This Row],[Name]],descriptions[],2,FALSE)","v":"Comparative information on a range of tax rates and statistics in the OECD member countries, and corporate tax statistics and effective tax rates for inclusive framework countries, covering personal income tax rates and social security contributions applying to labour income, corporate tax rates and statistics, effective tax rates, tax rates on consumption, and environmental taxes."}]
["Corporate Tax Haven Index ","Rank, Score and Analysis","Tax Justice Network","https://cthi.taxjustice.net/en/cthi/data-downloads","Taxes and Fees, Corporate Taxes",null,"Global","Geographical application2","Africa",null,{"$f":"VLOOKUP(DescriptionTable[[#This Row],[Name]],descriptions[],2,FALSE)","v":"The Corporate Tax Haven Index is a ranking of jurisdictions most complicit in helping multinational corporations underpay corporate income tax. It evaluates each jurisdiction's tax and financial systems to create a clear picture of the world’s greatest enablers of global corporate tax abuse, and to highlight the laws and policies that policymakers can amend to reduce their jurisdiction’s enabling of corporate tax abuse."}]
["Corporate Tax Haven Index ","Rank, Score and Analysis","Tax Justice Network","https://cthi.taxjustice.net/en/cthi/data-downloads","Taxes and Fees, Corporate Taxes",null,"Global","Geographical application3","Latin America",null,{"$f":"VLOOKUP(DescriptionTable[[#This Row],[Name]],descriptions[],2,FALSE)","v":"The Corporate Tax Haven Index is a ranking of jurisdictions most complicit in helping multinational corporations underpay corporate income tax. It evaluates each jurisdiction's tax and financial systems to create a clear picture of the world’s greatest enablers of global corporate tax abuse, and to highlight the laws and policies that policymakers can amend to reduce their jurisdiction’s enabling of corporate tax abuse."}]
["Corporate Tax Haven Index ","Rank, Score and Analysis","Tax Justice Network","https://cthi.taxjustice.net/en/cthi/data-downloads","Taxes and Fees, Corporate Taxes",null,"Global","Geographical application4","Asia Pacific ",null,{"$f":"VLOOKUP(DescriptionTable[[#This Row],[Name]],descriptions[],2,FALSE)","v":"The Corporate Tax Haven Index is a ranking of jurisdictions most complicit in helping multinational corporations underpay corporate income tax. It evaluates each jurisdiction's tax and financial systems to create a clear picture of the world’s greatest enablers of global corporate tax abuse, and to highlight the laws and policies that policymakers can amend to reduce their jurisdiction’s enabling of corporate tax abuse."}]
["Corporate Tax Haven Index ","Rank, Score and Analysis","Tax Justice Network","https://cthi.taxjustice.net/en/cthi/data-downloads","Taxes and Fees, Corporate Taxes",null,"Global","Geographical application42","Europe",null,{"$f":"VLOOKUP(DescriptionTable[[#This Row],[Name]],descriptions[],2,FALSE)","v":"The Corporate Tax Haven Index is a ranking of jurisdictions most complicit in helping multinational corporations underpay corporate income tax. It evaluates each jurisdiction's tax and financial systems to create a clear picture of the world’s greatest enablers of global corporate tax abuse, and to highlight the laws and policies that policymakers can amend to reduce their jurisdiction’s enabling of corporate tax abuse."}]
["Corporate Tax Haven Index ","Rank, Score and Analysis","Tax Justice Network","https://cthi.taxjustice.net/en/cthi/data-downloads","Taxes and Fees, Corporate Taxes",null,"Global","Geographical application5","North America",null,{"$f":"VLOOKUP(DescriptionTable[[#This Row],[Name]],descriptions[],2,FALSE)","v":"The Corporate Tax Haven Index is a ranking of jurisdictions most complicit in helping multinational corporations underpay corporate income tax. It evaluates each jurisdiction's tax and financial systems to create a clear picture of the world’s greatest enablers of global corporate tax abuse, and to highlight the laws and policies that policymakers can amend to reduce their jurisdiction’s enabling of corporate tax abuse."}]
["International Tax Competitiveness Index","Rank, Score and Analysis","Tax Foundation","https://taxfoundation.org/research/all/global/2023-international-tax-competitiveness-index/","Taxes and Fees, Corporate Taxes",null,"Global","Geographical application2","Africa",null,{"$f":"VLOOKUP(DescriptionTable[[#This Row],[Name]],descriptions[],2,FALSE)","v":"Measure the extent to which a country’s tax system adheres to two important aspects of tax policy: competitiveness and neutrality. The Index is reflected countrywise as overall score, Cooperate tax Rank, Individual Tax Rank, Consumption Tax Rank, Property Tax Rank, and Cross Border Tax Rules Rank."}]
["International Tax Competitiveness Index","Rank, Score and Analysis","Tax Foundation","https://taxfoundation.org/research/all/global/2023-international-tax-competitiveness-index/","Taxes and Fees, Corporate Taxes",null,"Global","Geographical application3","Latin America",null,{"$f":"VLOOKUP(DescriptionTable[[#This Row],[Name]],descriptions[],2,FALSE)","v":"Measure the extent to which a country’s tax system adheres to two important aspects of tax policy: competitiveness and neutrality. The Index is reflected countrywise as overall score, Cooperate tax Rank, Individual Tax Rank, Consumption Tax Rank, Property Tax Rank, and Cross Border Tax Rules Rank."}]
["International Tax Competitiveness Index","Rank, Score and Analysis","Tax Foundation","https://taxfoundation.org/research/all/global/2023-international-tax-competitiveness-index/","Taxes and Fees, Corporate Taxes",null,"Global","Geographical application4","Asia Pacific ",null,{"$f":"VLOOKUP(DescriptionTable[[#This Row],[Name]],descriptions[],2,FALSE)","v":"Measure the extent to which a country’s tax system adheres to two important aspects of tax policy: competitiveness and neutrality. The Index is reflected countrywise as overall score, Cooperate tax Rank, Individual Tax Rank, Consumption Tax Rank, Property Tax Rank, and Cross Border Tax Rules Rank."}]
["International Tax Competitiveness Index","Rank, Score and Analysis","Tax Foundation","https://taxfoundation.org/research/all/global/2023-international-tax-competitiveness-index/","Taxes and Fees, Corporate Taxes",null,"Global","Geographical application42","Europe",null,{"$f":"VLOOKUP(DescriptionTable[[#This Row],[Name]],descriptions[],2,FALSE)","v":"Measure the extent to which a country’s tax system adheres to two important aspects of tax policy: competitiveness and neutrality. The Index is reflected countrywise as overall score, Cooperate tax Rank, Individual Tax Rank, Consumption Tax Rank, Property Tax Rank, and Cross Border Tax Rules Rank."}]
["International Tax Competitiveness Index","Rank, Score and Analysis","Tax Foundation","https://taxfoundation.org/research/all/global/2023-international-tax-competitiveness-index/","Taxes and Fees, Corporate Taxes",null,"Global","Geographical application5","North America",null,{"$f":"VLOOKUP(DescriptionTable[[#This Row],[Name]],descriptions[],2,FALSE)","v":"Measure the extent to which a country’s tax system adheres to two important aspects of tax policy: competitiveness and neutrality. The Index is reflected countrywise as overall score, Cooperate tax Rank, Individual Tax Rank, Consumption Tax Rank, Property Tax Rank, and Cross Border Tax Rules Rank."}]
["Ease of doing business rank ","Index","World bank","https://data.worldbank.org/indicator/IC.BUS.EASE.XQ?end=2019&start=2019&view=chart","Custom Regulations",null,"Global","Geographical application2","Africa",null,{"$f":"VLOOKUP(DescriptionTable[[#This Row],[Name]],descriptions[],2,FALSE)","v":"Ease of doing business ranks economies from 1 to 190, with first place being the best. The ranking of economies is determined by sorting the aggregate ease of doing business scores. A high ranking (a low numerical rank) means that the regulatory environment is conducive to business operation."}]
["Ease of doing business rank ","Index","World bank","https://data.worldbank.org/indicator/IC.BUS.EASE.XQ?end=2019&start=2019&view=chart","Custom Regulations",null,"Global","Geographical application3","Latin America",null,{"$f":"VLOOKUP(DescriptionTable[[#This Row],[Name]],descriptions[],2,FALSE)","v":"Ease of doing business ranks economies from 1 to 190, with first place being the best. The ranking of economies is determined by sorting the aggregate ease of doing business scores. A high ranking (a low numerical rank) means that the regulatory environment is conducive to business operation."}]
["Ease of doing business rank ","Index","World bank","https://data.worldbank.org/indicator/IC.BUS.EASE.XQ?end=2019&start=2019&view=chart","Custom Regulations",null,"Global","Geographical application4","Asia Pacific ",null,{"$f":"VLOOKUP(DescriptionTable[[#This Row],[Name]],descriptions[],2,FALSE)","v":"Ease of doing business ranks economies from 1 to 190, with first place being the best. The ranking of economies is determined by sorting the aggregate ease of doing business scores. A high ranking (a low numerical rank) means that the regulatory environment is conducive to business operation."}]
["Ease of doing business rank ","Index","World bank","https://data.worldbank.org/indicator/IC.BUS.EASE.XQ?end=2019&start=2019&view=chart","Custom Regulations",null,"Global","Geographical application42","Europe",null,{"$f":"VLOOKUP(DescriptionTable[[#This Row],[Name]],descriptions[],2,FALSE)","v":"Ease of doing business ranks economies from 1 to 190, with first place being the best. The ranking of economies is determined by sorting the aggregate ease of doing business scores. A high ranking (a low numerical rank) means that the regulatory environment is conducive to business operation."}]
["Ease of doing business rank ","Index","World bank","https://data.worldbank.org/indicator/IC.BUS.EASE.XQ?end=2019&start=2019&view=chart","Custom Regulations",null,"Global","Geographical application5","North America",null,{"$f":"VLOOKUP(DescriptionTable[[#This Row],[Name]],descriptions[],2,FALSE)","v":"Ease of doing business ranks economies from 1 to 190, with first place being the best. The ranking of economies is determined by sorting the aggregate ease of doing business scores. A high ranking (a low numerical rank) means that the regulatory environment is conducive to business operation."}]
["Logistics Performance Index","Index","World bank","https://data.worldbank.org/indicator/LP.LPI.CUST.XQ","Custom Regulations",null,"Global","Geographical application2","Africa",null,{"$f":"VLOOKUP(DescriptionTable[[#This Row],[Name]],descriptions[],2,FALSE)","v":"Logistics professionals' perception of the efficiency of country's customs clearance processes (i.e. speed, simplicity and predictability of formalities), on a rating ranging from 1 (very low) to 5 (very high). Scores are averaged across all respondents."}]
["Logistics Performance Index","Index","World bank","https://data.worldbank.org/indicator/LP.LPI.CUST.XQ","Custom Regulations",null,"Global","Geographical application3","Latin America",null,{"$f":"VLOOKUP(DescriptionTable[[#This Row],[Name]],descriptions[],2,FALSE)","v":"Logistics professionals' perception of the efficiency of country's customs clearance processes (i.e. speed, simplicity and predictability of formalities), on a rating ranging from 1 (very low) to 5 (very high). Scores are averaged across all respondents."}]
["Logistics Performance Index","Index","World bank","https://data.worldbank.org/indicator/LP.LPI.CUST.XQ","Custom Regulations",null,"Global","Geographical application4","Asia Pacific ",null,{"$f":"VLOOKUP(DescriptionTable[[#This Row],[Name]],descriptions[],2,FALSE)","v":"Logistics professionals' perception of the efficiency of country's customs clearance processes (i.e. speed, simplicity and predictability of formalities), on a rating ranging from 1 (very low) to 5 (very high). Scores are averaged across all respondents."}]
["Logistics Performance Index","Index","World bank","https://data.worldbank.org/indicator/LP.LPI.CUST.XQ","Custom Regulations",null,"Global","Geographical application42","Europe",null,{"$f":"VLOOKUP(DescriptionTable[[#This Row],[Name]],descriptions[],2,FALSE)","v":"Logistics professionals' perception of the efficiency of country's customs clearance processes (i.e. speed, simplicity and predictability of formalities), on a rating ranging from 1 (very low) to 5 (very high). Scores are averaged across all respondents."}]
["Logistics Performance Index","Index","World bank","https://data.worldbank.org/indicator/LP.LPI.CUST.XQ","Custom Regulations",null,"Global","Geographical application5","North America",null,{"$f":"VLOOKUP(DescriptionTable[[#This Row],[Name]],descriptions[],2,FALSE)","v":"Logistics professionals' perception of the efficiency of country's customs clearance processes (i.e. speed, simplicity and predictability of formalities), on a rating ranging from 1 (very low) to 5 (very high). Scores are averaged across all respondents."}]
["European Commission: online services and databases for customs","Database","European Commission ","https://taxation-customs.ec.europa.eu/online-services/online-services-and-databases-customs_en","Custom Regulations",null,"Global","Geographical application2","Africa",null,{"$f":"VLOOKUP(DescriptionTable[[#This Row],[Name]],descriptions[],2,FALSE)","v":"Managed by the Directorate-General for Taxation and Customs Union. Provides 21 different platforms/information systems related to customs and taxation (e.g.: AEO - Authorised Economic Operator, CDS - Customs Decisions System, etc.)"}]
["European Commission: online services and databases for customs","Database","European Commission ","https://taxation-customs.ec.europa.eu/online-services/online-services-and-databases-customs_en","Custom Regulations",null,"Global","Geographical application3","Latin America",null,{"$f":"VLOOKUP(DescriptionTable[[#This Row],[Name]],descriptions[],2,FALSE)","v":"Managed by the Directorate-General for Taxation and Customs Union. Provides 21 different platforms/information systems related to customs and taxation (e.g.: AEO - Authorised Economic Operator, CDS - Customs Decisions System, etc.)"}]
["European Commission: online services and databases for customs","Database","European Commission ","https://taxation-customs.ec.europa.eu/online-services/online-services-and-databases-customs_en","Custom Regulations",null,"Global","Geographical application4","Asia Pacific ",null,{"$f":"VLOOKUP(DescriptionTable[[#This Row],[Name]],descriptions[],2,FALSE)","v":"Managed by the Directorate-General for Taxation and Customs Union. Provides 21 different platforms/information systems related to customs and taxation (e.g.: AEO - Authorised Economic Operator, CDS - Customs Decisions System, etc.)"}]
["European Commission: online services and databases for customs","Database","European Commission ","https://taxation-customs.ec.europa.eu/online-services/online-services-and-databases-customs_en","Custom Regulations",null,"Global","Geographical application42","Europe",null,{"$f":"VLOOKUP(DescriptionTable[[#This Row],[Name]],descriptions[],2,FALSE)","v":"Managed by the Directorate-General for Taxation and Customs Union. Provides 21 different platforms/information systems related to customs and taxation (e.g.: AEO - Authorised Economic Operator, CDS - Customs Decisions System, etc.)"}]
["European Commission: online services and databases for customs","Database","European Commission ","https://taxation-customs.ec.europa.eu/online-services/online-services-and-databases-customs_en","Custom Regulations",null,"Global","Geographical application5","North America",null,{"$f":"VLOOKUP(DescriptionTable[[#This Row],[Name]],descriptions[],2,FALSE)","v":"Managed by the Directorate-General for Taxation and Customs Union. Provides 21 different platforms/information systems related to customs and taxation (e.g.: AEO - Authorised Economic Operator, CDS - Customs Decisions System, etc.)"}]
["Approved HCV assessment frameworks (or part thereof) that have been developed as part of the development of FSC Forest Stewardship Standards (FSS)","Database","Forest Stewardhip Council ","https://connect.fsc.org/document-centre","High Conservation Values (HCVs)",null,"Global","Geographical application2","Africa",null,{"$f":"VLOOKUP(DescriptionTable[[#This Row],[Name]],descriptions[],2,FALSE)","v":"HCV Frameworks include nationally and/or regionally specific designations of HCVs and sources of Best Available Information for identifying, assessing, managing and monitoring these HCVs in the country or region that is part of the scope of the FSS. "}]
["Approved HCV assessment frameworks (or part thereof) that have been developed as part of the development of FSC Forest Stewardship Standards (FSS)","Database","Forest Stewardhip Council ","https://connect.fsc.org/document-centre","High Conservation Values (HCVs)",null,"Global","Geographical application3","Latin America",null,{"$f":"VLOOKUP(DescriptionTable[[#This Row],[Name]],descriptions[],2,FALSE)","v":"HCV Frameworks include nationally and/or regionally specific designations of HCVs and sources of Best Available Information for identifying, assessing, managing and monitoring these HCVs in the country or region that is part of the scope of the FSS. "}]
["Approved HCV assessment frameworks (or part thereof) that have been developed as part of the development of FSC Forest Stewardship Standards (FSS)","Database","Forest Stewardhip Council ","https://connect.fsc.org/document-centre","High Conservation Values (HCVs)",null,"Global","Geographical application4","Asia Pacific ",null,{"$f":"VLOOKUP(DescriptionTable[[#This Row],[Name]],descriptions[],2,FALSE)","v":"HCV Frameworks include nationally and/or regionally specific designations of HCVs and sources of Best Available Information for identifying, assessing, managing and monitoring these HCVs in the country or region that is part of the scope of the FSS. "}]
["Approved HCV assessment frameworks (or part thereof) that have been developed as part of the development of FSC Forest Stewardship Standards (FSS)","Database","Forest Stewardhip Council ","https://connect.fsc.org/document-centre","High Conservation Values (HCVs)",null,"Global","Geographical application42","Europe",null,{"$f":"VLOOKUP(DescriptionTable[[#This Row],[Name]],descriptions[],2,FALSE)","v":"HCV Frameworks include nationally and/or regionally specific designations of HCVs and sources of Best Available Information for identifying, assessing, managing and monitoring these HCVs in the country or region that is part of the scope of the FSS. "}]
["Approved HCV assessment frameworks (or part thereof) that have been developed as part of the development of FSC Forest Stewardship Standards (FSS)","Database","Forest Stewardhip Council ","https://connect.fsc.org/document-centre","High Conservation Values (HCVs)",null,"Global","Geographical application5","North America",null,{"$f":"VLOOKUP(DescriptionTable[[#This Row],[Name]],descriptions[],2,FALSE)","v":"HCV Frameworks include nationally and/or regionally specific designations of HCVs and sources of Best Available Information for identifying, assessing, managing and monitoring these HCVs in the country or region that is part of the scope of the FSS. "}]
["IUCN Red List","Database","International Union for Conservation of Nature (IUCN)","https://www.iucnredlist.org/","High Conservation Values (HCVs)",null,"Global","Geographical application2","Africa",null,{"$f":"VLOOKUP(DescriptionTable[[#This Row],[Name]],descriptions[],2,FALSE)","v":"An inventory of the global conservation status and extinction risk of biological species. A series of Regional Red Lists, which assess the risk of extinction to species within a political management unit, are also produced by countries and organizations. The goals of the Red List are to provide scientifically-based information on the status of species and subspecies at a global level."}]
["IUCN Red List","Database","International Union for Conservation of Nature (IUCN)","https://www.iucnredlist.org/","High Conservation Values (HCVs)",null,"Global","Geographical application3","Latin America",null,{"$f":"VLOOKUP(DescriptionTable[[#This Row],[Name]],descriptions[],2,FALSE)","v":"An inventory of the global conservation status and extinction risk of biological species. A series of Regional Red Lists, which assess the risk of extinction to species within a political management unit, are also produced by countries and organizations. The goals of the Red List are to provide scientifically-based information on the status of species and subspecies at a global level."}]
["IUCN Red List","Database","International Union for Conservation of Nature (IUCN)","https://www.iucnredlist.org/","High Conservation Values (HCVs)",null,"Global","Geographical application4","Asia Pacific ",null,{"$f":"VLOOKUP(DescriptionTable[[#This Row],[Name]],descriptions[],2,FALSE)","v":"An inventory of the global conservation status and extinction risk of biological species. A series of Regional Red Lists, which assess the risk of extinction to species within a political management unit, are also produced by countries and organizations. The goals of the Red List are to provide scientifically-based information on the status of species and subspecies at a global level."}]
["IUCN Red List","Database","International Union for Conservation of Nature (IUCN)","https://www.iucnredlist.org/","High Conservation Values (HCVs)",null,"Global","Geographical application42","Europe",null,{"$f":"VLOOKUP(DescriptionTable[[#This Row],[Name]],descriptions[],2,FALSE)","v":"An inventory of the global conservation status and extinction risk of biological species. A series of Regional Red Lists, which assess the risk of extinction to species within a political management unit, are also produced by countries and organizations. The goals of the Red List are to provide scientifically-based information on the status of species and subspecies at a global level."}]
["IUCN Red List","Database","International Union for Conservation of Nature (IUCN)","https://www.iucnredlist.org/","High Conservation Values (HCVs)",null,"Global","Geographical application5","North America",null,{"$f":"VLOOKUP(DescriptionTable[[#This Row],[Name]],descriptions[],2,FALSE)","v":"An inventory of the global conservation status and extinction risk of biological species. A series of Regional Red Lists, which assess the risk of extinction to species within a political management unit, are also produced by countries and organizations. The goals of the Red List are to provide scientifically-based information on the status of species and subspecies at a global level."}]
["Global 200 Ecoregions ","Dataset","World Wildlife Forum","https://www.worldwildlife.org/publications/global-200","High Conservation Values (HCVs)",null,"Global","Geographical application2","Africa",null,{"$f":"VLOOKUP(DescriptionTable[[#This Row],[Name]],descriptions[],2,FALSE)","v":"Analyses global patterns of biodiversity to identify a set of the Earth's terrestrial, freshwater, and marine ecoregions that harbor exceptional biodiversity and are representative of its ecosystems. Earth's ecoregions are placed within a system of 30 biomes and biogeographic realms to facilitate a representation analysis. Biodiversity features were compared among ecoregions to assess their irreplaceability or distinctiveness. These features include species richness, endemic species, unusual higher taxa, unusual ecological or evolutionary phenomena, and the global rarity of habitats. For more information see publication: https://doi.org/10.2307/3298564"}]
["Global 200 Ecoregions ","Dataset","World Wildlife Forum","https://www.worldwildlife.org/publications/global-200","High Conservation Values (HCVs)",null,"Global","Geographical application3","Latin America",null,{"$f":"VLOOKUP(DescriptionTable[[#This Row],[Name]],descriptions[],2,FALSE)","v":"Analyses global patterns of biodiversity to identify a set of the Earth's terrestrial, freshwater, and marine ecoregions that harbor exceptional biodiversity and are representative of its ecosystems. Earth's ecoregions are placed within a system of 30 biomes and biogeographic realms to facilitate a representation analysis. Biodiversity features were compared among ecoregions to assess their irreplaceability or distinctiveness. These features include species richness, endemic species, unusual higher taxa, unusual ecological or evolutionary phenomena, and the global rarity of habitats. For more information see publication: https://doi.org/10.2307/3298564"}]
["Global 200 Ecoregions ","Dataset","World Wildlife Forum","https://www.worldwildlife.org/publications/global-200","High Conservation Values (HCVs)",null,"Global","Geographical application4","Asia Pacific ",null,{"$f":"VLOOKUP(DescriptionTable[[#This Row],[Name]],descriptions[],2,FALSE)","v":"Analyses global patterns of biodiversity to identify a set of the Earth's terrestrial, freshwater, and marine ecoregions that harbor exceptional biodiversity and are representative of its ecosystems. Earth's ecoregions are placed within a system of 30 biomes and biogeographic realms to facilitate a representation analysis. Biodiversity features were compared among ecoregions to assess their irreplaceability or distinctiveness. These features include species richness, endemic species, unusual higher taxa, unusual ecological or evolutionary phenomena, and the global rarity of habitats. For more information see publication: https://doi.org/10.2307/3298564"}]
["Global 200 Ecoregions ","Dataset","World Wildlife Forum","https://www.worldwildlife.org/publications/global-200","High Conservation Values (HCVs)",null,"Global","Geographical application42","Europe",null,{"$f":"VLOOKUP(DescriptionTable[[#This Row],[Name]],descriptions[],2,FALSE)","v":"Analyses global patterns of biodiversity to identify a set of the Earth's terrestrial, freshwater, and marine ecoregions that harbor exceptional biodiversity and are representative of its ecosystems. Earth's ecoregions are placed within a system of 30 biomes and biogeographic realms to facilitate a representation analysis. Biodiversity features were compared among ecoregions to assess their irreplaceability or distinctiveness. These features include species richness, endemic species, unusual higher taxa, unusual ecological or evolutionary phenomena, and the global rarity of habitats. For more information see publication: https://doi.org/10.2307/3298564"}]
["Global 200 Ecoregions ","Dataset","World Wildlife Forum","https://www.worldwildlife.org/publications/global-200","High Conservation Values (HCVs)",null,"Global","Geographical application5","North America",null,{"$f":"VLOOKUP(DescriptionTable[[#This Row],[Name]],descriptions[],2,FALSE)","v":"Analyses global patterns of biodiversity to identify a set of the Earth's terrestrial, freshwater, and marine ecoregions that harbor exceptional biodiversity and are representative of its ecosystems. Earth's ecoregions are placed within a system of 30 biomes and biogeographic realms to facilitate a representation analysis. Biodiversity features were compared among ecoregions to assess their irreplaceability or distinctiveness. These features include species richness, endemic species, unusual higher taxa, unusual ecological or evolutionary phenomena, and the global rarity of habitats. For more information see publication: https://doi.org/10.2307/3298564"}]
["National Biodiversity Strategies and Action Plans - Convention on Biologival Diversity","Database","UN Environment Programme: Convention on Biological Diversity","https://www.cbd.int/nbsap/","High Conservation Values (HCVs)",null,"Global","Geographical application2","Africa",null,{"$f":"VLOOKUP(DescriptionTable[[#This Row],[Name]],descriptions[],2,FALSE)","v":"Presents data drawn from the online 6 National Reports related to the implementation status of each global target. Examples of measures and outcomes drawn respectively from post-COP10 National Biodiversity Strategies and Action Plans and 6 National Reports, from each UN region, are also provided. Various resources that can assist parties and stakeholders in implementing each global target are highlighted as well."}]
["National Biodiversity Strategies and Action Plans - Convention on Biologival Diversity","Database","UN Environment Programme: Convention on Biological Diversity","https://www.cbd.int/nbsap/","High Conservation Values (HCVs)",null,"Global","Geographical application3","Latin America",null,{"$f":"VLOOKUP(DescriptionTable[[#This Row],[Name]],descriptions[],2,FALSE)","v":"Presents data drawn from the online 6 National Reports related to the implementation status of each global target. Examples of measures and outcomes drawn respectively from post-COP10 National Biodiversity Strategies and Action Plans and 6 National Reports, from each UN region, are also provided. Various resources that can assist parties and stakeholders in implementing each global target are highlighted as well."}]
["National Biodiversity Strategies and Action Plans - Convention on Biologival Diversity","Database","UN Environment Programme: Convention on Biological Diversity","https://www.cbd.int/nbsap/","High Conservation Values (HCVs)",null,"Global","Geographical application4","Asia Pacific ",null,{"$f":"VLOOKUP(DescriptionTable[[#This Row],[Name]],descriptions[],2,FALSE)","v":"Presents data drawn from the online 6 National Reports related to the implementation status of each global target. Examples of measures and outcomes drawn respectively from post-COP10 National Biodiversity Strategies and Action Plans and 6 National Reports, from each UN region, are also provided. Various resources that can assist parties and stakeholders in implementing each global target are highlighted as well."}]
["National Biodiversity Strategies and Action Plans - Convention on Biologival Diversity","Database","UN Environment Programme: Convention on Biological Diversity","https://www.cbd.int/nbsap/","High Conservation Values (HCVs)",null,"Global","Geographical application42","Europe",null,{"$f":"VLOOKUP(DescriptionTable[[#This Row],[Name]],descriptions[],2,FALSE)","v":"Presents data drawn from the online 6 National Reports related to the implementation status of each global target. Examples of measures and outcomes drawn respectively from post-COP10 National Biodiversity Strategies and Action Plans and 6 National Reports, from each UN region, are also provided. Various resources that can assist parties and stakeholders in implementing each global target are highlighted as well."}]
["National Biodiversity Strategies and Action Plans - Convention on Biologival Diversity","Database","UN Environment Programme: Convention on Biological Diversity","https://www.cbd.int/nbsap/","High Conservation Values (HCVs)",null,"Global","Geographical application5","North America",null,{"$f":"VLOOKUP(DescriptionTable[[#This Row],[Name]],descriptions[],2,FALSE)","v":"Presents data drawn from the online 6 National Reports related to the implementation status of each global target. Examples of measures and outcomes drawn respectively from post-COP10 National Biodiversity Strategies and Action Plans and 6 National Reports, from each UN region, are also provided. Various resources that can assist parties and stakeholders in implementing each global target are highlighted as well."}]
["National Reports - Convention on Biologival Diversity","List of publications","UN Environment Programme: Convention on Biological Diversity","https://www.cbd.int/reports/","High Conservation Values (HCVs)",null,"Global","Geographical application2","Africa",null,{"$f":"VLOOKUP(DescriptionTable[[#This Row],[Name]],descriptions[],2,FALSE)","v":"Presents data drawn from the online 6 National Reports related to the implementation status of each global target. Examples of measures and outcomes drawn respectively from post-COP10 National Biodiversity Strategies and Action Plans and 6 National Reports, from each UN region, are also provided. Various resources that can assist parties and stakeholders in implementing each global target are highlighted as well."}]
["National Reports - Convention on Biologival Diversity","List of publications","UN Environment Programme: Convention on Biological Diversity","https://www.cbd.int/reports/","High Conservation Values (HCVs)",null,"Global","Geographical application3","Latin America",null,{"$f":"VLOOKUP(DescriptionTable[[#This Row],[Name]],descriptions[],2,FALSE)","v":"Presents data drawn from the online 6 National Reports related to the implementation status of each global target. Examples of measures and outcomes drawn respectively from post-COP10 National Biodiversity Strategies and Action Plans and 6 National Reports, from each UN region, are also provided. Various resources that can assist parties and stakeholders in implementing each global target are highlighted as well."}]
["National Reports - Convention on Biologival Diversity","List of publications","UN Environment Programme: Convention on Biological Diversity","https://www.cbd.int/reports/","High Conservation Values (HCVs)",null,"Global","Geographical application4","Asia Pacific ",null,{"$f":"VLOOKUP(DescriptionTable[[#This Row],[Name]],descriptions[],2,FALSE)","v":"Presents data drawn from the online 6 National Reports related to the implementation status of each global target. Examples of measures and outcomes drawn respectively from post-COP10 National Biodiversity Strategies and Action Plans and 6 National Reports, from each UN region, are also provided. Various resources that can assist parties and stakeholders in implementing each global target are highlighted as well."}]
["National Reports - Convention on Biologival Diversity","List of publications","UN Environment Programme: Convention on Biological Diversity","https://www.cbd.int/reports/","High Conservation Values (HCVs)",null,"Global","Geographical application42","Europe",null,{"$f":"VLOOKUP(DescriptionTable[[#This Row],[Name]],descriptions[],2,FALSE)","v":"Presents data drawn from the online 6 National Reports related to the implementation status of each global target. Examples of measures and outcomes drawn respectively from post-COP10 National Biodiversity Strategies and Action Plans and 6 National Reports, from each UN region, are also provided. Various resources that can assist parties and stakeholders in implementing each global target are highlighted as well."}]
["National Reports - Convention on Biologival Diversity","List of publications","UN Environment Programme: Convention on Biological Diversity","https://www.cbd.int/reports/","High Conservation Values (HCVs)",null,"Global","Geographical application5","North America",null,{"$f":"VLOOKUP(DescriptionTable[[#This Row],[Name]],descriptions[],2,FALSE)","v":"Presents data drawn from the online 6 National Reports related to the implementation status of each global target. Examples of measures and outcomes drawn respectively from post-COP10 National Biodiversity Strategies and Action Plans and 6 National Reports, from each UN region, are also provided. Various resources that can assist parties and stakeholders in implementing each global target are highlighted as well."}]
["EU Observatory on deforestation and forest degradation","Dataset","European Comission","https://forest-observatory.ec.europa.eu/","Deforestation and Forest Degradation",null,"Global","Geographical application2","Africa",null,{"$f":"VLOOKUP(DescriptionTable[[#This Row],[Name]],descriptions[],2,FALSE)","v":"The EUFO web portal provides global maps on forests (cover, attributes and changes) and visualizes the trade of commodities and products. A specific development for the EUDR is a new global forest cover map for the year 2020 with 10m spatial resolution."}]
["EU Observatory on deforestation and forest degradation","Dataset","European Comission","https://forest-observatory.ec.europa.eu/","Deforestation and Forest Degradation",null,"Global","Geographical application3","Latin America",null,{"$f":"VLOOKUP(DescriptionTable[[#This Row],[Name]],descriptions[],2,FALSE)","v":"The EUFO web portal provides global maps on forests (cover, attributes and changes) and visualizes the trade of commodities and products. A specific development for the EUDR is a new global forest cover map for the year 2020 with 10m spatial resolution."}]
["EU Observatory on deforestation and forest degradation","Dataset","European Comission","https://forest-observatory.ec.europa.eu/","Deforestation and Forest Degradation",null,"Global","Geographical application4","Asia Pacific ",null,{"$f":"VLOOKUP(DescriptionTable[[#This Row],[Name]],descriptions[],2,FALSE)","v":"The EUFO web portal provides global maps on forests (cover, attributes and changes) and visualizes the trade of commodities and products. A specific development for the EUDR is a new global forest cover map for the year 2020 with 10m spatial resolution."}]
["EU Observatory on deforestation and forest degradation","Dataset","European Comission","https://forest-observatory.ec.europa.eu/","Deforestation and Forest Degradation",null,"Global","Geographical application42","Europe",null,{"$f":"VLOOKUP(DescriptionTable[[#This Row],[Name]],descriptions[],2,FALSE)","v":"The EUFO web portal provides global maps on forests (cover, attributes and changes) and visualizes the trade of commodities and products. A specific development for the EUDR is a new global forest cover map for the year 2020 with 10m spatial resolution."}]
["EU Observatory on deforestation and forest degradation","Dataset","European Comission","https://forest-observatory.ec.europa.eu/","Deforestation and Forest Degradation",null,"Global","Geographical application5","North America",null,{"$f":"VLOOKUP(DescriptionTable[[#This Row],[Name]],descriptions[],2,FALSE)","v":"The EUFO web portal provides global maps on forests (cover, attributes and changes) and visualizes the trade of commodities and products. A specific development for the EUDR is a new global forest cover map for the year 2020 with 10m spatial resolution."}]
["Data for Detecting Deforestation (RADD) : Wageningen University","Dataset","Global Forest Watch","https://data.globalforestwatch.org/datasets/gfw::deforestation-alerts-radd/about","Deforestation and Forest Degradation","Tropical humid forests","Latin America, Africa, insular Southeast Asia, and the Pacific","Geographical application2","Latin America",null,{"$f":"VLOOKUP(DescriptionTable[[#This Row],[Name]],descriptions[],2,FALSE)","v":"Monitors forest disturbances in near real-time. It can detect changes in forest cover even through clouds. It map new forest disturbances (complete or partial removal of tree cover within 10m) in near real-time within a span of 6-12 days. The layer uses a probabilistic approach to confirm or reject the alerts based on subsequent observations, which means that only high-confidence alerts with a probability of above 97.5% are confirmed, in addition, while the layer is continuously assessed, it is designed to provide near real-time alerts and not to represent the true area of disturbances. "}]
["Data for Detecting Deforestation (RADD) : Wageningen University","Dataset","Global Forest Watch","https://data.globalforestwatch.org/datasets/gfw::deforestation-alerts-radd/about","Deforestation and Forest Degradation","Tropical humid forests","Latin America, Africa, insular Southeast Asia, and the Pacific","Geographical application3"," Africa",null,{"$f":"VLOOKUP(DescriptionTable[[#This Row],[Name]],descriptions[],2,FALSE)","v":"Monitors forest disturbances in near real-time. It can detect changes in forest cover even through clouds. It map new forest disturbances (complete or partial removal of tree cover within 10m) in near real-time within a span of 6-12 days. The layer uses a probabilistic approach to confirm or reject the alerts based on subsequent observations, which means that only high-confidence alerts with a probability of above 97.5% are confirmed, in addition, while the layer is continuously assessed, it is designed to provide near real-time alerts and not to represent the true area of disturbances. "}]
["Data for Detecting Deforestation (RADD) : Wageningen University","Dataset","Global Forest Watch","https://data.globalforestwatch.org/datasets/gfw::deforestation-alerts-radd/about","Deforestation and Forest Degradation","Tropical humid forests","Latin America, Africa, insular Southeast Asia, and the Pacific","Geographical application4","Asia Pacific ",null,{"$f":"VLOOKUP(DescriptionTable[[#This Row],[Name]],descriptions[],2,FALSE)","v":"Monitors forest disturbances in near real-time. It can detect changes in forest cover even through clouds. It map new forest disturbances (complete or partial removal of tree cover within 10m) in near real-time within a span of 6-12 days. The layer uses a probabilistic approach to confirm or reject the alerts based on subsequent observations, which means that only high-confidence alerts with a probability of above 97.5% are confirmed, in addition, while the layer is continuously assessed, it is designed to provide near real-time alerts and not to represent the true area of disturbances. "}]
["Tropical Moist Forest (TMF) Dataset","Dataset","Joint research Centre (JRC): EU Science Hub, European Commission","https://forobs.jrc.ec.europa.eu/TMF/data","Deforestation and Forest Degradation","Tropical moist forests","Tropical Moist forests in Africa, Latin America and Asia-Oceania","Geographical application2"," Africa",null,{"$f":"VLOOKUP(DescriptionTable[[#This Row],[Name]],descriptions[],2,FALSE)","v":"Dataset on the extent of TMF and related disturbances (degradation and deforestation). Each disturbance is characterized by its timing and intensity.  From 2022 the resolution is of 10m. It uses 41 years of satellite imagery to map forest cover change   in tropical moist forests with new data and maps available annually. TMF dataset can capture short and long-term-duration disturbances (e.g., selective logging, fires, and weather events). In addition, because it has documented forest disturbances over decades, it can delimit an approximate extent of primary forest. As part of their mapping approach, three initial classes are defined based on visual interpretation: (i) moist forest types; (ii) deciduous forest, logged areas, savanna, bare soil, irrigated and non-irrigated cropland, evergreen shrubland, and water (for the potential disruption class); and (iii) clouds, haze, and cloud shadows (for the invalid observations).  After the classes were defined, they analyzed the initial extent of the forest and identified any change from this initial extent to determine if degradation or deforestation was happening. For this, classes of transition were established: (1)Short-duration degradation followed by a recovery period (not followed by deforestation). (2) Long-duration degradation followed by a recovery period (not followed by deforestation). (3) Degradation followed by a recovery period, followed by deforestation.  (4)Degradation is followed by a recovery period, followed by de-forestation, and followed by a recovery period in itself (regrowth). "}]
["Tropical Moist Forest (TMF) Dataset","Dataset","Joint research Centre (JRC): EU Science Hub, European Commission","https://forobs.jrc.ec.europa.eu/TMF/data","Deforestation and Forest Degradation","Tropical moist forests","Tropical Moist forests in Africa, Latin America and Asia-Oceania","Geographical application3"," Latin America ",null,{"$f":"VLOOKUP(DescriptionTable[[#This Row],[Name]],descriptions[],2,FALSE)","v":"Dataset on the extent of TMF and related disturbances (degradation and deforestation). Each disturbance is characterized by its timing and intensity.  From 2022 the resolution is of 10m. It uses 41 years of satellite imagery to map forest cover change   in tropical moist forests with new data and maps available annually. TMF dataset can capture short and long-term-duration disturbances (e.g., selective logging, fires, and weather events). In addition, because it has documented forest disturbances over decades, it can delimit an approximate extent of primary forest. As part of their mapping approach, three initial classes are defined based on visual interpretation: (i) moist forest types; (ii) deciduous forest, logged areas, savanna, bare soil, irrigated and non-irrigated cropland, evergreen shrubland, and water (for the potential disruption class); and (iii) clouds, haze, and cloud shadows (for the invalid observations).  After the classes were defined, they analyzed the initial extent of the forest and identified any change from this initial extent to determine if degradation or deforestation was happening. For this, classes of transition were established: (1)Short-duration degradation followed by a recovery period (not followed by deforestation). (2) Long-duration degradation followed by a recovery period (not followed by deforestation). (3) Degradation followed by a recovery period, followed by deforestation.  (4)Degradation is followed by a recovery period, followed by de-forestation, and followed by a recovery period in itself (regrowth). "}]
["Tropical Moist Forest (TMF) Dataset","Dataset","Joint research Centre (JRC): EU Science Hub, European Commission","https://forobs.jrc.ec.europa.eu/TMF/data","Deforestation and Forest Degradation","Tropical moist forests","Tropical Moist forests in Africa, Latin America and Asia-Oceania","Geographical application4","Asia Pacific ",null,{"$f":"VLOOKUP(DescriptionTable[[#This Row],[Name]],descriptions[],2,FALSE)","v":"Dataset on the extent of TMF and related disturbances (degradation and deforestation). Each disturbance is characterized by its timing and intensity.  From 2022 the resolution is of 10m. It uses 41 years of satellite imagery to map forest cover change   in tropical moist forests with new data and maps available annually. TMF dataset can capture short and long-term-duration disturbances (e.g., selective logging, fires, and weather events). In addition, because it has documented forest disturbances over decades, it can delimit an approximate extent of primary forest. As part of their mapping approach, three initial classes are defined based on visual interpretation: (i) moist forest types; (ii) deciduous forest, logged areas, savanna, bare soil, irrigated and non-irrigated cropland, evergreen shrubland, and water (for the potential disruption class); and (iii) clouds, haze, and cloud shadows (for the invalid observations).  After the classes were defined, they analyzed the initial extent of the forest and identified any change from this initial extent to determine if degradation or deforestation was happening. For this, classes of transition were established: (1)Short-duration degradation followed by a recovery period (not followed by deforestation). (2) Long-duration degradation followed by a recovery period (not followed by deforestation). (3) Degradation followed by a recovery period, followed by deforestation.  (4)Degradation is followed by a recovery period, followed by de-forestation, and followed by a recovery period in itself (regrowth). "}]
["Global Land Cover Product Dataset","Dataset","European Space Agency (ESA)","https://worldcover2021.esa.int/","Deforestation and Forest Degradation",null,"Global","Geographical application2","Africa",null,{"$f":"VLOOKUP(DescriptionTable[[#This Row],[Name]],descriptions[],2,FALSE)","v":"Potential to use the global forest cover landcover class that will be used in determining the amount of forest cover at risk of degradation. This product has 11 distinct classes of landcover, amongst which is tree cover. However, there is no differentiation between the various types of forest cover in which primarily forest degradation and deforestation is easily defined. Potential to look at conversion from ‘forests’ (trees) to crop land. Similar layer at the one from GLAD and ESRI, but for analysis of landcover at global scale, the ESA product is well suited since it has a high spatial resolution  and is freely available.                                                                         "}]
["Global Land Cover Product Dataset","Dataset","European Space Agency (ESA)","https://worldcover2021.esa.int/","Deforestation and Forest Degradation",null,"Global","Geographical application3","Latin America",null,{"$f":"VLOOKUP(DescriptionTable[[#This Row],[Name]],descriptions[],2,FALSE)","v":"Potential to use the global forest cover landcover class that will be used in determining the amount of forest cover at risk of degradation. This product has 11 distinct classes of landcover, amongst which is tree cover. However, there is no differentiation between the various types of forest cover in which primarily forest degradation and deforestation is easily defined. Potential to look at conversion from ‘forests’ (trees) to crop land. Similar layer at the one from GLAD and ESRI, but for analysis of landcover at global scale, the ESA product is well suited since it has a high spatial resolution  and is freely available.                                                                         "}]
["Global Land Cover Product Dataset","Dataset","European Space Agency (ESA)","https://worldcover2021.esa.int/","Deforestation and Forest Degradation",null,"Global","Geographical application4","Asia Pacific ",null,{"$f":"VLOOKUP(DescriptionTable[[#This Row],[Name]],descriptions[],2,FALSE)","v":"Potential to use the global forest cover landcover class that will be used in determining the amount of forest cover at risk of degradation. This product has 11 distinct classes of landcover, amongst which is tree cover. However, there is no differentiation between the various types of forest cover in which primarily forest degradation and deforestation is easily defined. Potential to look at conversion from ‘forests’ (trees) to crop land. Similar layer at the one from GLAD and ESRI, but for analysis of landcover at global scale, the ESA product is well suited since it has a high spatial resolution  and is freely available.                                                                         "}]
["Global Land Cover Product Dataset","Dataset","European Space Agency (ESA)","https://worldcover2021.esa.int/","Deforestation and Forest Degradation",null,"Global","Geographical application42","Europe",null,{"$f":"VLOOKUP(DescriptionTable[[#This Row],[Name]],descriptions[],2,FALSE)","v":"Potential to use the global forest cover landcover class that will be used in determining the amount of forest cover at risk of degradation. This product has 11 distinct classes of landcover, amongst which is tree cover. However, there is no differentiation between the various types of forest cover in which primarily forest degradation and deforestation is easily defined. Potential to look at conversion from ‘forests’ (trees) to crop land. Similar layer at the one from GLAD and ESRI, but for analysis of landcover at global scale, the ESA product is well suited since it has a high spatial resolution  and is freely available.                                                                         "}]
["Global Land Cover Product Dataset","Dataset","European Space Agency (ESA)","https://worldcover2021.esa.int/","Deforestation and Forest Degradation",null,"Global","Geographical application5","North America",null,{"$f":"VLOOKUP(DescriptionTable[[#This Row],[Name]],descriptions[],2,FALSE)","v":"Potential to use the global forest cover landcover class that will be used in determining the amount of forest cover at risk of degradation. This product has 11 distinct classes of landcover, amongst which is tree cover. However, there is no differentiation between the various types of forest cover in which primarily forest degradation and deforestation is easily defined. Potential to look at conversion from ‘forests’ (trees) to crop land. Similar layer at the one from GLAD and ESRI, but for analysis of landcover at global scale, the ESA product is well suited since it has a high spatial resolution  and is freely available.                                                                         "}]
["ESRI Land Cover Dataset","Dataset","ESRI","https://livingatlas.arcgis.com/landcover/","Deforestation and Forest Degradation",null,"Global","Geographical application2","Africa",null,{"$f":"VLOOKUP(DescriptionTable[[#This Row],[Name]],descriptions[],2,FALSE)","v":"9-class map of the surface including vegetation types, bare surface, water, cropland and built areas. Potential to look at conversion from ‘forests’ (trees) to crop land. he layer is based on analysis of Sentinel 2 optical data. However, this is averaged over a whole year, thus the reporting mechanism would be based on a specific year coverage. Similar layer at the one from ESA and ESRI. "}]
["ESRI Land Cover Dataset","Dataset","ESRI","https://livingatlas.arcgis.com/landcover/","Deforestation and Forest Degradation",null,"Global","Geographical application3","Latin America",null,{"$f":"VLOOKUP(DescriptionTable[[#This Row],[Name]],descriptions[],2,FALSE)","v":"9-class map of the surface including vegetation types, bare surface, water, cropland and built areas. Potential to look at conversion from ‘forests’ (trees) to crop land. he layer is based on analysis of Sentinel 2 optical data. However, this is averaged over a whole year, thus the reporting mechanism would be based on a specific year coverage. Similar layer at the one from ESA and ESRI. "}]
["ESRI Land Cover Dataset","Dataset","ESRI","https://livingatlas.arcgis.com/landcover/","Deforestation and Forest Degradation",null,"Global","Geographical application4","Asia Pacific ",null,{"$f":"VLOOKUP(DescriptionTable[[#This Row],[Name]],descriptions[],2,FALSE)","v":"9-class map of the surface including vegetation types, bare surface, water, cropland and built areas. Potential to look at conversion from ‘forests’ (trees) to crop land. he layer is based on analysis of Sentinel 2 optical data. However, this is averaged over a whole year, thus the reporting mechanism would be based on a specific year coverage. Similar layer at the one from ESA and ESRI. "}]
["ESRI Land Cover Dataset","Dataset","ESRI","https://livingatlas.arcgis.com/landcover/","Deforestation and Forest Degradation",null,"Global","Geographical application42","Europe",null,{"$f":"VLOOKUP(DescriptionTable[[#This Row],[Name]],descriptions[],2,FALSE)","v":"9-class map of the surface including vegetation types, bare surface, water, cropland and built areas. Potential to look at conversion from ‘forests’ (trees) to crop land. he layer is based on analysis of Sentinel 2 optical data. However, this is averaged over a whole year, thus the reporting mechanism would be based on a specific year coverage. Similar layer at the one from ESA and ESRI. "}]
["ESRI Land Cover Dataset","Dataset","ESRI","https://livingatlas.arcgis.com/landcover/","Deforestation and Forest Degradation",null,"Global","Geographical application5","North America",null,{"$f":"VLOOKUP(DescriptionTable[[#This Row],[Name]],descriptions[],2,FALSE)","v":"9-class map of the surface including vegetation types, bare surface, water, cropland and built areas. Potential to look at conversion from ‘forests’ (trees) to crop land. he layer is based on analysis of Sentinel 2 optical data. However, this is averaged over a whole year, thus the reporting mechanism would be based on a specific year coverage. Similar layer at the one from ESA and ESRI. "}]
["Tree Cover Loss by Dominant Driver: World Resources Institute (WRI) /Curtis et.al","Dataset","Global Forest Watch","https://data.globalforestwatch.org/documents/gfw::tree-cover-loss-by-dominant-driver-2022/about","Deforestation and Forest Degradation",null,"Global","Geographical application2","Africa",null,{"$f":"VLOOKUP(DescriptionTable[[#This Row],[Name]],descriptions[],2,FALSE)","v":"High-resolution Google Earth imagery was used to map and classify the causes of global forest loss. It uses metrics from different datasets (e.g., Hansen tree cover, tree cover gain, and tree cover loss, NASA fires, global land cover, and population count). This is the only known dataset providing a global overview of logging related forest disturbances as it can detect where commodity-driven deforestation is happening. "}]
["Tree Cover Loss by Dominant Driver: World Resources Institute (WRI) /Curtis et.al","Dataset","Global Forest Watch","https://data.globalforestwatch.org/documents/gfw::tree-cover-loss-by-dominant-driver-2022/about","Deforestation and Forest Degradation",null,"Global","Geographical application3","Latin America",null,{"$f":"VLOOKUP(DescriptionTable[[#This Row],[Name]],descriptions[],2,FALSE)","v":"High-resolution Google Earth imagery was used to map and classify the causes of global forest loss. It uses metrics from different datasets (e.g., Hansen tree cover, tree cover gain, and tree cover loss, NASA fires, global land cover, and population count). This is the only known dataset providing a global overview of logging related forest disturbances as it can detect where commodity-driven deforestation is happening. "}]
["Tree Cover Loss by Dominant Driver: World Resources Institute (WRI) /Curtis et.al","Dataset","Global Forest Watch","https://data.globalforestwatch.org/documents/gfw::tree-cover-loss-by-dominant-driver-2022/about","Deforestation and Forest Degradation",null,"Global","Geographical application4","Asia Pacific ",null,{"$f":"VLOOKUP(DescriptionTable[[#This Row],[Name]],descriptions[],2,FALSE)","v":"High-resolution Google Earth imagery was used to map and classify the causes of global forest loss. It uses metrics from different datasets (e.g., Hansen tree cover, tree cover gain, and tree cover loss, NASA fires, global land cover, and population count). This is the only known dataset providing a global overview of logging related forest disturbances as it can detect where commodity-driven deforestation is happening. "}]
["Tree Cover Loss by Dominant Driver: World Resources Institute (WRI) /Curtis et.al","Dataset","Global Forest Watch","https://data.globalforestwatch.org/documents/gfw::tree-cover-loss-by-dominant-driver-2022/about","Deforestation and Forest Degradation",null,"Global","Geographical application42","Europe",null,{"$f":"VLOOKUP(DescriptionTable[[#This Row],[Name]],descriptions[],2,FALSE)","v":"High-resolution Google Earth imagery was used to map and classify the causes of global forest loss. It uses metrics from different datasets (e.g., Hansen tree cover, tree cover gain, and tree cover loss, NASA fires, global land cover, and population count). This is the only known dataset providing a global overview of logging related forest disturbances as it can detect where commodity-driven deforestation is happening. "}]
["Tree Cover Loss by Dominant Driver: World Resources Institute (WRI) /Curtis et.al","Dataset","Global Forest Watch","https://data.globalforestwatch.org/documents/gfw::tree-cover-loss-by-dominant-driver-2022/about","Deforestation and Forest Degradation",null,"Global","Geographical application5","North America",null,{"$f":"VLOOKUP(DescriptionTable[[#This Row],[Name]],descriptions[],2,FALSE)","v":"High-resolution Google Earth imagery was used to map and classify the causes of global forest loss. It uses metrics from different datasets (e.g., Hansen tree cover, tree cover gain, and tree cover loss, NASA fires, global land cover, and population count). This is the only known dataset providing a global overview of logging related forest disturbances as it can detect where commodity-driven deforestation is happening. "}]
["Version 4 Tree Canopy Cover (TCC) product dataset","Dataset","NASA: Land Cover and Land Use Change Program","https://lcluc.umd.edu/metadata/global-30m-landsat-tree-canopy-version-4","Deforestation and Forest Degradation",null,"Global","Geographical application2","Africa",null,{"$f":"VLOOKUP(DescriptionTable[[#This Row],[Name]],descriptions[],2,FALSE)","v":"Derived from Landsat data, it is a global dataset of percent tree cover. The layers contain estimates of the percentage of horizontal ground in each 30-m pixel covered by woody vegetation greater than 5 meters in height. The product is derived from all seven bands of Landsat-5 Thematic Mapper (TM) and/or Landsat-t Enhanced Thematic Mapper Plus (ETM+): Tree cover, the proportional, vertically projected area of vegetation (including leaves, stems, branches, etc.) of woody plants above a given height, affects terrestrial energy and water exchanges, photosynthesis and transpiration, net primary production, and carbon and nutrient fluxes."}]
["Version 4 Tree Canopy Cover (TCC) product dataset","Dataset","NASA: Land Cover and Land Use Change Program","https://lcluc.umd.edu/metadata/global-30m-landsat-tree-canopy-version-4","Deforestation and Forest Degradation",null,"Global","Geographical application3","Latin America",null,{"$f":"VLOOKUP(DescriptionTable[[#This Row],[Name]],descriptions[],2,FALSE)","v":"Derived from Landsat data, it is a global dataset of percent tree cover. The layers contain estimates of the percentage of horizontal ground in each 30-m pixel covered by woody vegetation greater than 5 meters in height. The product is derived from all seven bands of Landsat-5 Thematic Mapper (TM) and/or Landsat-t Enhanced Thematic Mapper Plus (ETM+): Tree cover, the proportional, vertically projected area of vegetation (including leaves, stems, branches, etc.) of woody plants above a given height, affects terrestrial energy and water exchanges, photosynthesis and transpiration, net primary production, and carbon and nutrient fluxes."}]
["Version 4 Tree Canopy Cover (TCC) product dataset","Dataset","NASA: Land Cover and Land Use Change Program","https://lcluc.umd.edu/metadata/global-30m-landsat-tree-canopy-version-4","Deforestation and Forest Degradation",null,"Global","Geographical application4","Asia Pacific ",null,{"$f":"VLOOKUP(DescriptionTable[[#This Row],[Name]],descriptions[],2,FALSE)","v":"Derived from Landsat data, it is a global dataset of percent tree cover. The layers contain estimates of the percentage of horizontal ground in each 30-m pixel covered by woody vegetation greater than 5 meters in height. The product is derived from all seven bands of Landsat-5 Thematic Mapper (TM) and/or Landsat-t Enhanced Thematic Mapper Plus (ETM+): Tree cover, the proportional, vertically projected area of vegetation (including leaves, stems, branches, etc.) of woody plants above a given height, affects terrestrial energy and water exchanges, photosynthesis and transpiration, net primary production, and carbon and nutrient fluxes."}]
["Version 4 Tree Canopy Cover (TCC) product dataset","Dataset","NASA: Land Cover and Land Use Change Program","https://lcluc.umd.edu/metadata/global-30m-landsat-tree-canopy-version-4","Deforestation and Forest Degradation",null,"Global","Geographical application42","Europe",null,{"$f":"VLOOKUP(DescriptionTable[[#This Row],[Name]],descriptions[],2,FALSE)","v":"Derived from Landsat data, it is a global dataset of percent tree cover. The layers contain estimates of the percentage of horizontal ground in each 30-m pixel covered by woody vegetation greater than 5 meters in height. The product is derived from all seven bands of Landsat-5 Thematic Mapper (TM) and/or Landsat-t Enhanced Thematic Mapper Plus (ETM+): Tree cover, the proportional, vertically projected area of vegetation (including leaves, stems, branches, etc.) of woody plants above a given height, affects terrestrial energy and water exchanges, photosynthesis and transpiration, net primary production, and carbon and nutrient fluxes."}]
["Version 4 Tree Canopy Cover (TCC) product dataset","Dataset","NASA: Land Cover and Land Use Change Program","https://lcluc.umd.edu/metadata/global-30m-landsat-tree-canopy-version-4","Deforestation and Forest Degradation",null,"Global","Geographical application5","North America",null,{"$f":"VLOOKUP(DescriptionTable[[#This Row],[Name]],descriptions[],2,FALSE)","v":"Derived from Landsat data, it is a global dataset of percent tree cover. The layers contain estimates of the percentage of horizontal ground in each 30-m pixel covered by woody vegetation greater than 5 meters in height. The product is derived from all seven bands of Landsat-5 Thematic Mapper (TM) and/or Landsat-t Enhanced Thematic Mapper Plus (ETM+): Tree cover, the proportional, vertically projected area of vegetation (including leaves, stems, branches, etc.) of woody plants above a given height, affects terrestrial energy and water exchanges, photosynthesis and transpiration, net primary production, and carbon and nutrient fluxes."}]
["Above ground biomass and carbon stock dataset","Dataset","European Space Agency (ESA)","https://catalogue.ceda.ac.uk/uuid/af60720c1e404a9e9d2c145d2b2ead4e","Deforestation and Forest Degradation",null,"Global","Geographical application2","Africa",null,{"$f":"VLOOKUP(DescriptionTable[[#This Row],[Name]],descriptions[],2,FALSE)","v":"Based on Earth observation data from multiple sources and includes estimates of above-ground forest biomass. No continued AGB product has being generated after 2020, thus we cannot use it so much.  Would be a good source to train another model using high resolution data."}]
["Above ground biomass and carbon stock dataset","Dataset","European Space Agency (ESA)","https://catalogue.ceda.ac.uk/uuid/af60720c1e404a9e9d2c145d2b2ead4e","Deforestation and Forest Degradation",null,"Global","Geographical application3","Latin America",null,{"$f":"VLOOKUP(DescriptionTable[[#This Row],[Name]],descriptions[],2,FALSE)","v":"Based on Earth observation data from multiple sources and includes estimates of above-ground forest biomass. No continued AGB product has being generated after 2020, thus we cannot use it so much.  Would be a good source to train another model using high resolution data."}]
["Above ground biomass and carbon stock dataset","Dataset","European Space Agency (ESA)","https://catalogue.ceda.ac.uk/uuid/af60720c1e404a9e9d2c145d2b2ead4e","Deforestation and Forest Degradation",null,"Global","Geographical application4","Asia Pacific ",null,{"$f":"VLOOKUP(DescriptionTable[[#This Row],[Name]],descriptions[],2,FALSE)","v":"Based on Earth observation data from multiple sources and includes estimates of above-ground forest biomass. No continued AGB product has being generated after 2020, thus we cannot use it so much.  Would be a good source to train another model using high resolution data."}]
["Above ground biomass and carbon stock dataset","Dataset","European Space Agency (ESA)","https://catalogue.ceda.ac.uk/uuid/af60720c1e404a9e9d2c145d2b2ead4e","Deforestation and Forest Degradation",null,"Global","Geographical application42","Europe",null,{"$f":"VLOOKUP(DescriptionTable[[#This Row],[Name]],descriptions[],2,FALSE)","v":"Based on Earth observation data from multiple sources and includes estimates of above-ground forest biomass. No continued AGB product has being generated after 2020, thus we cannot use it so much.  Would be a good source to train another model using high resolution data."}]
["Above ground biomass and carbon stock dataset","Dataset","European Space Agency (ESA)","https://catalogue.ceda.ac.uk/uuid/af60720c1e404a9e9d2c145d2b2ead4e","Deforestation and Forest Degradation",null,"Global","Geographical application5","North America",null,{"$f":"VLOOKUP(DescriptionTable[[#This Row],[Name]],descriptions[],2,FALSE)","v":"Based on Earth observation data from multiple sources and includes estimates of above-ground forest biomass. No continued AGB product has being generated after 2020, thus we cannot use it so much.  Would be a good source to train another model using high resolution data."}]
["Global Forest Landscapes Dataset","Dataset","Global Land Analysis and Discovery (GLAD)","https://intactforests.org/","Deforestation and Forest Degradation",null,"Global","Geographical application2","Africa",null,{"$f":"VLOOKUP(DescriptionTable[[#This Row],[Name]],descriptions[],2,FALSE)","v":"Identifies the remaining unfragmented forest landscape by 2020 and the reduction on the area of intact forest from 2000 to 2020. Not a standalone product. With other available datasets could allow for identification of the transformation of primary forest to plantations"}]
["Global Forest Landscapes Dataset","Dataset","Global Land Analysis and Discovery (GLAD)","https://intactforests.org/","Deforestation and Forest Degradation",null,"Global","Geographical application3","Latin America",null,{"$f":"VLOOKUP(DescriptionTable[[#This Row],[Name]],descriptions[],2,FALSE)","v":"Identifies the remaining unfragmented forest landscape by 2020 and the reduction on the area of intact forest from 2000 to 2020. Not a standalone product. With other available datasets could allow for identification of the transformation of primary forest to plantations"}]
["Global Forest Landscapes Dataset","Dataset","Global Land Analysis and Discovery (GLAD)","https://intactforests.org/","Deforestation and Forest Degradation",null,"Global","Geographical application4","Asia Pacific ",null,{"$f":"VLOOKUP(DescriptionTable[[#This Row],[Name]],descriptions[],2,FALSE)","v":"Identifies the remaining unfragmented forest landscape by 2020 and the reduction on the area of intact forest from 2000 to 2020. Not a standalone product. With other available datasets could allow for identification of the transformation of primary forest to plantations"}]
["Global Forest Landscapes Dataset","Dataset","Global Land Analysis and Discovery (GLAD)","https://intactforests.org/","Deforestation and Forest Degradation",null,"Global","Geographical application42","Europe",null,{"$f":"VLOOKUP(DescriptionTable[[#This Row],[Name]],descriptions[],2,FALSE)","v":"Identifies the remaining unfragmented forest landscape by 2020 and the reduction on the area of intact forest from 2000 to 2020. Not a standalone product. With other available datasets could allow for identification of the transformation of primary forest to plantations"}]
["Global Forest Landscapes Dataset","Dataset","Global Land Analysis and Discovery (GLAD)","https://intactforests.org/","Deforestation and Forest Degradation",null,"Global","Geographical application5","North America",null,{"$f":"VLOOKUP(DescriptionTable[[#This Row],[Name]],descriptions[],2,FALSE)","v":"Identifies the remaining unfragmented forest landscape by 2020 and the reduction on the area of intact forest from 2000 to 2020. Not a standalone product. With other available datasets could allow for identification of the transformation of primary forest to plantations"}]
["Global Forest Change Dataset","Dataset","Global Land Analysis and Discovery (GLAD)","https://glad.earthengine.app/view/global-forest-change#bl=off;old=0;dl=1;lon=-107.67563627524828;lat=0.703107352436491;zoom=2;","Deforestation and Forest Degradation",null,"Global","Geographical application2","Africa",null,{"$f":"VLOOKUP(DescriptionTable[[#This Row],[Name]],descriptions[],2,FALSE)","v":"Time analysis of Landsat satellite imagery and characterizes the extent and change of forest. It can be accessed via Google Earth Engine asset ID for analysis instead of downloading the large tiff.Has a lot of potential as it also has IFL data overlays. "}]
["Global Forest Change Dataset","Dataset","Global Land Analysis and Discovery (GLAD)","https://glad.earthengine.app/view/global-forest-change#bl=off;old=0;dl=1;lon=-107.67563627524828;lat=0.703107352436491;zoom=2;","Deforestation and Forest Degradation",null,"Global","Geographical application3","Latin America",null,{"$f":"VLOOKUP(DescriptionTable[[#This Row],[Name]],descriptions[],2,FALSE)","v":"Time analysis of Landsat satellite imagery and characterizes the extent and change of forest. It can be accessed via Google Earth Engine asset ID for analysis instead of downloading the large tiff.Has a lot of potential as it also has IFL data overlays. "}]
["Global Forest Change Dataset","Dataset","Global Land Analysis and Discovery (GLAD)","https://glad.earthengine.app/view/global-forest-change#bl=off;old=0;dl=1;lon=-107.67563627524828;lat=0.703107352436491;zoom=2;","Deforestation and Forest Degradation",null,"Global","Geographical application4","Asia Pacific ",null,{"$f":"VLOOKUP(DescriptionTable[[#This Row],[Name]],descriptions[],2,FALSE)","v":"Time analysis of Landsat satellite imagery and characterizes the extent and change of forest. It can be accessed via Google Earth Engine asset ID for analysis instead of downloading the large tiff.Has a lot of potential as it also has IFL data overlays. "}]
["Global Forest Change Dataset","Dataset","Global Land Analysis and Discovery (GLAD)","https://glad.earthengine.app/view/global-forest-change#bl=off;old=0;dl=1;lon=-107.67563627524828;lat=0.703107352436491;zoom=2;","Deforestation and Forest Degradation",null,"Global","Geographical application42","Europe",null,{"$f":"VLOOKUP(DescriptionTable[[#This Row],[Name]],descriptions[],2,FALSE)","v":"Time analysis of Landsat satellite imagery and characterizes the extent and change of forest. It can be accessed via Google Earth Engine asset ID for analysis instead of downloading the large tiff.Has a lot of potential as it also has IFL data overlays. "}]
["Global Forest Change Dataset","Dataset","Global Land Analysis and Discovery (GLAD)","https://glad.earthengine.app/view/global-forest-change#bl=off;old=0;dl=1;lon=-107.67563627524828;lat=0.703107352436491;zoom=2;","Deforestation and Forest Degradation",null,"Global","Geographical application5","North America",null,{"$f":"VLOOKUP(DescriptionTable[[#This Row],[Name]],descriptions[],2,FALSE)","v":"Time analysis of Landsat satellite imagery and characterizes the extent and change of forest. It can be accessed via Google Earth Engine asset ID for analysis instead of downloading the large tiff.Has a lot of potential as it also has IFL data overlays. "}]
["Forest Canopy Height Dataset","Dataset","Global Land Analysis and Discovery (GLAD)","https://glad.earthengine.app/view/global-forest-canopy-height-2019","Deforestation and Forest Degradation",null,"Global (Northern hemisphere excluded)","Geographical application2","Africa",null,{"$f":"VLOOKUP(DescriptionTable[[#This Row],[Name]],descriptions[],2,FALSE)","v":"Developed using NASA spaceborne lidar instrument specially designed for measuring vegetation structure. Data quality limitations, time spans would not make it feasible to use the product but would be used in creating a model that can use canopy height.                                                                                                                                          "}]
["Forest Canopy Height Dataset","Dataset","Global Land Analysis and Discovery (GLAD)","https://glad.earthengine.app/view/global-forest-canopy-height-2019","Deforestation and Forest Degradation",null,"Global (Northern hemisphere excluded)","Geographical application3","Latin America",null,{"$f":"VLOOKUP(DescriptionTable[[#This Row],[Name]],descriptions[],2,FALSE)","v":"Developed using NASA spaceborne lidar instrument specially designed for measuring vegetation structure. Data quality limitations, time spans would not make it feasible to use the product but would be used in creating a model that can use canopy height.                                                                                                                                          "}]
["Forest Canopy Height Dataset","Dataset","Global Land Analysis and Discovery (GLAD)","https://glad.earthengine.app/view/global-forest-canopy-height-2019","Deforestation and Forest Degradation",null,"Global (Northern hemisphere excluded)","Geographical application4","Asia Pacific ",null,{"$f":"VLOOKUP(DescriptionTable[[#This Row],[Name]],descriptions[],2,FALSE)","v":"Developed using NASA spaceborne lidar instrument specially designed for measuring vegetation structure. Data quality limitations, time spans would not make it feasible to use the product but would be used in creating a model that can use canopy height.                                                                                                                                          "}]
["Tree Canopy Geight Change in Europe Dataset","Dataset","Global Land Analysis and Discovery (GLAD)","https://glad.earthengine.app/view/europe-tree-dynamics","Deforestation and Forest Degradation",null,"Europe","Geographical application2","Europe",null,{"$f":"VLOOKUP(DescriptionTable[[#This Row],[Name]],descriptions[],2,FALSE)","v":"Developed using a mix of data from the Landsat archive and calibration data from Airborne Laser Scanning (ALS) and spaceborne Global Ecosystem Dynamics Investigation (GEDI) lidars. "}]
["Global Forest Canopy Height Dataset","Dataset","Global Land Analysis and Discovery (GLAD)","https://glad.earthengine.app/view/forest-height-2000-2020","Deforestation and Forest Degradation",null,"Global","Geographical application2","Africa",null,{"$f":"VLOOKUP(DescriptionTable[[#This Row],[Name]],descriptions[],2,FALSE)","v":"It maps the global forest canopy height. Developed using global Landsat data that was extrapolated with the Global Ecosystem Dynamics Investigation (GEDI) lidar data. Forest is defined as land cover with a canopy of >5m."}]
["Global Forest Canopy Height Dataset","Dataset","Global Land Analysis and Discovery (GLAD)","https://glad.earthengine.app/view/forest-height-2000-2020","Deforestation and Forest Degradation",null,"Global","Geographical application3","Latin America",null,{"$f":"VLOOKUP(DescriptionTable[[#This Row],[Name]],descriptions[],2,FALSE)","v":"It maps the global forest canopy height. Developed using global Landsat data that was extrapolated with the Global Ecosystem Dynamics Investigation (GEDI) lidar data. Forest is defined as land cover with a canopy of >5m."}]
["Global Forest Canopy Height Dataset","Dataset","Global Land Analysis and Discovery (GLAD)","https://glad.earthengine.app/view/forest-height-2000-2020","Deforestation and Forest Degradation",null,"Global","Geographical application4","Asia Pacific ",null,{"$f":"VLOOKUP(DescriptionTable[[#This Row],[Name]],descriptions[],2,FALSE)","v":"It maps the global forest canopy height. Developed using global Landsat data that was extrapolated with the Global Ecosystem Dynamics Investigation (GEDI) lidar data. Forest is defined as land cover with a canopy of >5m."}]
["Global Forest Canopy Height Dataset","Dataset","Global Land Analysis and Discovery (GLAD)","https://glad.earthengine.app/view/forest-height-2000-2020","Deforestation and Forest Degradation",null,"Global","Geographical application42","Europe",null,{"$f":"VLOOKUP(DescriptionTable[[#This Row],[Name]],descriptions[],2,FALSE)","v":"It maps the global forest canopy height. Developed using global Landsat data that was extrapolated with the Global Ecosystem Dynamics Investigation (GEDI) lidar data. Forest is defined as land cover with a canopy of >5m."}]
["Global Forest Canopy Height Dataset","Dataset","Global Land Analysis and Discovery (GLAD)","https://glad.earthengine.app/view/forest-height-2000-2020","Deforestation and Forest Degradation",null,"Global","Geographical application5","North America",null,{"$f":"VLOOKUP(DescriptionTable[[#This Row],[Name]],descriptions[],2,FALSE)","v":"It maps the global forest canopy height. Developed using global Landsat data that was extrapolated with the Global Ecosystem Dynamics Investigation (GEDI) lidar data. Forest is defined as land cover with a canopy of >5m."}]
["Sentinel-2 Forest Loss Alert Dataset","Dataset","Global Land Analysis and Discovery (GLAD)","https://glad.earthengine.app/view/s2-forest-alerts#lon=-60.09809477881694;lat=-10.538562732774794;zoom=3;","Deforestation and Forest Degradation",null,"South America (Amazon)","Geographical application2","Latin America",null,{"$f":"VLOOKUP(DescriptionTable[[#This Row],[Name]],descriptions[],2,FALSE)","v":"Loss of primary forest is mapped in near-real time at 10m resolution using Sentinel-2 multispectral data. Cloud, shadow, water are detected in each new Sentinel-2 image and a forest loss algorithm is applied to all remaining clear land observations. The algorithm relies on the spectral data in each new image in combination with spectral metrics from a baseline period of the previous two years. Confidence is built through repeated loss observations in the consequent images."}]
["The land disturbance product (DIST-ALERT) Dataset","Dataset","Global Land Analysis and Discovery (GLAD)","https://glad.umd.edu/dataset/DIST-ALERT/","Deforestation and Forest Degradation",null,"Global","Geographical application2","Africa",null,{"$f":"VLOOKUP(DescriptionTable[[#This Row],[Name]],descriptions[],2,FALSE)","v":"The land disturbance product (DIST-ALERT) maps vegetation loss as well as any spectral variation outside a historical norm using Harmonized Landsat Sentinel-2 (HLS) scenes. Vegetation disturbance is defined as loss of vegetation percent cover relative to the minimum of the baseline, and is reported as the total reduction in vegetation percent cover. Generic disturbance is measured by the distance of the spectral reflectance of an observation from the baseline distribution. Both methods use a baseline of all cloud-free observations from the previous three years within a 31-day window. "}]
["The land disturbance product (DIST-ALERT) Dataset","Dataset","Global Land Analysis and Discovery (GLAD)","https://glad.umd.edu/dataset/DIST-ALERT/","Deforestation and Forest Degradation",null,"Global","Geographical application3","Latin America",null,{"$f":"VLOOKUP(DescriptionTable[[#This Row],[Name]],descriptions[],2,FALSE)","v":"The land disturbance product (DIST-ALERT) maps vegetation loss as well as any spectral variation outside a historical norm using Harmonized Landsat Sentinel-2 (HLS) scenes. Vegetation disturbance is defined as loss of vegetation percent cover relative to the minimum of the baseline, and is reported as the total reduction in vegetation percent cover. Generic disturbance is measured by the distance of the spectral reflectance of an observation from the baseline distribution. Both methods use a baseline of all cloud-free observations from the previous three years within a 31-day window. "}]
["The land disturbance product (DIST-ALERT) Dataset","Dataset","Global Land Analysis and Discovery (GLAD)","https://glad.umd.edu/dataset/DIST-ALERT/","Deforestation and Forest Degradation",null,"Global","Geographical application4","Asia Pacific ",null,{"$f":"VLOOKUP(DescriptionTable[[#This Row],[Name]],descriptions[],2,FALSE)","v":"The land disturbance product (DIST-ALERT) maps vegetation loss as well as any spectral variation outside a historical norm using Harmonized Landsat Sentinel-2 (HLS) scenes. Vegetation disturbance is defined as loss of vegetation percent cover relative to the minimum of the baseline, and is reported as the total reduction in vegetation percent cover. Generic disturbance is measured by the distance of the spectral reflectance of an observation from the baseline distribution. Both methods use a baseline of all cloud-free observations from the previous three years within a 31-day window. "}]
["The land disturbance product (DIST-ALERT) Dataset","Dataset","Global Land Analysis and Discovery (GLAD)","https://glad.umd.edu/dataset/DIST-ALERT/","Deforestation and Forest Degradation",null,"Global","Geographical application42","Europe",null,{"$f":"VLOOKUP(DescriptionTable[[#This Row],[Name]],descriptions[],2,FALSE)","v":"The land disturbance product (DIST-ALERT) maps vegetation loss as well as any spectral variation outside a historical norm using Harmonized Landsat Sentinel-2 (HLS) scenes. Vegetation disturbance is defined as loss of vegetation percent cover relative to the minimum of the baseline, and is reported as the total reduction in vegetation percent cover. Generic disturbance is measured by the distance of the spectral reflectance of an observation from the baseline distribution. Both methods use a baseline of all cloud-free observations from the previous three years within a 31-day window. "}]
["The land disturbance product (DIST-ALERT) Dataset","Dataset","Global Land Analysis and Discovery (GLAD)","https://glad.umd.edu/dataset/DIST-ALERT/","Deforestation and Forest Degradation",null,"Global","Geographical application5","North America",null,{"$f":"VLOOKUP(DescriptionTable[[#This Row],[Name]],descriptions[],2,FALSE)","v":"The land disturbance product (DIST-ALERT) maps vegetation loss as well as any spectral variation outside a historical norm using Harmonized Landsat Sentinel-2 (HLS) scenes. Vegetation disturbance is defined as loss of vegetation percent cover relative to the minimum of the baseline, and is reported as the total reduction in vegetation percent cover. Generic disturbance is measured by the distance of the spectral reflectance of an observation from the baseline distribution. Both methods use a baseline of all cloud-free observations from the previous three years within a 31-day window. "}]
["Boreal Forest monitoring Dataset","Dataset","Global Land Analysis and Discovery (GLAD)","https://glad.umd.edu/projects/boreal/index.html","Deforestation and Forest Degradation",null,"European Russia (Boreal Forests)","Geographical application2","Europe",null,{"$f":"VLOOKUP(DescriptionTable[[#This Row],[Name]],descriptions[],2,FALSE)","v":"Using Landsat imagery, it maps boreal forest cover and change. Tested within European Russia., the results are comparable with the forest loss data from the Russian government. "}]
["Soy bean expansion in South America: Dataset","Dataset","Global Land Analysis and Discovery (GLAD)","https://glad.umd.edu/projects/commodity-crop-mapping-and-monitoring-south-america","Deforestation and Forest Degradation",null,"South America  ","Geographical application2","Latin America",null,{"$f":"VLOOKUP(DescriptionTable[[#This Row],[Name]],descriptions[],2,FALSE)","v":"Produced using data from Landsat and MODIS satellite and, Sentinel 2 as well as 3 years of field observations. The map is constrained to match field-based sample area estimates so it is precise."}]
["Global land Cover and Land Use Change Dataset","Dataset","Global Land Analysis and Discovery (GLAD)","https://glad.earthengine.app/view/glcluc-2000-2020#lon=0;lat=0;zoom=3;","Deforestation and Forest Degradation",null,"Global","Geographical application2","Africa",null,{"$f":"VLOOKUP(DescriptionTable[[#This Row],[Name]],descriptions[],2,FALSE)","v":"Developed with Landsat analysis ready data, it quantifies changes in forest extent and forest height, cropland, built-up lands, surface water and snow and ice extent.                                                                                                  "}]
["Global land Cover and Land Use Change Dataset","Dataset","Global Land Analysis and Discovery (GLAD)","https://glad.earthengine.app/view/glcluc-2000-2020#lon=0;lat=0;zoom=3;","Deforestation and Forest Degradation",null,"Global","Geographical application3","Latin America",null,{"$f":"VLOOKUP(DescriptionTable[[#This Row],[Name]],descriptions[],2,FALSE)","v":"Developed with Landsat analysis ready data, it quantifies changes in forest extent and forest height, cropland, built-up lands, surface water and snow and ice extent.                                                                                                  "}]
["Global land Cover and Land Use Change Dataset","Dataset","Global Land Analysis and Discovery (GLAD)","https://glad.earthengine.app/view/glcluc-2000-2020#lon=0;lat=0;zoom=3;","Deforestation and Forest Degradation",null,"Global","Geographical application4","Asia Pacific ",null,{"$f":"VLOOKUP(DescriptionTable[[#This Row],[Name]],descriptions[],2,FALSE)","v":"Developed with Landsat analysis ready data, it quantifies changes in forest extent and forest height, cropland, built-up lands, surface water and snow and ice extent.                                                                                                  "}]
["Global land Cover and Land Use Change Dataset","Dataset","Global Land Analysis and Discovery (GLAD)","https://glad.earthengine.app/view/glcluc-2000-2020#lon=0;lat=0;zoom=3;","Deforestation and Forest Degradation",null,"Global","Geographical application42","Europe",null,{"$f":"VLOOKUP(DescriptionTable[[#This Row],[Name]],descriptions[],2,FALSE)","v":"Developed with Landsat analysis ready data, it quantifies changes in forest extent and forest height, cropland, built-up lands, surface water and snow and ice extent.                                                                                                  "}]
["Global land Cover and Land Use Change Dataset","Dataset","Global Land Analysis and Discovery (GLAD)","https://glad.earthengine.app/view/glcluc-2000-2020#lon=0;lat=0;zoom=3;","Deforestation and Forest Degradation",null,"Global","Geographical application5","North America",null,{"$f":"VLOOKUP(DescriptionTable[[#This Row],[Name]],descriptions[],2,FALSE)","v":"Developed with Landsat analysis ready data, it quantifies changes in forest extent and forest height, cropland, built-up lands, surface water and snow and ice extent.                                                                                                  "}]
["Global Crop land Expansion in the 21st Century: Dataset","Dataset","Global Land Analysis and Discovery (GLAD)","https://glad.earthengine.app/view/global-cropland-dynamics#lon=0;lat=0;zoom=3;","Deforestation and Forest Degradation",null,"Global","Geographical application2","Africa",null,{"$f":"VLOOKUP(DescriptionTable[[#This Row],[Name]],descriptions[],2,FALSE)","v":"Derived from Landsat satellite data archive and machine learning classification. It analysed the estimate cropland area every 4 years.  In this dataset, cropland is defined as land used for annual and perennial herbaceous crops for human consumption, forage, and biofuel.                                                                                                                                     "}]
["Global Crop land Expansion in the 21st Century: Dataset","Dataset","Global Land Analysis and Discovery (GLAD)","https://glad.earthengine.app/view/global-cropland-dynamics#lon=0;lat=0;zoom=3;","Deforestation and Forest Degradation",null,"Global","Geographical application3","Latin America",null,{"$f":"VLOOKUP(DescriptionTable[[#This Row],[Name]],descriptions[],2,FALSE)","v":"Derived from Landsat satellite data archive and machine learning classification. It analysed the estimate cropland area every 4 years.  In this dataset, cropland is defined as land used for annual and perennial herbaceous crops for human consumption, forage, and biofuel.                                                                                                                                     "}]
["Global Crop land Expansion in the 21st Century: Dataset","Dataset","Global Land Analysis and Discovery (GLAD)","https://glad.earthengine.app/view/global-cropland-dynamics#lon=0;lat=0;zoom=3;","Deforestation and Forest Degradation",null,"Global","Geographical application4","Asia Pacific ",null,{"$f":"VLOOKUP(DescriptionTable[[#This Row],[Name]],descriptions[],2,FALSE)","v":"Derived from Landsat satellite data archive and machine learning classification. It analysed the estimate cropland area every 4 years.  In this dataset, cropland is defined as land used for annual and perennial herbaceous crops for human consumption, forage, and biofuel.                                                                                                                                     "}]
["Global Crop land Expansion in the 21st Century: Dataset","Dataset","Global Land Analysis and Discovery (GLAD)","https://glad.earthengine.app/view/global-cropland-dynamics#lon=0;lat=0;zoom=3;","Deforestation and Forest Degradation",null,"Global","Geographical application42","Europe",null,{"$f":"VLOOKUP(DescriptionTable[[#This Row],[Name]],descriptions[],2,FALSE)","v":"Derived from Landsat satellite data archive and machine learning classification. It analysed the estimate cropland area every 4 years.  In this dataset, cropland is defined as land used for annual and perennial herbaceous crops for human consumption, forage, and biofuel.                                                                                                                                     "}]
["Global Crop land Expansion in the 21st Century: Dataset","Dataset","Global Land Analysis and Discovery (GLAD)","https://glad.earthengine.app/view/global-cropland-dynamics#lon=0;lat=0;zoom=3;","Deforestation and Forest Degradation",null,"Global","Geographical application5","North America",null,{"$f":"VLOOKUP(DescriptionTable[[#This Row],[Name]],descriptions[],2,FALSE)","v":"Derived from Landsat satellite data archive and machine learning classification. It analysed the estimate cropland area every 4 years.  In this dataset, cropland is defined as land used for annual and perennial herbaceous crops for human consumption, forage, and biofuel.                                                                                                                                     "}]
["Primary Humid Tropical Rainforests: Dataset","Dataset","Global Land Analysis and Discovery (GLAD)","https://glad.umd.edu/dataset/primary-forest-humid-tropics","Deforestation and Forest Degradation",null,"Tropical forests in Asia, Africa, Madagascar and Latin America","Geographical application2","Africa",null,{"$f":"VLOOKUP(DescriptionTable[[#This Row],[Name]],descriptions[],2,FALSE)","v":"It maps primary humid tropical forest extent, with primary forest defined as mature natural humid tropical forest cover that has not been cleared and regrown in recent history. "}]
["Primary Humid Tropical Rainforests: Dataset","Dataset","Global Land Analysis and Discovery (GLAD)","https://glad.umd.edu/dataset/primary-forest-humid-tropics","Deforestation and Forest Degradation",null,"Tropical forests in Asia, Africa, Madagascar and Latin America","Geographical application3","Latin America",null,{"$f":"VLOOKUP(DescriptionTable[[#This Row],[Name]],descriptions[],2,FALSE)","v":"It maps primary humid tropical forest extent, with primary forest defined as mature natural humid tropical forest cover that has not been cleared and regrown in recent history. "}]
["Primary Humid Tropical Rainforests: Dataset","Dataset","Global Land Analysis and Discovery (GLAD)","https://glad.umd.edu/dataset/primary-forest-humid-tropics","Deforestation and Forest Degradation",null,"Tropical forests in Asia, Africa, Madagascar and Latin America","Geographical application4","Asia Pacific ",null,{"$f":"VLOOKUP(DescriptionTable[[#This Row],[Name]],descriptions[],2,FALSE)","v":"It maps primary humid tropical forest extent, with primary forest defined as mature natural humid tropical forest cover that has not been cleared and regrown in recent history. "}]
["Fate of Tropical Forest Fragments: Dataset","Dataset","Global Land Analysis and Discovery (GLAD)","https://glad.umd.edu/dataset/fate-tropical-forest-fragments","Deforestation and Forest Degradation",null,"South America, Africa, Southeast Asia","Geographical application2","Africa",null,{"$f":"VLOOKUP(DescriptionTable[[#This Row],[Name]],descriptions[],2,FALSE)","v":"Quantifies the probability of tropical forest loss, including primary forest loss and loss of forests in protected areas, as fragments decrease in size. "}]
["Fate of Tropical Forest Fragments: Dataset","Dataset","Global Land Analysis and Discovery (GLAD)","https://glad.umd.edu/dataset/fate-tropical-forest-fragments","Deforestation and Forest Degradation",null,"South America, Africa, Southeast Asia","Geographical application3","Latin America",null,{"$f":"VLOOKUP(DescriptionTable[[#This Row],[Name]],descriptions[],2,FALSE)","v":"Quantifies the probability of tropical forest loss, including primary forest loss and loss of forests in protected areas, as fragments decrease in size. "}]
["Fate of Tropical Forest Fragments: Dataset","Dataset","Global Land Analysis and Discovery (GLAD)","https://glad.umd.edu/dataset/fate-tropical-forest-fragments","Deforestation and Forest Degradation",null,"South America, Africa, Southeast Asia","Geographical application4","Asia Pacific ",null,{"$f":"VLOOKUP(DescriptionTable[[#This Row],[Name]],descriptions[],2,FALSE)","v":"Quantifies the probability of tropical forest loss, including primary forest loss and loss of forests in protected areas, as fragments decrease in size. "}]
["Pan Tropical Forest Strata: Dataset","Dataset","Global Land Analysis and Discovery (GLAD)","https://glad.umd.edu/dataset/pan-tropical-forest-strata","Deforestation and Forest Degradation",null,"Africa, Latin America, and Southeast Asia","Geographical application2","Africa",null,{"$f":"VLOOKUP(DescriptionTable[[#This Row],[Name]],descriptions[],2,FALSE)","v":"It delineate regions (strata) of tropical forest to estimate aboveground carbon (AGC) loss. The tropical forest strata was defined using tree canopy cover, tree height, and forest intactness, and can separate AGC from natural forest and managed forest."}]
["Pan Tropical Forest Strata: Dataset","Dataset","Global Land Analysis and Discovery (GLAD)","https://glad.umd.edu/dataset/pan-tropical-forest-strata","Deforestation and Forest Degradation",null,"Africa, Latin America, and Southeast Asia","Geographical application3"," Latin America",null,{"$f":"VLOOKUP(DescriptionTable[[#This Row],[Name]],descriptions[],2,FALSE)","v":"It delineate regions (strata) of tropical forest to estimate aboveground carbon (AGC) loss. The tropical forest strata was defined using tree canopy cover, tree height, and forest intactness, and can separate AGC from natural forest and managed forest."}]
["Pan Tropical Forest Strata: Dataset","Dataset","Global Land Analysis and Discovery (GLAD)","https://glad.umd.edu/dataset/pan-tropical-forest-strata","Deforestation and Forest Degradation",null,"Africa, Latin America, and Southeast Asia","Geographical application4","Asia Pacific ",null,{"$f":"VLOOKUP(DescriptionTable[[#This Row],[Name]],descriptions[],2,FALSE)","v":"It delineate regions (strata) of tropical forest to estimate aboveground carbon (AGC) loss. The tropical forest strata was defined using tree canopy cover, tree height, and forest intactness, and can separate AGC from natural forest and managed forest."}]
["Planetary Variables: Dataset","Dataset","Planet","https://www.planet.com/products/planetary-variables/","Deforestation and Forest Degradation",null,"Global","Geographical application2","Africa",null,{"$f":"VLOOKUP(DescriptionTable[[#This Row],[Name]],descriptions[],2,FALSE)","v":"Developed by integrating several data sources, it is a commercial product that allows measuring changes in the conditions on the earth’s surface, with a focus on soil, temperature and biomass. FSC has access to them via the tech consortium. "}]
["Planetary Variables: Dataset","Dataset","Planet","https://www.planet.com/products/planetary-variables/","Deforestation and Forest Degradation",null,"Global","Geographical application3","Latin America",null,{"$f":"VLOOKUP(DescriptionTable[[#This Row],[Name]],descriptions[],2,FALSE)","v":"Developed by integrating several data sources, it is a commercial product that allows measuring changes in the conditions on the earth’s surface, with a focus on soil, temperature and biomass. FSC has access to them via the tech consortium. "}]
["Planetary Variables: Dataset","Dataset","Planet","https://www.planet.com/products/planetary-variables/","Deforestation and Forest Degradation",null,"Global","Geographical application4","Asia Pacific ",null,{"$f":"VLOOKUP(DescriptionTable[[#This Row],[Name]],descriptions[],2,FALSE)","v":"Developed by integrating several data sources, it is a commercial product that allows measuring changes in the conditions on the earth’s surface, with a focus on soil, temperature and biomass. FSC has access to them via the tech consortium. "}]
["Planetary Variables: Dataset","Dataset","Planet","https://www.planet.com/products/planetary-variables/","Deforestation and Forest Degradation",null,"Global","Geographical application42","Europe",null,{"$f":"VLOOKUP(DescriptionTable[[#This Row],[Name]],descriptions[],2,FALSE)","v":"Developed by integrating several data sources, it is a commercial product that allows measuring changes in the conditions on the earth’s surface, with a focus on soil, temperature and biomass. FSC has access to them via the tech consortium. "}]
["Planetary Variables: Dataset","Dataset","Planet","https://www.planet.com/products/planetary-variables/","Deforestation and Forest Degradation",null,"Global","Geographical application5","North America",null,{"$f":"VLOOKUP(DescriptionTable[[#This Row],[Name]],descriptions[],2,FALSE)","v":"Developed by integrating several data sources, it is a commercial product that allows measuring changes in the conditions on the earth’s surface, with a focus on soil, temperature and biomass. FSC has access to them via the tech consortium. "}]
["Global Land Cover: Dataset","Maps and Dataset","Copernicus","https://land.copernicus.eu/global/products/lc","Deforestation and Forest Degradation",null,"Global","Geographical application2","Africa",null,{"$f":"VLOOKUP(DescriptionTable[[#This Row],[Name]],descriptions[],2,FALSE)","v":"The data has 9 landcover classes. Land cover maps represent spatial information on different types (classes) of physical coverage of the Earth's surface, e.g. forests, grasslands, croplands, lakes, wetlands. Dynamic land cover maps include transitions of land cover classes over time and hence captures land cover changes. Land use maps contain spatial information on the arrangements, activities and inputs people undertake in a certain land cover type to produce, change or maintain it."}]
["Global Land Cover: Dataset","Maps and Dataset","Copernicus","https://land.copernicus.eu/global/products/lc","Deforestation and Forest Degradation",null,"Global","Geographical application3","Latin America",null,{"$f":"VLOOKUP(DescriptionTable[[#This Row],[Name]],descriptions[],2,FALSE)","v":"The data has 9 landcover classes. Land cover maps represent spatial information on different types (classes) of physical coverage of the Earth's surface, e.g. forests, grasslands, croplands, lakes, wetlands. Dynamic land cover maps include transitions of land cover classes over time and hence captures land cover changes. Land use maps contain spatial information on the arrangements, activities and inputs people undertake in a certain land cover type to produce, change or maintain it."}]
["Global Land Cover: Dataset","Maps and Dataset","Copernicus","https://land.copernicus.eu/global/products/lc","Deforestation and Forest Degradation",null,"Global","Geographical application4","Asia Pacific ",null,{"$f":"VLOOKUP(DescriptionTable[[#This Row],[Name]],descriptions[],2,FALSE)","v":"The data has 9 landcover classes. Land cover maps represent spatial information on different types (classes) of physical coverage of the Earth's surface, e.g. forests, grasslands, croplands, lakes, wetlands. Dynamic land cover maps include transitions of land cover classes over time and hence captures land cover changes. Land use maps contain spatial information on the arrangements, activities and inputs people undertake in a certain land cover type to produce, change or maintain it."}]
["Global Land Cover: Dataset","Maps and Dataset","Copernicus","https://land.copernicus.eu/global/products/lc","Deforestation and Forest Degradation",null,"Global","Geographical application42","Europe",null,{"$f":"VLOOKUP(DescriptionTable[[#This Row],[Name]],descriptions[],2,FALSE)","v":"The data has 9 landcover classes. Land cover maps represent spatial information on different types (classes) of physical coverage of the Earth's surface, e.g. forests, grasslands, croplands, lakes, wetlands. Dynamic land cover maps include transitions of land cover classes over time and hence captures land cover changes. Land use maps contain spatial information on the arrangements, activities and inputs people undertake in a certain land cover type to produce, change or maintain it."}]
["Global Land Cover: Dataset","Maps and Dataset","Copernicus","https://land.copernicus.eu/global/products/lc","Deforestation and Forest Degradation",null,"Global","Geographical application5","North America",null,{"$f":"VLOOKUP(DescriptionTable[[#This Row],[Name]],descriptions[],2,FALSE)","v":"The data has 9 landcover classes. Land cover maps represent spatial information on different types (classes) of physical coverage of the Earth's surface, e.g. forests, grasslands, croplands, lakes, wetlands. Dynamic land cover maps include transitions of land cover classes over time and hence captures land cover changes. Land use maps contain spatial information on the arrangements, activities and inputs people undertake in a certain land cover type to produce, change or maintain it."}]
["Global Forest Resources Assessments Country Reports ","Database","UN Food and Agriculture Programme (FAO)","https://www.fao.org/forest-resources-assessment/fra-2020/country-reports/en/","Deforestation and Forest Degradation",null,"Global","Geographical application2","Africa",null,{"$f":"VLOOKUP(DescriptionTable[[#This Row],[Name]],descriptions[],2,FALSE)","v":"The information provided by the Global Forest Resources Assessment (FRA) presents a comprehensive view of the world’s forests and the ways in which the resource is changing. Supports the development of sound policies, practices and investments affecting forests and forestry."}]
["Global Forest Resources Assessments Country Reports ","Database","UN Food and Agriculture Programme (FAO)","https://www.fao.org/forest-resources-assessment/fra-2020/country-reports/en/","Deforestation and Forest Degradation",null,"Global","Geographical application3","Latin America",null,{"$f":"VLOOKUP(DescriptionTable[[#This Row],[Name]],descriptions[],2,FALSE)","v":"The information provided by the Global Forest Resources Assessment (FRA) presents a comprehensive view of the world’s forests and the ways in which the resource is changing. Supports the development of sound policies, practices and investments affecting forests and forestry."}]
["Global Forest Resources Assessments Country Reports ","Database","UN Food and Agriculture Programme (FAO)","https://www.fao.org/forest-resources-assessment/fra-2020/country-reports/en/","Deforestation and Forest Degradation",null,"Global","Geographical application4","Asia Pacific ",null,{"$f":"VLOOKUP(DescriptionTable[[#This Row],[Name]],descriptions[],2,FALSE)","v":"The information provided by the Global Forest Resources Assessment (FRA) presents a comprehensive view of the world’s forests and the ways in which the resource is changing. Supports the development of sound policies, practices and investments affecting forests and forestry."}]
["Global Forest Resources Assessments Country Reports ","Database","UN Food and Agriculture Programme (FAO)","https://www.fao.org/forest-resources-assessment/fra-2020/country-reports/en/","Deforestation and Forest Degradation",null,"Global","Geographical application42","Europe",null,{"$f":"VLOOKUP(DescriptionTable[[#This Row],[Name]],descriptions[],2,FALSE)","v":"The information provided by the Global Forest Resources Assessment (FRA) presents a comprehensive view of the world’s forests and the ways in which the resource is changing. Supports the development of sound policies, practices and investments affecting forests and forestry."}]
["Global Forest Resources Assessments Country Reports ","Database","UN Food and Agriculture Programme (FAO)","https://www.fao.org/forest-resources-assessment/fra-2020/country-reports/en/","Deforestation and Forest Degradation",null,"Global","Geographical application5","North America",null,{"$f":"VLOOKUP(DescriptionTable[[#This Row],[Name]],descriptions[],2,FALSE)","v":"The information provided by the Global Forest Resources Assessment (FRA) presents a comprehensive view of the world’s forests and the ways in which the resource is changing. Supports the development of sound policies, practices and investments affecting forests and forestry."}]
["Information Sources in REDD+ data (Reducing Emissions from Deforestation and Forest Degradation)","Database","UN Food and Agriculture Programme (FAO)","https://www.fao.org/redd/information-resources/publications/en/","Deforestation and Forest Degradation",null,"Global","Geographical application2","Africa",null,{"$f":"VLOOKUP(DescriptionTable[[#This Row],[Name]],descriptions[],2,FALSE)","v":"The aim of REDD+ is to encourage developing countries to contribute to climate change mitigation efforts by reducing greenhouse gas emissions (GHG) by slowing, halting and reversing forest loss and degradation, and increasing removal of GHGs from the earth’s atmosphere through the conservation, management and expansion of forests. Countries interested in REDD+ are required to progress through three phases, which are closely linked with one another: readiness phase, implementation of national strategies and results-based demonstration activities, and results-based demonstration activities. The information sources provides a set of information sources (e-learning, multimedia, publications, and tools) related to the REDD+ mitigation measures stated above. "}]
["Information Sources in REDD+ data (Reducing Emissions from Deforestation and Forest Degradation)","Database","UN Food and Agriculture Programme (FAO)","https://www.fao.org/redd/information-resources/publications/en/","Deforestation and Forest Degradation",null,"Global","Geographical application3","Latin America",null,{"$f":"VLOOKUP(DescriptionTable[[#This Row],[Name]],descriptions[],2,FALSE)","v":"The aim of REDD+ is to encourage developing countries to contribute to climate change mitigation efforts by reducing greenhouse gas emissions (GHG) by slowing, halting and reversing forest loss and degradation, and increasing removal of GHGs from the earth’s atmosphere through the conservation, management and expansion of forests. Countries interested in REDD+ are required to progress through three phases, which are closely linked with one another: readiness phase, implementation of national strategies and results-based demonstration activities, and results-based demonstration activities. The information sources provides a set of information sources (e-learning, multimedia, publications, and tools) related to the REDD+ mitigation measures stated above. "}]
["Information Sources in REDD+ data (Reducing Emissions from Deforestation and Forest Degradation)","Database","UN Food and Agriculture Programme (FAO)","https://www.fao.org/redd/information-resources/publications/en/","Deforestation and Forest Degradation",null,"Global","Geographical application4","Asia Pacific ",null,{"$f":"VLOOKUP(DescriptionTable[[#This Row],[Name]],descriptions[],2,FALSE)","v":"The aim of REDD+ is to encourage developing countries to contribute to climate change mitigation efforts by reducing greenhouse gas emissions (GHG) by slowing, halting and reversing forest loss and degradation, and increasing removal of GHGs from the earth’s atmosphere through the conservation, management and expansion of forests. Countries interested in REDD+ are required to progress through three phases, which are closely linked with one another: readiness phase, implementation of national strategies and results-based demonstration activities, and results-based demonstration activities. The information sources provides a set of information sources (e-learning, multimedia, publications, and tools) related to the REDD+ mitigation measures stated above. "}]
["Information Sources in REDD+ data (Reducing Emissions from Deforestation and Forest Degradation)","Database","UN Food and Agriculture Programme (FAO)","https://www.fao.org/redd/information-resources/publications/en/","Deforestation and Forest Degradation",null,"Global","Geographical application42","Europe",null,{"$f":"VLOOKUP(DescriptionTable[[#This Row],[Name]],descriptions[],2,FALSE)","v":"The aim of REDD+ is to encourage developing countries to contribute to climate change mitigation efforts by reducing greenhouse gas emissions (GHG) by slowing, halting and reversing forest loss and degradation, and increasing removal of GHGs from the earth’s atmosphere through the conservation, management and expansion of forests. Countries interested in REDD+ are required to progress through three phases, which are closely linked with one another: readiness phase, implementation of national strategies and results-based demonstration activities, and results-based demonstration activities. The information sources provides a set of information sources (e-learning, multimedia, publications, and tools) related to the REDD+ mitigation measures stated above. "}]
["Information Sources in REDD+ data (Reducing Emissions from Deforestation and Forest Degradation)","Database","UN Food and Agriculture Programme (FAO)","https://www.fao.org/redd/information-resources/publications/en/","Deforestation and Forest Degradation",null,"Global","Geographical application5","North America",null,{"$f":"VLOOKUP(DescriptionTable[[#This Row],[Name]],descriptions[],2,FALSE)","v":"The aim of REDD+ is to encourage developing countries to contribute to climate change mitigation efforts by reducing greenhouse gas emissions (GHG) by slowing, halting and reversing forest loss and degradation, and increasing removal of GHGs from the earth’s atmosphere through the conservation, management and expansion of forests. Countries interested in REDD+ are required to progress through three phases, which are closely linked with one another: readiness phase, implementation of national strategies and results-based demonstration activities, and results-based demonstration activities. The information sources provides a set of information sources (e-learning, multimedia, publications, and tools) related to the REDD+ mitigation measures stated above. "}]
["GeneWatch UK (reports/consultations/press articles)","List of publications","GeneWatch UK","http://www.genewatch.org/sub-569314","Genetically Modified Organisms",null,"Global","Geographical application2","Africa",null,{"$f":"VLOOKUP(DescriptionTable[[#This Row],[Name]],descriptions[],2,FALSE)","v":"Serves as knowledge dissemination of the GeneWatch on Genetically modified Trees (GM Trees). Consists of reports, consultation responses, press articles and external links related to the GeneWatch measures on GM Trees."}]
["GeneWatch UK (reports/consultations/press articles)","List of publications","GeneWatch UK","http://www.genewatch.org/sub-569314","Genetically Modified Organisms",null,"Global","Geographical application3","Latin America",null,{"$f":"VLOOKUP(DescriptionTable[[#This Row],[Name]],descriptions[],2,FALSE)","v":"Serves as knowledge dissemination of the GeneWatch on Genetically modified Trees (GM Trees). Consists of reports, consultation responses, press articles and external links related to the GeneWatch measures on GM Trees."}]
["GeneWatch UK (reports/consultations/press articles)","List of publications","GeneWatch UK","http://www.genewatch.org/sub-569314","Genetically Modified Organisms",null,"Global","Geographical application4","Asia Pacific ",null,{"$f":"VLOOKUP(DescriptionTable[[#This Row],[Name]],descriptions[],2,FALSE)","v":"Serves as knowledge dissemination of the GeneWatch on Genetically modified Trees (GM Trees). Consists of reports, consultation responses, press articles and external links related to the GeneWatch measures on GM Trees."}]
["GeneWatch UK (reports/consultations/press articles)","List of publications","GeneWatch UK","http://www.genewatch.org/sub-569314","Genetically Modified Organisms",null,"Global","Geographical application42","Europe",null,{"$f":"VLOOKUP(DescriptionTable[[#This Row],[Name]],descriptions[],2,FALSE)","v":"Serves as knowledge dissemination of the GeneWatch on Genetically modified Trees (GM Trees). Consists of reports, consultation responses, press articles and external links related to the GeneWatch measures on GM Trees."}]
["GeneWatch UK (reports/consultations/press articles)","List of publications","GeneWatch UK","http://www.genewatch.org/sub-569314","Genetically Modified Organisms",null,"Global","Geographical application5","North America",null,{"$f":"VLOOKUP(DescriptionTable[[#This Row],[Name]],descriptions[],2,FALSE)","v":"Serves as knowledge dissemination of the GeneWatch on Genetically modified Trees (GM Trees). Consists of reports, consultation responses, press articles and external links related to the GeneWatch measures on GM Trees."}]
["World Rainforest Movement publications","List of publications","World Rainforest Movement","https://www.wrm.org.uy/publications","Genetically Modified Organisms",null,"Global","Geographical application2","Africa",null,{"$f":"VLOOKUP(DescriptionTable[[#This Row],[Name]],descriptions[],2,FALSE)","v":"Publishes books, reports, booklets and brochures, both on its own and in conjunction with partner organizations. Content can be filtered by subject and country, and is free to download."}]
["World Rainforest Movement publications","List of publications","World Rainforest Movement","https://www.wrm.org.uy/publications","Genetically Modified Organisms",null,"Global","Geographical application3","Latin America",null,{"$f":"VLOOKUP(DescriptionTable[[#This Row],[Name]],descriptions[],2,FALSE)","v":"Publishes books, reports, booklets and brochures, both on its own and in conjunction with partner organizations. Content can be filtered by subject and country, and is free to download."}]
["World Rainforest Movement publications","List of publications","World Rainforest Movement","https://www.wrm.org.uy/publications","Genetically Modified Organisms",null,"Global","Geographical application4","Asia Pacific ",null,{"$f":"VLOOKUP(DescriptionTable[[#This Row],[Name]],descriptions[],2,FALSE)","v":"Publishes books, reports, booklets and brochures, both on its own and in conjunction with partner organizations. Content can be filtered by subject and country, and is free to download."}]
["World Rainforest Movement publications","List of publications","World Rainforest Movement","https://www.wrm.org.uy/publications","Genetically Modified Organisms",null,"Global","Geographical application42","Europe",null,{"$f":"VLOOKUP(DescriptionTable[[#This Row],[Name]],descriptions[],2,FALSE)","v":"Publishes books, reports, booklets and brochures, both on its own and in conjunction with partner organizations. Content can be filtered by subject and country, and is free to download."}]
["World Rainforest Movement publications","List of publications","World Rainforest Movement","https://www.wrm.org.uy/publications","Genetically Modified Organisms",null,"Global","Geographical application5","North America",null,{"$f":"VLOOKUP(DescriptionTable[[#This Row],[Name]],descriptions[],2,FALSE)","v":"Publishes books, reports, booklets and brochures, both on its own and in conjunction with partner organizations. Content can be filtered by subject and country, and is free to download."}]
["Forests and Genetically Modified Trees","Report/Document","UN Food and Agriculture Programme (FAO)","https://www.fao.org/3/i1699e/i1699e.pdf","Genetically Modified Organisms",null,"Global","Geographical application2","Africa",null,{"$f":"VLOOKUP(DescriptionTable[[#This Row],[Name]],descriptions[],2,FALSE)","v":"The publication covers deals with the science of genetic engineering in forest trees: the position of genetic engineering in the biotechnology spectrum, how it is carried out, traits of interest, gene flow, genetic containment, integration of the technology in tree improvement programmes and ethical, environmental, social, regulatory and trade aspects, and examines the technology’s potential outside the realm of timber production."}]
["Forests and Genetically Modified Trees","Report/Document","UN Food and Agriculture Programme (FAO)","https://www.fao.org/3/i1699e/i1699e.pdf","Genetically Modified Organisms",null,"Global","Geographical application3","Latin America",null,{"$f":"VLOOKUP(DescriptionTable[[#This Row],[Name]],descriptions[],2,FALSE)","v":"The publication covers deals with the science of genetic engineering in forest trees: the position of genetic engineering in the biotechnology spectrum, how it is carried out, traits of interest, gene flow, genetic containment, integration of the technology in tree improvement programmes and ethical, environmental, social, regulatory and trade aspects, and examines the technology’s potential outside the realm of timber production."}]
["Forests and Genetically Modified Trees","Report/Document","UN Food and Agriculture Programme (FAO)","https://www.fao.org/3/i1699e/i1699e.pdf","Genetically Modified Organisms",null,"Global","Geographical application4","Asia Pacific ",null,{"$f":"VLOOKUP(DescriptionTable[[#This Row],[Name]],descriptions[],2,FALSE)","v":"The publication covers deals with the science of genetic engineering in forest trees: the position of genetic engineering in the biotechnology spectrum, how it is carried out, traits of interest, gene flow, genetic containment, integration of the technology in tree improvement programmes and ethical, environmental, social, regulatory and trade aspects, and examines the technology’s potential outside the realm of timber production."}]
["Forests and Genetically Modified Trees","Report/Document","UN Food and Agriculture Programme (FAO)","https://www.fao.org/3/i1699e/i1699e.pdf","Genetically Modified Organisms",null,"Global","Geographical application42","Europe",null,{"$f":"VLOOKUP(DescriptionTable[[#This Row],[Name]],descriptions[],2,FALSE)","v":"The publication covers deals with the science of genetic engineering in forest trees: the position of genetic engineering in the biotechnology spectrum, how it is carried out, traits of interest, gene flow, genetic containment, integration of the technology in tree improvement programmes and ethical, environmental, social, regulatory and trade aspects, and examines the technology’s potential outside the realm of timber production."}]
["Forests and Genetically Modified Trees","Report/Document","UN Food and Agriculture Programme (FAO)","https://www.fao.org/3/i1699e/i1699e.pdf","Genetically Modified Organisms",null,"Global","Geographical application5","North America",null,{"$f":"VLOOKUP(DescriptionTable[[#This Row],[Name]],descriptions[],2,FALSE)","v":"The publication covers deals with the science of genetic engineering in forest trees: the position of genetic engineering in the biotechnology spectrum, how it is carried out, traits of interest, gene flow, genetic containment, integration of the technology in tree improvement programmes and ethical, environmental, social, regulatory and trade aspects, and examines the technology’s potential outside the realm of timber production."}]
["FAO: Search Entries on Genetically Modified Organisms (GMO)","Database","UN Food and Agriculture Programme (FAO)","https://www.fao.org/common-pages/search/en/?q=GMO+forestry","Genetically Modified Organisms",null,"Global","Geographical application2","Africa",null,{"$f":"VLOOKUP(DescriptionTable[[#This Row],[Name]],descriptions[],2,FALSE)","v":"The Food and Agriculture Organization (FAO) is a specialized agency of the United Nations that leads international efforts to defeat hunger. The search entries on GMO (Genetically Modified Organisms) and GMO Forestry lists down sources of information related to this field that are listed under the UN FAO website classified under the categories: Data, Projects, News, Themes and Publications."}]
["FAO: Search Entries on Genetically Modified Organisms (GMO)","Database","UN Food and Agriculture Programme (FAO)","https://www.fao.org/common-pages/search/en/?q=GMO+forestry","Genetically Modified Organisms",null,"Global","Geographical application3","Latin America",null,{"$f":"VLOOKUP(DescriptionTable[[#This Row],[Name]],descriptions[],2,FALSE)","v":"The Food and Agriculture Organization (FAO) is a specialized agency of the United Nations that leads international efforts to defeat hunger. The search entries on GMO (Genetically Modified Organisms) and GMO Forestry lists down sources of information related to this field that are listed under the UN FAO website classified under the categories: Data, Projects, News, Themes and Publications."}]
["FAO: Search Entries on Genetically Modified Organisms (GMO)","Database","UN Food and Agriculture Programme (FAO)","https://www.fao.org/common-pages/search/en/?q=GMO+forestry","Genetically Modified Organisms",null,"Global","Geographical application4","Asia Pacific ",null,{"$f":"VLOOKUP(DescriptionTable[[#This Row],[Name]],descriptions[],2,FALSE)","v":"The Food and Agriculture Organization (FAO) is a specialized agency of the United Nations that leads international efforts to defeat hunger. The search entries on GMO (Genetically Modified Organisms) and GMO Forestry lists down sources of information related to this field that are listed under the UN FAO website classified under the categories: Data, Projects, News, Themes and Publications."}]
["FAO: Search Entries on Genetically Modified Organisms (GMO)","Database","UN Food and Agriculture Programme (FAO)","https://www.fao.org/common-pages/search/en/?q=GMO+forestry","Genetically Modified Organisms",null,"Global","Geographical application42","Europe",null,{"$f":"VLOOKUP(DescriptionTable[[#This Row],[Name]],descriptions[],2,FALSE)","v":"The Food and Agriculture Organization (FAO) is a specialized agency of the United Nations that leads international efforts to defeat hunger. The search entries on GMO (Genetically Modified Organisms) and GMO Forestry lists down sources of information related to this field that are listed under the UN FAO website classified under the categories: Data, Projects, News, Themes and Publications."}]
["FAO: Search Entries on Genetically Modified Organisms (GMO)","Database","UN Food and Agriculture Programme (FAO)","https://www.fao.org/common-pages/search/en/?q=GMO+forestry","Genetically Modified Organisms",null,"Global","Geographical application5","North America",null,{"$f":"VLOOKUP(DescriptionTable[[#This Row],[Name]],descriptions[],2,FALSE)","v":"The Food and Agriculture Organization (FAO) is a specialized agency of the United Nations that leads international efforts to defeat hunger. The search entries on GMO (Genetically Modified Organisms) and GMO Forestry lists down sources of information related to this field that are listed under the UN FAO website classified under the categories: Data, Projects, News, Themes and Publications."}]
["Convention on International Trade in Endangered Species of Wild Fauna and Flora ","Report/Document","CITES","https://cites.org/eng/disc/text.php","Classification of species, quantities and qualities",null,"Global","Geographical application2","Africa",null,{"$f":"VLOOKUP(DescriptionTable[[#This Row],[Name]],descriptions[],2,FALSE)","v":"CITES is an international agreement between governments, with its aim to ensure that international trade in specimens of wild animals and plants does not threaten the survival of the species. Drafted as a result of a resolution adopted in 1963 at a meeting of members of IUCN (The World Conservation Union). The text of the Convention was finally agreed at a meeting of representatives of 80 countries in Washington, D.C., United States of America."}]
["Convention on International Trade in Endangered Species of Wild Fauna and Flora ","Report/Document","CITES","https://cites.org/eng/disc/text.php","Classification of species, quantities and qualities",null,"Global","Geographical application3","Latin America",null,{"$f":"VLOOKUP(DescriptionTable[[#This Row],[Name]],descriptions[],2,FALSE)","v":"CITES is an international agreement between governments, with its aim to ensure that international trade in specimens of wild animals and plants does not threaten the survival of the species. Drafted as a result of a resolution adopted in 1963 at a meeting of members of IUCN (The World Conservation Union). The text of the Convention was finally agreed at a meeting of representatives of 80 countries in Washington, D.C., United States of America."}]
["Convention on International Trade in Endangered Species of Wild Fauna and Flora ","Report/Document","CITES","https://cites.org/eng/disc/text.php","Classification of species, quantities and qualities",null,"Global","Geographical application4","Asia Pacific ",null,{"$f":"VLOOKUP(DescriptionTable[[#This Row],[Name]],descriptions[],2,FALSE)","v":"CITES is an international agreement between governments, with its aim to ensure that international trade in specimens of wild animals and plants does not threaten the survival of the species. Drafted as a result of a resolution adopted in 1963 at a meeting of members of IUCN (The World Conservation Union). The text of the Convention was finally agreed at a meeting of representatives of 80 countries in Washington, D.C., United States of America."}]
["Convention on International Trade in Endangered Species of Wild Fauna and Flora ","Report/Document","CITES","https://cites.org/eng/disc/text.php","Classification of species, quantities and qualities",null,"Global","Geographical application42","Europe",null,{"$f":"VLOOKUP(DescriptionTable[[#This Row],[Name]],descriptions[],2,FALSE)","v":"CITES is an international agreement between governments, with its aim to ensure that international trade in specimens of wild animals and plants does not threaten the survival of the species. Drafted as a result of a resolution adopted in 1963 at a meeting of members of IUCN (The World Conservation Union). The text of the Convention was finally agreed at a meeting of representatives of 80 countries in Washington, D.C., United States of America."}]
["Convention on International Trade in Endangered Species of Wild Fauna and Flora ","Report/Document","CITES","https://cites.org/eng/disc/text.php","Classification of species, quantities and qualities",null,"Global","Geographical application5","North America",null,{"$f":"VLOOKUP(DescriptionTable[[#This Row],[Name]],descriptions[],2,FALSE)","v":"CITES is an international agreement between governments, with its aim to ensure that international trade in specimens of wild animals and plants does not threaten the survival of the species. Drafted as a result of a resolution adopted in 1963 at a meeting of members of IUCN (The World Conservation Union). The text of the Convention was finally agreed at a meeting of representatives of 80 countries in Washington, D.C., United States of America."}]
["ILO Declaration on Fundamental Principles and Rights at Work: annual review reports ","List of publications","International Labour Organization (ILO)","http://www.ilo.org/declaration/lang--en/index.htm","Human Rights protected under International Law",null,"Global","Geographical application2","Africa",null,{"$f":"VLOOKUP(DescriptionTable[[#This Row],[Name]],descriptions[],2,FALSE)","v":"Adopted in 1998 and amended in 2022, is an expression of commitment by governments, employers' and workers' organizations to uphold basic human values - values that are vital to our social and economic lives. It affirms the obligations and commitments that are inherent in membership of the ILO, namely: a) freedom of association and the effective recognition of the right to collective bargaining; b) the elimination of all forms of forced or compulsory labour; c) the effective abolition of child labour; d) the elimination of discrimination in respect of employment and occupation; and e) a safe and healthy working environment."}]
["ILO Declaration on Fundamental Principles and Rights at Work: annual review reports ","List of publications","International Labour Organization (ILO)","http://www.ilo.org/declaration/lang--en/index.htm","Human Rights protected under International Law",null,"Global","Geographical application3","Latin America",null,{"$f":"VLOOKUP(DescriptionTable[[#This Row],[Name]],descriptions[],2,FALSE)","v":"Adopted in 1998 and amended in 2022, is an expression of commitment by governments, employers' and workers' organizations to uphold basic human values - values that are vital to our social and economic lives. It affirms the obligations and commitments that are inherent in membership of the ILO, namely: a) freedom of association and the effective recognition of the right to collective bargaining; b) the elimination of all forms of forced or compulsory labour; c) the effective abolition of child labour; d) the elimination of discrimination in respect of employment and occupation; and e) a safe and healthy working environment."}]
["ILO Declaration on Fundamental Principles and Rights at Work: annual review reports ","List of publications","International Labour Organization (ILO)","http://www.ilo.org/declaration/lang--en/index.htm","Human Rights protected under International Law",null,"Global","Geographical application4","Asia Pacific ",null,{"$f":"VLOOKUP(DescriptionTable[[#This Row],[Name]],descriptions[],2,FALSE)","v":"Adopted in 1998 and amended in 2022, is an expression of commitment by governments, employers' and workers' organizations to uphold basic human values - values that are vital to our social and economic lives. It affirms the obligations and commitments that are inherent in membership of the ILO, namely: a) freedom of association and the effective recognition of the right to collective bargaining; b) the elimination of all forms of forced or compulsory labour; c) the effective abolition of child labour; d) the elimination of discrimination in respect of employment and occupation; and e) a safe and healthy working environment."}]
["ILO Declaration on Fundamental Principles and Rights at Work: annual review reports ","List of publications","International Labour Organization (ILO)","http://www.ilo.org/declaration/lang--en/index.htm","Human Rights protected under International Law",null,"Global","Geographical application42","Europe",null,{"$f":"VLOOKUP(DescriptionTable[[#This Row],[Name]],descriptions[],2,FALSE)","v":"Adopted in 1998 and amended in 2022, is an expression of commitment by governments, employers' and workers' organizations to uphold basic human values - values that are vital to our social and economic lives. It affirms the obligations and commitments that are inherent in membership of the ILO, namely: a) freedom of association and the effective recognition of the right to collective bargaining; b) the elimination of all forms of forced or compulsory labour; c) the effective abolition of child labour; d) the elimination of discrimination in respect of employment and occupation; and e) a safe and healthy working environment."}]
["ILO Declaration on Fundamental Principles and Rights at Work: annual review reports ","List of publications","International Labour Organization (ILO)","http://www.ilo.org/declaration/lang--en/index.htm","Human Rights protected under International Law",null,"Global","Geographical application5","North America",null,{"$f":"VLOOKUP(DescriptionTable[[#This Row],[Name]],descriptions[],2,FALSE)","v":"Adopted in 1998 and amended in 2022, is an expression of commitment by governments, employers' and workers' organizations to uphold basic human values - values that are vital to our social and economic lives. It affirms the obligations and commitments that are inherent in membership of the ILO, namely: a) freedom of association and the effective recognition of the right to collective bargaining; b) the elimination of all forms of forced or compulsory labour; c) the effective abolition of child labour; d) the elimination of discrimination in respect of employment and occupation; and e) a safe and healthy working environment."}]
["ILO Conventions Database","Database","International Labour Organization (ILO)","http://www.ilo.org/dyn/normlex/en/f?p=NORMLEXPUB:12000:0::NO","Human Rights protected under international law",null,"Global","Geographical application2","Africa",null,{"$f":"VLOOKUP(DescriptionTable[[#This Row],[Name]],descriptions[],2,FALSE)","v":"Lists down the convensions of ILO in three different categories: Fundamental, Governance (Priority) and Technical."}]
["ILO Conventions Database","Database","International Labour Organization (ILO)","http://www.ilo.org/dyn/normlex/en/f?p=NORMLEXPUB:12000:0::NO","Human Rights protected under international law",null,"Global","Geographical application3","Latin America",null,{"$f":"VLOOKUP(DescriptionTable[[#This Row],[Name]],descriptions[],2,FALSE)","v":"Lists down the convensions of ILO in three different categories: Fundamental, Governance (Priority) and Technical."}]
["ILO Conventions Database","Database","International Labour Organization (ILO)","http://www.ilo.org/dyn/normlex/en/f?p=NORMLEXPUB:12000:0::NO","Human Rights protected under international law",null,"Global","Geographical application4","Asia Pacific ",null,{"$f":"VLOOKUP(DescriptionTable[[#This Row],[Name]],descriptions[],2,FALSE)","v":"Lists down the convensions of ILO in three different categories: Fundamental, Governance (Priority) and Technical."}]
["ILO Conventions Database","Database","International Labour Organization (ILO)","http://www.ilo.org/dyn/normlex/en/f?p=NORMLEXPUB:12000:0::NO","Human Rights protected under international law",null,"Global","Geographical application42","Europe",null,{"$f":"VLOOKUP(DescriptionTable[[#This Row],[Name]],descriptions[],2,FALSE)","v":"Lists down the convensions of ILO in three different categories: Fundamental, Governance (Priority) and Technical."}]
["ILO Conventions Database","Database","International Labour Organization (ILO)","http://www.ilo.org/dyn/normlex/en/f?p=NORMLEXPUB:12000:0::NO","Human Rights protected under international law",null,"Global","Geographical application5","North America",null,{"$f":"VLOOKUP(DescriptionTable[[#This Row],[Name]],descriptions[],2,FALSE)","v":"Lists down the convensions of ILO in three different categories: Fundamental, Governance (Priority) and Technical."}]
["ILO Helpdesk for Business on International Labour Standards ","Database","International Labour Organization (ILO)","http://www.ilo.org/empent/areas/business-helpdesk/lang--en/index.htm","Human Rights protected under international law",null,"Global","Geographical application2","Africa",null,{"$f":"VLOOKUP(DescriptionTable[[#This Row],[Name]],descriptions[],2,FALSE)","v":"Provides information on a wide range of labour topics, all included in the ILO MNE Declaration (Tripartite declaration of principles concerning multinational enterprises and social policy). It also assists companies as well as workers' and employers' organizations in conducting due diligence, according to the provisions in the MNE Declaration."}]
["ILO Helpdesk for Business on International Labour Standards ","Database","International Labour Organization (ILO)","http://www.ilo.org/empent/areas/business-helpdesk/lang--en/index.htm","Human Rights protected under international law",null,"Global","Geographical application3","Latin America",null,{"$f":"VLOOKUP(DescriptionTable[[#This Row],[Name]],descriptions[],2,FALSE)","v":"Provides information on a wide range of labour topics, all included in the ILO MNE Declaration (Tripartite declaration of principles concerning multinational enterprises and social policy). It also assists companies as well as workers' and employers' organizations in conducting due diligence, according to the provisions in the MNE Declaration."}]
["ILO Helpdesk for Business on International Labour Standards ","Database","International Labour Organization (ILO)","http://www.ilo.org/empent/areas/business-helpdesk/lang--en/index.htm","Human Rights protected under international law",null,"Global","Geographical application4","Asia Pacific ",null,{"$f":"VLOOKUP(DescriptionTable[[#This Row],[Name]],descriptions[],2,FALSE)","v":"Provides information on a wide range of labour topics, all included in the ILO MNE Declaration (Tripartite declaration of principles concerning multinational enterprises and social policy). It also assists companies as well as workers' and employers' organizations in conducting due diligence, according to the provisions in the MNE Declaration."}]
["ILO Helpdesk for Business on International Labour Standards ","Database","International Labour Organization (ILO)","http://www.ilo.org/empent/areas/business-helpdesk/lang--en/index.htm","Human Rights protected under international law",null,"Global","Geographical application42","Europe",null,{"$f":"VLOOKUP(DescriptionTable[[#This Row],[Name]],descriptions[],2,FALSE)","v":"Provides information on a wide range of labour topics, all included in the ILO MNE Declaration (Tripartite declaration of principles concerning multinational enterprises and social policy). It also assists companies as well as workers' and employers' organizations in conducting due diligence, according to the provisions in the MNE Declaration."}]
["ILO Helpdesk for Business on International Labour Standards ","Database","International Labour Organization (ILO)","http://www.ilo.org/empent/areas/business-helpdesk/lang--en/index.htm","Human Rights protected under international law",null,"Global","Geographical application5","North America",null,{"$f":"VLOOKUP(DescriptionTable[[#This Row],[Name]],descriptions[],2,FALSE)","v":"Provides information on a wide range of labour topics, all included in the ILO MNE Declaration (Tripartite declaration of principles concerning multinational enterprises and social policy). It also assists companies as well as workers' and employers' organizations in conducting due diligence, according to the provisions in the MNE Declaration."}]
["Committee on the Elimination of Discrimination against Women (CEDAW): States parties reporting","Database","UN Committee on the Elimination of Discrimination against Women (CEDAW)","https://www.ohchr.org/en/treaty-bodies/cedaw","Human Rights protected under international law",null,"Global","Geographical application2","Africa",null,{"$f":"VLOOKUP(DescriptionTable[[#This Row],[Name]],descriptions[],2,FALSE)","v":"Lists down country-wise information sources/ reports related to the issues on Discrimination against Women."}]
["Committee on the Elimination of Discrimination against Women (CEDAW): States parties reporting","Database","UN Committee on the Elimination of Discrimination against Women (CEDAW)","https://www.ohchr.org/en/treaty-bodies/cedaw","Human Rights protected under international law",null,"Global","Geographical application3","Latin America",null,{"$f":"VLOOKUP(DescriptionTable[[#This Row],[Name]],descriptions[],2,FALSE)","v":"Lists down country-wise information sources/ reports related to the issues on Discrimination against Women."}]
["Committee on the Elimination of Discrimination against Women (CEDAW): States parties reporting","Database","UN Committee on the Elimination of Discrimination against Women (CEDAW)","https://www.ohchr.org/en/treaty-bodies/cedaw","Human Rights protected under international law",null,"Global","Geographical application4","Asia Pacific ",null,{"$f":"VLOOKUP(DescriptionTable[[#This Row],[Name]],descriptions[],2,FALSE)","v":"Lists down country-wise information sources/ reports related to the issues on Discrimination against Women."}]
["Committee on the Elimination of Discrimination against Women (CEDAW): States parties reporting","Database","UN Committee on the Elimination of Discrimination against Women (CEDAW)","https://www.ohchr.org/en/treaty-bodies/cedaw","Human Rights protected under international law",null,"Global","Geographical application42","Europe",null,{"$f":"VLOOKUP(DescriptionTable[[#This Row],[Name]],descriptions[],2,FALSE)","v":"Lists down country-wise information sources/ reports related to the issues on Discrimination against Women."}]
["Committee on the Elimination of Discrimination against Women (CEDAW): States parties reporting","Database","UN Committee on the Elimination of Discrimination against Women (CEDAW)","https://www.ohchr.org/en/treaty-bodies/cedaw","Human Rights protected under international law",null,"Global","Geographical application5","North America",null,{"$f":"VLOOKUP(DescriptionTable[[#This Row],[Name]],descriptions[],2,FALSE)","v":"Lists down country-wise information sources/ reports related to the issues on Discrimination against Women."}]
["Global Witness: Country Reports","Database","Global Witness","www.globalwitness.org","Human Rights protected under international law",null,"Global","Geographical application2","Africa",null,{"$f":"VLOOKUP(DescriptionTable[[#This Row],[Name]],descriptions[],2,FALSE)","v":"Focus on abusive actors, misuse of power and financial flows, but have turned our focus on some of the most urgent issues facing humanity: the climate emergency and attacks on civic space."}]
["Global Witness: Country Reports","Database","Global Witness","www.globalwitness.org","Human Rights protected under international law",null,"Global","Geographical application3","Latin America",null,{"$f":"VLOOKUP(DescriptionTable[[#This Row],[Name]],descriptions[],2,FALSE)","v":"Focus on abusive actors, misuse of power and financial flows, but have turned our focus on some of the most urgent issues facing humanity: the climate emergency and attacks on civic space."}]
["Global Witness: Country Reports","Database","Global Witness","www.globalwitness.org","Human Rights protected under international law",null,"Global","Geographical application4","Asia Pacific ",null,{"$f":"VLOOKUP(DescriptionTable[[#This Row],[Name]],descriptions[],2,FALSE)","v":"Focus on abusive actors, misuse of power and financial flows, but have turned our focus on some of the most urgent issues facing humanity: the climate emergency and attacks on civic space."}]
["Global Witness: Country Reports","Database","Global Witness","www.globalwitness.org","Human Rights protected under international law",null,"Global","Geographical application42","Europe",null,{"$f":"VLOOKUP(DescriptionTable[[#This Row],[Name]],descriptions[],2,FALSE)","v":"Focus on abusive actors, misuse of power and financial flows, but have turned our focus on some of the most urgent issues facing humanity: the climate emergency and attacks on civic space."}]
["Global Witness: Country Reports","Database","Global Witness","www.globalwitness.org","Human Rights protected under international law",null,"Global","Geographical application5","North America",null,{"$f":"VLOOKUP(DescriptionTable[[#This Row],[Name]],descriptions[],2,FALSE)","v":"Focus on abusive actors, misuse of power and financial flows, but have turned our focus on some of the most urgent issues facing humanity: the climate emergency and attacks on civic space."}]
["Human Rights Watch: Country Profiles","Database","Human Rights Watch","http://www.hrw.org/","Human Rights protected under international law",null,"Global","Geographical application2","Africa",null,{"$f":"VLOOKUP(DescriptionTable[[#This Row],[Name]],descriptions[],2,FALSE)","v":"Investigates and reports by country experts, lawyers, journalists, and others who work to protect the most at risk on abuses happening in all corners of the world. "}]
["Human Rights Watch: Country Profiles","Database","Human Rights Watch","http://www.hrw.org/","Human Rights protected under international law",null,"Global","Geographical application3","Latin America",null,{"$f":"VLOOKUP(DescriptionTable[[#This Row],[Name]],descriptions[],2,FALSE)","v":"Investigates and reports by country experts, lawyers, journalists, and others who work to protect the most at risk on abuses happening in all corners of the world. "}]
["Human Rights Watch: Country Profiles","Database","Human Rights Watch","http://www.hrw.org/","Human Rights protected under international law",null,"Global","Geographical application4","Asia Pacific ",null,{"$f":"VLOOKUP(DescriptionTable[[#This Row],[Name]],descriptions[],2,FALSE)","v":"Investigates and reports by country experts, lawyers, journalists, and others who work to protect the most at risk on abuses happening in all corners of the world. "}]
["Human Rights Watch: Country Profiles","Database","Human Rights Watch","http://www.hrw.org/","Human Rights protected under international law",null,"Global","Geographical application42","Europe",null,{"$f":"VLOOKUP(DescriptionTable[[#This Row],[Name]],descriptions[],2,FALSE)","v":"Investigates and reports by country experts, lawyers, journalists, and others who work to protect the most at risk on abuses happening in all corners of the world. "}]
["Human Rights Watch: Country Profiles","Database","Human Rights Watch","http://www.hrw.org/","Human Rights protected under international law",null,"Global","Geographical application5","North America",null,{"$f":"VLOOKUP(DescriptionTable[[#This Row],[Name]],descriptions[],2,FALSE)","v":"Investigates and reports by country experts, lawyers, journalists, and others who work to protect the most at risk on abuses happening in all corners of the world. "}]
["Global Peace Index (GPI) 2023 Briefing","Report/Document","Institute for Economics and Peace","https://www.economicsandpeace.org/wp-content/uploads/2024/01/GPI-2023-Briefing.pdf","Human Rights protected under international law",null,"Global","Geographical application2","Africa",null,{"$f":"VLOOKUP(DescriptionTable[[#This Row],[Name]],descriptions[],2,FALSE)","v":"GPI is the world’s leading measure of global peacefulness. The GPI covers 163 countries comprising 99.7% of the world’s population, using 23 qualitative and quantitative indicators from highly respected sources, and measures the state of peace across three domains: the level of Societal Safety and Security; the extent of Ongoing Domestic and International Conflict; and the degree of Militarisation. For updated versions please visit: https://www.economicsandpeace.org/reports/"}]
["Global Peace Index (GPI) 2023 Briefing","Report/Document","Institute for Economics and Peace","https://www.economicsandpeace.org/wp-content/uploads/2024/01/GPI-2023-Briefing.pdf","Human Rights protected under international law",null,"Global","Geographical application3","Latin America",null,{"$f":"VLOOKUP(DescriptionTable[[#This Row],[Name]],descriptions[],2,FALSE)","v":"GPI is the world’s leading measure of global peacefulness. The GPI covers 163 countries comprising 99.7% of the world’s population, using 23 qualitative and quantitative indicators from highly respected sources, and measures the state of peace across three domains: the level of Societal Safety and Security; the extent of Ongoing Domestic and International Conflict; and the degree of Militarisation. For updated versions please visit: https://www.economicsandpeace.org/reports/"}]
["Global Peace Index (GPI) 2023 Briefing","Report/Document","Institute for Economics and Peace","https://www.economicsandpeace.org/wp-content/uploads/2024/01/GPI-2023-Briefing.pdf","Human Rights protected under international law",null,"Global","Geographical application4","Asia Pacific ",null,{"$f":"VLOOKUP(DescriptionTable[[#This Row],[Name]],descriptions[],2,FALSE)","v":"GPI is the world’s leading measure of global peacefulness. The GPI covers 163 countries comprising 99.7% of the world’s population, using 23 qualitative and quantitative indicators from highly respected sources, and measures the state of peace across three domains: the level of Societal Safety and Security; the extent of Ongoing Domestic and International Conflict; and the degree of Militarisation. For updated versions please visit: https://www.economicsandpeace.org/reports/"}]
["Global Peace Index (GPI) 2023 Briefing","Report/Document","Institute for Economics and Peace","https://www.economicsandpeace.org/wp-content/uploads/2024/01/GPI-2023-Briefing.pdf","Human Rights protected under international law",null,"Global","Geographical application42","Europe",null,{"$f":"VLOOKUP(DescriptionTable[[#This Row],[Name]],descriptions[],2,FALSE)","v":"GPI is the world’s leading measure of global peacefulness. The GPI covers 163 countries comprising 99.7% of the world’s population, using 23 qualitative and quantitative indicators from highly respected sources, and measures the state of peace across three domains: the level of Societal Safety and Security; the extent of Ongoing Domestic and International Conflict; and the degree of Militarisation. For updated versions please visit: https://www.economicsandpeace.org/reports/"}]
["Global Peace Index (GPI) 2023 Briefing","Report/Document","Institute for Economics and Peace","https://www.economicsandpeace.org/wp-content/uploads/2024/01/GPI-2023-Briefing.pdf","Human Rights protected under international law",null,"Global","Geographical application5","North America",null,{"$f":"VLOOKUP(DescriptionTable[[#This Row],[Name]],descriptions[],2,FALSE)","v":"GPI is the world’s leading measure of global peacefulness. The GPI covers 163 countries comprising 99.7% of the world’s population, using 23 qualitative and quantitative indicators from highly respected sources, and measures the state of peace across three domains: the level of Societal Safety and Security; the extent of Ongoing Domestic and International Conflict; and the degree of Militarisation. For updated versions please visit: https://www.economicsandpeace.org/reports/"}]
["Global Peace Index (GPI) 2023","Index","Institute for Economics and Peace","https://www.economicsandpeace.org/wp-content/uploads/2023/09/GPI-2023-Web.pdf","Human Rights protected under international law",null,"Global","Geographical application2","Africa",null,{"$f":"VLOOKUP(DescriptionTable[[#This Row],[Name]],descriptions[],2,FALSE)","v":"GPI is the world’s leading measure of global peacefulness. The GPI covers 163 countries comprising 99.7% of the world’s population, using 23 qualitative and quantitative indicators from highly respected sources, and measures the state of peace across three domains: the level of Societal Safety and Security; the extent of ongoing Domestic and International Conflict; and the degree of Militarisation."}]
["Global Peace Index (GPI) 2023","Index","Institute for Economics and Peace","https://www.economicsandpeace.org/wp-content/uploads/2023/09/GPI-2023-Web.pdf","Human Rights protected under international law",null,"Global","Geographical application3","Latin America",null,{"$f":"VLOOKUP(DescriptionTable[[#This Row],[Name]],descriptions[],2,FALSE)","v":"GPI is the world’s leading measure of global peacefulness. The GPI covers 163 countries comprising 99.7% of the world’s population, using 23 qualitative and quantitative indicators from highly respected sources, and measures the state of peace across three domains: the level of Societal Safety and Security; the extent of ongoing Domestic and International Conflict; and the degree of Militarisation."}]
["Global Peace Index (GPI) 2023","Index","Institute for Economics and Peace","https://www.economicsandpeace.org/wp-content/uploads/2023/09/GPI-2023-Web.pdf","Human Rights protected under international law",null,"Global","Geographical application4","Asia Pacific ",null,{"$f":"VLOOKUP(DescriptionTable[[#This Row],[Name]],descriptions[],2,FALSE)","v":"GPI is the world’s leading measure of global peacefulness. The GPI covers 163 countries comprising 99.7% of the world’s population, using 23 qualitative and quantitative indicators from highly respected sources, and measures the state of peace across three domains: the level of Societal Safety and Security; the extent of ongoing Domestic and International Conflict; and the degree of Militarisation."}]
["Global Peace Index (GPI) 2023","Index","Institute for Economics and Peace","https://www.economicsandpeace.org/wp-content/uploads/2023/09/GPI-2023-Web.pdf","Human Rights protected under international law",null,"Global","Geographical application42","Europe",null,{"$f":"VLOOKUP(DescriptionTable[[#This Row],[Name]],descriptions[],2,FALSE)","v":"GPI is the world’s leading measure of global peacefulness. The GPI covers 163 countries comprising 99.7% of the world’s population, using 23 qualitative and quantitative indicators from highly respected sources, and measures the state of peace across three domains: the level of Societal Safety and Security; the extent of ongoing Domestic and International Conflict; and the degree of Militarisation."}]
["Global Peace Index (GPI) 2023","Index","Institute for Economics and Peace","https://www.economicsandpeace.org/wp-content/uploads/2023/09/GPI-2023-Web.pdf","Human Rights protected under international law",null,"Global","Geographical application5","North America",null,{"$f":"VLOOKUP(DescriptionTable[[#This Row],[Name]],descriptions[],2,FALSE)","v":"GPI is the world’s leading measure of global peacefulness. The GPI covers 163 countries comprising 99.7% of the world’s population, using 23 qualitative and quantitative indicators from highly respected sources, and measures the state of peace across three domains: the level of Societal Safety and Security; the extent of ongoing Domestic and International Conflict; and the degree of Militarisation."}]
["The UN Security Council Sanctions and Other Committees ","Database","UN Security Council","https://www.un.org/securitycouncil/content/repertoire/sanctions-and-other-committees#cat4","Human Rights protected under international law",null,"Global","Geographical application2","Africa",null,{"$f":"VLOOKUP(DescriptionTable[[#This Row],[Name]],descriptions[],2,FALSE)","v":"Lists all UN Security Council Sanctions declared so far in chronological order and countrywise."}]
["The UN Security Council Sanctions and Other Committees ","Database","UN Security Council","https://www.un.org/securitycouncil/content/repertoire/sanctions-and-other-committees#cat4","Human Rights protected under international law",null,"Global","Geographical application3","Latin America",null,{"$f":"VLOOKUP(DescriptionTable[[#This Row],[Name]],descriptions[],2,FALSE)","v":"Lists all UN Security Council Sanctions declared so far in chronological order and countrywise."}]
["The UN Security Council Sanctions and Other Committees ","Database","UN Security Council","https://www.un.org/securitycouncil/content/repertoire/sanctions-and-other-committees#cat4","Human Rights protected under international law",null,"Global","Geographical application4","Asia Pacific ",null,{"$f":"VLOOKUP(DescriptionTable[[#This Row],[Name]],descriptions[],2,FALSE)","v":"Lists all UN Security Council Sanctions declared so far in chronological order and countrywise."}]
["The UN Security Council Sanctions and Other Committees ","Database","UN Security Council","https://www.un.org/securitycouncil/content/repertoire/sanctions-and-other-committees#cat4","Human Rights protected under international law",null,"Global","Geographical application42","Europe",null,{"$f":"VLOOKUP(DescriptionTable[[#This Row],[Name]],descriptions[],2,FALSE)","v":"Lists all UN Security Council Sanctions declared so far in chronological order and countrywise."}]
["The UN Security Council Sanctions and Other Committees ","Database","UN Security Council","https://www.un.org/securitycouncil/content/repertoire/sanctions-and-other-committees#cat4","Human Rights protected under international law",null,"Global","Geographical application5","North America",null,{"$f":"VLOOKUP(DescriptionTable[[#This Row],[Name]],descriptions[],2,FALSE)","v":"Lists all UN Security Council Sanctions declared so far in chronological order and countrywise."}]
["Fund for Peace (FFP): Fragile States Index","Database","Fund for Peace (FFP)","https://fundforpeace.org/","Human Rights protected under international law",null,"Global","Geographical application2","Africa",null,{"$f":"VLOOKUP(DescriptionTable[[#This Row],[Name]],descriptions[],2,FALSE)","v":"A comprehensive tool that assesses and ranks 178 countries based on a mixed approach of qualitative and quantitative data sources, particularly utilizing the Conflict Assessment System Tool (CAST) framework, to highlight vulnerabilities contributing to the risk of state fragility, enabling policymakers and the public to understand and address the underlying issues and potential conflict risks in a rapidly interconnected world. Ranks states based on the total scores obtained under 12 indicators. The total score is the sum of the 12 indicators and is on a scale of 0-120. "}]
["Fund for Peace (FFP): Fragile States Index","Database","Fund for Peace (FFP)","https://fundforpeace.org/","Human Rights protected under international law",null,"Global","Geographical application3","Latin America",null,{"$f":"VLOOKUP(DescriptionTable[[#This Row],[Name]],descriptions[],2,FALSE)","v":"A comprehensive tool that assesses and ranks 178 countries based on a mixed approach of qualitative and quantitative data sources, particularly utilizing the Conflict Assessment System Tool (CAST) framework, to highlight vulnerabilities contributing to the risk of state fragility, enabling policymakers and the public to understand and address the underlying issues and potential conflict risks in a rapidly interconnected world. Ranks states based on the total scores obtained under 12 indicators. The total score is the sum of the 12 indicators and is on a scale of 0-120. "}]
["Fund for Peace (FFP): Fragile States Index","Database","Fund for Peace (FFP)","https://fundforpeace.org/","Human Rights protected under international law",null,"Global","Geographical application4","Asia Pacific ",null,{"$f":"VLOOKUP(DescriptionTable[[#This Row],[Name]],descriptions[],2,FALSE)","v":"A comprehensive tool that assesses and ranks 178 countries based on a mixed approach of qualitative and quantitative data sources, particularly utilizing the Conflict Assessment System Tool (CAST) framework, to highlight vulnerabilities contributing to the risk of state fragility, enabling policymakers and the public to understand and address the underlying issues and potential conflict risks in a rapidly interconnected world. Ranks states based on the total scores obtained under 12 indicators. The total score is the sum of the 12 indicators and is on a scale of 0-120. "}]
["Fund for Peace (FFP): Fragile States Index","Database","Fund for Peace (FFP)","https://fundforpeace.org/","Human Rights protected under international law",null,"Global","Geographical application42","Europe",null,{"$f":"VLOOKUP(DescriptionTable[[#This Row],[Name]],descriptions[],2,FALSE)","v":"A comprehensive tool that assesses and ranks 178 countries based on a mixed approach of qualitative and quantitative data sources, particularly utilizing the Conflict Assessment System Tool (CAST) framework, to highlight vulnerabilities contributing to the risk of state fragility, enabling policymakers and the public to understand and address the underlying issues and potential conflict risks in a rapidly interconnected world. Ranks states based on the total scores obtained under 12 indicators. The total score is the sum of the 12 indicators and is on a scale of 0-120. "}]
["Fund for Peace (FFP): Fragile States Index","Database","Fund for Peace (FFP)","https://fundforpeace.org/","Human Rights protected under international law",null,"Global","Geographical application5","North America",null,{"$f":"VLOOKUP(DescriptionTable[[#This Row],[Name]],descriptions[],2,FALSE)","v":"A comprehensive tool that assesses and ranks 178 countries based on a mixed approach of qualitative and quantitative data sources, particularly utilizing the Conflict Assessment System Tool (CAST) framework, to highlight vulnerabilities contributing to the risk of state fragility, enabling policymakers and the public to understand and address the underlying issues and potential conflict risks in a rapidly interconnected world. Ranks states based on the total scores obtained under 12 indicators. The total score is the sum of the 12 indicators and is on a scale of 0-120. "}]
["World Economic Forum: Global Gender Gap Report","List of publications","World Economic Forum","https://www.weforum.org/publications/series/global-gender-gap-report/","Human Rights protected under international law",null,"Global","Geographical application2","Africa",null,{"$f":"VLOOKUP(DescriptionTable[[#This Row],[Name]],descriptions[],2,FALSE)","v":"The Global Gender Gap Index annually benchmarks the current state and evolution of gender parity across four key dimensions (Economic Participation and Opportunity, Educational Attainment, Health and Survival, and Political Empowerment). It is the longest-standing index tracking the progress of numerous countries’ efforts towards closing these gaps over time since its inception in 2006."}]
["World Economic Forum: Global Gender Gap Report","List of publications","World Economic Forum","https://www.weforum.org/publications/series/global-gender-gap-report/","Human Rights protected under international law",null,"Global","Geographical application3","Latin America",null,{"$f":"VLOOKUP(DescriptionTable[[#This Row],[Name]],descriptions[],2,FALSE)","v":"The Global Gender Gap Index annually benchmarks the current state and evolution of gender parity across four key dimensions (Economic Participation and Opportunity, Educational Attainment, Health and Survival, and Political Empowerment). It is the longest-standing index tracking the progress of numerous countries’ efforts towards closing these gaps over time since its inception in 2006."}]
["World Economic Forum: Global Gender Gap Report","List of publications","World Economic Forum","https://www.weforum.org/publications/series/global-gender-gap-report/","Human Rights protected under international law",null,"Global","Geographical application4","Asia Pacific ",null,{"$f":"VLOOKUP(DescriptionTable[[#This Row],[Name]],descriptions[],2,FALSE)","v":"The Global Gender Gap Index annually benchmarks the current state and evolution of gender parity across four key dimensions (Economic Participation and Opportunity, Educational Attainment, Health and Survival, and Political Empowerment). It is the longest-standing index tracking the progress of numerous countries’ efforts towards closing these gaps over time since its inception in 2006."}]
["World Economic Forum: Global Gender Gap Report","List of publications","World Economic Forum","https://www.weforum.org/publications/series/global-gender-gap-report/","Human Rights protected under international law",null,"Global","Geographical application42","Europe",null,{"$f":"VLOOKUP(DescriptionTable[[#This Row],[Name]],descriptions[],2,FALSE)","v":"The Global Gender Gap Index annually benchmarks the current state and evolution of gender parity across four key dimensions (Economic Participation and Opportunity, Educational Attainment, Health and Survival, and Political Empowerment). It is the longest-standing index tracking the progress of numerous countries’ efforts towards closing these gaps over time since its inception in 2006."}]
["World Economic Forum: Global Gender Gap Report","List of publications","World Economic Forum","https://www.weforum.org/publications/series/global-gender-gap-report/","Human Rights protected under international law",null,"Global","Geographical application5","North America",null,{"$f":"VLOOKUP(DescriptionTable[[#This Row],[Name]],descriptions[],2,FALSE)","v":"The Global Gender Gap Index annually benchmarks the current state and evolution of gender parity across four key dimensions (Economic Participation and Opportunity, Educational Attainment, Health and Survival, and Political Empowerment). It is the longest-standing index tracking the progress of numerous countries’ efforts towards closing these gaps over time since its inception in 2006."}]
["Amnesty International Annual Report: The state of the world’s human rights - information on key human rights issues, including: freedom of expression; international justice; corporate accountability; the death penalty; and reproductive rights ","List of publications","Amnesty International","https://www.amnesty.org/en/search/?qcategory=1149&qresource-type=2134","Human Rights protected under international law",null,"Global","Geographical application2","Africa",null,{"$f":"VLOOKUP(DescriptionTable[[#This Row],[Name]],descriptions[],2,FALSE)","v":"Lists down Amnesity International's sources of information on Human Rights, categorized in to countries, resource types (e.g.: Action, Annual Reports, Campaigns, etc.), and topics (e.g.: Armed Conflicts, Child Labour, etc.)"}]
["Amnesty International Annual Report: The state of the world’s human rights - information on key human rights issues, including: freedom of expression; international justice; corporate accountability; the death penalty; and reproductive rights ","List of publications","Amnesty International","https://www.amnesty.org/en/search/?qcategory=1149&qresource-type=2134","Human Rights protected under international law",null,"Global","Geographical application3","Latin America",null,{"$f":"VLOOKUP(DescriptionTable[[#This Row],[Name]],descriptions[],2,FALSE)","v":"Lists down Amnesity International's sources of information on Human Rights, categorized in to countries, resource types (e.g.: Action, Annual Reports, Campaigns, etc.), and topics (e.g.: Armed Conflicts, Child Labour, etc.)"}]
["Amnesty International Annual Report: The state of the world’s human rights - information on key human rights issues, including: freedom of expression; international justice; corporate accountability; the death penalty; and reproductive rights ","List of publications","Amnesty International","https://www.amnesty.org/en/search/?qcategory=1149&qresource-type=2134","Human Rights protected under international law",null,"Global","Geographical application4","Asia Pacific ",null,{"$f":"VLOOKUP(DescriptionTable[[#This Row],[Name]],descriptions[],2,FALSE)","v":"Lists down Amnesity International's sources of information on Human Rights, categorized in to countries, resource types (e.g.: Action, Annual Reports, Campaigns, etc.), and topics (e.g.: Armed Conflicts, Child Labour, etc.)"}]
["Amnesty International Annual Report: The state of the world’s human rights - information on key human rights issues, including: freedom of expression; international justice; corporate accountability; the death penalty; and reproductive rights ","List of publications","Amnesty International","https://www.amnesty.org/en/search/?qcategory=1149&qresource-type=2134","Human Rights protected under international law",null,"Global","Geographical application42","Europe",null,{"$f":"VLOOKUP(DescriptionTable[[#This Row],[Name]],descriptions[],2,FALSE)","v":"Lists down Amnesity International's sources of information on Human Rights, categorized in to countries, resource types (e.g.: Action, Annual Reports, Campaigns, etc.), and topics (e.g.: Armed Conflicts, Child Labour, etc.)"}]
["Amnesty International Annual Report: The state of the world’s human rights - information on key human rights issues, including: freedom of expression; international justice; corporate accountability; the death penalty; and reproductive rights ","List of publications","Amnesty International","https://www.amnesty.org/en/search/?qcategory=1149&qresource-type=2134","Human Rights protected under international law",null,"Global","Geographical application5","North America",null,{"$f":"VLOOKUP(DescriptionTable[[#This Row],[Name]],descriptions[],2,FALSE)","v":"Lists down Amnesity International's sources of information on Human Rights, categorized in to countries, resource types (e.g.: Action, Annual Reports, Campaigns, etc.), and topics (e.g.: Armed Conflicts, Child Labour, etc.)"}]
["Human Freedom Index ","List of publications","CATO Institute","https://www.cato.org/search/category/human-freedom-index","Human Rights protected under international law",null,"Global","Geographical application2","Africa",null,{"$f":"VLOOKUP(DescriptionTable[[#This Row],[Name]],descriptions[],2,FALSE)","v":"Presents the state of human freedom in the world based on a broad measure that encompasses personal, civil, and economic freedom. The Human Freedom Index is a resource that can help to more objectively observe relationships between freedom and other social and economic phenomena, as well as the ways in which the various dimensions of freedom interact with one another. Published annually."}]
["Human Freedom Index ","List of publications","CATO Institute","https://www.cato.org/search/category/human-freedom-index","Human Rights protected under international law",null,"Global","Geographical application3","Latin America",null,{"$f":"VLOOKUP(DescriptionTable[[#This Row],[Name]],descriptions[],2,FALSE)","v":"Presents the state of human freedom in the world based on a broad measure that encompasses personal, civil, and economic freedom. The Human Freedom Index is a resource that can help to more objectively observe relationships between freedom and other social and economic phenomena, as well as the ways in which the various dimensions of freedom interact with one another. Published annually."}]
["Human Freedom Index ","List of publications","CATO Institute","https://www.cato.org/search/category/human-freedom-index","Human Rights protected under international law",null,"Global","Geographical application4","Asia Pacific ",null,{"$f":"VLOOKUP(DescriptionTable[[#This Row],[Name]],descriptions[],2,FALSE)","v":"Presents the state of human freedom in the world based on a broad measure that encompasses personal, civil, and economic freedom. The Human Freedom Index is a resource that can help to more objectively observe relationships between freedom and other social and economic phenomena, as well as the ways in which the various dimensions of freedom interact with one another. Published annually."}]
["Human Freedom Index ","List of publications","CATO Institute","https://www.cato.org/search/category/human-freedom-index","Human Rights protected under international law",null,"Global","Geographical application42","Europe",null,{"$f":"VLOOKUP(DescriptionTable[[#This Row],[Name]],descriptions[],2,FALSE)","v":"Presents the state of human freedom in the world based on a broad measure that encompasses personal, civil, and economic freedom. The Human Freedom Index is a resource that can help to more objectively observe relationships between freedom and other social and economic phenomena, as well as the ways in which the various dimensions of freedom interact with one another. Published annually."}]
["Human Freedom Index ","List of publications","CATO Institute","https://www.cato.org/search/category/human-freedom-index","Human Rights protected under international law",null,"Global","Geographical application5","North America",null,{"$f":"VLOOKUP(DescriptionTable[[#This Row],[Name]],descriptions[],2,FALSE)","v":"Presents the state of human freedom in the world based on a broad measure that encompasses personal, civil, and economic freedom. The Human Freedom Index is a resource that can help to more objectively observe relationships between freedom and other social and economic phenomena, as well as the ways in which the various dimensions of freedom interact with one another. Published annually."}]
["Gender Equality and Non-Discrimination Indicators (GEND) ","Database","International Labour Organisation (ILO)","https://ilostat.ilo.org/data/","Gender Equality",null,"Global","Geographical application2","Africa",null,{"$f":"VLOOKUP(DescriptionTable[[#This Row],[Name]],descriptions[],2,FALSE)","v":"List down ILOSTAT datasets related to Gender Equality and Non-discrimination"}]
["Gender Equality and Non-Discrimination Indicators (GEND) ","Database","International Labour Organisation (ILO)","https://ilostat.ilo.org/data/","Gender Equality",null,"Global","Geographical application3","Latin America",null,{"$f":"VLOOKUP(DescriptionTable[[#This Row],[Name]],descriptions[],2,FALSE)","v":"List down ILOSTAT datasets related to Gender Equality and Non-discrimination"}]
["Gender Equality and Non-Discrimination Indicators (GEND) ","Database","International Labour Organisation (ILO)","https://ilostat.ilo.org/data/","Gender Equality",null,"Global","Geographical application4","Asia Pacific ",null,{"$f":"VLOOKUP(DescriptionTable[[#This Row],[Name]],descriptions[],2,FALSE)","v":"List down ILOSTAT datasets related to Gender Equality and Non-discrimination"}]
["Gender Equality and Non-Discrimination Indicators (GEND) ","Database","International Labour Organisation (ILO)","https://ilostat.ilo.org/data/","Gender Equality",null,"Global","Geographical application42","Europe",null,{"$f":"VLOOKUP(DescriptionTable[[#This Row],[Name]],descriptions[],2,FALSE)","v":"List down ILOSTAT datasets related to Gender Equality and Non-discrimination"}]
["Gender Equality and Non-Discrimination Indicators (GEND) ","Database","International Labour Organisation (ILO)","https://ilostat.ilo.org/data/","Gender Equality",null,"Global","Geographical application5","North America",null,{"$f":"VLOOKUP(DescriptionTable[[#This Row],[Name]],descriptions[],2,FALSE)","v":"List down ILOSTAT datasets related to Gender Equality and Non-discrimination"}]
["MIPEX: Migrant Integration Policy Index","Rank, Score and Analysis","Migration Policy group","https://www.mipex.eu/play/","Gender Equality",null,"Global","Geographical application2","Africa",null,{"$f":"VLOOKUP(DescriptionTable[[#This Row],[Name]],descriptions[],2,FALSE)","v":"Measures policies to integrate migrants in countries across six continents, including all EU Member States (including the UK), other European countries (Albania, Iceland, North Macedonia, Moldova, Norway, Serbia, Switzerland, Russia, Turkey and Ukraine), Asian countries (China, India, Indonesia, Israel, Japan, Jordan, Saudi Arabia, South Korea, United Arab Emirates), North American countries (Canada, Mexico and US), South American countries (Argentina, Brazil, Chile), South Africa, and Australia and New Zealand in Oceania."}]
["MIPEX: Migrant Integration Policy Index","Rank, Score and Analysis","Migration Policy group","https://www.mipex.eu/play/","Gender Equality",null,"Global","Geographical application3","Latin America",null,{"$f":"VLOOKUP(DescriptionTable[[#This Row],[Name]],descriptions[],2,FALSE)","v":"Measures policies to integrate migrants in countries across six continents, including all EU Member States (including the UK), other European countries (Albania, Iceland, North Macedonia, Moldova, Norway, Serbia, Switzerland, Russia, Turkey and Ukraine), Asian countries (China, India, Indonesia, Israel, Japan, Jordan, Saudi Arabia, South Korea, United Arab Emirates), North American countries (Canada, Mexico and US), South American countries (Argentina, Brazil, Chile), South Africa, and Australia and New Zealand in Oceania."}]
["MIPEX: Migrant Integration Policy Index","Rank, Score and Analysis","Migration Policy group","https://www.mipex.eu/play/","Gender Equality",null,"Global","Geographical application4","Asia Pacific ",null,{"$f":"VLOOKUP(DescriptionTable[[#This Row],[Name]],descriptions[],2,FALSE)","v":"Measures policies to integrate migrants in countries across six continents, including all EU Member States (including the UK), other European countries (Albania, Iceland, North Macedonia, Moldova, Norway, Serbia, Switzerland, Russia, Turkey and Ukraine), Asian countries (China, India, Indonesia, Israel, Japan, Jordan, Saudi Arabia, South Korea, United Arab Emirates), North American countries (Canada, Mexico and US), South American countries (Argentina, Brazil, Chile), South Africa, and Australia and New Zealand in Oceania."}]
["MIPEX: Migrant Integration Policy Index","Rank, Score and Analysis","Migration Policy group","https://www.mipex.eu/play/","Gender Equality",null,"Global","Geographical application42","Europe",null,{"$f":"VLOOKUP(DescriptionTable[[#This Row],[Name]],descriptions[],2,FALSE)","v":"Measures policies to integrate migrants in countries across six continents, including all EU Member States (including the UK), other European countries (Albania, Iceland, North Macedonia, Moldova, Norway, Serbia, Switzerland, Russia, Turkey and Ukraine), Asian countries (China, India, Indonesia, Israel, Japan, Jordan, Saudi Arabia, South Korea, United Arab Emirates), North American countries (Canada, Mexico and US), South American countries (Argentina, Brazil, Chile), South Africa, and Australia and New Zealand in Oceania."}]
["MIPEX: Migrant Integration Policy Index","Rank, Score and Analysis","Migration Policy group","https://www.mipex.eu/play/","Gender Equality",null,"Global","Geographical application5","North America",null,{"$f":"VLOOKUP(DescriptionTable[[#This Row],[Name]],descriptions[],2,FALSE)","v":"Measures policies to integrate migrants in countries across six continents, including all EU Member States (including the UK), other European countries (Albania, Iceland, North Macedonia, Moldova, Norway, Serbia, Switzerland, Russia, Turkey and Ukraine), Asian countries (China, India, Indonesia, Israel, Japan, Jordan, Saudi Arabia, South Korea, United Arab Emirates), North American countries (Canada, Mexico and US), South American countries (Argentina, Brazil, Chile), South Africa, and Australia and New Zealand in Oceania."}]
["Women, business and the law indicator","Index","World Bank","https://wbl.worldbank.org/en/wbl-data","Gender Equality",null,"Global","Geographical application2","Africa",null,{"$f":"VLOOKUP(DescriptionTable[[#This Row],[Name]],descriptions[],2,FALSE)","v":"Women, Business and the Law Indicator strengthens insights into how women’s employment and entrepreneurship are affected by legal gender discrimination, and in turn how this affects economic outcomes. "}]
["Women, business and the law indicator","Index","World Bank","https://wbl.worldbank.org/en/wbl-data","Gender Equality",null,"Global","Geographical application3","Latin America",null,{"$f":"VLOOKUP(DescriptionTable[[#This Row],[Name]],descriptions[],2,FALSE)","v":"Women, Business and the Law Indicator strengthens insights into how women’s employment and entrepreneurship are affected by legal gender discrimination, and in turn how this affects economic outcomes. "}]
["Women, business and the law indicator","Index","World Bank","https://wbl.worldbank.org/en/wbl-data","Gender Equality",null,"Global","Geographical application4","Asia Pacific ",null,{"$f":"VLOOKUP(DescriptionTable[[#This Row],[Name]],descriptions[],2,FALSE)","v":"Women, Business and the Law Indicator strengthens insights into how women’s employment and entrepreneurship are affected by legal gender discrimination, and in turn how this affects economic outcomes. "}]
["Women, business and the law indicator","Index","World Bank","https://wbl.worldbank.org/en/wbl-data","Gender Equality",null,"Global","Geographical application42","Europe",null,{"$f":"VLOOKUP(DescriptionTable[[#This Row],[Name]],descriptions[],2,FALSE)","v":"Women, Business and the Law Indicator strengthens insights into how women’s employment and entrepreneurship are affected by legal gender discrimination, and in turn how this affects economic outcomes. "}]
["Women, business and the law indicator","Index","World Bank","https://wbl.worldbank.org/en/wbl-data","Gender Equality",null,"Global","Geographical application5","North America",null,{"$f":"VLOOKUP(DescriptionTable[[#This Row],[Name]],descriptions[],2,FALSE)","v":"Women, Business and the Law Indicator strengthens insights into how women’s employment and entrepreneurship are affected by legal gender discrimination, and in turn how this affects economic outcomes. "}]
["Gender Statistics Dataset","Database","World bank","https://databank.worldbank.org/source/gender-statistics","Gender Equality",null,"Global","Geographical application2","Africa",null,{"$f":"VLOOKUP(DescriptionTable[[#This Row],[Name]],descriptions[],2,FALSE)","v":"Data on key gender topics. Themes included are demographics, education, health, labor force, and political participation."}]
["Gender Statistics Dataset","Database","World bank","https://databank.worldbank.org/source/gender-statistics","Gender Equality",null,"Global","Geographical application3","Latin America",null,{"$f":"VLOOKUP(DescriptionTable[[#This Row],[Name]],descriptions[],2,FALSE)","v":"Data on key gender topics. Themes included are demographics, education, health, labor force, and political participation."}]
["Gender Statistics Dataset","Database","World bank","https://databank.worldbank.org/source/gender-statistics","Gender Equality",null,"Global","Geographical application4","Asia Pacific ",null,{"$f":"VLOOKUP(DescriptionTable[[#This Row],[Name]],descriptions[],2,FALSE)","v":"Data on key gender topics. Themes included are demographics, education, health, labor force, and political participation."}]
["Gender Statistics Dataset","Database","World bank","https://databank.worldbank.org/source/gender-statistics","Gender Equality",null,"Global","Geographical application42","Europe",null,{"$f":"VLOOKUP(DescriptionTable[[#This Row],[Name]],descriptions[],2,FALSE)","v":"Data on key gender topics. Themes included are demographics, education, health, labor force, and political participation."}]
["Gender Statistics Dataset","Database","World bank","https://databank.worldbank.org/source/gender-statistics","Gender Equality",null,"Global","Geographical application5","North America",null,{"$f":"VLOOKUP(DescriptionTable[[#This Row],[Name]],descriptions[],2,FALSE)","v":"Data on key gender topics. Themes included are demographics, education, health, labor force, and political participation."}]
["Gender Inequality Index (GII) ","Index","UN Development Programme (UNDP)","https://hdr.undp.org/data-center/thematic-composite-indices/gender-inequality-index#/indicies/GII","Gender Equality",null,"Global","Geographical application2","Africa",null,{"$f":"VLOOKUP(DescriptionTable[[#This Row],[Name]],descriptions[],2,FALSE)","v":"A composite metric of gender inequality using three dimensions: reproductive health, empowerment and the labour market. A low GII value indicates low inequality between women and men, and vice-versa."}]
["Gender Inequality Index (GII) ","Index","UN Development Programme (UNDP)","https://hdr.undp.org/data-center/thematic-composite-indices/gender-inequality-index#/indicies/GII","Gender Equality",null,"Global","Geographical application3","Latin America",null,{"$f":"VLOOKUP(DescriptionTable[[#This Row],[Name]],descriptions[],2,FALSE)","v":"A composite metric of gender inequality using three dimensions: reproductive health, empowerment and the labour market. A low GII value indicates low inequality between women and men, and vice-versa."}]
["Gender Inequality Index (GII) ","Index","UN Development Programme (UNDP)","https://hdr.undp.org/data-center/thematic-composite-indices/gender-inequality-index#/indicies/GII","Gender Equality",null,"Global","Geographical application4","Asia Pacific ",null,{"$f":"VLOOKUP(DescriptionTable[[#This Row],[Name]],descriptions[],2,FALSE)","v":"A composite metric of gender inequality using three dimensions: reproductive health, empowerment and the labour market. A low GII value indicates low inequality between women and men, and vice-versa."}]
["Gender Inequality Index (GII) ","Index","UN Development Programme (UNDP)","https://hdr.undp.org/data-center/thematic-composite-indices/gender-inequality-index#/indicies/GII","Gender Equality",null,"Global","Geographical application42","Europe",null,{"$f":"VLOOKUP(DescriptionTable[[#This Row],[Name]],descriptions[],2,FALSE)","v":"A composite metric of gender inequality using three dimensions: reproductive health, empowerment and the labour market. A low GII value indicates low inequality between women and men, and vice-versa."}]
["Gender Inequality Index (GII) ","Index","UN Development Programme (UNDP)","https://hdr.undp.org/data-center/thematic-composite-indices/gender-inequality-index#/indicies/GII","Gender Equality",null,"Global","Geographical application5","North America",null,{"$f":"VLOOKUP(DescriptionTable[[#This Row],[Name]],descriptions[],2,FALSE)","v":"A composite metric of gender inequality using three dimensions: reproductive health, empowerment and the labour market. A low GII value indicates low inequality between women and men, and vice-versa."}]
["Social Institution and Gende Index ","Rank, Score and Analysis","Organisation for Economic Co-operation and Development (OCED)","https://www.oecd.org/stories/gender/social-norms-and-gender-discrimination/sigi/dashboard","Gender Equality",null,"Global","Geographical application2","Africa",null,{"$f":"VLOOKUP(DescriptionTable[[#This Row],[Name]],descriptions[],2,FALSE)","v":"Social Institutions and Gender Index (SIGI) measures discrimination against women in social institutions across 179 countries. By taking into account laws, social norms and practices that restrict women’s and girls’ rights and access to empowerment opportunities and resources, the SIGI captures the underlying drivers of gender inequality."}]
["Social Institution and Gende Index ","Rank, Score and Analysis","Organisation for Economic Co-operation and Development (OCED)","https://www.oecd.org/stories/gender/social-norms-and-gender-discrimination/sigi/dashboard","Gender Equality",null,"Global","Geographical application3","Latin America",null,{"$f":"VLOOKUP(DescriptionTable[[#This Row],[Name]],descriptions[],2,FALSE)","v":"Social Institutions and Gender Index (SIGI) measures discrimination against women in social institutions across 179 countries. By taking into account laws, social norms and practices that restrict women’s and girls’ rights and access to empowerment opportunities and resources, the SIGI captures the underlying drivers of gender inequality."}]
["Social Institution and Gende Index ","Rank, Score and Analysis","Organisation for Economic Co-operation and Development (OCED)","https://www.oecd.org/stories/gender/social-norms-and-gender-discrimination/sigi/dashboard","Gender Equality",null,"Global","Geographical application4","Asia Pacific ",null,{"$f":"VLOOKUP(DescriptionTable[[#This Row],[Name]],descriptions[],2,FALSE)","v":"Social Institutions and Gender Index (SIGI) measures discrimination against women in social institutions across 179 countries. By taking into account laws, social norms and practices that restrict women’s and girls’ rights and access to empowerment opportunities and resources, the SIGI captures the underlying drivers of gender inequality."}]
["Social Institution and Gende Index ","Rank, Score and Analysis","Organisation for Economic Co-operation and Development (OCED)","https://www.oecd.org/stories/gender/social-norms-and-gender-discrimination/sigi/dashboard","Gender Equality",null,"Global","Geographical application42","Europe",null,{"$f":"VLOOKUP(DescriptionTable[[#This Row],[Name]],descriptions[],2,FALSE)","v":"Social Institutions and Gender Index (SIGI) measures discrimination against women in social institutions across 179 countries. By taking into account laws, social norms and practices that restrict women’s and girls’ rights and access to empowerment opportunities and resources, the SIGI captures the underlying drivers of gender inequality."}]
["Social Institution and Gende Index ","Rank, Score and Analysis","Organisation for Economic Co-operation and Development (OCED)","https://www.oecd.org/stories/gender/social-norms-and-gender-discrimination/sigi/dashboard","Gender Equality",null,"Global","Geographical application5","North America",null,{"$f":"VLOOKUP(DescriptionTable[[#This Row],[Name]],descriptions[],2,FALSE)","v":"Social Institutions and Gender Index (SIGI) measures discrimination against women in social institutions across 179 countries. By taking into account laws, social norms and practices that restrict women’s and girls’ rights and access to empowerment opportunities and resources, the SIGI captures the underlying drivers of gender inequality."}]
["Women workspace equality index ","Rank, Score and Analysis","Council on Foreign Relation","https://www.cfr.org/legal-barriers/country-rankings/","Gender Equality",null,"Global","Geographical application2","Africa",null,{"$f":"VLOOKUP(DescriptionTable[[#This Row],[Name]],descriptions[],2,FALSE)","v":"Ranks 189 countries based on legal barriers affecting women's economic participation, examining indicators such as accessing institutions, getting a job, protecting women from violence, providing incentives to work, and using property, thereby highlighting disparities in legal frameworks impacting gender equality in the workplace."}]
["Women workspace equality index ","Rank, Score and Analysis","Council on Foreign Relation","https://www.cfr.org/legal-barriers/country-rankings/","Gender Equality",null,"Global","Geographical application3","Latin America",null,{"$f":"VLOOKUP(DescriptionTable[[#This Row],[Name]],descriptions[],2,FALSE)","v":"Ranks 189 countries based on legal barriers affecting women's economic participation, examining indicators such as accessing institutions, getting a job, protecting women from violence, providing incentives to work, and using property, thereby highlighting disparities in legal frameworks impacting gender equality in the workplace."}]
["Women workspace equality index ","Rank, Score and Analysis","Council on Foreign Relation","https://www.cfr.org/legal-barriers/country-rankings/","Gender Equality",null,"Global","Geographical application4","Asia Pacific ",null,{"$f":"VLOOKUP(DescriptionTable[[#This Row],[Name]],descriptions[],2,FALSE)","v":"Ranks 189 countries based on legal barriers affecting women's economic participation, examining indicators such as accessing institutions, getting a job, protecting women from violence, providing incentives to work, and using property, thereby highlighting disparities in legal frameworks impacting gender equality in the workplace."}]
["Women workspace equality index ","Rank, Score and Analysis","Council on Foreign Relation","https://www.cfr.org/legal-barriers/country-rankings/","Gender Equality",null,"Global","Geographical application42","Europe",null,{"$f":"VLOOKUP(DescriptionTable[[#This Row],[Name]],descriptions[],2,FALSE)","v":"Ranks 189 countries based on legal barriers affecting women's economic participation, examining indicators such as accessing institutions, getting a job, protecting women from violence, providing incentives to work, and using property, thereby highlighting disparities in legal frameworks impacting gender equality in the workplace."}]
["Women workspace equality index ","Rank, Score and Analysis","Council on Foreign Relation","https://www.cfr.org/legal-barriers/country-rankings/","Gender Equality",null,"Global","Geographical application5","North America",null,{"$f":"VLOOKUP(DescriptionTable[[#This Row],[Name]],descriptions[],2,FALSE)","v":"Ranks 189 countries based on legal barriers affecting women's economic participation, examining indicators such as accessing institutions, getting a job, protecting women from violence, providing incentives to work, and using property, thereby highlighting disparities in legal frameworks impacting gender equality in the workplace."}]
["Women, peace and security index","Rank, Score and Analysis","Georgetown Institute for Women, Peace and Security (GIWPS)","https://giwps.georgetown.edu/the-index/","Gender Equality",null,"Global","Geographical application2","Africa",null,{"$f":"VLOOKUP(DescriptionTable[[#This Row],[Name]],descriptions[],2,FALSE)","v":"Scores and ranks 177 countries in terms of women’s inclusion, justice, and security. The WPS Index offers a tool for identifying where resources and accountability are needed most to advance women’s status."}]
["Women, peace and security index","Rank, Score and Analysis","Georgetown Institute for Women, Peace and Security (GIWPS)","https://giwps.georgetown.edu/the-index/","Gender Equality",null,"Global","Geographical application3","Latin America",null,{"$f":"VLOOKUP(DescriptionTable[[#This Row],[Name]],descriptions[],2,FALSE)","v":"Scores and ranks 177 countries in terms of women’s inclusion, justice, and security. The WPS Index offers a tool for identifying where resources and accountability are needed most to advance women’s status."}]
["Women, peace and security index","Rank, Score and Analysis","Georgetown Institute for Women, Peace and Security (GIWPS)","https://giwps.georgetown.edu/the-index/","Gender Equality",null,"Global","Geographical application4","Asia Pacific ",null,{"$f":"VLOOKUP(DescriptionTable[[#This Row],[Name]],descriptions[],2,FALSE)","v":"Scores and ranks 177 countries in terms of women’s inclusion, justice, and security. The WPS Index offers a tool for identifying where resources and accountability are needed most to advance women’s status."}]
["Women, peace and security index","Rank, Score and Analysis","Georgetown Institute for Women, Peace and Security (GIWPS)","https://giwps.georgetown.edu/the-index/","Gender Equality",null,"Global","Geographical application42","Europe",null,{"$f":"VLOOKUP(DescriptionTable[[#This Row],[Name]],descriptions[],2,FALSE)","v":"Scores and ranks 177 countries in terms of women’s inclusion, justice, and security. The WPS Index offers a tool for identifying where resources and accountability are needed most to advance women’s status."}]
["Women, peace and security index","Rank, Score and Analysis","Georgetown Institute for Women, Peace and Security (GIWPS)","https://giwps.georgetown.edu/the-index/","Gender Equality",null,"Global","Geographical application5","North America",null,{"$f":"VLOOKUP(DescriptionTable[[#This Row],[Name]],descriptions[],2,FALSE)","v":"Scores and ranks 177 countries in terms of women’s inclusion, justice, and security. The WPS Index offers a tool for identifying where resources and accountability are needed most to advance women’s status."}]
["Gender Equality Index","Rank, Score and Analysis","European Institute of Gender Equality (EIGE)","https://eige.europa.eu/gender-equality-index/2023","Gender Equality",null,"Europe","Geographical application2","Europe",null,{"$f":"VLOOKUP(DescriptionTable[[#This Row],[Name]],descriptions[],2,FALSE)","v":"A tool to measure the progress of gender equality in the EU, developed by EIGE. It gives more visibility to areas that need improvement and ultimately supports policy makers to design more effective gender equality measures."}]
["UN Committee on the Rights of the Child: State Party Reporting","Database","UN Convention on the Rights of the Child (monitored by the Committee on Rights of the Child)","https://www.ohchr.org/en/treaty-bodies/crc","Elimination of Child Labour",null,"Global","Geographical application2","Africa",null,{"$f":"VLOOKUP(DescriptionTable[[#This Row],[Name]],descriptions[],2,FALSE)","v":"Lists country-wise state party reports on matters regarding Rights of the Child."}]
["UN Committee on the Rights of the Child: State Party Reporting","Database","UN Convention on the Rights of the Child (monitored by the Committee on Rights of the Child)","https://www.ohchr.org/en/treaty-bodies/crc","Elimination of Child Labour",null,"Global","Geographical application3","Latin America",null,{"$f":"VLOOKUP(DescriptionTable[[#This Row],[Name]],descriptions[],2,FALSE)","v":"Lists country-wise state party reports on matters regarding Rights of the Child."}]
["UN Committee on the Rights of the Child: State Party Reporting","Database","UN Convention on the Rights of the Child (monitored by the Committee on Rights of the Child)","https://www.ohchr.org/en/treaty-bodies/crc","Elimination of Child Labour",null,"Global","Geographical application4","Asia Pacific ",null,{"$f":"VLOOKUP(DescriptionTable[[#This Row],[Name]],descriptions[],2,FALSE)","v":"Lists country-wise state party reports on matters regarding Rights of the Child."}]
["UN Committee on the Rights of the Child: State Party Reporting","Database","UN Convention on the Rights of the Child (monitored by the Committee on Rights of the Child)","https://www.ohchr.org/en/treaty-bodies/crc","Elimination of Child Labour",null,"Global","Geographical application42","Europe",null,{"$f":"VLOOKUP(DescriptionTable[[#This Row],[Name]],descriptions[],2,FALSE)","v":"Lists country-wise state party reports on matters regarding Rights of the Child."}]
["UN Committee on the Rights of the Child: State Party Reporting","Database","UN Convention on the Rights of the Child (monitored by the Committee on Rights of the Child)","https://www.ohchr.org/en/treaty-bodies/crc","Elimination of Child Labour",null,"Global","Geographical application5","North America",null,{"$f":"VLOOKUP(DescriptionTable[[#This Row],[Name]],descriptions[],2,FALSE)","v":"Lists country-wise state party reports on matters regarding Rights of the Child."}]
["IPEC Information on Regions and Countries","Database","ILO International Programme on the Elimination of Child Labour (IPEC)","http://www.ilo.org/ipec/Regionsandcountries/lang--en/index.htm","Elimination of Child Labour",null,"Global","Geographical application2","Africa",null,{"$f":"VLOOKUP(DescriptionTable[[#This Row],[Name]],descriptions[],2,FALSE)","v":"Provides regional-wise information on matters related to the status of child labour and rights of the child in that specific region, while also providing external sources that are related."}]
["IPEC Information on Regions and Countries","Database","ILO International Programme on the Elimination of Child Labour (IPEC)","http://www.ilo.org/ipec/Regionsandcountries/lang--en/index.htm","Elimination of Child Labour",null,"Global","Geographical application3","Latin America",null,{"$f":"VLOOKUP(DescriptionTable[[#This Row],[Name]],descriptions[],2,FALSE)","v":"Provides regional-wise information on matters related to the status of child labour and rights of the child in that specific region, while also providing external sources that are related."}]
["IPEC Information on Regions and Countries","Database","ILO International Programme on the Elimination of Child Labour (IPEC)","http://www.ilo.org/ipec/Regionsandcountries/lang--en/index.htm","Elimination of Child Labour",null,"Global","Geographical application4","Asia Pacific ",null,{"$f":"VLOOKUP(DescriptionTable[[#This Row],[Name]],descriptions[],2,FALSE)","v":"Provides regional-wise information on matters related to the status of child labour and rights of the child in that specific region, while also providing external sources that are related."}]
["IPEC Information on Regions and Countries","Database","ILO International Programme on the Elimination of Child Labour (IPEC)","http://www.ilo.org/ipec/Regionsandcountries/lang--en/index.htm","Elimination of Child Labour",null,"Global","Geographical application42","Europe",null,{"$f":"VLOOKUP(DescriptionTable[[#This Row],[Name]],descriptions[],2,FALSE)","v":"Provides regional-wise information on matters related to the status of child labour and rights of the child in that specific region, while also providing external sources that are related."}]
["IPEC Information on Regions and Countries","Database","ILO International Programme on the Elimination of Child Labour (IPEC)","http://www.ilo.org/ipec/Regionsandcountries/lang--en/index.htm","Elimination of Child Labour",null,"Global","Geographical application5","North America",null,{"$f":"VLOOKUP(DescriptionTable[[#This Row],[Name]],descriptions[],2,FALSE)","v":"Provides regional-wise information on matters related to the status of child labour and rights of the child in that specific region, while also providing external sources that are related."}]
["IPEC Child Labour Statistics","Database","ILO International Programme on the Elimination of Child Labour (IPEC)","https://www.ilo.org/ipec/ChildlabourstatisticsSIMPOC/lang--en/index.htm","Elimination of Child Labour",null,"Global","Geographical application2","Africa",null,{"$f":"VLOOKUP(DescriptionTable[[#This Row],[Name]],descriptions[],2,FALSE)","v":"Statistical Information and Monitoring Programme on Child Labour (SIMPOC) is the statistical arm of IPEC. It provides numbers on the extent, characteristics and determinants of child labour. ISIMPOC assists countries in the collection, documentation, processing and analysis of child labour relevant data. This website makes available a wealth of statistical tools, data, reports, like specific questionnaires for child labour surveys, manuals and training kits on how to carry out child labour data collection in households, schools and at the workplace, guidance on how to properly process and analyse the collected information; micro datasets and survey reports from around the world, research on critical statistical issues, regular trend reports."}]
["IPEC Child Labour Statistics","Database","ILO International Programme on the Elimination of Child Labour (IPEC)","https://www.ilo.org/ipec/ChildlabourstatisticsSIMPOC/lang--en/index.htm","Elimination of Child Labour",null,"Global","Geographical application3","Latin America",null,{"$f":"VLOOKUP(DescriptionTable[[#This Row],[Name]],descriptions[],2,FALSE)","v":"Statistical Information and Monitoring Programme on Child Labour (SIMPOC) is the statistical arm of IPEC. It provides numbers on the extent, characteristics and determinants of child labour. ISIMPOC assists countries in the collection, documentation, processing and analysis of child labour relevant data. This website makes available a wealth of statistical tools, data, reports, like specific questionnaires for child labour surveys, manuals and training kits on how to carry out child labour data collection in households, schools and at the workplace, guidance on how to properly process and analyse the collected information; micro datasets and survey reports from around the world, research on critical statistical issues, regular trend reports."}]
["IPEC Child Labour Statistics","Database","ILO International Programme on the Elimination of Child Labour (IPEC)","https://www.ilo.org/ipec/ChildlabourstatisticsSIMPOC/lang--en/index.htm","Elimination of Child Labour",null,"Global","Geographical application4","Asia Pacific ",null,{"$f":"VLOOKUP(DescriptionTable[[#This Row],[Name]],descriptions[],2,FALSE)","v":"Statistical Information and Monitoring Programme on Child Labour (SIMPOC) is the statistical arm of IPEC. It provides numbers on the extent, characteristics and determinants of child labour. ISIMPOC assists countries in the collection, documentation, processing and analysis of child labour relevant data. This website makes available a wealth of statistical tools, data, reports, like specific questionnaires for child labour surveys, manuals and training kits on how to carry out child labour data collection in households, schools and at the workplace, guidance on how to properly process and analyse the collected information; micro datasets and survey reports from around the world, research on critical statistical issues, regular trend reports."}]
["IPEC Child Labour Statistics","Database","ILO International Programme on the Elimination of Child Labour (IPEC)","https://www.ilo.org/ipec/ChildlabourstatisticsSIMPOC/lang--en/index.htm","Elimination of Child Labour",null,"Global","Geographical application42","Europe",null,{"$f":"VLOOKUP(DescriptionTable[[#This Row],[Name]],descriptions[],2,FALSE)","v":"Statistical Information and Monitoring Programme on Child Labour (SIMPOC) is the statistical arm of IPEC. It provides numbers on the extent, characteristics and determinants of child labour. ISIMPOC assists countries in the collection, documentation, processing and analysis of child labour relevant data. This website makes available a wealth of statistical tools, data, reports, like specific questionnaires for child labour surveys, manuals and training kits on how to carry out child labour data collection in households, schools and at the workplace, guidance on how to properly process and analyse the collected information; micro datasets and survey reports from around the world, research on critical statistical issues, regular trend reports."}]
["IPEC Child Labour Statistics","Database","ILO International Programme on the Elimination of Child Labour (IPEC)","https://www.ilo.org/ipec/ChildlabourstatisticsSIMPOC/lang--en/index.htm","Elimination of Child Labour",null,"Global","Geographical application5","North America",null,{"$f":"VLOOKUP(DescriptionTable[[#This Row],[Name]],descriptions[],2,FALSE)","v":"Statistical Information and Monitoring Programme on Child Labour (SIMPOC) is the statistical arm of IPEC. It provides numbers on the extent, characteristics and determinants of child labour. ISIMPOC assists countries in the collection, documentation, processing and analysis of child labour relevant data. This website makes available a wealth of statistical tools, data, reports, like specific questionnaires for child labour surveys, manuals and training kits on how to carry out child labour data collection in households, schools and at the workplace, guidance on how to properly process and analyse the collected information; micro datasets and survey reports from around the world, research on critical statistical issues, regular trend reports."}]
["ILO SDG Labour Market Indicator 8.7.1: Proportion of children engaged in economic activity and household chores (%) -- Annual","Rank, Score and Analysis","International Labour Organisation (ILO)","https://ilostat.ilo.org/data/","Elimination of Child Labour",null,"Global","Geographical application2","Africa",null,{"$f":"VLOOKUP(DescriptionTable[[#This Row],[Name]],descriptions[],2,FALSE)","v":"Estimates on economic activity and household chores among children aged 5-17 refer to: (a) children 5–11 years old who, during the reference week, did at least one hour of economic activity or at least 21 hours of household chores, (b) children 12–14 years old who, during the reference week, did at least 14 hours of economic activity or at least 21 hours of household chores, (c) children 15–17 years old who, during the reference week, did at least 43 hours of economic activity."}]
["ILO SDG Labour Market Indicator 8.7.1: Proportion of children engaged in economic activity and household chores (%) -- Annual","Rank, Score and Analysis","International Labour Organisation (ILO)","https://ilostat.ilo.org/data/","Elimination of Child Labour",null,"Global","Geographical application3","Latin America",null,{"$f":"VLOOKUP(DescriptionTable[[#This Row],[Name]],descriptions[],2,FALSE)","v":"Estimates on economic activity and household chores among children aged 5-17 refer to: (a) children 5–11 years old who, during the reference week, did at least one hour of economic activity or at least 21 hours of household chores, (b) children 12–14 years old who, during the reference week, did at least 14 hours of economic activity or at least 21 hours of household chores, (c) children 15–17 years old who, during the reference week, did at least 43 hours of economic activity."}]
["ILO SDG Labour Market Indicator 8.7.1: Proportion of children engaged in economic activity and household chores (%) -- Annual","Rank, Score and Analysis","International Labour Organisation (ILO)","https://ilostat.ilo.org/data/","Elimination of Child Labour",null,"Global","Geographical application4","Asia Pacific ",null,{"$f":"VLOOKUP(DescriptionTable[[#This Row],[Name]],descriptions[],2,FALSE)","v":"Estimates on economic activity and household chores among children aged 5-17 refer to: (a) children 5–11 years old who, during the reference week, did at least one hour of economic activity or at least 21 hours of household chores, (b) children 12–14 years old who, during the reference week, did at least 14 hours of economic activity or at least 21 hours of household chores, (c) children 15–17 years old who, during the reference week, did at least 43 hours of economic activity."}]
["ILO SDG Labour Market Indicator 8.7.1: Proportion of children engaged in economic activity and household chores (%) -- Annual","Rank, Score and Analysis","International Labour Organisation (ILO)","https://ilostat.ilo.org/data/","Elimination of Child Labour",null,"Global","Geographical application42","Europe",null,{"$f":"VLOOKUP(DescriptionTable[[#This Row],[Name]],descriptions[],2,FALSE)","v":"Estimates on economic activity and household chores among children aged 5-17 refer to: (a) children 5–11 years old who, during the reference week, did at least one hour of economic activity or at least 21 hours of household chores, (b) children 12–14 years old who, during the reference week, did at least 14 hours of economic activity or at least 21 hours of household chores, (c) children 15–17 years old who, during the reference week, did at least 43 hours of economic activity."}]
["ILO SDG Labour Market Indicator 8.7.1: Proportion of children engaged in economic activity and household chores (%) -- Annual","Rank, Score and Analysis","International Labour Organisation (ILO)","https://ilostat.ilo.org/data/","Elimination of Child Labour",null,"Global","Geographical application5","North America",null,{"$f":"VLOOKUP(DescriptionTable[[#This Row],[Name]],descriptions[],2,FALSE)","v":"Estimates on economic activity and household chores among children aged 5-17 refer to: (a) children 5–11 years old who, during the reference week, did at least one hour of economic activity or at least 21 hours of household chores, (b) children 12–14 years old who, during the reference week, did at least 14 hours of economic activity or at least 21 hours of household chores, (c) children 15–17 years old who, during the reference week, did at least 43 hours of economic activity."}]
["UNICEF Child Labour Data ","Database","UN Children's Fund (UNICEF)","https://data.unicef.org/topic/child-protection/child-labour/","Elimination of Child Labour",null,"Global","Geographical application2","Africa",null,{"$f":"VLOOKUP(DescriptionTable[[#This Row],[Name]],descriptions[],2,FALSE)","v":"Provides UNICEF's available data on Child Labour and relevent data resources. The issue of child labour is guided by three main international conventions: the International Labour Organization (ILO) Convention No. 138 concerning minimum age for admission to employment and Recommendation No. 146 (1973), ILO Convention No. 182 concerning the prohibition and immediate action for the elimination of the worst forms of child labour and Recommendation No. 190 (1999), and the United Nations Convention on the Rights of the Child. These conventions frame the concept of child labour and form the basis for child labour legislation enacted by countries that are signatories."}]
["UNICEF Child Labour Data ","Database","UN Children's Fund (UNICEF)","https://data.unicef.org/topic/child-protection/child-labour/","Elimination of Child Labour",null,"Global","Geographical application3","Latin America",null,{"$f":"VLOOKUP(DescriptionTable[[#This Row],[Name]],descriptions[],2,FALSE)","v":"Provides UNICEF's available data on Child Labour and relevent data resources. The issue of child labour is guided by three main international conventions: the International Labour Organization (ILO) Convention No. 138 concerning minimum age for admission to employment and Recommendation No. 146 (1973), ILO Convention No. 182 concerning the prohibition and immediate action for the elimination of the worst forms of child labour and Recommendation No. 190 (1999), and the United Nations Convention on the Rights of the Child. These conventions frame the concept of child labour and form the basis for child labour legislation enacted by countries that are signatories."}]
["UNICEF Child Labour Data ","Database","UN Children's Fund (UNICEF)","https://data.unicef.org/topic/child-protection/child-labour/","Elimination of Child Labour",null,"Global","Geographical application4","Asia Pacific ",null,{"$f":"VLOOKUP(DescriptionTable[[#This Row],[Name]],descriptions[],2,FALSE)","v":"Provides UNICEF's available data on Child Labour and relevent data resources. The issue of child labour is guided by three main international conventions: the International Labour Organization (ILO) Convention No. 138 concerning minimum age for admission to employment and Recommendation No. 146 (1973), ILO Convention No. 182 concerning the prohibition and immediate action for the elimination of the worst forms of child labour and Recommendation No. 190 (1999), and the United Nations Convention on the Rights of the Child. These conventions frame the concept of child labour and form the basis for child labour legislation enacted by countries that are signatories."}]
["UNICEF Child Labour Data ","Database","UN Children's Fund (UNICEF)","https://data.unicef.org/topic/child-protection/child-labour/","Elimination of Child Labour",null,"Global","Geographical application42","Europe",null,{"$f":"VLOOKUP(DescriptionTable[[#This Row],[Name]],descriptions[],2,FALSE)","v":"Provides UNICEF's available data on Child Labour and relevent data resources. The issue of child labour is guided by three main international conventions: the International Labour Organization (ILO) Convention No. 138 concerning minimum age for admission to employment and Recommendation No. 146 (1973), ILO Convention No. 182 concerning the prohibition and immediate action for the elimination of the worst forms of child labour and Recommendation No. 190 (1999), and the United Nations Convention on the Rights of the Child. These conventions frame the concept of child labour and form the basis for child labour legislation enacted by countries that are signatories."}]
["UNICEF Child Labour Data ","Database","UN Children's Fund (UNICEF)","https://data.unicef.org/topic/child-protection/child-labour/","Elimination of Child Labour",null,"Global","Geographical application5","North America",null,{"$f":"VLOOKUP(DescriptionTable[[#This Row],[Name]],descriptions[],2,FALSE)","v":"Provides UNICEF's available data on Child Labour and relevent data resources. The issue of child labour is guided by three main international conventions: the International Labour Organization (ILO) Convention No. 138 concerning minimum age for admission to employment and Recommendation No. 146 (1973), ILO Convention No. 182 concerning the prohibition and immediate action for the elimination of the worst forms of child labour and Recommendation No. 190 (1999), and the United Nations Convention on the Rights of the Child. These conventions frame the concept of child labour and form the basis for child labour legislation enacted by countries that are signatories."}]
["Verisk Maplecroft: Child Labour Index ","Index","Verisik Maplecroft","https://www.maplecroft.com/risk-indices/child-labour-index/","Elimination of Child Labour",null,"Global","Geographical application2","Africa",null,{"$f":"VLOOKUP(DescriptionTable[[#This Row],[Name]],descriptions[],2,FALSE)","v":"Includes a comprehensive assessment of a country’s commitment to combatting child labour, the quality of its domestic legal framework, its enforcement capabilities and the extent of reported violations. The Child Labour Index helps to: Perform due-diligence risk assessments and prioritise actions, Build strong resilience, adequate policies and monitoring systems for combatting child labour in the value chain, Safeguard company reputation, Promote responsible business practices in line with international guidelines."}]
["Verisk Maplecroft: Child Labour Index ","Index","Verisik Maplecroft","https://www.maplecroft.com/risk-indices/child-labour-index/","Elimination of Child Labour",null,"Global","Geographical application3","Latin America",null,{"$f":"VLOOKUP(DescriptionTable[[#This Row],[Name]],descriptions[],2,FALSE)","v":"Includes a comprehensive assessment of a country’s commitment to combatting child labour, the quality of its domestic legal framework, its enforcement capabilities and the extent of reported violations. The Child Labour Index helps to: Perform due-diligence risk assessments and prioritise actions, Build strong resilience, adequate policies and monitoring systems for combatting child labour in the value chain, Safeguard company reputation, Promote responsible business practices in line with international guidelines."}]
["Verisk Maplecroft: Child Labour Index ","Index","Verisik Maplecroft","https://www.maplecroft.com/risk-indices/child-labour-index/","Elimination of Child Labour",null,"Global","Geographical application4","Asia Pacific ",null,{"$f":"VLOOKUP(DescriptionTable[[#This Row],[Name]],descriptions[],2,FALSE)","v":"Includes a comprehensive assessment of a country’s commitment to combatting child labour, the quality of its domestic legal framework, its enforcement capabilities and the extent of reported violations. The Child Labour Index helps to: Perform due-diligence risk assessments and prioritise actions, Build strong resilience, adequate policies and monitoring systems for combatting child labour in the value chain, Safeguard company reputation, Promote responsible business practices in line with international guidelines."}]
["Verisk Maplecroft: Child Labour Index ","Index","Verisik Maplecroft","https://www.maplecroft.com/risk-indices/child-labour-index/","Elimination of Child Labour",null,"Global","Geographical application42","Europe",null,{"$f":"VLOOKUP(DescriptionTable[[#This Row],[Name]],descriptions[],2,FALSE)","v":"Includes a comprehensive assessment of a country’s commitment to combatting child labour, the quality of its domestic legal framework, its enforcement capabilities and the extent of reported violations. The Child Labour Index helps to: Perform due-diligence risk assessments and prioritise actions, Build strong resilience, adequate policies and monitoring systems for combatting child labour in the value chain, Safeguard company reputation, Promote responsible business practices in line with international guidelines."}]
["Verisk Maplecroft: Child Labour Index ","Index","Verisik Maplecroft","https://www.maplecroft.com/risk-indices/child-labour-index/","Elimination of Child Labour",null,"Global","Geographical application5","North America",null,{"$f":"VLOOKUP(DescriptionTable[[#This Row],[Name]],descriptions[],2,FALSE)","v":"Includes a comprehensive assessment of a country’s commitment to combatting child labour, the quality of its domestic legal framework, its enforcement capabilities and the extent of reported violations. The Child Labour Index helps to: Perform due-diligence risk assessments and prioritise actions, Build strong resilience, adequate policies and monitoring systems for combatting child labour in the value chain, Safeguard company reputation, Promote responsible business practices in line with international guidelines."}]
["US Department of Labour: List of Goods Produced by Child Labour or Forced Labour","Database","US Department of Labour (Bureau of International Labour Affairs)","https://www.dol.gov/agencies/ilab/reports/child-labor/list-of-goods-print","Elimination of Child Labour",null,"Global","Geographical application2","Africa",null,{"$f":"VLOOKUP(DescriptionTable[[#This Row],[Name]],descriptions[],2,FALSE)","v":"A list of goods and their source countries which it has reason to believe are produced by child labor or forced labor in violation of international standards, as required under the Trafficking Victims Protection Reauthorization Act (TVPRA)."}]
["US Department of Labour: List of Goods Produced by Child Labour or Forced Labour","Database","US Department of Labour (Bureau of International Labour Affairs)","https://www.dol.gov/agencies/ilab/reports/child-labor/list-of-goods-print","Elimination of Child Labour",null,"Global","Geographical application3","Latin America",null,{"$f":"VLOOKUP(DescriptionTable[[#This Row],[Name]],descriptions[],2,FALSE)","v":"A list of goods and their source countries which it has reason to believe are produced by child labor or forced labor in violation of international standards, as required under the Trafficking Victims Protection Reauthorization Act (TVPRA)."}]
["US Department of Labour: List of Goods Produced by Child Labour or Forced Labour","Database","US Department of Labour (Bureau of International Labour Affairs)","https://www.dol.gov/agencies/ilab/reports/child-labor/list-of-goods-print","Elimination of Child Labour",null,"Global","Geographical application4","Asia Pacific ",null,{"$f":"VLOOKUP(DescriptionTable[[#This Row],[Name]],descriptions[],2,FALSE)","v":"A list of goods and their source countries which it has reason to believe are produced by child labor or forced labor in violation of international standards, as required under the Trafficking Victims Protection Reauthorization Act (TVPRA)."}]
["US Department of Labour: List of Goods Produced by Child Labour or Forced Labour","Database","US Department of Labour (Bureau of International Labour Affairs)","https://www.dol.gov/agencies/ilab/reports/child-labor/list-of-goods-print","Elimination of Child Labour",null,"Global","Geographical application42","Europe",null,{"$f":"VLOOKUP(DescriptionTable[[#This Row],[Name]],descriptions[],2,FALSE)","v":"A list of goods and their source countries which it has reason to believe are produced by child labor or forced labor in violation of international standards, as required under the Trafficking Victims Protection Reauthorization Act (TVPRA)."}]
["US Department of Labour: List of Goods Produced by Child Labour or Forced Labour","Database","US Department of Labour (Bureau of International Labour Affairs)","https://www.dol.gov/agencies/ilab/reports/child-labor/list-of-goods-print","Elimination of Child Labour",null,"Global","Geographical application5","North America",null,{"$f":"VLOOKUP(DescriptionTable[[#This Row],[Name]],descriptions[],2,FALSE)","v":"A list of goods and their source countries which it has reason to believe are produced by child labor or forced labor in violation of international standards, as required under the Trafficking Victims Protection Reauthorization Act (TVPRA)."}]
["Resource Centre: Global March ","Database","Global March Against Child Labour","http://www.globalmarch.org/","Elimination of Child Labour",null,"Global","Geographical application2","Africa",null,{"$f":"VLOOKUP(DescriptionTable[[#This Row],[Name]],descriptions[],2,FALSE)","v":"A worldwide network of trade unions, teachers’ associations and civil society organisations that work together towards the shared development goals of eliminating and preventing all forms of child labour, slavery and trafficking and ensuring access by all children to free, meaningful and good quality public education."}]
["Resource Centre: Global March ","Database","Global March Against Child Labour","http://www.globalmarch.org/","Elimination of Child Labour",null,"Global","Geographical application3","Latin America",null,{"$f":"VLOOKUP(DescriptionTable[[#This Row],[Name]],descriptions[],2,FALSE)","v":"A worldwide network of trade unions, teachers’ associations and civil society organisations that work together towards the shared development goals of eliminating and preventing all forms of child labour, slavery and trafficking and ensuring access by all children to free, meaningful and good quality public education."}]
["Resource Centre: Global March ","Database","Global March Against Child Labour","http://www.globalmarch.org/","Elimination of Child Labour",null,"Global","Geographical application4","Asia Pacific ",null,{"$f":"VLOOKUP(DescriptionTable[[#This Row],[Name]],descriptions[],2,FALSE)","v":"A worldwide network of trade unions, teachers’ associations and civil society organisations that work together towards the shared development goals of eliminating and preventing all forms of child labour, slavery and trafficking and ensuring access by all children to free, meaningful and good quality public education."}]
["Resource Centre: Global March ","Database","Global March Against Child Labour","http://www.globalmarch.org/","Elimination of Child Labour",null,"Global","Geographical application42","Europe",null,{"$f":"VLOOKUP(DescriptionTable[[#This Row],[Name]],descriptions[],2,FALSE)","v":"A worldwide network of trade unions, teachers’ associations and civil society organisations that work together towards the shared development goals of eliminating and preventing all forms of child labour, slavery and trafficking and ensuring access by all children to free, meaningful and good quality public education."}]
["Resource Centre: Global March ","Database","Global March Against Child Labour","http://www.globalmarch.org/","Elimination of Child Labour",null,"Global","Geographical application5","North America",null,{"$f":"VLOOKUP(DescriptionTable[[#This Row],[Name]],descriptions[],2,FALSE)","v":"A worldwide network of trade unions, teachers’ associations and civil society organisations that work together towards the shared development goals of eliminating and preventing all forms of child labour, slavery and trafficking and ensuring access by all children to free, meaningful and good quality public education."}]
["UN Declaration on the Rights of Indigenous Peoples (UNDRIP)","Report/Document","United Nations (UN)","https://www.ohchr.org/en/indigenous-peoples/un-declaration-rights-indigenous-peoples","Indigenous People's and Traditional People's Rights",null,"Global","Geographical application2","Africa",null,{"$f":"VLOOKUP(DescriptionTable[[#This Row],[Name]],descriptions[],2,FALSE)","v":"Published on 13 September 2007 by the Office of the High Commissioner for Human Rights, this declaration is the most comprehensive instrument detailing the rights of indigenous peoples in international law and policy, containing minimum standards for the recognition, protection and promotion of these rights. It establishes a universal framework of minimum standards for the survival, dignity, wellbeing and rights of the world's indigenous peoples."}]
["UN Declaration on the Rights of Indigenous Peoples (UNDRIP)","Report/Document","United Nations (UN)","https://www.ohchr.org/en/indigenous-peoples/un-declaration-rights-indigenous-peoples","Indigenous People's and Traditional People's Rights",null,"Global","Geographical application3","Latin America",null,{"$f":"VLOOKUP(DescriptionTable[[#This Row],[Name]],descriptions[],2,FALSE)","v":"Published on 13 September 2007 by the Office of the High Commissioner for Human Rights, this declaration is the most comprehensive instrument detailing the rights of indigenous peoples in international law and policy, containing minimum standards for the recognition, protection and promotion of these rights. It establishes a universal framework of minimum standards for the survival, dignity, wellbeing and rights of the world's indigenous peoples."}]
["UN Declaration on the Rights of Indigenous Peoples (UNDRIP)","Report/Document","United Nations (UN)","https://www.ohchr.org/en/indigenous-peoples/un-declaration-rights-indigenous-peoples","Indigenous People's and Traditional People's Rights",null,"Global","Geographical application4","Asia Pacific ",null,{"$f":"VLOOKUP(DescriptionTable[[#This Row],[Name]],descriptions[],2,FALSE)","v":"Published on 13 September 2007 by the Office of the High Commissioner for Human Rights, this declaration is the most comprehensive instrument detailing the rights of indigenous peoples in international law and policy, containing minimum standards for the recognition, protection and promotion of these rights. It establishes a universal framework of minimum standards for the survival, dignity, wellbeing and rights of the world's indigenous peoples."}]
["UN Declaration on the Rights of Indigenous Peoples (UNDRIP)","Report/Document","United Nations (UN)","https://www.ohchr.org/en/indigenous-peoples/un-declaration-rights-indigenous-peoples","Indigenous People's and Traditional People's Rights",null,"Global","Geographical application42","Europe",null,{"$f":"VLOOKUP(DescriptionTable[[#This Row],[Name]],descriptions[],2,FALSE)","v":"Published on 13 September 2007 by the Office of the High Commissioner for Human Rights, this declaration is the most comprehensive instrument detailing the rights of indigenous peoples in international law and policy, containing minimum standards for the recognition, protection and promotion of these rights. It establishes a universal framework of minimum standards for the survival, dignity, wellbeing and rights of the world's indigenous peoples."}]
["UN Declaration on the Rights of Indigenous Peoples (UNDRIP)","Report/Document","United Nations (UN)","https://www.ohchr.org/en/indigenous-peoples/un-declaration-rights-indigenous-peoples","Indigenous People's and Traditional People's Rights",null,"Global","Geographical application5","North America",null,{"$f":"VLOOKUP(DescriptionTable[[#This Row],[Name]],descriptions[],2,FALSE)","v":"Published on 13 September 2007 by the Office of the High Commissioner for Human Rights, this declaration is the most comprehensive instrument detailing the rights of indigenous peoples in international law and policy, containing minimum standards for the recognition, protection and promotion of these rights. It establishes a universal framework of minimum standards for the survival, dignity, wellbeing and rights of the world's indigenous peoples."}]
["Indigenous Navigator: Country Profiles","Database","Indigenous Navigator","https://indigenousnavigator.org/indigenous-data/countries/cameroon","Indigenous People's and Traditional People's Rights",null,"Global","Geographical application2","Africa",null,{"$f":"VLOOKUP(DescriptionTable[[#This Row],[Name]],descriptions[],2,FALSE)","v":"The Country profiles present  country-wise data on the presence of indigenous or traditional peoples and their location/distribution. It also shares recent updates related to these communities. "}]
["Indigenous Navigator: Country Profiles","Database","Indigenous Navigator","https://indigenousnavigator.org/indigenous-data/countries/cameroon","Indigenous People's and Traditional People's Rights",null,"Global","Geographical application3","Latin America",null,{"$f":"VLOOKUP(DescriptionTable[[#This Row],[Name]],descriptions[],2,FALSE)","v":"The Country profiles present  country-wise data on the presence of indigenous or traditional peoples and their location/distribution. It also shares recent updates related to these communities. "}]
["Indigenous Navigator: Country Profiles","Database","Indigenous Navigator","https://indigenousnavigator.org/indigenous-data/countries/cameroon","Indigenous People's and Traditional People's Rights",null,"Global","Geographical application4","Asia Pacific ",null,{"$f":"VLOOKUP(DescriptionTable[[#This Row],[Name]],descriptions[],2,FALSE)","v":"The Country profiles present  country-wise data on the presence of indigenous or traditional peoples and their location/distribution. It also shares recent updates related to these communities. "}]
["Indigenous Navigator: Country Profiles","Database","Indigenous Navigator","https://indigenousnavigator.org/indigenous-data/countries/cameroon","Indigenous People's and Traditional People's Rights",null,"Global","Geographical application42","Europe",null,{"$f":"VLOOKUP(DescriptionTable[[#This Row],[Name]],descriptions[],2,FALSE)","v":"The Country profiles present  country-wise data on the presence of indigenous or traditional peoples and their location/distribution. It also shares recent updates related to these communities. "}]
["Indigenous Navigator: Country Profiles","Database","Indigenous Navigator","https://indigenousnavigator.org/indigenous-data/countries/cameroon","Indigenous People's and Traditional People's Rights",null,"Global","Geographical application5","North America",null,{"$f":"VLOOKUP(DescriptionTable[[#This Row],[Name]],descriptions[],2,FALSE)","v":"The Country profiles present  country-wise data on the presence of indigenous or traditional peoples and their location/distribution. It also shares recent updates related to these communities. "}]
["Survival International: Tribes and Indigenous Profiles","Database","Survival International","http://www.survivalinternational.org/","Indigenous People's and Traditional People's Rights",null,"Global","Geographical application2","Africa",null,{"$f":"VLOOKUP(DescriptionTable[[#This Row],[Name]],descriptions[],2,FALSE)","v":"Provides information on recognised Indiginous Tribes worldwide categorised into regions: The Americas, Africa, Asia and Australasia."}]
["Survival International: Tribes and Indigenous Profiles","Database","Survival International","http://www.survivalinternational.org/","Indigenous People's and Traditional People's Rights",null,"Global","Geographical application3","Latin America",null,{"$f":"VLOOKUP(DescriptionTable[[#This Row],[Name]],descriptions[],2,FALSE)","v":"Provides information on recognised Indiginous Tribes worldwide categorised into regions: The Americas, Africa, Asia and Australasia."}]
["Survival International: Tribes and Indigenous Profiles","Database","Survival International","http://www.survivalinternational.org/","Indigenous People's and Traditional People's Rights",null,"Global","Geographical application4","Asia Pacific ",null,{"$f":"VLOOKUP(DescriptionTable[[#This Row],[Name]],descriptions[],2,FALSE)","v":"Provides information on recognised Indiginous Tribes worldwide categorised into regions: The Americas, Africa, Asia and Australasia."}]
["Survival International: Tribes and Indigenous Profiles","Database","Survival International","http://www.survivalinternational.org/","Indigenous People's and Traditional People's Rights",null,"Global","Geographical application42","Europe",null,{"$f":"VLOOKUP(DescriptionTable[[#This Row],[Name]],descriptions[],2,FALSE)","v":"Provides information on recognised Indiginous Tribes worldwide categorised into regions: The Americas, Africa, Asia and Australasia."}]
["Survival International: Tribes and Indigenous Profiles","Database","Survival International","http://www.survivalinternational.org/","Indigenous People's and Traditional People's Rights",null,"Global","Geographical application5","North America",null,{"$f":"VLOOKUP(DescriptionTable[[#This Row],[Name]],descriptions[],2,FALSE)","v":"Provides information on recognised Indiginous Tribes worldwide categorised into regions: The Americas, Africa, Asia and Australasia."}]
["Free, Prior and Informed Consent: Report ","Report/Document","United Nations (UN)","https://www.ohchr.org/en/calls-for-input/free-prior-and-informed-consent-report","Indigenous People's and Traditional People's Rights",null,"Global","Geographical application2","Africa",null,{"$f":"VLOOKUP(DescriptionTable[[#This Row],[Name]],descriptions[],2,FALSE)","v":"Free, prior and informed consent is a manifestation of indigenous peoples’ right to self-determine their political, social, economic and cultural priorities. It constitutes three interrelated and cumulative rights of indigenous peoples: the right to be consulted, the right to participate, the right to their lands, territories and resources."}]
["Free, Prior and Informed Consent: Report ","Report/Document","United Nations (UN)","https://www.ohchr.org/en/calls-for-input/free-prior-and-informed-consent-report","Indigenous People's and Traditional People's Rights",null,"Global","Geographical application3","Latin America",null,{"$f":"VLOOKUP(DescriptionTable[[#This Row],[Name]],descriptions[],2,FALSE)","v":"Free, prior and informed consent is a manifestation of indigenous peoples’ right to self-determine their political, social, economic and cultural priorities. It constitutes three interrelated and cumulative rights of indigenous peoples: the right to be consulted, the right to participate, the right to their lands, territories and resources."}]
["Free, Prior and Informed Consent: Report ","Report/Document","United Nations (UN)","https://www.ohchr.org/en/calls-for-input/free-prior-and-informed-consent-report","Indigenous People's and Traditional People's Rights",null,"Global","Geographical application4","Asia Pacific ",null,{"$f":"VLOOKUP(DescriptionTable[[#This Row],[Name]],descriptions[],2,FALSE)","v":"Free, prior and informed consent is a manifestation of indigenous peoples’ right to self-determine their political, social, economic and cultural priorities. It constitutes three interrelated and cumulative rights of indigenous peoples: the right to be consulted, the right to participate, the right to their lands, territories and resources."}]
["Free, Prior and Informed Consent: Report ","Report/Document","United Nations (UN)","https://www.ohchr.org/en/calls-for-input/free-prior-and-informed-consent-report","Indigenous People's and Traditional People's Rights",null,"Global","Geographical application42","Europe",null,{"$f":"VLOOKUP(DescriptionTable[[#This Row],[Name]],descriptions[],2,FALSE)","v":"Free, prior and informed consent is a manifestation of indigenous peoples’ right to self-determine their political, social, economic and cultural priorities. It constitutes three interrelated and cumulative rights of indigenous peoples: the right to be consulted, the right to participate, the right to their lands, territories and resources."}]
["Free, Prior and Informed Consent: Report ","Report/Document","United Nations (UN)","https://www.ohchr.org/en/calls-for-input/free-prior-and-informed-consent-report","Indigenous People's and Traditional People's Rights",null,"Global","Geographical application5","North America",null,{"$f":"VLOOKUP(DescriptionTable[[#This Row],[Name]],descriptions[],2,FALSE)","v":"Free, prior and informed consent is a manifestation of indigenous peoples’ right to self-determine their political, social, economic and cultural priorities. It constitutes three interrelated and cumulative rights of indigenous peoples: the right to be consulted, the right to participate, the right to their lands, territories and resources."}]
["Integrated Forest Observatory System (IFOROS): Preylang Community Network","Maps and Dataset","Preylang Community Network","https://preylang.net/resources/maps/","Indigenous People's and Traditional People's Rights",null,"Cambodia","Geographical application2","Asia Pacific",null,{"$f":"VLOOKUP(DescriptionTable[[#This Row],[Name]],descriptions[],2,FALSE)","v":"Community patrol data, with access to photos and categorization, info about the Economic Land concessions of Cambodia plus satellite monitoring data on deforestation stemming from the FCDM tool developed from the Joint Research Center of European Commission  (JRC-EC) and the more widely known GLAD alerts and forest loss dataset from the University of Maryland."}]
["List of Fragile and Conflict-Affected Situations (FCS)","Dataset","World Bank","https://www.worldbank.org/en/topic/fragilityconflictviolence/brief/harmonized-list-of-fragile-situations","Harvesting and Trade of products from conflict areas",null,"Global","Geographical application2","Africa",null,{"$f":"VLOOKUP(DescriptionTable[[#This Row],[Name]],descriptions[],2,FALSE)","v":"FCS is released annually by the World Bank Group (WBG) and aims to inform strategic and operational decision-making within the WBG. The list is based on publicly available global indicators followed by an internal review; and is updated every year on July 1st to reflect changes in country situations. The list distinguishes between countries based on the nature of issues they face. The classification uses the following categories: Countries with high levels of institutional and social fragility, identified based on indicators that measure the quality of policy and institutions, and manifestations of fragility. Countries affected by violent conflict, identified based on a threshold number of conflict-related deaths relative to the population. "}]
["List of Fragile and Conflict-Affected Situations (FCS)","Dataset","World Bank","https://www.worldbank.org/en/topic/fragilityconflictviolence/brief/harmonized-list-of-fragile-situations","Harvesting and Trade of products from conflict areas",null,"Global","Geographical application3","Latin America",null,{"$f":"VLOOKUP(DescriptionTable[[#This Row],[Name]],descriptions[],2,FALSE)","v":"FCS is released annually by the World Bank Group (WBG) and aims to inform strategic and operational decision-making within the WBG. The list is based on publicly available global indicators followed by an internal review; and is updated every year on July 1st to reflect changes in country situations. The list distinguishes between countries based on the nature of issues they face. The classification uses the following categories: Countries with high levels of institutional and social fragility, identified based on indicators that measure the quality of policy and institutions, and manifestations of fragility. Countries affected by violent conflict, identified based on a threshold number of conflict-related deaths relative to the population. "}]
["List of Fragile and Conflict-Affected Situations (FCS)","Dataset","World Bank","https://www.worldbank.org/en/topic/fragilityconflictviolence/brief/harmonized-list-of-fragile-situations","Harvesting and Trade of products from conflict areas",null,"Global","Geographical application4","Asia Pacific ",null,{"$f":"VLOOKUP(DescriptionTable[[#This Row],[Name]],descriptions[],2,FALSE)","v":"FCS is released annually by the World Bank Group (WBG) and aims to inform strategic and operational decision-making within the WBG. The list is based on publicly available global indicators followed by an internal review; and is updated every year on July 1st to reflect changes in country situations. The list distinguishes between countries based on the nature of issues they face. The classification uses the following categories: Countries with high levels of institutional and social fragility, identified based on indicators that measure the quality of policy and institutions, and manifestations of fragility. Countries affected by violent conflict, identified based on a threshold number of conflict-related deaths relative to the population. "}]
["List of Fragile and Conflict-Affected Situations (FCS)","Dataset","World Bank","https://www.worldbank.org/en/topic/fragilityconflictviolence/brief/harmonized-list-of-fragile-situations","Harvesting and Trade of products from conflict areas",null,"Global","Geographical application42","Europe",null,{"$f":"VLOOKUP(DescriptionTable[[#This Row],[Name]],descriptions[],2,FALSE)","v":"FCS is released annually by the World Bank Group (WBG) and aims to inform strategic and operational decision-making within the WBG. The list is based on publicly available global indicators followed by an internal review; and is updated every year on July 1st to reflect changes in country situations. The list distinguishes between countries based on the nature of issues they face. The classification uses the following categories: Countries with high levels of institutional and social fragility, identified based on indicators that measure the quality of policy and institutions, and manifestations of fragility. Countries affected by violent conflict, identified based on a threshold number of conflict-related deaths relative to the population. "}]
["List of Fragile and Conflict-Affected Situations (FCS)","Dataset","World Bank","https://www.worldbank.org/en/topic/fragilityconflictviolence/brief/harmonized-list-of-fragile-situations","Harvesting and Trade of products from conflict areas",null,"Global","Geographical application5","North America",null,{"$f":"VLOOKUP(DescriptionTable[[#This Row],[Name]],descriptions[],2,FALSE)","v":"FCS is released annually by the World Bank Group (WBG) and aims to inform strategic and operational decision-making within the WBG. The list is based on publicly available global indicators followed by an internal review; and is updated every year on July 1st to reflect changes in country situations. The list distinguishes between countries based on the nature of issues they face. The classification uses the following categories: Countries with high levels of institutional and social fragility, identified based on indicators that measure the quality of policy and institutions, and manifestations of fragility. Countries affected by violent conflict, identified based on a threshold number of conflict-related deaths relative to the population. "}]
["Global Witness: Briefing to conflict timber ","Report/Document","Global Witness","https://www.globalwitness.org/en/reports/eus-responsibility-act-conflict-timber-new-framework-action/#:~:text=The%20European%20Union%20%28EU%29%20is%20a%20significant%20export,and%20provides%20the%20potential%20to%20combat%20conflict%20timber","Harvesting and Trade of products from conflict areas",null,"Global","Geographical application2","Africa",null,{"$f":"VLOOKUP(DescriptionTable[[#This Row],[Name]],descriptions[],2,FALSE)","v":"Aims to underscore the critical issue of illegal logging, particularly in conflict zones, advocate for a comprehensive approach by the European Union to address conflict timber."}]
["Global Witness: Briefing to conflict timber ","Report/Document","Global Witness","https://www.globalwitness.org/en/reports/eus-responsibility-act-conflict-timber-new-framework-action/#:~:text=The%20European%20Union%20%28EU%29%20is%20a%20significant%20export,and%20provides%20the%20potential%20to%20combat%20conflict%20timber","Harvesting and Trade of products from conflict areas",null,"Global","Geographical application3","Latin America",null,{"$f":"VLOOKUP(DescriptionTable[[#This Row],[Name]],descriptions[],2,FALSE)","v":"Aims to underscore the critical issue of illegal logging, particularly in conflict zones, advocate for a comprehensive approach by the European Union to address conflict timber."}]
["Global Witness: Briefing to conflict timber ","Report/Document","Global Witness","https://www.globalwitness.org/en/reports/eus-responsibility-act-conflict-timber-new-framework-action/#:~:text=The%20European%20Union%20%28EU%29%20is%20a%20significant%20export,and%20provides%20the%20potential%20to%20combat%20conflict%20timber","Harvesting and Trade of products from conflict areas",null,"Global","Geographical application4","Asia Pacific ",null,{"$f":"VLOOKUP(DescriptionTable[[#This Row],[Name]],descriptions[],2,FALSE)","v":"Aims to underscore the critical issue of illegal logging, particularly in conflict zones, advocate for a comprehensive approach by the European Union to address conflict timber."}]
["Global Witness: Briefing to conflict timber ","Report/Document","Global Witness","https://www.globalwitness.org/en/reports/eus-responsibility-act-conflict-timber-new-framework-action/#:~:text=The%20European%20Union%20%28EU%29%20is%20a%20significant%20export,and%20provides%20the%20potential%20to%20combat%20conflict%20timber","Harvesting and Trade of products from conflict areas",null,"Global","Geographical application42","Europe",null,{"$f":"VLOOKUP(DescriptionTable[[#This Row],[Name]],descriptions[],2,FALSE)","v":"Aims to underscore the critical issue of illegal logging, particularly in conflict zones, advocate for a comprehensive approach by the European Union to address conflict timber."}]
["Global Witness: Briefing to conflict timber ","Report/Document","Global Witness","https://www.globalwitness.org/en/reports/eus-responsibility-act-conflict-timber-new-framework-action/#:~:text=The%20European%20Union%20%28EU%29%20is%20a%20significant%20export,and%20provides%20the%20potential%20to%20combat%20conflict%20timber","Harvesting and Trade of products from conflict areas",null,"Global","Geographical application5","North America",null,{"$f":"VLOOKUP(DescriptionTable[[#This Row],[Name]],descriptions[],2,FALSE)","v":"Aims to underscore the critical issue of illegal logging, particularly in conflict zones, advocate for a comprehensive approach by the European Union to address conflict timber."}]
["CrisisWatch: Global Conflict Tracker","Database","International Crisis Watch Group ","https://www.crisisgroup.org/crisiswatch","Harvesting and Trade of products from conflict areas",null,"Global","Geographical application2","Africa",null,{"$f":"VLOOKUP(DescriptionTable[[#This Row],[Name]],descriptions[],2,FALSE)","v":"An early warning tool designed to help prevent deadly violence. It keeps decision-makers up-to-date with developments in over 70 conflicts and crises every month, identifying trends and alerting them to risks of escalation and opportunities to advance peace. "}]
["CrisisWatch: Global Conflict Tracker","Database","International Crisis Watch Group ","https://www.crisisgroup.org/crisiswatch","Harvesting and Trade of products from conflict areas",null,"Global","Geographical application3","Latin America",null,{"$f":"VLOOKUP(DescriptionTable[[#This Row],[Name]],descriptions[],2,FALSE)","v":"An early warning tool designed to help prevent deadly violence. It keeps decision-makers up-to-date with developments in over 70 conflicts and crises every month, identifying trends and alerting them to risks of escalation and opportunities to advance peace. "}]
["CrisisWatch: Global Conflict Tracker","Database","International Crisis Watch Group ","https://www.crisisgroup.org/crisiswatch","Harvesting and Trade of products from conflict areas",null,"Global","Geographical application4","Asia Pacific ",null,{"$f":"VLOOKUP(DescriptionTable[[#This Row],[Name]],descriptions[],2,FALSE)","v":"An early warning tool designed to help prevent deadly violence. It keeps decision-makers up-to-date with developments in over 70 conflicts and crises every month, identifying trends and alerting them to risks of escalation and opportunities to advance peace. "}]
["CrisisWatch: Global Conflict Tracker","Database","International Crisis Watch Group ","https://www.crisisgroup.org/crisiswatch","Harvesting and Trade of products from conflict areas",null,"Global","Geographical application42","Europe",null,{"$f":"VLOOKUP(DescriptionTable[[#This Row],[Name]],descriptions[],2,FALSE)","v":"An early warning tool designed to help prevent deadly violence. It keeps decision-makers up-to-date with developments in over 70 conflicts and crises every month, identifying trends and alerting them to risks of escalation and opportunities to advance peace. "}]
["CrisisWatch: Global Conflict Tracker","Database","International Crisis Watch Group ","https://www.crisisgroup.org/crisiswatch","Harvesting and Trade of products from conflict areas",null,"Global","Geographical application5","North America",null,{"$f":"VLOOKUP(DescriptionTable[[#This Row],[Name]],descriptions[],2,FALSE)","v":"An early warning tool designed to help prevent deadly violence. It keeps decision-makers up-to-date with developments in over 70 conflicts and crises every month, identifying trends and alerting them to risks of escalation and opportunities to advance peace. "}]
["Worldwide Governance Indicator for Control of Corruption ","Rank, Score and Analysis","World Bank","https://tcdata360.worldbank.org/indicators/hc153e067?country=BRA&indicator=364&viz=line_chart&years=1996,2021","Corruption, Data and Document Falsification",null,"Global","Geographical application2","Africa",null,{"$f":"VLOOKUP(DescriptionTable[[#This Row],[Name]],descriptions[],2,FALSE)","v":"Perceptions of the extent to which public power is exercised for private gain, including both petty and grand forms of corruption, as well as \"capture\" of the state by elites and private interests."}]
["Worldwide Governance Indicator for Control of Corruption ","Rank, Score and Analysis","World Bank","https://tcdata360.worldbank.org/indicators/hc153e067?country=BRA&indicator=364&viz=line_chart&years=1996,2021","Corruption, Data and Document Falsification",null,"Global","Geographical application3","Latin America",null,{"$f":"VLOOKUP(DescriptionTable[[#This Row],[Name]],descriptions[],2,FALSE)","v":"Perceptions of the extent to which public power is exercised for private gain, including both petty and grand forms of corruption, as well as \"capture\" of the state by elites and private interests."}]
["Worldwide Governance Indicator for Control of Corruption ","Rank, Score and Analysis","World Bank","https://tcdata360.worldbank.org/indicators/hc153e067?country=BRA&indicator=364&viz=line_chart&years=1996,2021","Corruption, Data and Document Falsification",null,"Global","Geographical application4","Asia Pacific ",null,{"$f":"VLOOKUP(DescriptionTable[[#This Row],[Name]],descriptions[],2,FALSE)","v":"Perceptions of the extent to which public power is exercised for private gain, including both petty and grand forms of corruption, as well as \"capture\" of the state by elites and private interests."}]
["Worldwide Governance Indicator for Control of Corruption ","Rank, Score and Analysis","World Bank","https://tcdata360.worldbank.org/indicators/hc153e067?country=BRA&indicator=364&viz=line_chart&years=1996,2021","Corruption, Data and Document Falsification",null,"Global","Geographical application42","Europe",null,{"$f":"VLOOKUP(DescriptionTable[[#This Row],[Name]],descriptions[],2,FALSE)","v":"Perceptions of the extent to which public power is exercised for private gain, including both petty and grand forms of corruption, as well as \"capture\" of the state by elites and private interests."}]
["Worldwide Governance Indicator for Control of Corruption ","Rank, Score and Analysis","World Bank","https://tcdata360.worldbank.org/indicators/hc153e067?country=BRA&indicator=364&viz=line_chart&years=1996,2021","Corruption, Data and Document Falsification",null,"Global","Geographical application5","North America",null,{"$f":"VLOOKUP(DescriptionTable[[#This Row],[Name]],descriptions[],2,FALSE)","v":"Perceptions of the extent to which public power is exercised for private gain, including both petty and grand forms of corruption, as well as \"capture\" of the state by elites and private interests."}]
["Corruption perception Index ","Rank, Score and Analysis","Transparency International","https://www.transparency.org/en/cpi/2019/index/nzl","Corruption, Data and Document Falsification",null,"Global","Geographical application2","Africa",null,{"$f":"VLOOKUP(DescriptionTable[[#This Row],[Name]],descriptions[],2,FALSE)","v":"The Corruption Perceptions Index (CPI) aggregates data from a number of different sources that provide perceptions by business people and country experts of the level of corruption in the public sector"}]
["Corruption perception Index ","Rank, Score and Analysis","Transparency International","https://www.transparency.org/en/cpi/2019/index/nzl","Corruption, Data and Document Falsification",null,"Global","Geographical application3","Latin America",null,{"$f":"VLOOKUP(DescriptionTable[[#This Row],[Name]],descriptions[],2,FALSE)","v":"The Corruption Perceptions Index (CPI) aggregates data from a number of different sources that provide perceptions by business people and country experts of the level of corruption in the public sector"}]
["Corruption perception Index ","Rank, Score and Analysis","Transparency International","https://www.transparency.org/en/cpi/2019/index/nzl","Corruption, Data and Document Falsification",null,"Global","Geographical application4","Asia Pacific ",null,{"$f":"VLOOKUP(DescriptionTable[[#This Row],[Name]],descriptions[],2,FALSE)","v":"The Corruption Perceptions Index (CPI) aggregates data from a number of different sources that provide perceptions by business people and country experts of the level of corruption in the public sector"}]
["Corruption perception Index ","Rank, Score and Analysis","Transparency International","https://www.transparency.org/en/cpi/2019/index/nzl","Corruption, Data and Document Falsification",null,"Global","Geographical application42","Europe",null,{"$f":"VLOOKUP(DescriptionTable[[#This Row],[Name]],descriptions[],2,FALSE)","v":"The Corruption Perceptions Index (CPI) aggregates data from a number of different sources that provide perceptions by business people and country experts of the level of corruption in the public sector"}]
["Corruption perception Index ","Rank, Score and Analysis","Transparency International","https://www.transparency.org/en/cpi/2019/index/nzl","Corruption, Data and Document Falsification",null,"Global","Geographical application5","North America",null,{"$f":"VLOOKUP(DescriptionTable[[#This Row],[Name]],descriptions[],2,FALSE)","v":"The Corruption Perceptions Index (CPI) aggregates data from a number of different sources that provide perceptions by business people and country experts of the level of corruption in the public sector"}]
["Global Corruption Index ","Rank, Score and Analysis","Global Risk Profile (GRP)","https://risk-indexes.com/global-corruption-index/","Corruption, Data and Document Falsification",null,"Global","Geographical application2","Africa",null,{"$f":"VLOOKUP(DescriptionTable[[#This Row],[Name]],descriptions[],2,FALSE)","v":"Display the corruption risk exposure deriving from both the public and private sectors. The GCI  also includes issues related to white collar crimes and more specifically to money-laundering and terrorism financing. The GCI relies on various methods for collecting data reflecting the variety of ways available to estimate corruption. "}]
["Global Corruption Index ","Rank, Score and Analysis","Global Risk Profile (GRP)","https://risk-indexes.com/global-corruption-index/","Corruption, Data and Document Falsification",null,"Global","Geographical application3","Latin America",null,{"$f":"VLOOKUP(DescriptionTable[[#This Row],[Name]],descriptions[],2,FALSE)","v":"Display the corruption risk exposure deriving from both the public and private sectors. The GCI  also includes issues related to white collar crimes and more specifically to money-laundering and terrorism financing. The GCI relies on various methods for collecting data reflecting the variety of ways available to estimate corruption. "}]
["Global Corruption Index ","Rank, Score and Analysis","Global Risk Profile (GRP)","https://risk-indexes.com/global-corruption-index/","Corruption, Data and Document Falsification",null,"Global","Geographical application4","Asia Pacific ",null,{"$f":"VLOOKUP(DescriptionTable[[#This Row],[Name]],descriptions[],2,FALSE)","v":"Display the corruption risk exposure deriving from both the public and private sectors. The GCI  also includes issues related to white collar crimes and more specifically to money-laundering and terrorism financing. The GCI relies on various methods for collecting data reflecting the variety of ways available to estimate corruption. "}]
["Global Corruption Index ","Rank, Score and Analysis","Global Risk Profile (GRP)","https://risk-indexes.com/global-corruption-index/","Corruption, Data and Document Falsification",null,"Global","Geographical application42","Europe",null,{"$f":"VLOOKUP(DescriptionTable[[#This Row],[Name]],descriptions[],2,FALSE)","v":"Display the corruption risk exposure deriving from both the public and private sectors. The GCI  also includes issues related to white collar crimes and more specifically to money-laundering and terrorism financing. The GCI relies on various methods for collecting data reflecting the variety of ways available to estimate corruption. "}]
["Global Corruption Index ","Rank, Score and Analysis","Global Risk Profile (GRP)","https://risk-indexes.com/global-corruption-index/","Corruption, Data and Document Falsification",null,"Global","Geographical application5","North America",null,{"$f":"VLOOKUP(DescriptionTable[[#This Row],[Name]],descriptions[],2,FALSE)","v":"Display the corruption risk exposure deriving from both the public and private sectors. The GCI  also includes issues related to white collar crimes and more specifically to money-laundering and terrorism financing. The GCI relies on various methods for collecting data reflecting the variety of ways available to estimate corruption. "}]
["The Capacity to Combat Corruption(CCC) Index ","Index","Americas Society and the Council of the Americas and Control Risks","https://www.controlrisks.com/campaigns/the-capacity-to-combat-corruption-index#anchor-form","Corruption, Data and Document Falsification",null,"Global","Geographical application2","Africa",null,{"$f":"VLOOKUP(DescriptionTable[[#This Row],[Name]],descriptions[],2,FALSE)","v":"Evaluates and ranks countries based on how effectively they can combat corruption. The CCC Index looks at 14 key variables, including the independence of judicial institutions, the strength of investigative journalism, and the level of resources available for combating white collar crime. Countries with a higher score are deemed more likely to see corrupt actors prosecuted and punished. Continued impunity is more likely in countries at the lower end of the scale. "}]
["The Capacity to Combat Corruption(CCC) Index ","Index","Americas Society and the Council of the Americas and Control Risks","https://www.controlrisks.com/campaigns/the-capacity-to-combat-corruption-index#anchor-form","Corruption, Data and Document Falsification",null,"Global","Geographical application3","Latin America",null,{"$f":"VLOOKUP(DescriptionTable[[#This Row],[Name]],descriptions[],2,FALSE)","v":"Evaluates and ranks countries based on how effectively they can combat corruption. The CCC Index looks at 14 key variables, including the independence of judicial institutions, the strength of investigative journalism, and the level of resources available for combating white collar crime. Countries with a higher score are deemed more likely to see corrupt actors prosecuted and punished. Continued impunity is more likely in countries at the lower end of the scale. "}]
["The Capacity to Combat Corruption(CCC) Index ","Index","Americas Society and the Council of the Americas and Control Risks","https://www.controlrisks.com/campaigns/the-capacity-to-combat-corruption-index#anchor-form","Corruption, Data and Document Falsification",null,"Global","Geographical application4","Asia Pacific ",null,{"$f":"VLOOKUP(DescriptionTable[[#This Row],[Name]],descriptions[],2,FALSE)","v":"Evaluates and ranks countries based on how effectively they can combat corruption. The CCC Index looks at 14 key variables, including the independence of judicial institutions, the strength of investigative journalism, and the level of resources available for combating white collar crime. Countries with a higher score are deemed more likely to see corrupt actors prosecuted and punished. Continued impunity is more likely in countries at the lower end of the scale. "}]
["The Capacity to Combat Corruption(CCC) Index ","Index","Americas Society and the Council of the Americas and Control Risks","https://www.controlrisks.com/campaigns/the-capacity-to-combat-corruption-index#anchor-form","Corruption, Data and Document Falsification",null,"Global","Geographical application42","Europe",null,{"$f":"VLOOKUP(DescriptionTable[[#This Row],[Name]],descriptions[],2,FALSE)","v":"Evaluates and ranks countries based on how effectively they can combat corruption. The CCC Index looks at 14 key variables, including the independence of judicial institutions, the strength of investigative journalism, and the level of resources available for combating white collar crime. Countries with a higher score are deemed more likely to see corrupt actors prosecuted and punished. Continued impunity is more likely in countries at the lower end of the scale. "}]
["The Capacity to Combat Corruption(CCC) Index ","Index","Americas Society and the Council of the Americas and Control Risks","https://www.controlrisks.com/campaigns/the-capacity-to-combat-corruption-index#anchor-form","Corruption, Data and Document Falsification",null,"Global","Geographical application5","North America",null,{"$f":"VLOOKUP(DescriptionTable[[#This Row],[Name]],descriptions[],2,FALSE)","v":"Evaluates and ranks countries based on how effectively they can combat corruption. The CCC Index looks at 14 key variables, including the independence of judicial institutions, the strength of investigative journalism, and the level of resources available for combating white collar crime. Countries with a higher score are deemed more likely to see corrupt actors prosecuted and punished. Continued impunity is more likely in countries at the lower end of the scale. "}]
["Anti-Corruption Knowledge Hub","Database","Transparency International ","https://knowledgehub.transparency.org/","Corruption, Data and Document Falsification",null,"Global","Geographical application2","Africa",null,{"$f":"VLOOKUP(DescriptionTable[[#This Row],[Name]],descriptions[],2,FALSE)","v":"An online space where Transparency International (TI) presents its research output. It is the home of the Anti-Corruption Helpdesk, TI's expert network, a series of topic guides and country-specific research. In addition, the Hub hosts many of the studies, tools and knowledge which lie behind what Transparency International's work."}]
["Anti-Corruption Knowledge Hub","Database","Transparency International ","https://knowledgehub.transparency.org/","Corruption, Data and Document Falsification",null,"Global","Geographical application3","Latin America",null,{"$f":"VLOOKUP(DescriptionTable[[#This Row],[Name]],descriptions[],2,FALSE)","v":"An online space where Transparency International (TI) presents its research output. It is the home of the Anti-Corruption Helpdesk, TI's expert network, a series of topic guides and country-specific research. In addition, the Hub hosts many of the studies, tools and knowledge which lie behind what Transparency International's work."}]
["Anti-Corruption Knowledge Hub","Database","Transparency International ","https://knowledgehub.transparency.org/","Corruption, Data and Document Falsification",null,"Global","Geographical application4","Asia Pacific ",null,{"$f":"VLOOKUP(DescriptionTable[[#This Row],[Name]],descriptions[],2,FALSE)","v":"An online space where Transparency International (TI) presents its research output. It is the home of the Anti-Corruption Helpdesk, TI's expert network, a series of topic guides and country-specific research. In addition, the Hub hosts many of the studies, tools and knowledge which lie behind what Transparency International's work."}]
["Anti-Corruption Knowledge Hub","Database","Transparency International ","https://knowledgehub.transparency.org/","Corruption, Data and Document Falsification",null,"Global","Geographical application42","Europe",null,{"$f":"VLOOKUP(DescriptionTable[[#This Row],[Name]],descriptions[],2,FALSE)","v":"An online space where Transparency International (TI) presents its research output. It is the home of the Anti-Corruption Helpdesk, TI's expert network, a series of topic guides and country-specific research. In addition, the Hub hosts many of the studies, tools and knowledge which lie behind what Transparency International's work."}]
["Anti-Corruption Knowledge Hub","Database","Transparency International ","https://knowledgehub.transparency.org/","Corruption, Data and Document Falsification",null,"Global","Geographical application5","North America",null,{"$f":"VLOOKUP(DescriptionTable[[#This Row],[Name]],descriptions[],2,FALSE)","v":"An online space where Transparency International (TI) presents its research output. It is the home of the Anti-Corruption Helpdesk, TI's expert network, a series of topic guides and country-specific research. In addition, the Hub hosts many of the studies, tools and knowledge which lie behind what Transparency International's work."}]
["Analyzing corruption in the Forestry Sector:  A manual for risk assessment of corrupt practices Risk assessment of corrupt practices; and risk management through monitoring of anti- Risk management through monitoring of anti-corruption corruption corruption instruments (2010)","Report/Document","Transparency International","https://images.transparencycdn.org/images/2010_ForestGovernanceRiskManual_EN.pdf","Corruption, Data and Document Falsification",null,"Asia Pacific","Geographical application2","Asia Pacific",null,{"$f":"VLOOKUP(DescriptionTable[[#This Row],[Name]],descriptions[],2,FALSE)","v":{"$error":"#VALUE!"}}]
["OCED Data on Average Wages","Database","Organisation for Economic Co-operation and Development (OCED) ","https://data.oecd.org/earnwage/average-wages.htm","Labour Rights and Wages",null,"Global","Geographical application2","Africa",null,{"$f":"VLOOKUP(DescriptionTable[[#This Row],[Name]],descriptions[],2,FALSE)","v":"Average wages are obtained by dividing the national-accounts-based total wage bill by the average number of employees in the total economy, which is then multiplied by the ratio of the average usual weekly hours per full-time employee to the average usually weekly hours for all employees. This indicator is measured in USD constant prices using 2016 base year and Purchasing Power Parities (PPPs) for private consumption of the same year."}]
["OCED Data on Average Wages","Database","Organisation for Economic Co-operation and Development (OCED) ","https://data.oecd.org/earnwage/average-wages.htm","Labour Rights and Wages",null,"Global","Geographical application3","Latin America",null,{"$f":"VLOOKUP(DescriptionTable[[#This Row],[Name]],descriptions[],2,FALSE)","v":"Average wages are obtained by dividing the national-accounts-based total wage bill by the average number of employees in the total economy, which is then multiplied by the ratio of the average usual weekly hours per full-time employee to the average usually weekly hours for all employees. This indicator is measured in USD constant prices using 2016 base year and Purchasing Power Parities (PPPs) for private consumption of the same year."}]
["OCED Data on Average Wages","Database","Organisation for Economic Co-operation and Development (OCED) ","https://data.oecd.org/earnwage/average-wages.htm","Labour Rights and Wages",null,"Global","Geographical application4","Asia Pacific ",null,{"$f":"VLOOKUP(DescriptionTable[[#This Row],[Name]],descriptions[],2,FALSE)","v":"Average wages are obtained by dividing the national-accounts-based total wage bill by the average number of employees in the total economy, which is then multiplied by the ratio of the average usual weekly hours per full-time employee to the average usually weekly hours for all employees. This indicator is measured in USD constant prices using 2016 base year and Purchasing Power Parities (PPPs) for private consumption of the same year."}]
["OCED Data on Average Wages","Database","Organisation for Economic Co-operation and Development (OCED) ","https://data.oecd.org/earnwage/average-wages.htm","Labour Rights and Wages",null,"Global","Geographical application42","Europe",null,{"$f":"VLOOKUP(DescriptionTable[[#This Row],[Name]],descriptions[],2,FALSE)","v":"Average wages are obtained by dividing the national-accounts-based total wage bill by the average number of employees in the total economy, which is then multiplied by the ratio of the average usual weekly hours per full-time employee to the average usually weekly hours for all employees. This indicator is measured in USD constant prices using 2016 base year and Purchasing Power Parities (PPPs) for private consumption of the same year."}]
["OCED Data on Average Wages","Database","Organisation for Economic Co-operation and Development (OCED) ","https://data.oecd.org/earnwage/average-wages.htm","Labour Rights and Wages",null,"Global","Geographical application5","North America",null,{"$f":"VLOOKUP(DescriptionTable[[#This Row],[Name]],descriptions[],2,FALSE)","v":"Average wages are obtained by dividing the national-accounts-based total wage bill by the average number of employees in the total economy, which is then multiplied by the ratio of the average usual weekly hours per full-time employee to the average usually weekly hours for all employees. This indicator is measured in USD constant prices using 2016 base year and Purchasing Power Parities (PPPs) for private consumption of the same year."}]
["Coallition Resource Library","Database","Global Living Wage Coallition","https://globallivingwage.org/","Labour Rights and Wages",null,"Global","Geographical application2","Africa",null,{"$f":"VLOOKUP(DescriptionTable[[#This Row],[Name]],descriptions[],2,FALSE)","v":"Provides benchmark studies, refernece values, case studies and working papers on living wages (globally) categorized by countries, industry and benchmark study."}]
["Coallition Resource Library","Database","Global Living Wage Coallition","https://globallivingwage.org/","Labour Rights and Wages",null,"Global","Geographical application3","Latin America",null,{"$f":"VLOOKUP(DescriptionTable[[#This Row],[Name]],descriptions[],2,FALSE)","v":"Provides benchmark studies, refernece values, case studies and working papers on living wages (globally) categorized by countries, industry and benchmark study."}]
["Coallition Resource Library","Database","Global Living Wage Coallition","https://globallivingwage.org/","Labour Rights and Wages",null,"Global","Geographical application4","Asia Pacific ",null,{"$f":"VLOOKUP(DescriptionTable[[#This Row],[Name]],descriptions[],2,FALSE)","v":"Provides benchmark studies, refernece values, case studies and working papers on living wages (globally) categorized by countries, industry and benchmark study."}]
["Coallition Resource Library","Database","Global Living Wage Coallition","https://globallivingwage.org/","Labour Rights and Wages",null,"Global","Geographical application42","Europe",null,{"$f":"VLOOKUP(DescriptionTable[[#This Row],[Name]],descriptions[],2,FALSE)","v":"Provides benchmark studies, refernece values, case studies and working papers on living wages (globally) categorized by countries, industry and benchmark study."}]
["Coallition Resource Library","Database","Global Living Wage Coallition","https://globallivingwage.org/","Labour Rights and Wages",null,"Global","Geographical application5","North America",null,{"$f":"VLOOKUP(DescriptionTable[[#This Row],[Name]],descriptions[],2,FALSE)","v":"Provides benchmark studies, refernece values, case studies and working papers on living wages (globally) categorized by countries, industry and benchmark study."}]
["ILOSTAT: Statistics on Wages ","Database","International Labour Organisation (ILO)","https://ilostat.ilo.org/topics/wages/","Labour Rights and Wages",null,"Global","Geographical application2","Africa",null,{"$f":"VLOOKUP(DescriptionTable[[#This Row],[Name]],descriptions[],2,FALSE)","v":"Provides introduction, data catalogue, latests posts, methods and publications related to living wage statistics."}]
["ILOSTAT: Statistics on Wages ","Database","International Labour Organisation (ILO)","https://ilostat.ilo.org/topics/wages/","Labour Rights and Wages",null,"Global","Geographical application3","Latin America",null,{"$f":"VLOOKUP(DescriptionTable[[#This Row],[Name]],descriptions[],2,FALSE)","v":"Provides introduction, data catalogue, latests posts, methods and publications related to living wage statistics."}]
["ILOSTAT: Statistics on Wages ","Database","International Labour Organisation (ILO)","https://ilostat.ilo.org/topics/wages/","Labour Rights and Wages",null,"Global","Geographical application4","Asia Pacific ",null,{"$f":"VLOOKUP(DescriptionTable[[#This Row],[Name]],descriptions[],2,FALSE)","v":"Provides introduction, data catalogue, latests posts, methods and publications related to living wage statistics."}]
["ILOSTAT: Statistics on Wages ","Database","International Labour Organisation (ILO)","https://ilostat.ilo.org/topics/wages/","Labour Rights and Wages",null,"Global","Geographical application42","Europe",null,{"$f":"VLOOKUP(DescriptionTable[[#This Row],[Name]],descriptions[],2,FALSE)","v":"Provides introduction, data catalogue, latests posts, methods and publications related to living wage statistics."}]
["ILOSTAT: Statistics on Wages ","Database","International Labour Organisation (ILO)","https://ilostat.ilo.org/topics/wages/","Labour Rights and Wages",null,"Global","Geographical application5","North America",null,{"$f":"VLOOKUP(DescriptionTable[[#This Row],[Name]],descriptions[],2,FALSE)","v":"Provides introduction, data catalogue, latests posts, methods and publications related to living wage statistics."}]
["ILO: Working Conditions Laws Database ","Database","International Labour Organisation (ILO)","https://www.ilo.org/dyn/travail/travmain.home","Labour Rights and Wages",null,"Global","Geographical application2","Africa",null,{"$f":"VLOOKUP(DescriptionTable[[#This Row],[Name]],descriptions[],2,FALSE)","v":"Provides a picture of the regulatory environment of working time, minimum wages and maternity protection in more than 100 countries around the world. It contains comprehensive legal information, which allows you to conduct customized research on a specific country, to compare the legislation of several countries or regions on a particular subject or to perform searches by text. "}]
["ILO: Working Conditions Laws Database ","Database","International Labour Organisation (ILO)","https://www.ilo.org/dyn/travail/travmain.home","Labour Rights and Wages",null,"Global","Geographical application3","Latin America",null,{"$f":"VLOOKUP(DescriptionTable[[#This Row],[Name]],descriptions[],2,FALSE)","v":"Provides a picture of the regulatory environment of working time, minimum wages and maternity protection in more than 100 countries around the world. It contains comprehensive legal information, which allows you to conduct customized research on a specific country, to compare the legislation of several countries or regions on a particular subject or to perform searches by text. "}]
["ILO: Working Conditions Laws Database ","Database","International Labour Organisation (ILO)","https://www.ilo.org/dyn/travail/travmain.home","Labour Rights and Wages",null,"Global","Geographical application4","Asia Pacific ",null,{"$f":"VLOOKUP(DescriptionTable[[#This Row],[Name]],descriptions[],2,FALSE)","v":"Provides a picture of the regulatory environment of working time, minimum wages and maternity protection in more than 100 countries around the world. It contains comprehensive legal information, which allows you to conduct customized research on a specific country, to compare the legislation of several countries or regions on a particular subject or to perform searches by text. "}]
["ILO: Working Conditions Laws Database ","Database","International Labour Organisation (ILO)","https://www.ilo.org/dyn/travail/travmain.home","Labour Rights and Wages",null,"Global","Geographical application42","Europe",null,{"$f":"VLOOKUP(DescriptionTable[[#This Row],[Name]],descriptions[],2,FALSE)","v":"Provides a picture of the regulatory environment of working time, minimum wages and maternity protection in more than 100 countries around the world. It contains comprehensive legal information, which allows you to conduct customized research on a specific country, to compare the legislation of several countries or regions on a particular subject or to perform searches by text. "}]
["ILO: Working Conditions Laws Database ","Database","International Labour Organisation (ILO)","https://www.ilo.org/dyn/travail/travmain.home","Labour Rights and Wages",null,"Global","Geographical application5","North America",null,{"$f":"VLOOKUP(DescriptionTable[[#This Row],[Name]],descriptions[],2,FALSE)","v":"Provides a picture of the regulatory environment of working time, minimum wages and maternity protection in more than 100 countries around the world. It contains comprehensive legal information, which allows you to conduct customized research on a specific country, to compare the legislation of several countries or regions on a particular subject or to perform searches by text. "}]
["Global Rights Index ","Rank, Score and Analysis","International Trade Union Confederation (ITUC)","https://www.globalrightsindex.org/","Labour Rights and Wages",null,"Global","Geographical application2","Africa",null,{"$f":"VLOOKUP(DescriptionTable[[#This Row],[Name]],descriptions[],2,FALSE)","v":"Rates countries annually depending on their compliance with collective labour rights and document violations by governments and employers of internationally recognised rights."}]
["Global Rights Index ","Rank, Score and Analysis","International Trade Union Confederation (ITUC)","https://www.globalrightsindex.org/","Labour Rights and Wages",null,"Global","Geographical application3","Latin America",null,{"$f":"VLOOKUP(DescriptionTable[[#This Row],[Name]],descriptions[],2,FALSE)","v":"Rates countries annually depending on their compliance with collective labour rights and document violations by governments and employers of internationally recognised rights."}]
["Global Rights Index ","Rank, Score and Analysis","International Trade Union Confederation (ITUC)","https://www.globalrightsindex.org/","Labour Rights and Wages",null,"Global","Geographical application4","Asia Pacific ",null,{"$f":"VLOOKUP(DescriptionTable[[#This Row],[Name]],descriptions[],2,FALSE)","v":"Rates countries annually depending on their compliance with collective labour rights and document violations by governments and employers of internationally recognised rights."}]
["Global Rights Index ","Rank, Score and Analysis","International Trade Union Confederation (ITUC)","https://www.globalrightsindex.org/","Labour Rights and Wages",null,"Global","Geographical application42","Europe",null,{"$f":"VLOOKUP(DescriptionTable[[#This Row],[Name]],descriptions[],2,FALSE)","v":"Rates countries annually depending on their compliance with collective labour rights and document violations by governments and employers of internationally recognised rights."}]
["Global Rights Index ","Rank, Score and Analysis","International Trade Union Confederation (ITUC)","https://www.globalrightsindex.org/","Labour Rights and Wages",null,"Global","Geographical application5","North America",null,{"$f":"VLOOKUP(DescriptionTable[[#This Row],[Name]],descriptions[],2,FALSE)","v":"Rates countries annually depending on their compliance with collective labour rights and document violations by governments and employers of internationally recognised rights."}]
["Labour Rights Index ","Rank, Score and Analysis","Wagel Indicator Foundation","https://wageindicator.org/labour-laws/labour-law-around-the-world/labour-rights-index-faq","Labour Rights and Wages",null,"Global","Geographical application2","Africa",null,{"$f":"VLOOKUP(DescriptionTable[[#This Row],[Name]],descriptions[],2,FALSE)","v":"Measures major aspects of employment regulation affecting a worker during the employment life cycle in 135 countries. It covers 10 indicators and 46 evaluation criteria based on substantive elements of the Decent Work Agenda. The criteria are all grounded in UDHR, five UN Conventions, five ILO Declarations, 35 ILO Conventions, and four ILO Recommendations. "}]
["Labour Rights Index ","Rank, Score and Analysis","Wagel Indicator Foundation","https://wageindicator.org/labour-laws/labour-law-around-the-world/labour-rights-index-faq","Labour Rights and Wages",null,"Global","Geographical application3","Latin America",null,{"$f":"VLOOKUP(DescriptionTable[[#This Row],[Name]],descriptions[],2,FALSE)","v":"Measures major aspects of employment regulation affecting a worker during the employment life cycle in 135 countries. It covers 10 indicators and 46 evaluation criteria based on substantive elements of the Decent Work Agenda. The criteria are all grounded in UDHR, five UN Conventions, five ILO Declarations, 35 ILO Conventions, and four ILO Recommendations. "}]
["Labour Rights Index ","Rank, Score and Analysis","Wagel Indicator Foundation","https://wageindicator.org/labour-laws/labour-law-around-the-world/labour-rights-index-faq","Labour Rights and Wages",null,"Global","Geographical application4","Asia Pacific ",null,{"$f":"VLOOKUP(DescriptionTable[[#This Row],[Name]],descriptions[],2,FALSE)","v":"Measures major aspects of employment regulation affecting a worker during the employment life cycle in 135 countries. It covers 10 indicators and 46 evaluation criteria based on substantive elements of the Decent Work Agenda. The criteria are all grounded in UDHR, five UN Conventions, five ILO Declarations, 35 ILO Conventions, and four ILO Recommendations. "}]
["Labour Rights Index ","Rank, Score and Analysis","Wagel Indicator Foundation","https://wageindicator.org/labour-laws/labour-law-around-the-world/labour-rights-index-faq","Labour Rights and Wages",null,"Global","Geographical application42","Europe",null,{"$f":"VLOOKUP(DescriptionTable[[#This Row],[Name]],descriptions[],2,FALSE)","v":"Measures major aspects of employment regulation affecting a worker during the employment life cycle in 135 countries. It covers 10 indicators and 46 evaluation criteria based on substantive elements of the Decent Work Agenda. The criteria are all grounded in UDHR, five UN Conventions, five ILO Declarations, 35 ILO Conventions, and four ILO Recommendations. "}]
["Labour Rights Index ","Rank, Score and Analysis","Wagel Indicator Foundation","https://wageindicator.org/labour-laws/labour-law-around-the-world/labour-rights-index-faq","Labour Rights and Wages",null,"Global","Geographical application5","North America",null,{"$f":"VLOOKUP(DescriptionTable[[#This Row],[Name]],descriptions[],2,FALSE)","v":"Measures major aspects of employment regulation affecting a worker during the employment life cycle in 135 countries. It covers 10 indicators and 46 evaluation criteria based on substantive elements of the Decent Work Agenda. The criteria are all grounded in UDHR, five UN Conventions, five ILO Declarations, 35 ILO Conventions, and four ILO Recommendations. "}]
["Global Slavery Index ","Rank, Score and Analysis","Walk Free","https://www.walkfree.org/global-slavery-index/map/","Labour Rights and Wages",null,"Global","Geographical application2","Africa",null,{"$f":"VLOOKUP(DescriptionTable[[#This Row],[Name]],descriptions[],2,FALSE)","v":"Provides national estimates of modern slavery for 160 countries. The estimates draw on thousands of interviews with survivors collected through nationally representative household surveys across 75 countries and our assessment of national-level vulnerability."}]
["Global Slavery Index ","Rank, Score and Analysis","Walk Free","https://www.walkfree.org/global-slavery-index/map/","Labour Rights and Wages",null,"Global","Geographical application3","Latin America",null,{"$f":"VLOOKUP(DescriptionTable[[#This Row],[Name]],descriptions[],2,FALSE)","v":"Provides national estimates of modern slavery for 160 countries. The estimates draw on thousands of interviews with survivors collected through nationally representative household surveys across 75 countries and our assessment of national-level vulnerability."}]
["Global Slavery Index ","Rank, Score and Analysis","Walk Free","https://www.walkfree.org/global-slavery-index/map/","Labour Rights and Wages",null,"Global","Geographical application4","Asia Pacific ",null,{"$f":"VLOOKUP(DescriptionTable[[#This Row],[Name]],descriptions[],2,FALSE)","v":"Provides national estimates of modern slavery for 160 countries. The estimates draw on thousands of interviews with survivors collected through nationally representative household surveys across 75 countries and our assessment of national-level vulnerability."}]
["Global Slavery Index ","Rank, Score and Analysis","Walk Free","https://www.walkfree.org/global-slavery-index/map/","Labour Rights and Wages",null,"Global","Geographical application42","Europe",null,{"$f":"VLOOKUP(DescriptionTable[[#This Row],[Name]],descriptions[],2,FALSE)","v":"Provides national estimates of modern slavery for 160 countries. The estimates draw on thousands of interviews with survivors collected through nationally representative household surveys across 75 countries and our assessment of national-level vulnerability."}]
["Global Slavery Index ","Rank, Score and Analysis","Walk Free","https://www.walkfree.org/global-slavery-index/map/","Labour Rights and Wages",null,"Global","Geographical application5","North America",null,{"$f":"VLOOKUP(DescriptionTable[[#This Row],[Name]],descriptions[],2,FALSE)","v":"Provides national estimates of modern slavery for 160 countries. The estimates draw on thousands of interviews with survivors collected through nationally representative household surveys across 75 countries and our assessment of national-level vulnerability."}]
["EuroFound Surveys : Data explorer ","Database","European Foundation for the Improvement of Lining and Working Conditions","https://www.eurofound.europa.eu/en/data","Workers' Health and Safety",null,"Europe","Geographical application2","Europe",null,{"$f":"VLOOKUP(DescriptionTable[[#This Row],[Name]],descriptions[],2,FALSE)","v":"Regularly, repeated, and pan-European surveys that could contribute to the planning and establishment of better living and working conditions. The surveys offer a source of comparative information on the quality of living and working conditions across the EU. "}]
["OSH Barometer (Data Visualization Tool)","Database","EU Commission","https://visualisation.osha.europa.eu/osh-barometer/","Workers' Health and Safety",null,"Europe","Geographical application2","Europe",null,{"$f":"VLOOKUP(DescriptionTable[[#This Row],[Name]],descriptions[],2,FALSE)","v":"EU-wide public information system on the most important facts and figures of Occupational Safety and Health. The system provides visualised information for important OSH indicators at EU and national level; it is based on statistics, surveys and public data."}]
["ILOSTAT: Statistics and Information on Safety and Health at work ","Database","International Labour Organisation (ILO)","https://ilostat.ilo.org/topics/safety-and-health-at-work/","Workers' Health and Safety",null,"Global","Geographical application2","Africa",null,{"$f":"VLOOKUP(DescriptionTable[[#This Row],[Name]],descriptions[],2,FALSE)","v":"Lists ILOSTAT indicators related to occupational health safety and country-wise case files related to incidents on occupational health and safety."}]
["ILOSTAT: Statistics and Information on Safety and Health at work ","Database","International Labour Organisation (ILO)","https://ilostat.ilo.org/topics/safety-and-health-at-work/","Workers' Health and Safety",null,"Global","Geographical application3","Latin America",null,{"$f":"VLOOKUP(DescriptionTable[[#This Row],[Name]],descriptions[],2,FALSE)","v":"Lists ILOSTAT indicators related to occupational health safety and country-wise case files related to incidents on occupational health and safety."}]
["ILOSTAT: Statistics and Information on Safety and Health at work ","Database","International Labour Organisation (ILO)","https://ilostat.ilo.org/topics/safety-and-health-at-work/","Workers' Health and Safety",null,"Global","Geographical application4","Asia Pacific ",null,{"$f":"VLOOKUP(DescriptionTable[[#This Row],[Name]],descriptions[],2,FALSE)","v":"Lists ILOSTAT indicators related to occupational health safety and country-wise case files related to incidents on occupational health and safety."}]
["ILOSTAT: Statistics and Information on Safety and Health at work ","Database","International Labour Organisation (ILO)","https://ilostat.ilo.org/topics/safety-and-health-at-work/","Workers' Health and Safety",null,"Global","Geographical application42","Europe",null,{"$f":"VLOOKUP(DescriptionTable[[#This Row],[Name]],descriptions[],2,FALSE)","v":"Lists ILOSTAT indicators related to occupational health safety and country-wise case files related to incidents on occupational health and safety."}]
["ILOSTAT: Statistics and Information on Safety and Health at work ","Database","International Labour Organisation (ILO)","https://ilostat.ilo.org/topics/safety-and-health-at-work/","Workers' Health and Safety",null,"Global","Geographical application5","North America",null,{"$f":"VLOOKUP(DescriptionTable[[#This Row],[Name]],descriptions[],2,FALSE)","v":"Lists ILOSTAT indicators related to occupational health safety and country-wise case files related to incidents on occupational health and safety."}]
["Verisk Maplecroft: Working Conditions Indices ","Index","Verisk Maplecroft","https://www.maplecroft.com/risk-indices/working-conditions-indices/","Workers' Health and Safety",null,"Global","Geographical application2","Africa",null,{"$f":"VLOOKUP(DescriptionTable[[#This Row],[Name]],descriptions[],2,FALSE)","v":"Shows the risk of the association with violations of the payment of decent wages, working time and health and safety standards. The Working Conditions indices helps to: screen and compare operations and supply chains for labour rights violations risks, understand the areas that pose most threat to establishing decent working conditions for workers, align corporate strategy with global standards like the Sustainable Development Goals (SDGs)."}]
["Verisk Maplecroft: Working Conditions Indices ","Index","Verisk Maplecroft","https://www.maplecroft.com/risk-indices/working-conditions-indices/","Workers' Health and Safety",null,"Global","Geographical application3","Latin America",null,{"$f":"VLOOKUP(DescriptionTable[[#This Row],[Name]],descriptions[],2,FALSE)","v":"Shows the risk of the association with violations of the payment of decent wages, working time and health and safety standards. The Working Conditions indices helps to: screen and compare operations and supply chains for labour rights violations risks, understand the areas that pose most threat to establishing decent working conditions for workers, align corporate strategy with global standards like the Sustainable Development Goals (SDGs)."}]
["Verisk Maplecroft: Working Conditions Indices ","Index","Verisk Maplecroft","https://www.maplecroft.com/risk-indices/working-conditions-indices/","Workers' Health and Safety",null,"Global","Geographical application4","Asia Pacific ",null,{"$f":"VLOOKUP(DescriptionTable[[#This Row],[Name]],descriptions[],2,FALSE)","v":"Shows the risk of the association with violations of the payment of decent wages, working time and health and safety standards. The Working Conditions indices helps to: screen and compare operations and supply chains for labour rights violations risks, understand the areas that pose most threat to establishing decent working conditions for workers, align corporate strategy with global standards like the Sustainable Development Goals (SDGs)."}]
["Verisk Maplecroft: Working Conditions Indices ","Index","Verisk Maplecroft","https://www.maplecroft.com/risk-indices/working-conditions-indices/","Workers' Health and Safety",null,"Global","Geographical application42","Europe",null,{"$f":"VLOOKUP(DescriptionTable[[#This Row],[Name]],descriptions[],2,FALSE)","v":"Shows the risk of the association with violations of the payment of decent wages, working time and health and safety standards. The Working Conditions indices helps to: screen and compare operations and supply chains for labour rights violations risks, understand the areas that pose most threat to establishing decent working conditions for workers, align corporate strategy with global standards like the Sustainable Development Goals (SDGs)."}]
["Verisk Maplecroft: Working Conditions Indices ","Index","Verisk Maplecroft","https://www.maplecroft.com/risk-indices/working-conditions-indices/","Workers' Health and Safety",null,"Global","Geographical application5","North America",null,{"$f":"VLOOKUP(DescriptionTable[[#This Row],[Name]],descriptions[],2,FALSE)","v":"Shows the risk of the association with violations of the payment of decent wages, working time and health and safety standards. The Working Conditions indices helps to: screen and compare operations and supply chains for labour rights violations risks, understand the areas that pose most threat to establishing decent working conditions for workers, align corporate strategy with global standards like the Sustainable Development Goals (SDGs)."}]
["Environmental, Social and Governance (ESG) Index ","Rank, Score and Analysis","Global Risk Profile (GRP)","https://risk-indexes.com/esg-index/","Workers' Health and Safety",null,"Global","Geographical application2","Africa",null,{"$f":"VLOOKUP(DescriptionTable[[#This Row],[Name]],descriptions[],2,FALSE)","v":"A tool that encompasses three major issues in risk analysis, aggregated to a global scoring through a weighted geometric mean. Concerns are weighted as:  environment (30%), human rights (50%) and health & safety (20%)."}]
["Environmental, Social and Governance (ESG) Index ","Rank, Score and Analysis","Global Risk Profile (GRP)","https://risk-indexes.com/esg-index/","Workers' Health and Safety",null,"Global","Geographical application3","Latin America",null,{"$f":"VLOOKUP(DescriptionTable[[#This Row],[Name]],descriptions[],2,FALSE)","v":"A tool that encompasses three major issues in risk analysis, aggregated to a global scoring through a weighted geometric mean. Concerns are weighted as:  environment (30%), human rights (50%) and health & safety (20%)."}]
["Environmental, Social and Governance (ESG) Index ","Rank, Score and Analysis","Global Risk Profile (GRP)","https://risk-indexes.com/esg-index/","Workers' Health and Safety",null,"Global","Geographical application4","Asia Pacific ",null,{"$f":"VLOOKUP(DescriptionTable[[#This Row],[Name]],descriptions[],2,FALSE)","v":"A tool that encompasses three major issues in risk analysis, aggregated to a global scoring through a weighted geometric mean. Concerns are weighted as:  environment (30%), human rights (50%) and health & safety (20%)."}]
["Environmental, Social and Governance (ESG) Index ","Rank, Score and Analysis","Global Risk Profile (GRP)","https://risk-indexes.com/esg-index/","Workers' Health and Safety",null,"Global","Geographical application42","Europe",null,{"$f":"VLOOKUP(DescriptionTable[[#This Row],[Name]],descriptions[],2,FALSE)","v":"A tool that encompasses three major issues in risk analysis, aggregated to a global scoring through a weighted geometric mean. Concerns are weighted as:  environment (30%), human rights (50%) and health & safety (20%)."}]
["Environmental, Social and Governance (ESG) Index ","Rank, Score and Analysis","Global Risk Profile (GRP)","https://risk-indexes.com/esg-index/","Workers' Health and Safety",null,"Global","Geographical application5","North America",null,{"$f":"VLOOKUP(DescriptionTable[[#This Row],[Name]],descriptions[],2,FALSE)","v":"A tool that encompasses three major issues in risk analysis, aggregated to a global scoring through a weighted geometric mean. Concerns are weighted as:  environment (30%), human rights (50%) and health & safety (20%)."}]
["Infrastructure Maintenance","Dataset","Organisation for Economic Co-operation and Development (OCED)","https://data.oecd.org/transport/infrastructure-maintenance.htm","Workers' Health and Safety",null,"Global","Geographical application2","Africa",null,{"$f":"VLOOKUP(DescriptionTable[[#This Row],[Name]],descriptions[],2,FALSE)","v":"Infrastructure maintenance covers spending on preservation of the existing transport network. It only covers maintenance expenditure financed by public administrations."}]
["Infrastructure Maintenance","Dataset","Organisation for Economic Co-operation and Development (OCED)","https://data.oecd.org/transport/infrastructure-maintenance.htm","Workers' Health and Safety",null,"Global","Geographical application3","Latin America",null,{"$f":"VLOOKUP(DescriptionTable[[#This Row],[Name]],descriptions[],2,FALSE)","v":"Infrastructure maintenance covers spending on preservation of the existing transport network. It only covers maintenance expenditure financed by public administrations."}]
["Infrastructure Maintenance","Dataset","Organisation for Economic Co-operation and Development (OCED)","https://data.oecd.org/transport/infrastructure-maintenance.htm","Workers' Health and Safety",null,"Global","Geographical application4","Asia Pacific ",null,{"$f":"VLOOKUP(DescriptionTable[[#This Row],[Name]],descriptions[],2,FALSE)","v":"Infrastructure maintenance covers spending on preservation of the existing transport network. It only covers maintenance expenditure financed by public administrations."}]
["Infrastructure Maintenance","Dataset","Organisation for Economic Co-operation and Development (OCED)","https://data.oecd.org/transport/infrastructure-maintenance.htm","Workers' Health and Safety",null,"Global","Geographical application42","Europe",null,{"$f":"VLOOKUP(DescriptionTable[[#This Row],[Name]],descriptions[],2,FALSE)","v":"Infrastructure maintenance covers spending on preservation of the existing transport network. It only covers maintenance expenditure financed by public administrations."}]
["Infrastructure Maintenance","Dataset","Organisation for Economic Co-operation and Development (OCED)","https://data.oecd.org/transport/infrastructure-maintenance.htm","Workers' Health and Safety",null,"Global","Geographical application5","North America",null,{"$f":"VLOOKUP(DescriptionTable[[#This Row],[Name]],descriptions[],2,FALSE)","v":"Infrastructure maintenance covers spending on preservation of the existing transport network. It only covers maintenance expenditure financed by public administrations."}]
["SoiLEX Soil Related Legal Instruments and Legal Governance ","Database","UN Food and Agriculture Programme (FAO)","https://www.fao.org/soils-portal/soilex/en/","Protection of Environmental Values",null,"Global","Geographical application2","Africa",null,{"$f":"VLOOKUP(DescriptionTable[[#This Row],[Name]],descriptions[],2,FALSE)","v":"A global database that aims to facilitate access to information on existing legal instruments on soil protection and prevention of soil degradation. The legal and policy instruments can be searched by country profiles or by soil-related keywords (e.g: Conservation, Quality, Restoration and Remidiation, Monitoring, Erosion, etc.). The information provided by the database allows users to have the complete document as well as a detailed summary of its content, focusing mainly on the purpose and specific objectives of the instrument."}]
["SoiLEX Soil Related Legal Instruments and Legal Governance ","Database","UN Food and Agriculture Programme (FAO)","https://www.fao.org/soils-portal/soilex/en/","Protection of Environmental Values",null,"Global","Geographical application3","Latin America",null,{"$f":"VLOOKUP(DescriptionTable[[#This Row],[Name]],descriptions[],2,FALSE)","v":"A global database that aims to facilitate access to information on existing legal instruments on soil protection and prevention of soil degradation. The legal and policy instruments can be searched by country profiles or by soil-related keywords (e.g: Conservation, Quality, Restoration and Remidiation, Monitoring, Erosion, etc.). The information provided by the database allows users to have the complete document as well as a detailed summary of its content, focusing mainly on the purpose and specific objectives of the instrument."}]
["SoiLEX Soil Related Legal Instruments and Legal Governance ","Database","UN Food and Agriculture Programme (FAO)","https://www.fao.org/soils-portal/soilex/en/","Protection of Environmental Values",null,"Global","Geographical application4","Asia Pacific ",null,{"$f":"VLOOKUP(DescriptionTable[[#This Row],[Name]],descriptions[],2,FALSE)","v":"A global database that aims to facilitate access to information on existing legal instruments on soil protection and prevention of soil degradation. The legal and policy instruments can be searched by country profiles or by soil-related keywords (e.g: Conservation, Quality, Restoration and Remidiation, Monitoring, Erosion, etc.). The information provided by the database allows users to have the complete document as well as a detailed summary of its content, focusing mainly on the purpose and specific objectives of the instrument."}]
["SoiLEX Soil Related Legal Instruments and Legal Governance ","Database","UN Food and Agriculture Programme (FAO)","https://www.fao.org/soils-portal/soilex/en/","Protection of Environmental Values",null,"Global","Geographical application42","Europe",null,{"$f":"VLOOKUP(DescriptionTable[[#This Row],[Name]],descriptions[],2,FALSE)","v":"A global database that aims to facilitate access to information on existing legal instruments on soil protection and prevention of soil degradation. The legal and policy instruments can be searched by country profiles or by soil-related keywords (e.g: Conservation, Quality, Restoration and Remidiation, Monitoring, Erosion, etc.). The information provided by the database allows users to have the complete document as well as a detailed summary of its content, focusing mainly on the purpose and specific objectives of the instrument."}]
["SoiLEX Soil Related Legal Instruments and Legal Governance ","Database","UN Food and Agriculture Programme (FAO)","https://www.fao.org/soils-portal/soilex/en/","Protection of Environmental Values",null,"Global","Geographical application5","North America",null,{"$f":"VLOOKUP(DescriptionTable[[#This Row],[Name]],descriptions[],2,FALSE)","v":"A global database that aims to facilitate access to information on existing legal instruments on soil protection and prevention of soil degradation. The legal and policy instruments can be searched by country profiles or by soil-related keywords (e.g: Conservation, Quality, Restoration and Remidiation, Monitoring, Erosion, etc.). The information provided by the database allows users to have the complete document as well as a detailed summary of its content, focusing mainly on the purpose and specific objectives of the instrument."}]
["Status of the World Soil Information ","Report/Document","UN Food and Agriculture Programme (FAO)","https://www.fao.org/documents/card/en/c/c6814873-efc3-41db-b7d3-2081a10ede50/","Protection of Environmental Values",null,"Global","Geographical application2","Africa",null,{"$f":"VLOOKUP(DescriptionTable[[#This Row],[Name]],descriptions[],2,FALSE)","v":"A reference document on the status of global soil resources that provides regional assessments of soil change. The information is based on peer-reviewed scientific literature, complemented with expert knowledge and project outputs. It provides a description and a ranking of ten major soil threats that endanger ecosystem functions, goods and services globally and in each region separately. Additionally, it describes direct and indirect pressures on soils and ways and means to combat s oil degradation. The report contains a Synthesis report for policy makers that summarizes its findings, conclusions and recommendations."}]
["Status of the World Soil Information ","Report/Document","UN Food and Agriculture Programme (FAO)","https://www.fao.org/documents/card/en/c/c6814873-efc3-41db-b7d3-2081a10ede50/","Protection of Environmental Values",null,"Global","Geographical application3","Latin America",null,{"$f":"VLOOKUP(DescriptionTable[[#This Row],[Name]],descriptions[],2,FALSE)","v":"A reference document on the status of global soil resources that provides regional assessments of soil change. The information is based on peer-reviewed scientific literature, complemented with expert knowledge and project outputs. It provides a description and a ranking of ten major soil threats that endanger ecosystem functions, goods and services globally and in each region separately. Additionally, it describes direct and indirect pressures on soils and ways and means to combat s oil degradation. The report contains a Synthesis report for policy makers that summarizes its findings, conclusions and recommendations."}]
["Status of the World Soil Information ","Report/Document","UN Food and Agriculture Programme (FAO)","https://www.fao.org/documents/card/en/c/c6814873-efc3-41db-b7d3-2081a10ede50/","Protection of Environmental Values",null,"Global","Geographical application4","Asia Pacific ",null,{"$f":"VLOOKUP(DescriptionTable[[#This Row],[Name]],descriptions[],2,FALSE)","v":"A reference document on the status of global soil resources that provides regional assessments of soil change. The information is based on peer-reviewed scientific literature, complemented with expert knowledge and project outputs. It provides a description and a ranking of ten major soil threats that endanger ecosystem functions, goods and services globally and in each region separately. Additionally, it describes direct and indirect pressures on soils and ways and means to combat s oil degradation. The report contains a Synthesis report for policy makers that summarizes its findings, conclusions and recommendations."}]
["Status of the World Soil Information ","Report/Document","UN Food and Agriculture Programme (FAO)","https://www.fao.org/documents/card/en/c/c6814873-efc3-41db-b7d3-2081a10ede50/","Protection of Environmental Values",null,"Global","Geographical application42","Europe",null,{"$f":"VLOOKUP(DescriptionTable[[#This Row],[Name]],descriptions[],2,FALSE)","v":"A reference document on the status of global soil resources that provides regional assessments of soil change. The information is based on peer-reviewed scientific literature, complemented with expert knowledge and project outputs. It provides a description and a ranking of ten major soil threats that endanger ecosystem functions, goods and services globally and in each region separately. Additionally, it describes direct and indirect pressures on soils and ways and means to combat s oil degradation. The report contains a Synthesis report for policy makers that summarizes its findings, conclusions and recommendations."}]
["Status of the World Soil Information ","Report/Document","UN Food and Agriculture Programme (FAO)","https://www.fao.org/documents/card/en/c/c6814873-efc3-41db-b7d3-2081a10ede50/","Protection of Environmental Values",null,"Global","Geographical application5","North America",null,{"$f":"VLOOKUP(DescriptionTable[[#This Row],[Name]],descriptions[],2,FALSE)","v":"A reference document on the status of global soil resources that provides regional assessments of soil change. The information is based on peer-reviewed scientific literature, complemented with expert knowledge and project outputs. It provides a description and a ranking of ten major soil threats that endanger ecosystem functions, goods and services globally and in each region separately. Additionally, it describes direct and indirect pressures on soils and ways and means to combat s oil degradation. The report contains a Synthesis report for policy makers that summarizes its findings, conclusions and recommendations."}]
["Water Pollution from Agriculture: a global review (Publication) ","Report/Document","UN Food and Agriculture Programme (FAO)","https://www.fao.org/documents/card/fr/c/a9598c47-0ca1-4c77-8d9d-1c2708050ba0/","Protection of Environmental Values",null,"Global","Geographical application2","Africa",null,{"$f":"VLOOKUP(DescriptionTable[[#This Row],[Name]],descriptions[],2,FALSE)","v":"An executive summary prepared by the Food and Agriculture Organisation (FAO) of the UN in par with the Sustainable Development Goal (SDG) 6: By 2030, improve water quality by reducing pollution, eliminating dumping and minimizing release of hazardous chemicals and materials, halving the proportion of untreated wastewater and substantially increasing recycling and safe reuse globally."}]
["Water Pollution from Agriculture: a global review (Publication) ","Report/Document","UN Food and Agriculture Programme (FAO)","https://www.fao.org/documents/card/fr/c/a9598c47-0ca1-4c77-8d9d-1c2708050ba0/","Protection of Environmental Values",null,"Global","Geographical application3","Latin America",null,{"$f":"VLOOKUP(DescriptionTable[[#This Row],[Name]],descriptions[],2,FALSE)","v":"An executive summary prepared by the Food and Agriculture Organisation (FAO) of the UN in par with the Sustainable Development Goal (SDG) 6: By 2030, improve water quality by reducing pollution, eliminating dumping and minimizing release of hazardous chemicals and materials, halving the proportion of untreated wastewater and substantially increasing recycling and safe reuse globally."}]
["Water Pollution from Agriculture: a global review (Publication) ","Report/Document","UN Food and Agriculture Programme (FAO)","https://www.fao.org/documents/card/fr/c/a9598c47-0ca1-4c77-8d9d-1c2708050ba0/","Protection of Environmental Values",null,"Global","Geographical application4","Asia Pacific ",null,{"$f":"VLOOKUP(DescriptionTable[[#This Row],[Name]],descriptions[],2,FALSE)","v":"An executive summary prepared by the Food and Agriculture Organisation (FAO) of the UN in par with the Sustainable Development Goal (SDG) 6: By 2030, improve water quality by reducing pollution, eliminating dumping and minimizing release of hazardous chemicals and materials, halving the proportion of untreated wastewater and substantially increasing recycling and safe reuse globally."}]
["Water Pollution from Agriculture: a global review (Publication) ","Report/Document","UN Food and Agriculture Programme (FAO)","https://www.fao.org/documents/card/fr/c/a9598c47-0ca1-4c77-8d9d-1c2708050ba0/","Protection of Environmental Values",null,"Global","Geographical application42","Europe",null,{"$f":"VLOOKUP(DescriptionTable[[#This Row],[Name]],descriptions[],2,FALSE)","v":"An executive summary prepared by the Food and Agriculture Organisation (FAO) of the UN in par with the Sustainable Development Goal (SDG) 6: By 2030, improve water quality by reducing pollution, eliminating dumping and minimizing release of hazardous chemicals and materials, halving the proportion of untreated wastewater and substantially increasing recycling and safe reuse globally."}]
["Water Pollution from Agriculture: a global review (Publication) ","Report/Document","UN Food and Agriculture Programme (FAO)","https://www.fao.org/documents/card/fr/c/a9598c47-0ca1-4c77-8d9d-1c2708050ba0/","Protection of Environmental Values",null,"Global","Geographical application5","North America",null,{"$f":"VLOOKUP(DescriptionTable[[#This Row],[Name]],descriptions[],2,FALSE)","v":"An executive summary prepared by the Food and Agriculture Organisation (FAO) of the UN in par with the Sustainable Development Goal (SDG) 6: By 2030, improve water quality by reducing pollution, eliminating dumping and minimizing release of hazardous chemicals and materials, halving the proportion of untreated wastewater and substantially increasing recycling and safe reuse globally."}]
["AQUASTAT Global Information System for Water and Agriculture ","Database","UN Food and Agriculture Programme (FAO)","https://www.fao.org/aquastat/en/","Protection of Environmental Values",null,"Global","Geographical application2","Africa",null,{"$f":"VLOOKUP(DescriptionTable[[#This Row],[Name]],descriptions[],2,FALSE)","v":"FAO's global Information System on Water and Agriculture. Useful for international organizations, policy makers, researchers and all stakeholders involved in ensuring a sustainable water management in agriculture and the achievement of SDG 6 - Water for all. Designed to improve the access to the data and information related to water management and agriculture. Key features include: comprehensive data repository, improved speed and responsiveness, user-friendly interface, advanced search functionality, multiple ways of visualizing the data, data visualization on maps, and data download in Excel and CSV formats."}]
["AQUASTAT Global Information System for Water and Agriculture ","Database","UN Food and Agriculture Programme (FAO)","https://www.fao.org/aquastat/en/","Protection of Environmental Values",null,"Global","Geographical application3","Latin America",null,{"$f":"VLOOKUP(DescriptionTable[[#This Row],[Name]],descriptions[],2,FALSE)","v":"FAO's global Information System on Water and Agriculture. Useful for international organizations, policy makers, researchers and all stakeholders involved in ensuring a sustainable water management in agriculture and the achievement of SDG 6 - Water for all. Designed to improve the access to the data and information related to water management and agriculture. Key features include: comprehensive data repository, improved speed and responsiveness, user-friendly interface, advanced search functionality, multiple ways of visualizing the data, data visualization on maps, and data download in Excel and CSV formats."}]
["AQUASTAT Global Information System for Water and Agriculture ","Database","UN Food and Agriculture Programme (FAO)","https://www.fao.org/aquastat/en/","Protection of Environmental Values",null,"Global","Geographical application4","Asia Pacific ",null,{"$f":"VLOOKUP(DescriptionTable[[#This Row],[Name]],descriptions[],2,FALSE)","v":"FAO's global Information System on Water and Agriculture. Useful for international organizations, policy makers, researchers and all stakeholders involved in ensuring a sustainable water management in agriculture and the achievement of SDG 6 - Water for all. Designed to improve the access to the data and information related to water management and agriculture. Key features include: comprehensive data repository, improved speed and responsiveness, user-friendly interface, advanced search functionality, multiple ways of visualizing the data, data visualization on maps, and data download in Excel and CSV formats."}]
["AQUASTAT Global Information System for Water and Agriculture ","Database","UN Food and Agriculture Programme (FAO)","https://www.fao.org/aquastat/en/","Protection of Environmental Values",null,"Global","Geographical application42","Europe",null,{"$f":"VLOOKUP(DescriptionTable[[#This Row],[Name]],descriptions[],2,FALSE)","v":"FAO's global Information System on Water and Agriculture. Useful for international organizations, policy makers, researchers and all stakeholders involved in ensuring a sustainable water management in agriculture and the achievement of SDG 6 - Water for all. Designed to improve the access to the data and information related to water management and agriculture. Key features include: comprehensive data repository, improved speed and responsiveness, user-friendly interface, advanced search functionality, multiple ways of visualizing the data, data visualization on maps, and data download in Excel and CSV formats."}]
["AQUASTAT Global Information System for Water and Agriculture ","Database","UN Food and Agriculture Programme (FAO)","https://www.fao.org/aquastat/en/","Protection of Environmental Values",null,"Global","Geographical application5","North America",null,{"$f":"VLOOKUP(DescriptionTable[[#This Row],[Name]],descriptions[],2,FALSE)","v":"FAO's global Information System on Water and Agriculture. Useful for international organizations, policy makers, researchers and all stakeholders involved in ensuring a sustainable water management in agriculture and the achievement of SDG 6 - Water for all. Designed to improve the access to the data and information related to water management and agriculture. Key features include: comprehensive data repository, improved speed and responsiveness, user-friendly interface, advanced search functionality, multiple ways of visualizing the data, data visualization on maps, and data download in Excel and CSV formats."}]
["UN Water SDG6 (Sustainable Development Goal 6) Data Portal ","Database","United Nations (UN)","https://sdg6data.org/en/about/data-sources","Protection of Environmental Values",null,"Global","Geographical application2","Africa",null,{"$f":"VLOOKUP(DescriptionTable[[#This Row],[Name]],descriptions[],2,FALSE)","v":"SDG6 Data brings together data on all the SDG6 (Access to safe water, sanitation and hygiene) global indicators and other key social, economic and environmental parameters. The SDG6 Data Portal is an entry point to the set of water and sanitation information available within the UN system. Indicator-specific databases are listed down as main points of reference for further details on specific indicators, including additional datasets, metadata and a qualitative assessment and analysis of the current status and progress."}]
["UN Water SDG6 (Sustainable Development Goal 6) Data Portal ","Database","United Nations (UN)","https://sdg6data.org/en/about/data-sources","Protection of Environmental Values",null,"Global","Geographical application3","Latin America",null,{"$f":"VLOOKUP(DescriptionTable[[#This Row],[Name]],descriptions[],2,FALSE)","v":"SDG6 Data brings together data on all the SDG6 (Access to safe water, sanitation and hygiene) global indicators and other key social, economic and environmental parameters. The SDG6 Data Portal is an entry point to the set of water and sanitation information available within the UN system. Indicator-specific databases are listed down as main points of reference for further details on specific indicators, including additional datasets, metadata and a qualitative assessment and analysis of the current status and progress."}]
["UN Water SDG6 (Sustainable Development Goal 6) Data Portal ","Database","United Nations (UN)","https://sdg6data.org/en/about/data-sources","Protection of Environmental Values",null,"Global","Geographical application4","Asia Pacific ",null,{"$f":"VLOOKUP(DescriptionTable[[#This Row],[Name]],descriptions[],2,FALSE)","v":"SDG6 Data brings together data on all the SDG6 (Access to safe water, sanitation and hygiene) global indicators and other key social, economic and environmental parameters. The SDG6 Data Portal is an entry point to the set of water and sanitation information available within the UN system. Indicator-specific databases are listed down as main points of reference for further details on specific indicators, including additional datasets, metadata and a qualitative assessment and analysis of the current status and progress."}]
["UN Water SDG6 (Sustainable Development Goal 6) Data Portal ","Database","United Nations (UN)","https://sdg6data.org/en/about/data-sources","Protection of Environmental Values",null,"Global","Geographical application42","Europe",null,{"$f":"VLOOKUP(DescriptionTable[[#This Row],[Name]],descriptions[],2,FALSE)","v":"SDG6 Data brings together data on all the SDG6 (Access to safe water, sanitation and hygiene) global indicators and other key social, economic and environmental parameters. The SDG6 Data Portal is an entry point to the set of water and sanitation information available within the UN system. Indicator-specific databases are listed down as main points of reference for further details on specific indicators, including additional datasets, metadata and a qualitative assessment and analysis of the current status and progress."}]
["UN Water SDG6 (Sustainable Development Goal 6) Data Portal ","Database","United Nations (UN)","https://sdg6data.org/en/about/data-sources","Protection of Environmental Values",null,"Global","Geographical application5","North America",null,{"$f":"VLOOKUP(DescriptionTable[[#This Row],[Name]],descriptions[],2,FALSE)","v":"SDG6 Data brings together data on all the SDG6 (Access to safe water, sanitation and hygiene) global indicators and other key social, economic and environmental parameters. The SDG6 Data Portal is an entry point to the set of water and sanitation information available within the UN system. Indicator-specific databases are listed down as main points of reference for further details on specific indicators, including additional datasets, metadata and a qualitative assessment and analysis of the current status and progress."}]
["EU Soil Observatory (EUSO) ","Database","European Commission ","https://joint-research-centre.ec.europa.eu/eu-soil-observatory-euso_en","Protection of Environmental Values",null,"Global","Geographical application2","Africa",null,{"$f":"VLOOKUP(DescriptionTable[[#This Row],[Name]],descriptions[],2,FALSE)","v":"A dynamic and inclusive platform that aims to support policymaking by providing the commission services and the broader soil user community with the soil knowledge and data flows needed to safeguard soils, supporting EU research & innovation on soils, and raising societal awareness of the value of soils."}]
["EU Soil Observatory (EUSO) ","Database","European Commission ","https://joint-research-centre.ec.europa.eu/eu-soil-observatory-euso_en","Protection of Environmental Values",null,"Global","Geographical application3","Latin America",null,{"$f":"VLOOKUP(DescriptionTable[[#This Row],[Name]],descriptions[],2,FALSE)","v":"A dynamic and inclusive platform that aims to support policymaking by providing the commission services and the broader soil user community with the soil knowledge and data flows needed to safeguard soils, supporting EU research & innovation on soils, and raising societal awareness of the value of soils."}]
["EU Soil Observatory (EUSO) ","Database","European Commission ","https://joint-research-centre.ec.europa.eu/eu-soil-observatory-euso_en","Protection of Environmental Values",null,"Global","Geographical application4","Asia Pacific ",null,{"$f":"VLOOKUP(DescriptionTable[[#This Row],[Name]],descriptions[],2,FALSE)","v":"A dynamic and inclusive platform that aims to support policymaking by providing the commission services and the broader soil user community with the soil knowledge and data flows needed to safeguard soils, supporting EU research & innovation on soils, and raising societal awareness of the value of soils."}]
["EU Soil Observatory (EUSO) ","Database","European Commission ","https://joint-research-centre.ec.europa.eu/eu-soil-observatory-euso_en","Protection of Environmental Values",null,"Global","Geographical application42","Europe",null,{"$f":"VLOOKUP(DescriptionTable[[#This Row],[Name]],descriptions[],2,FALSE)","v":"A dynamic and inclusive platform that aims to support policymaking by providing the commission services and the broader soil user community with the soil knowledge and data flows needed to safeguard soils, supporting EU research & innovation on soils, and raising societal awareness of the value of soils."}]
["EU Soil Observatory (EUSO) ","Database","European Commission ","https://joint-research-centre.ec.europa.eu/eu-soil-observatory-euso_en","Protection of Environmental Values",null,"Global","Geographical application5","North America",null,{"$f":"VLOOKUP(DescriptionTable[[#This Row],[Name]],descriptions[],2,FALSE)","v":"A dynamic and inclusive platform that aims to support policymaking by providing the commission services and the broader soil user community with the soil knowledge and data flows needed to safeguard soils, supporting EU research & innovation on soils, and raising societal awareness of the value of soils."}]
["European Soil Data Centre ","Database","European Commission ","https://esdac.jrc.ec.europa.eu/","Protection of Environmental Values",null,"Global","Geographical application2","Africa",null,{"$f":"VLOOKUP(DescriptionTable[[#This Row],[Name]],descriptions[],2,FALSE)","v":"A thematic centre for soil related data in Europe (e.g.: Soil organic carbon content, soil erosion, soil biodiversity, etc.). Contains resources that are organized and presented in datasets, services/applications, maps, documents, events, projects and external links."}]
["European Soil Data Centre ","Database","European Commission ","https://esdac.jrc.ec.europa.eu/","Protection of Environmental Values",null,"Global","Geographical application3","Latin America",null,{"$f":"VLOOKUP(DescriptionTable[[#This Row],[Name]],descriptions[],2,FALSE)","v":"A thematic centre for soil related data in Europe (e.g.: Soil organic carbon content, soil erosion, soil biodiversity, etc.). Contains resources that are organized and presented in datasets, services/applications, maps, documents, events, projects and external links."}]
["European Soil Data Centre ","Database","European Commission ","https://esdac.jrc.ec.europa.eu/","Protection of Environmental Values",null,"Global","Geographical application4","Asia Pacific ",null,{"$f":"VLOOKUP(DescriptionTable[[#This Row],[Name]],descriptions[],2,FALSE)","v":"A thematic centre for soil related data in Europe (e.g.: Soil organic carbon content, soil erosion, soil biodiversity, etc.). Contains resources that are organized and presented in datasets, services/applications, maps, documents, events, projects and external links."}]
["European Soil Data Centre ","Database","European Commission ","https://esdac.jrc.ec.europa.eu/","Protection of Environmental Values",null,"Global","Geographical application42","Europe",null,{"$f":"VLOOKUP(DescriptionTable[[#This Row],[Name]],descriptions[],2,FALSE)","v":"A thematic centre for soil related data in Europe (e.g.: Soil organic carbon content, soil erosion, soil biodiversity, etc.). Contains resources that are organized and presented in datasets, services/applications, maps, documents, events, projects and external links."}]
["European Soil Data Centre ","Database","European Commission ","https://esdac.jrc.ec.europa.eu/","Protection of Environmental Values",null,"Global","Geographical application5","North America",null,{"$f":"VLOOKUP(DescriptionTable[[#This Row],[Name]],descriptions[],2,FALSE)","v":"A thematic centre for soil related data in Europe (e.g.: Soil organic carbon content, soil erosion, soil biodiversity, etc.). Contains resources that are organized and presented in datasets, services/applications, maps, documents, events, projects and external links."}]
["Global Soil Biodiversity Atlas ","Database","European Commission ","https://esdac.jrc.ec.europa.eu/","Protection of Environmental Values",null,"Global","Geographical application2","Africa",null,{"$f":"VLOOKUP(DescriptionTable[[#This Row],[Name]],descriptions[],2,FALSE)","v":"Maps the soil biodiversity of the entire planet. Provides a detailed analysis of soil organisms and the threats to soil biodiversity at global scale. The Atlas was launched by the Joint research Centre (JRC) and Global Soil Biodiversity Initiative (GSBI) at the 2nd UN Environment Assembly (UNEA) in Nairobi on 25 May 2016."}]
["Global Soil Biodiversity Atlas ","Database","European Commission ","https://esdac.jrc.ec.europa.eu/","Protection of Environmental Values",null,"Global","Geographical application3","Latin America",null,{"$f":"VLOOKUP(DescriptionTable[[#This Row],[Name]],descriptions[],2,FALSE)","v":"Maps the soil biodiversity of the entire planet. Provides a detailed analysis of soil organisms and the threats to soil biodiversity at global scale. The Atlas was launched by the Joint research Centre (JRC) and Global Soil Biodiversity Initiative (GSBI) at the 2nd UN Environment Assembly (UNEA) in Nairobi on 25 May 2016."}]
["Global Soil Biodiversity Atlas ","Database","European Commission ","https://esdac.jrc.ec.europa.eu/","Protection of Environmental Values",null,"Global","Geographical application4","Asia Pacific ",null,{"$f":"VLOOKUP(DescriptionTable[[#This Row],[Name]],descriptions[],2,FALSE)","v":"Maps the soil biodiversity of the entire planet. Provides a detailed analysis of soil organisms and the threats to soil biodiversity at global scale. The Atlas was launched by the Joint research Centre (JRC) and Global Soil Biodiversity Initiative (GSBI) at the 2nd UN Environment Assembly (UNEA) in Nairobi on 25 May 2016."}]
["Global Soil Biodiversity Atlas ","Database","European Commission ","https://esdac.jrc.ec.europa.eu/","Protection of Environmental Values",null,"Global","Geographical application42","Europe",null,{"$f":"VLOOKUP(DescriptionTable[[#This Row],[Name]],descriptions[],2,FALSE)","v":"Maps the soil biodiversity of the entire planet. Provides a detailed analysis of soil organisms and the threats to soil biodiversity at global scale. The Atlas was launched by the Joint research Centre (JRC) and Global Soil Biodiversity Initiative (GSBI) at the 2nd UN Environment Assembly (UNEA) in Nairobi on 25 May 2016."}]
["Global Soil Biodiversity Atlas ","Database","European Commission ","https://esdac.jrc.ec.europa.eu/","Protection of Environmental Values",null,"Global","Geographical application5","North America",null,{"$f":"VLOOKUP(DescriptionTable[[#This Row],[Name]],descriptions[],2,FALSE)","v":"Maps the soil biodiversity of the entire planet. Provides a detailed analysis of soil organisms and the threats to soil biodiversity at global scale. The Atlas was launched by the Joint research Centre (JRC) and Global Soil Biodiversity Initiative (GSBI) at the 2nd UN Environment Assembly (UNEA) in Nairobi on 25 May 2016."}]
["World Soil Information","Database","International Soil Reference and Information Centre (ISRIC)","https://www.isric.org/about","Protection of Environmental Values",null,"Global","Geographical application2","Africa",null,{"$f":"VLOOKUP(DescriptionTable[[#This Row],[Name]],descriptions[],2,FALSE)","v":"Holds free, reliable, and relevant soil data and information such as: 1) World Data Centre for Soils (being a regular member of the ISC (International Science Council) World Data System (WDS), provides soil-related collections and information services, including soil specimens, country documentation, and geo-referenced databases), 2) Scientific research, 3) Spatial Data Infrastructure- SDI (provide access to a growing range of global information products following FAIR principles, the soil reference collection and World Soil Museum, and tools and services developed to support sustainable land management decision making), and 4) Reference collection and library (a library of 10,000 digitized maps and 17,000 reports and books comprised over 1100 monoliths from 82 countries with supporting morphological and analytical information)."}]
["World Soil Information","Database","International Soil Reference and Information Centre (ISRIC)","https://www.isric.org/about","Protection of Environmental Values",null,"Global","Geographical application3","Latin America",null,{"$f":"VLOOKUP(DescriptionTable[[#This Row],[Name]],descriptions[],2,FALSE)","v":"Holds free, reliable, and relevant soil data and information such as: 1) World Data Centre for Soils (being a regular member of the ISC (International Science Council) World Data System (WDS), provides soil-related collections and information services, including soil specimens, country documentation, and geo-referenced databases), 2) Scientific research, 3) Spatial Data Infrastructure- SDI (provide access to a growing range of global information products following FAIR principles, the soil reference collection and World Soil Museum, and tools and services developed to support sustainable land management decision making), and 4) Reference collection and library (a library of 10,000 digitized maps and 17,000 reports and books comprised over 1100 monoliths from 82 countries with supporting morphological and analytical information)."}]
["World Soil Information","Database","International Soil Reference and Information Centre (ISRIC)","https://www.isric.org/about","Protection of Environmental Values",null,"Global","Geographical application4","Asia Pacific ",null,{"$f":"VLOOKUP(DescriptionTable[[#This Row],[Name]],descriptions[],2,FALSE)","v":"Holds free, reliable, and relevant soil data and information such as: 1) World Data Centre for Soils (being a regular member of the ISC (International Science Council) World Data System (WDS), provides soil-related collections and information services, including soil specimens, country documentation, and geo-referenced databases), 2) Scientific research, 3) Spatial Data Infrastructure- SDI (provide access to a growing range of global information products following FAIR principles, the soil reference collection and World Soil Museum, and tools and services developed to support sustainable land management decision making), and 4) Reference collection and library (a library of 10,000 digitized maps and 17,000 reports and books comprised over 1100 monoliths from 82 countries with supporting morphological and analytical information)."}]
["World Soil Information","Database","International Soil Reference and Information Centre (ISRIC)","https://www.isric.org/about","Protection of Environmental Values",null,"Global","Geographical application42","Europe",null,{"$f":"VLOOKUP(DescriptionTable[[#This Row],[Name]],descriptions[],2,FALSE)","v":"Holds free, reliable, and relevant soil data and information such as: 1) World Data Centre for Soils (being a regular member of the ISC (International Science Council) World Data System (WDS), provides soil-related collections and information services, including soil specimens, country documentation, and geo-referenced databases), 2) Scientific research, 3) Spatial Data Infrastructure- SDI (provide access to a growing range of global information products following FAIR principles, the soil reference collection and World Soil Museum, and tools and services developed to support sustainable land management decision making), and 4) Reference collection and library (a library of 10,000 digitized maps and 17,000 reports and books comprised over 1100 monoliths from 82 countries with supporting morphological and analytical information)."}]
["World Soil Information","Database","International Soil Reference and Information Centre (ISRIC)","https://www.isric.org/about","Protection of Environmental Values",null,"Global","Geographical application5","North America",null,{"$f":"VLOOKUP(DescriptionTable[[#This Row],[Name]],descriptions[],2,FALSE)","v":"Holds free, reliable, and relevant soil data and information such as: 1) World Data Centre for Soils (being a regular member of the ISC (International Science Council) World Data System (WDS), provides soil-related collections and information services, including soil specimens, country documentation, and geo-referenced databases), 2) Scientific research, 3) Spatial Data Infrastructure- SDI (provide access to a growing range of global information products following FAIR principles, the soil reference collection and World Soil Museum, and tools and services developed to support sustainable land management decision making), and 4) Reference collection and library (a library of 10,000 digitized maps and 17,000 reports and books comprised over 1100 monoliths from 82 countries with supporting morphological and analytical information)."}]
["Web Soil Survey ","Database","US Department of Agriculture (USDA)","https://www.nrcs.usda.gov/resources/data-and-reports/web-soil-survey","Protection of Environmental Values",null,"Global","Geographical application2","Africa",null,{"$f":"VLOOKUP(DescriptionTable[[#This Row],[Name]],descriptions[],2,FALSE)","v":"Provides access to relevant soil and related information needed to make land-use and management decisions. The WSS provides: quicker delivery of information,  access to full soil survey report content, access to the most current data, and the ability to download spatial, tabular, and thematic soils data for use in GIS."}]
["Web Soil Survey ","Database","US Department of Agriculture (USDA)","https://www.nrcs.usda.gov/resources/data-and-reports/web-soil-survey","Protection of Environmental Values",null,"Global","Geographical application3","Latin America",null,{"$f":"VLOOKUP(DescriptionTable[[#This Row],[Name]],descriptions[],2,FALSE)","v":"Provides access to relevant soil and related information needed to make land-use and management decisions. The WSS provides: quicker delivery of information,  access to full soil survey report content, access to the most current data, and the ability to download spatial, tabular, and thematic soils data for use in GIS."}]
["Web Soil Survey ","Database","US Department of Agriculture (USDA)","https://www.nrcs.usda.gov/resources/data-and-reports/web-soil-survey","Protection of Environmental Values",null,"Global","Geographical application4","Asia Pacific ",null,{"$f":"VLOOKUP(DescriptionTable[[#This Row],[Name]],descriptions[],2,FALSE)","v":"Provides access to relevant soil and related information needed to make land-use and management decisions. The WSS provides: quicker delivery of information,  access to full soil survey report content, access to the most current data, and the ability to download spatial, tabular, and thematic soils data for use in GIS."}]
["Web Soil Survey ","Database","US Department of Agriculture (USDA)","https://www.nrcs.usda.gov/resources/data-and-reports/web-soil-survey","Protection of Environmental Values",null,"Global","Geographical application42","Europe",null,{"$f":"VLOOKUP(DescriptionTable[[#This Row],[Name]],descriptions[],2,FALSE)","v":"Provides access to relevant soil and related information needed to make land-use and management decisions. The WSS provides: quicker delivery of information,  access to full soil survey report content, access to the most current data, and the ability to download spatial, tabular, and thematic soils data for use in GIS."}]
["Web Soil Survey ","Database","US Department of Agriculture (USDA)","https://www.nrcs.usda.gov/resources/data-and-reports/web-soil-survey","Protection of Environmental Values",null,"Global","Geographical application5","North America",null,{"$f":"VLOOKUP(DescriptionTable[[#This Row],[Name]],descriptions[],2,FALSE)","v":"Provides access to relevant soil and related information needed to make land-use and management decisions. The WSS provides: quicker delivery of information,  access to full soil survey report content, access to the most current data, and the ability to download spatial, tabular, and thematic soils data for use in GIS."}]
["Aqueduct 3.0 Country Rankings ","Rank, Score and Analysis","World Resources Institute ","https://www.wri.org/data/aqueduct-30-country-rankings","Protection of Environmental Values",null,"Global","Geographical application2","Africa",null,{"$f":"VLOOKUP(DescriptionTable[[#This Row],[Name]],descriptions[],2,FALSE)","v":"Shows countries and provinces’ average exposure to six of Aqueduct 3.0's water risk indicators: baseline water stress, riverine flood risk, and drought risk."}]
["Aqueduct 3.0 Country Rankings ","Rank, Score and Analysis","World Resources Institute ","https://www.wri.org/data/aqueduct-30-country-rankings","Protection of Environmental Values",null,"Global","Geographical application3","Latin America",null,{"$f":"VLOOKUP(DescriptionTable[[#This Row],[Name]],descriptions[],2,FALSE)","v":"Shows countries and provinces’ average exposure to six of Aqueduct 3.0's water risk indicators: baseline water stress, riverine flood risk, and drought risk."}]
["Aqueduct 3.0 Country Rankings ","Rank, Score and Analysis","World Resources Institute ","https://www.wri.org/data/aqueduct-30-country-rankings","Protection of Environmental Values",null,"Global","Geographical application4","Asia Pacific ",null,{"$f":"VLOOKUP(DescriptionTable[[#This Row],[Name]],descriptions[],2,FALSE)","v":"Shows countries and provinces’ average exposure to six of Aqueduct 3.0's water risk indicators: baseline water stress, riverine flood risk, and drought risk."}]
["Aqueduct 3.0 Country Rankings ","Rank, Score and Analysis","World Resources Institute ","https://www.wri.org/data/aqueduct-30-country-rankings","Protection of Environmental Values",null,"Global","Geographical application42","Europe",null,{"$f":"VLOOKUP(DescriptionTable[[#This Row],[Name]],descriptions[],2,FALSE)","v":"Shows countries and provinces’ average exposure to six of Aqueduct 3.0's water risk indicators: baseline water stress, riverine flood risk, and drought risk."}]
["Aqueduct 3.0 Country Rankings ","Rank, Score and Analysis","World Resources Institute ","https://www.wri.org/data/aqueduct-30-country-rankings","Protection of Environmental Values",null,"Global","Geographical application5","North America",null,{"$f":"VLOOKUP(DescriptionTable[[#This Row],[Name]],descriptions[],2,FALSE)","v":"Shows countries and provinces’ average exposure to six of Aqueduct 3.0's water risk indicators: baseline water stress, riverine flood risk, and drought risk."}]
["Aqueduct tools ","Rank, Score and Analysis","World Resources Institute ","https://www.wri.org/aqueduct#aqueduct-tools","Protection of Environmental Values",null,"Global","Geographical application2","Africa",null,{"$f":"VLOOKUP(DescriptionTable[[#This Row],[Name]],descriptions[],2,FALSE)","v":"Includes: Aqueduct Water Risk Atlas (which maps and analyzes current and future water risks across locations), Aqueduct Country Rankings (which allows decision-makers to understand and compare national and subnational water risks), Aqueduct Food, (which identifies current and future water risks to agriculture and food security), and Aqueduct Floods (which identifies coastal and riverine flood risks, and analyzes the costs and benefits of investing in flood protection)."}]
["Aqueduct tools ","Rank, Score and Analysis","World Resources Institute ","https://www.wri.org/aqueduct#aqueduct-tools","Protection of Environmental Values",null,"Global","Geographical application3","Latin America",null,{"$f":"VLOOKUP(DescriptionTable[[#This Row],[Name]],descriptions[],2,FALSE)","v":"Includes: Aqueduct Water Risk Atlas (which maps and analyzes current and future water risks across locations), Aqueduct Country Rankings (which allows decision-makers to understand and compare national and subnational water risks), Aqueduct Food, (which identifies current and future water risks to agriculture and food security), and Aqueduct Floods (which identifies coastal and riverine flood risks, and analyzes the costs and benefits of investing in flood protection)."}]
["Aqueduct tools ","Rank, Score and Analysis","World Resources Institute ","https://www.wri.org/aqueduct#aqueduct-tools","Protection of Environmental Values",null,"Global","Geographical application4","Asia Pacific ",null,{"$f":"VLOOKUP(DescriptionTable[[#This Row],[Name]],descriptions[],2,FALSE)","v":"Includes: Aqueduct Water Risk Atlas (which maps and analyzes current and future water risks across locations), Aqueduct Country Rankings (which allows decision-makers to understand and compare national and subnational water risks), Aqueduct Food, (which identifies current and future water risks to agriculture and food security), and Aqueduct Floods (which identifies coastal and riverine flood risks, and analyzes the costs and benefits of investing in flood protection)."}]
["Aqueduct tools ","Rank, Score and Analysis","World Resources Institute ","https://www.wri.org/aqueduct#aqueduct-tools","Protection of Environmental Values",null,"Global","Geographical application42","Europe",null,{"$f":"VLOOKUP(DescriptionTable[[#This Row],[Name]],descriptions[],2,FALSE)","v":"Includes: Aqueduct Water Risk Atlas (which maps and analyzes current and future water risks across locations), Aqueduct Country Rankings (which allows decision-makers to understand and compare national and subnational water risks), Aqueduct Food, (which identifies current and future water risks to agriculture and food security), and Aqueduct Floods (which identifies coastal and riverine flood risks, and analyzes the costs and benefits of investing in flood protection)."}]
["Aqueduct tools ","Rank, Score and Analysis","World Resources Institute ","https://www.wri.org/aqueduct#aqueduct-tools","Protection of Environmental Values",null,"Global","Geographical application5","North America",null,{"$f":"VLOOKUP(DescriptionTable[[#This Row],[Name]],descriptions[],2,FALSE)","v":"Includes: Aqueduct Water Risk Atlas (which maps and analyzes current and future water risks across locations), Aqueduct Country Rankings (which allows decision-makers to understand and compare national and subnational water risks), Aqueduct Food, (which identifies current and future water risks to agriculture and food security), and Aqueduct Floods (which identifies coastal and riverine flood risks, and analyzes the costs and benefits of investing in flood protection)."}]
["Blue Peace Index ","Rank, Score and Analysis","The Economist/ Swiss Cooporation Agency","https://impact.economist.com/projects/bluepeaceindex/#/","Protection of Environmental Values",null,"Global","Geographical application2","Africa",null,{"$f":"VLOOKUP(DescriptionTable[[#This Row],[Name]],descriptions[],2,FALSE)","v":"Evaluates the effectiveness of countries and basins in achieving sustainable and equitable management of shared water resources through a comprehensive assessment of five domains: 1) Policy and legal frameworks, 2) Institutional arrangements and participation, 3) Water management instruments, 4) Infrastructure and financing, and 5) Cooperation context, considering factors such as political, economic, and environmental realities to promote peace in the management of water resources."}]
["Blue Peace Index ","Rank, Score and Analysis","The Economist/ Swiss Cooporation Agency","https://impact.economist.com/projects/bluepeaceindex/#/","Protection of Environmental Values",null,"Global","Geographical application3","Latin America",null,{"$f":"VLOOKUP(DescriptionTable[[#This Row],[Name]],descriptions[],2,FALSE)","v":"Evaluates the effectiveness of countries and basins in achieving sustainable and equitable management of shared water resources through a comprehensive assessment of five domains: 1) Policy and legal frameworks, 2) Institutional arrangements and participation, 3) Water management instruments, 4) Infrastructure and financing, and 5) Cooperation context, considering factors such as political, economic, and environmental realities to promote peace in the management of water resources."}]
["Blue Peace Index ","Rank, Score and Analysis","The Economist/ Swiss Cooporation Agency","https://impact.economist.com/projects/bluepeaceindex/#/","Protection of Environmental Values",null,"Global","Geographical application4","Asia Pacific ",null,{"$f":"VLOOKUP(DescriptionTable[[#This Row],[Name]],descriptions[],2,FALSE)","v":"Evaluates the effectiveness of countries and basins in achieving sustainable and equitable management of shared water resources through a comprehensive assessment of five domains: 1) Policy and legal frameworks, 2) Institutional arrangements and participation, 3) Water management instruments, 4) Infrastructure and financing, and 5) Cooperation context, considering factors such as political, economic, and environmental realities to promote peace in the management of water resources."}]
["Blue Peace Index ","Rank, Score and Analysis","The Economist/ Swiss Cooporation Agency","https://impact.economist.com/projects/bluepeaceindex/#/","Protection of Environmental Values",null,"Global","Geographical application42","Europe",null,{"$f":"VLOOKUP(DescriptionTable[[#This Row],[Name]],descriptions[],2,FALSE)","v":"Evaluates the effectiveness of countries and basins in achieving sustainable and equitable management of shared water resources through a comprehensive assessment of five domains: 1) Policy and legal frameworks, 2) Institutional arrangements and participation, 3) Water management instruments, 4) Infrastructure and financing, and 5) Cooperation context, considering factors such as political, economic, and environmental realities to promote peace in the management of water resources."}]
["Blue Peace Index ","Rank, Score and Analysis","The Economist/ Swiss Cooporation Agency","https://impact.economist.com/projects/bluepeaceindex/#/","Protection of Environmental Values",null,"Global","Geographical application5","North America",null,{"$f":"VLOOKUP(DescriptionTable[[#This Row],[Name]],descriptions[],2,FALSE)","v":"Evaluates the effectiveness of countries and basins in achieving sustainable and equitable management of shared water resources through a comprehensive assessment of five domains: 1) Policy and legal frameworks, 2) Institutional arrangements and participation, 3) Water management instruments, 4) Infrastructure and financing, and 5) Cooperation context, considering factors such as political, economic, and environmental realities to promote peace in the management of water resources."}]
["Waste water treatment dataset ","Database","Organisation for Economic Co-operation and Development (OCED)","https://data.oecd.org/water/wastewater-treatment.htm","Protection of Environmental Values",null,"Global","Geographical application2","Africa",null,{"$f":"VLOOKUP(DescriptionTable[[#This Row],[Name]],descriptions[],2,FALSE)","v":"Presents sewage treatment connection rates, i.e. the percentage of the population connected to a wastewater treatment plant. “Connected” means actually connected to a wastewater treatment plant through a public sewage network. It does not take into account independent private facilities, used where public systems are not economic.This indicator is measured in percentage."}]
["Waste water treatment dataset ","Database","Organisation for Economic Co-operation and Development (OCED)","https://data.oecd.org/water/wastewater-treatment.htm","Protection of Environmental Values",null,"Global","Geographical application3","Latin America",null,{"$f":"VLOOKUP(DescriptionTable[[#This Row],[Name]],descriptions[],2,FALSE)","v":"Presents sewage treatment connection rates, i.e. the percentage of the population connected to a wastewater treatment plant. “Connected” means actually connected to a wastewater treatment plant through a public sewage network. It does not take into account independent private facilities, used where public systems are not economic.This indicator is measured in percentage."}]
["Waste water treatment dataset ","Database","Organisation for Economic Co-operation and Development (OCED)","https://data.oecd.org/water/wastewater-treatment.htm","Protection of Environmental Values",null,"Global","Geographical application4","Asia Pacific ",null,{"$f":"VLOOKUP(DescriptionTable[[#This Row],[Name]],descriptions[],2,FALSE)","v":"Presents sewage treatment connection rates, i.e. the percentage of the population connected to a wastewater treatment plant. “Connected” means actually connected to a wastewater treatment plant through a public sewage network. It does not take into account independent private facilities, used where public systems are not economic.This indicator is measured in percentage."}]
["Waste water treatment dataset ","Database","Organisation for Economic Co-operation and Development (OCED)","https://data.oecd.org/water/wastewater-treatment.htm","Protection of Environmental Values",null,"Global","Geographical application42","Europe",null,{"$f":"VLOOKUP(DescriptionTable[[#This Row],[Name]],descriptions[],2,FALSE)","v":"Presents sewage treatment connection rates, i.e. the percentage of the population connected to a wastewater treatment plant. “Connected” means actually connected to a wastewater treatment plant through a public sewage network. It does not take into account independent private facilities, used where public systems are not economic.This indicator is measured in percentage."}]
["Waste water treatment dataset ","Database","Organisation for Economic Co-operation and Development (OCED)","https://data.oecd.org/water/wastewater-treatment.htm","Protection of Environmental Values",null,"Global","Geographical application5","North America",null,{"$f":"VLOOKUP(DescriptionTable[[#This Row],[Name]],descriptions[],2,FALSE)","v":"Presents sewage treatment connection rates, i.e. the percentage of the population connected to a wastewater treatment plant. “Connected” means actually connected to a wastewater treatment plant through a public sewage network. It does not take into account independent private facilities, used where public systems are not economic.This indicator is measured in percentage."}]
["OCED Studies on Water ","Database","Organisation for Economic Co-operation and Development (OCED)","https://www.oecd-ilibrary.org/environment/oecd-studies-on-water_22245081","Protection of Environmental Values",null,"Global","Geographical application2","Africa",null,{"$f":"VLOOKUP(DescriptionTable[[#This Row],[Name]],descriptions[],2,FALSE)","v":"Provides policy analysis and guidance on the economic, financial and governance aspects of water resources management categorized into countries and topics related to waste water management."}]
["OCED Studies on Water ","Database","Organisation for Economic Co-operation and Development (OCED)","https://www.oecd-ilibrary.org/environment/oecd-studies-on-water_22245081","Protection of Environmental Values",null,"Global","Geographical application3","Latin America",null,{"$f":"VLOOKUP(DescriptionTable[[#This Row],[Name]],descriptions[],2,FALSE)","v":"Provides policy analysis and guidance on the economic, financial and governance aspects of water resources management categorized into countries and topics related to waste water management."}]
["OCED Studies on Water ","Database","Organisation for Economic Co-operation and Development (OCED)","https://www.oecd-ilibrary.org/environment/oecd-studies-on-water_22245081","Protection of Environmental Values",null,"Global","Geographical application4","Asia Pacific ",null,{"$f":"VLOOKUP(DescriptionTable[[#This Row],[Name]],descriptions[],2,FALSE)","v":"Provides policy analysis and guidance on the economic, financial and governance aspects of water resources management categorized into countries and topics related to waste water management."}]
["OCED Studies on Water ","Database","Organisation for Economic Co-operation and Development (OCED)","https://www.oecd-ilibrary.org/environment/oecd-studies-on-water_22245081","Protection of Environmental Values",null,"Global","Geographical application42","Europe",null,{"$f":"VLOOKUP(DescriptionTable[[#This Row],[Name]],descriptions[],2,FALSE)","v":"Provides policy analysis and guidance on the economic, financial and governance aspects of water resources management categorized into countries and topics related to waste water management."}]
["OCED Studies on Water ","Database","Organisation for Economic Co-operation and Development (OCED)","https://www.oecd-ilibrary.org/environment/oecd-studies-on-water_22245081","Protection of Environmental Values",null,"Global","Geographical application5","North America",null,{"$f":"VLOOKUP(DescriptionTable[[#This Row],[Name]],descriptions[],2,FALSE)","v":"Provides policy analysis and guidance on the economic, financial and governance aspects of water resources management categorized into countries and topics related to waste water management."}]
["Climate Change Dataset ","Dataset","World Bank","https://data.worldbank.org/topic/19","Climate Change Adaptation and reducing Greenhouse Gas Emmissions",null,"Global","Geographical application2","Africa",null,{"$f":"VLOOKUP(DescriptionTable[[#This Row],[Name]],descriptions[],2,FALSE)","v":"Presents up to date data on climate systems, exposure to climate impacts, resilience, greenhouse gas emissions, and energy use collected by the World bank."}]
["Climate Change Dataset ","Dataset","World Bank","https://data.worldbank.org/topic/19","Climate Change Adaptation and reducing Greenhouse Gas Emmissions",null,"Global","Geographical application3","Latin America",null,{"$f":"VLOOKUP(DescriptionTable[[#This Row],[Name]],descriptions[],2,FALSE)","v":"Presents up to date data on climate systems, exposure to climate impacts, resilience, greenhouse gas emissions, and energy use collected by the World bank."}]
["Climate Change Dataset ","Dataset","World Bank","https://data.worldbank.org/topic/19","Climate Change Adaptation and reducing Greenhouse Gas Emmissions",null,"Global","Geographical application4","Asia Pacific ",null,{"$f":"VLOOKUP(DescriptionTable[[#This Row],[Name]],descriptions[],2,FALSE)","v":"Presents up to date data on climate systems, exposure to climate impacts, resilience, greenhouse gas emissions, and energy use collected by the World bank."}]
["Climate Change Dataset ","Dataset","World Bank","https://data.worldbank.org/topic/19","Climate Change Adaptation and reducing Greenhouse Gas Emmissions",null,"Global","Geographical application42","Europe",null,{"$f":"VLOOKUP(DescriptionTable[[#This Row],[Name]],descriptions[],2,FALSE)","v":"Presents up to date data on climate systems, exposure to climate impacts, resilience, greenhouse gas emissions, and energy use collected by the World bank."}]
["Climate Change Dataset ","Dataset","World Bank","https://data.worldbank.org/topic/19","Climate Change Adaptation and reducing Greenhouse Gas Emmissions",null,"Global","Geographical application5","North America",null,{"$f":"VLOOKUP(DescriptionTable[[#This Row],[Name]],descriptions[],2,FALSE)","v":"Presents up to date data on climate systems, exposure to climate impacts, resilience, greenhouse gas emissions, and energy use collected by the World bank."}]
["Climate Change Knowledge Portal (CCKP)","Database","World Bank","https://climateknowledgeportal.worldbank.org/","Climate Change Adaptation and reducing Greenhouse Gas Emmissions",null,"Global","Geographical application2","Africa",null,{"$f":"VLOOKUP(DescriptionTable[[#This Row],[Name]],descriptions[],2,FALSE)","v":"The Climate Change Knowledge Portal (CCKP) is the hub for climate-related information, data, and tools for the World Bank Group (WBG). The Portal provides an online platform from which access and analyze comprehensive data related to climate change and development. Climate data aggregations are currently offered at national, sub-national, and watershed scales."}]
["Climate Change Knowledge Portal (CCKP)","Database","World Bank","https://climateknowledgeportal.worldbank.org/","Climate Change Adaptation and reducing Greenhouse Gas Emmissions",null,"Global","Geographical application3","Latin America",null,{"$f":"VLOOKUP(DescriptionTable[[#This Row],[Name]],descriptions[],2,FALSE)","v":"The Climate Change Knowledge Portal (CCKP) is the hub for climate-related information, data, and tools for the World Bank Group (WBG). The Portal provides an online platform from which access and analyze comprehensive data related to climate change and development. Climate data aggregations are currently offered at national, sub-national, and watershed scales."}]
["Climate Change Knowledge Portal (CCKP)","Database","World Bank","https://climateknowledgeportal.worldbank.org/","Climate Change Adaptation and reducing Greenhouse Gas Emmissions",null,"Global","Geographical application4","Asia Pacific ",null,{"$f":"VLOOKUP(DescriptionTable[[#This Row],[Name]],descriptions[],2,FALSE)","v":"The Climate Change Knowledge Portal (CCKP) is the hub for climate-related information, data, and tools for the World Bank Group (WBG). The Portal provides an online platform from which access and analyze comprehensive data related to climate change and development. Climate data aggregations are currently offered at national, sub-national, and watershed scales."}]
["Climate Change Knowledge Portal (CCKP)","Database","World Bank","https://climateknowledgeportal.worldbank.org/","Climate Change Adaptation and reducing Greenhouse Gas Emmissions",null,"Global","Geographical application42","Europe",null,{"$f":"VLOOKUP(DescriptionTable[[#This Row],[Name]],descriptions[],2,FALSE)","v":"The Climate Change Knowledge Portal (CCKP) is the hub for climate-related information, data, and tools for the World Bank Group (WBG). The Portal provides an online platform from which access and analyze comprehensive data related to climate change and development. Climate data aggregations are currently offered at national, sub-national, and watershed scales."}]
["Climate Change Knowledge Portal (CCKP)","Database","World Bank","https://climateknowledgeportal.worldbank.org/","Climate Change Adaptation and reducing Greenhouse Gas Emmissions",null,"Global","Geographical application5","North America",null,{"$f":"VLOOKUP(DescriptionTable[[#This Row],[Name]],descriptions[],2,FALSE)","v":"The Climate Change Knowledge Portal (CCKP) is the hub for climate-related information, data, and tools for the World Bank Group (WBG). The Portal provides an online platform from which access and analyze comprehensive data related to climate change and development. Climate data aggregations are currently offered at national, sub-national, and watershed scales."}]
["Carbon Pricing Dashboard","Database","World Bank","https://carbonpricingdashboard.worldbank.org/","Climate Change Adaptation and reducing Greenhouse Gas Emmissions",null,"Global","Geographical application2","Africa",null,{"$f":"VLOOKUP(DescriptionTable[[#This Row],[Name]],descriptions[],2,FALSE)","v":"Carbon Pricing Dashboard is an interactive online platform that provides up-to-date information on existing and emerging carbon pricing initiatives around the world. It builds on the data and analyses of the annual State and Trends of Carbon Pricing report series."}]
["Carbon Pricing Dashboard","Database","World Bank","https://carbonpricingdashboard.worldbank.org/","Climate Change Adaptation and reducing Greenhouse Gas Emmissions",null,"Global","Geographical application3","Latin America",null,{"$f":"VLOOKUP(DescriptionTable[[#This Row],[Name]],descriptions[],2,FALSE)","v":"Carbon Pricing Dashboard is an interactive online platform that provides up-to-date information on existing and emerging carbon pricing initiatives around the world. It builds on the data and analyses of the annual State and Trends of Carbon Pricing report series."}]
["Carbon Pricing Dashboard","Database","World Bank","https://carbonpricingdashboard.worldbank.org/","Climate Change Adaptation and reducing Greenhouse Gas Emmissions",null,"Global","Geographical application4","Asia Pacific ",null,{"$f":"VLOOKUP(DescriptionTable[[#This Row],[Name]],descriptions[],2,FALSE)","v":"Carbon Pricing Dashboard is an interactive online platform that provides up-to-date information on existing and emerging carbon pricing initiatives around the world. It builds on the data and analyses of the annual State and Trends of Carbon Pricing report series."}]
["Carbon Pricing Dashboard","Database","World Bank","https://carbonpricingdashboard.worldbank.org/","Climate Change Adaptation and reducing Greenhouse Gas Emmissions",null,"Global","Geographical application42","Europe",null,{"$f":"VLOOKUP(DescriptionTable[[#This Row],[Name]],descriptions[],2,FALSE)","v":"Carbon Pricing Dashboard is an interactive online platform that provides up-to-date information on existing and emerging carbon pricing initiatives around the world. It builds on the data and analyses of the annual State and Trends of Carbon Pricing report series."}]
["Carbon Pricing Dashboard","Database","World Bank","https://carbonpricingdashboard.worldbank.org/","Climate Change Adaptation and reducing Greenhouse Gas Emmissions",null,"Global","Geographical application5","North America",null,{"$f":"VLOOKUP(DescriptionTable[[#This Row],[Name]],descriptions[],2,FALSE)","v":"Carbon Pricing Dashboard is an interactive online platform that provides up-to-date information on existing and emerging carbon pricing initiatives around the world. It builds on the data and analyses of the annual State and Trends of Carbon Pricing report series."}]
["Climate Action Tracker ","Rank, Score and Analysis","Climate Analytics & New Climate Institute","https://climateactiontracker.org/","Climate Change Adaptation and reducing Greenhouse Gas Emmissions",null,"Global","Geographical application2","Africa",null,{"$f":"VLOOKUP(DescriptionTable[[#This Row],[Name]],descriptions[],2,FALSE)","v":"An independent scientific project that tracks government climate action and measures it against the globally agreed Paris Agreement aim of \"holding warming well below 2°C, and pursuing efforts to limit warming to 1.5°C\". CAT quantifies and evaluates climate change mitigation targets, policies and action. It also aggregates country action to the global level, determining likely temperature increases during the 21st century using the MAGICC climate model. CAT further develops sectoral analysis to illustrate required pathways for meeting the global temperature goals."}]
["Climate Action Tracker ","Rank, Score and Analysis","Climate Analytics & New Climate Institute","https://climateactiontracker.org/","Climate Change Adaptation and reducing Greenhouse Gas Emmissions",null,"Global","Geographical application3","Latin America",null,{"$f":"VLOOKUP(DescriptionTable[[#This Row],[Name]],descriptions[],2,FALSE)","v":"An independent scientific project that tracks government climate action and measures it against the globally agreed Paris Agreement aim of \"holding warming well below 2°C, and pursuing efforts to limit warming to 1.5°C\". CAT quantifies and evaluates climate change mitigation targets, policies and action. It also aggregates country action to the global level, determining likely temperature increases during the 21st century using the MAGICC climate model. CAT further develops sectoral analysis to illustrate required pathways for meeting the global temperature goals."}]
["Climate Action Tracker ","Rank, Score and Analysis","Climate Analytics & New Climate Institute","https://climateactiontracker.org/","Climate Change Adaptation and reducing Greenhouse Gas Emmissions",null,"Global","Geographical application4","Asia Pacific ",null,{"$f":"VLOOKUP(DescriptionTable[[#This Row],[Name]],descriptions[],2,FALSE)","v":"An independent scientific project that tracks government climate action and measures it against the globally agreed Paris Agreement aim of \"holding warming well below 2°C, and pursuing efforts to limit warming to 1.5°C\". CAT quantifies and evaluates climate change mitigation targets, policies and action. It also aggregates country action to the global level, determining likely temperature increases during the 21st century using the MAGICC climate model. CAT further develops sectoral analysis to illustrate required pathways for meeting the global temperature goals."}]
["Climate Action Tracker ","Rank, Score and Analysis","Climate Analytics & New Climate Institute","https://climateactiontracker.org/","Climate Change Adaptation and reducing Greenhouse Gas Emmissions",null,"Global","Geographical application42","Europe",null,{"$f":"VLOOKUP(DescriptionTable[[#This Row],[Name]],descriptions[],2,FALSE)","v":"An independent scientific project that tracks government climate action and measures it against the globally agreed Paris Agreement aim of \"holding warming well below 2°C, and pursuing efforts to limit warming to 1.5°C\". CAT quantifies and evaluates climate change mitigation targets, policies and action. It also aggregates country action to the global level, determining likely temperature increases during the 21st century using the MAGICC climate model. CAT further develops sectoral analysis to illustrate required pathways for meeting the global temperature goals."}]
["Climate Action Tracker ","Rank, Score and Analysis","Climate Analytics & New Climate Institute","https://climateactiontracker.org/","Climate Change Adaptation and reducing Greenhouse Gas Emmissions",null,"Global","Geographical application5","North America",null,{"$f":"VLOOKUP(DescriptionTable[[#This Row],[Name]],descriptions[],2,FALSE)","v":"An independent scientific project that tracks government climate action and measures it against the globally agreed Paris Agreement aim of \"holding warming well below 2°C, and pursuing efforts to limit warming to 1.5°C\". CAT quantifies and evaluates climate change mitigation targets, policies and action. It also aggregates country action to the global level, determining likely temperature increases during the 21st century using the MAGICC climate model. CAT further develops sectoral analysis to illustrate required pathways for meeting the global temperature goals."}]
["Climate Watch data ","Database","Climate Watch","https://www.climatewatchdata.org/","Climate Change Adaptation and reducing Greenhouse Gas Emmissions",null,"Global","Geographical application2","Africa",null,{"$f":"VLOOKUP(DescriptionTable[[#This Row],[Name]],descriptions[],2,FALSE)","v":"Climate Watch fffers open access data, visualizations and analysis to help policymakers, researchers and other stakeholders gather insights on countries' climate progress. It lets the users analyze and compare the Nationally Determined Contributions (NDCs) under the Paris Agreement, access historical emissions data, discover how countries can leverage their climate goals to achieve their sustainable development objectives and use models to map new pathways to a lower carbon, prosperous future. It also enables the users to create and share custom data visualizations and comparisons of national climate commitments. "}]
["Climate Watch data ","Database","Climate Watch","https://www.climatewatchdata.org/","Climate Change Adaptation and reducing Greenhouse Gas Emmissions",null,"Global","Geographical application3","Latin America",null,{"$f":"VLOOKUP(DescriptionTable[[#This Row],[Name]],descriptions[],2,FALSE)","v":"Climate Watch fffers open access data, visualizations and analysis to help policymakers, researchers and other stakeholders gather insights on countries' climate progress. It lets the users analyze and compare the Nationally Determined Contributions (NDCs) under the Paris Agreement, access historical emissions data, discover how countries can leverage their climate goals to achieve their sustainable development objectives and use models to map new pathways to a lower carbon, prosperous future. It also enables the users to create and share custom data visualizations and comparisons of national climate commitments. "}]
["Climate Watch data ","Database","Climate Watch","https://www.climatewatchdata.org/","Climate Change Adaptation and reducing Greenhouse Gas Emmissions",null,"Global","Geographical application4","Asia Pacific ",null,{"$f":"VLOOKUP(DescriptionTable[[#This Row],[Name]],descriptions[],2,FALSE)","v":"Climate Watch fffers open access data, visualizations and analysis to help policymakers, researchers and other stakeholders gather insights on countries' climate progress. It lets the users analyze and compare the Nationally Determined Contributions (NDCs) under the Paris Agreement, access historical emissions data, discover how countries can leverage their climate goals to achieve their sustainable development objectives and use models to map new pathways to a lower carbon, prosperous future. It also enables the users to create and share custom data visualizations and comparisons of national climate commitments. "}]
["Climate Watch data ","Database","Climate Watch","https://www.climatewatchdata.org/","Climate Change Adaptation and reducing Greenhouse Gas Emmissions",null,"Global","Geographical application42","Europe",null,{"$f":"VLOOKUP(DescriptionTable[[#This Row],[Name]],descriptions[],2,FALSE)","v":"Climate Watch fffers open access data, visualizations and analysis to help policymakers, researchers and other stakeholders gather insights on countries' climate progress. It lets the users analyze and compare the Nationally Determined Contributions (NDCs) under the Paris Agreement, access historical emissions data, discover how countries can leverage their climate goals to achieve their sustainable development objectives and use models to map new pathways to a lower carbon, prosperous future. It also enables the users to create and share custom data visualizations and comparisons of national climate commitments. "}]
["Climate Watch data ","Database","Climate Watch","https://www.climatewatchdata.org/","Climate Change Adaptation and reducing Greenhouse Gas Emmissions",null,"Global","Geographical application5","North America",null,{"$f":"VLOOKUP(DescriptionTable[[#This Row],[Name]],descriptions[],2,FALSE)","v":"Climate Watch fffers open access data, visualizations and analysis to help policymakers, researchers and other stakeholders gather insights on countries' climate progress. It lets the users analyze and compare the Nationally Determined Contributions (NDCs) under the Paris Agreement, access historical emissions data, discover how countries can leverage their climate goals to achieve their sustainable development objectives and use models to map new pathways to a lower carbon, prosperous future. It also enables the users to create and share custom data visualizations and comparisons of national climate commitments. "}]
["Climate Change Performance Index (CCPI) ","Rank, Score and Analysis","GermanWatch","https://ccpi.org/countries/","Climate Change Adaptation and reducing Greenhouse Gas Emmissions",null,"Global","Geographical application2","Africa",null,{"$f":"VLOOKUP(DescriptionTable[[#This Row],[Name]],descriptions[],2,FALSE)","v":"Indicates the climate mitigation efforts of 59 countries and the EU, which collectively account for over 90% of global greenhouse gas (GHG) emissions. Results are compiled with the aid of 400 national experts evaluating their countries’ most recent national and international climate policies."}]
["Climate Change Performance Index (CCPI) ","Rank, Score and Analysis","GermanWatch","https://ccpi.org/countries/","Climate Change Adaptation and reducing Greenhouse Gas Emmissions",null,"Global","Geographical application3","Latin America",null,{"$f":"VLOOKUP(DescriptionTable[[#This Row],[Name]],descriptions[],2,FALSE)","v":"Indicates the climate mitigation efforts of 59 countries and the EU, which collectively account for over 90% of global greenhouse gas (GHG) emissions. Results are compiled with the aid of 400 national experts evaluating their countries’ most recent national and international climate policies."}]
["Climate Change Performance Index (CCPI) ","Rank, Score and Analysis","GermanWatch","https://ccpi.org/countries/","Climate Change Adaptation and reducing Greenhouse Gas Emmissions",null,"Global","Geographical application4","Asia Pacific ",null,{"$f":"VLOOKUP(DescriptionTable[[#This Row],[Name]],descriptions[],2,FALSE)","v":"Indicates the climate mitigation efforts of 59 countries and the EU, which collectively account for over 90% of global greenhouse gas (GHG) emissions. Results are compiled with the aid of 400 national experts evaluating their countries’ most recent national and international climate policies."}]
["Climate Change Performance Index (CCPI) ","Rank, Score and Analysis","GermanWatch","https://ccpi.org/countries/","Climate Change Adaptation and reducing Greenhouse Gas Emmissions",null,"Global","Geographical application42","Europe",null,{"$f":"VLOOKUP(DescriptionTable[[#This Row],[Name]],descriptions[],2,FALSE)","v":"Indicates the climate mitigation efforts of 59 countries and the EU, which collectively account for over 90% of global greenhouse gas (GHG) emissions. Results are compiled with the aid of 400 national experts evaluating their countries’ most recent national and international climate policies."}]
["Climate Change Performance Index (CCPI) ","Rank, Score and Analysis","GermanWatch","https://ccpi.org/countries/","Climate Change Adaptation and reducing Greenhouse Gas Emmissions",null,"Global","Geographical application5","North America",null,{"$f":"VLOOKUP(DescriptionTable[[#This Row],[Name]],descriptions[],2,FALSE)","v":"Indicates the climate mitigation efforts of 59 countries and the EU, which collectively account for over 90% of global greenhouse gas (GHG) emissions. Results are compiled with the aid of 400 national experts evaluating their countries’ most recent national and international climate policies."}]
["Emmissions from Forests ","Database","UN Food and Agriculture Programme (FAO)","https://www.fao.org/faostat/en/#data/GF","Climate Change Adaptation and reducing Greenhouse Gas Emmissions",null,"Global","Geographical application2","Africa",null,{"$f":"VLOOKUP(DescriptionTable[[#This Row],[Name]],descriptions[],2,FALSE)","v":"Consists of CO2 emissions and removals corresponding to forest carbon stock changes (aboveground and belowground living biomass). Estimates are computed following the 2006 IPCC Guidelines for National greenhouse gas Inventories (IPCC, 2006). Data from the Forest Resources Assessment 2020 (FAO, 2020) are used as input. Estimates are available by country, with global coverage, for the period 1990–2021."}]
["Emmissions from Forests ","Database","UN Food and Agriculture Programme (FAO)","https://www.fao.org/faostat/en/#data/GF","Climate Change Adaptation and reducing Greenhouse Gas Emmissions",null,"Global","Geographical application3","Latin America",null,{"$f":"VLOOKUP(DescriptionTable[[#This Row],[Name]],descriptions[],2,FALSE)","v":"Consists of CO2 emissions and removals corresponding to forest carbon stock changes (aboveground and belowground living biomass). Estimates are computed following the 2006 IPCC Guidelines for National greenhouse gas Inventories (IPCC, 2006). Data from the Forest Resources Assessment 2020 (FAO, 2020) are used as input. Estimates are available by country, with global coverage, for the period 1990–2021."}]
["Emmissions from Forests ","Database","UN Food and Agriculture Programme (FAO)","https://www.fao.org/faostat/en/#data/GF","Climate Change Adaptation and reducing Greenhouse Gas Emmissions",null,"Global","Geographical application4","Asia Pacific ",null,{"$f":"VLOOKUP(DescriptionTable[[#This Row],[Name]],descriptions[],2,FALSE)","v":"Consists of CO2 emissions and removals corresponding to forest carbon stock changes (aboveground and belowground living biomass). Estimates are computed following the 2006 IPCC Guidelines for National greenhouse gas Inventories (IPCC, 2006). Data from the Forest Resources Assessment 2020 (FAO, 2020) are used as input. Estimates are available by country, with global coverage, for the period 1990–2021."}]
["Emmissions from Forests ","Database","UN Food and Agriculture Programme (FAO)","https://www.fao.org/faostat/en/#data/GF","Climate Change Adaptation and reducing Greenhouse Gas Emmissions",null,"Global","Geographical application42","Europe",null,{"$f":"VLOOKUP(DescriptionTable[[#This Row],[Name]],descriptions[],2,FALSE)","v":"Consists of CO2 emissions and removals corresponding to forest carbon stock changes (aboveground and belowground living biomass). Estimates are computed following the 2006 IPCC Guidelines for National greenhouse gas Inventories (IPCC, 2006). Data from the Forest Resources Assessment 2020 (FAO, 2020) are used as input. Estimates are available by country, with global coverage, for the period 1990–2021."}]
["Emmissions from Forests ","Database","UN Food and Agriculture Programme (FAO)","https://www.fao.org/faostat/en/#data/GF","Climate Change Adaptation and reducing Greenhouse Gas Emmissions",null,"Global","Geographical application5","North America",null,{"$f":"VLOOKUP(DescriptionTable[[#This Row],[Name]],descriptions[],2,FALSE)","v":"Consists of CO2 emissions and removals corresponding to forest carbon stock changes (aboveground and belowground living biomass). Estimates are computed following the 2006 IPCC Guidelines for National greenhouse gas Inventories (IPCC, 2006). Data from the Forest Resources Assessment 2020 (FAO, 2020) are used as input. Estimates are available by country, with global coverage, for the period 1990–2021."}]
["CO2 Emmissions Data ","Rank, Score and Analysis","World Bank","https://data.worldbank.org/indicator/EN.ATM.CO2E.PC","Climate Change Adaptation and reducing Greenhouse Gas Emmissions",null,"Global","Geographical application2","Africa",null,{"$f":"VLOOKUP(DescriptionTable[[#This Row],[Name]],descriptions[],2,FALSE)","v":"Carbon dioxide (CO2) emissions are those stemming from the burning of fossil fuels and the manufacture of cement. They include carbon dioxide produced during consumption of solid, liquid, and gas fuels and gas flaring. Data sourced from Climate Watch Historical GHG Emissions ( 1990-2020 ). 2023. Washington, DC: World Resources Institute. "}]
["CO2 Emmissions Data ","Rank, Score and Analysis","World Bank","https://data.worldbank.org/indicator/EN.ATM.CO2E.PC","Climate Change Adaptation and reducing Greenhouse Gas Emmissions",null,"Global","Geographical application3","Latin America",null,{"$f":"VLOOKUP(DescriptionTable[[#This Row],[Name]],descriptions[],2,FALSE)","v":"Carbon dioxide (CO2) emissions are those stemming from the burning of fossil fuels and the manufacture of cement. They include carbon dioxide produced during consumption of solid, liquid, and gas fuels and gas flaring. Data sourced from Climate Watch Historical GHG Emissions ( 1990-2020 ). 2023. Washington, DC: World Resources Institute. "}]
["CO2 Emmissions Data ","Rank, Score and Analysis","World Bank","https://data.worldbank.org/indicator/EN.ATM.CO2E.PC","Climate Change Adaptation and reducing Greenhouse Gas Emmissions",null,"Global","Geographical application4","Asia Pacific ",null,{"$f":"VLOOKUP(DescriptionTable[[#This Row],[Name]],descriptions[],2,FALSE)","v":"Carbon dioxide (CO2) emissions are those stemming from the burning of fossil fuels and the manufacture of cement. They include carbon dioxide produced during consumption of solid, liquid, and gas fuels and gas flaring. Data sourced from Climate Watch Historical GHG Emissions ( 1990-2020 ). 2023. Washington, DC: World Resources Institute. "}]
["CO2 Emmissions Data ","Rank, Score and Analysis","World Bank","https://data.worldbank.org/indicator/EN.ATM.CO2E.PC","Climate Change Adaptation and reducing Greenhouse Gas Emmissions",null,"Global","Geographical application42","Europe",null,{"$f":"VLOOKUP(DescriptionTable[[#This Row],[Name]],descriptions[],2,FALSE)","v":"Carbon dioxide (CO2) emissions are those stemming from the burning of fossil fuels and the manufacture of cement. They include carbon dioxide produced during consumption of solid, liquid, and gas fuels and gas flaring. Data sourced from Climate Watch Historical GHG Emissions ( 1990-2020 ). 2023. Washington, DC: World Resources Institute. "}]
["CO2 Emmissions Data ","Rank, Score and Analysis","World Bank","https://data.worldbank.org/indicator/EN.ATM.CO2E.PC","Climate Change Adaptation and reducing Greenhouse Gas Emmissions",null,"Global","Geographical application5","North America",null,{"$f":"VLOOKUP(DescriptionTable[[#This Row],[Name]],descriptions[],2,FALSE)","v":"Carbon dioxide (CO2) emissions are those stemming from the burning of fossil fuels and the manufacture of cement. They include carbon dioxide produced during consumption of solid, liquid, and gas fuels and gas flaring. Data sourced from Climate Watch Historical GHG Emissions ( 1990-2020 ). 2023. Washington, DC: World Resources Institute. "}]
["OCED Governance Framework to Counter Illicit Trade ","Report/Document","Organisation for Economic Co-operation and Development (OCED)","https://www.oecd-ilibrary.org/governance/governance-frameworks-to-counter-illicit-trade_9789264291652-en","Offshore Trading and Transfer Pricing",null,"Global","Geographical application2","Africa",null,{"$f":"VLOOKUP(DescriptionTable[[#This Row],[Name]],descriptions[],2,FALSE)","v":"Provides decision makers with analysis of black and grey markets, as well as guidance and evaluations of policies designed to reduce or deter them. It covers a wide spectrum of studies on illicit market sectors, from counterfeits and narcotics to humans and wildlife, as well as reports on cross-cutting facilitators of illicit trade, such as free trade zones or the use of small parcels to avoid detection. It builds on quantitative analysis and qualitative insights, and benefits from discussions with OECD and non-OECD countries as well as non-government stakeholders."}]
["OCED Governance Framework to Counter Illicit Trade ","Report/Document","Organisation for Economic Co-operation and Development (OCED)","https://www.oecd-ilibrary.org/governance/governance-frameworks-to-counter-illicit-trade_9789264291652-en","Offshore Trading and Transfer Pricing",null,"Global","Geographical application3","Latin America",null,{"$f":"VLOOKUP(DescriptionTable[[#This Row],[Name]],descriptions[],2,FALSE)","v":"Provides decision makers with analysis of black and grey markets, as well as guidance and evaluations of policies designed to reduce or deter them. It covers a wide spectrum of studies on illicit market sectors, from counterfeits and narcotics to humans and wildlife, as well as reports on cross-cutting facilitators of illicit trade, such as free trade zones or the use of small parcels to avoid detection. It builds on quantitative analysis and qualitative insights, and benefits from discussions with OECD and non-OECD countries as well as non-government stakeholders."}]
["OCED Governance Framework to Counter Illicit Trade ","Report/Document","Organisation for Economic Co-operation and Development (OCED)","https://www.oecd-ilibrary.org/governance/governance-frameworks-to-counter-illicit-trade_9789264291652-en","Offshore Trading and Transfer Pricing",null,"Global","Geographical application4","Asia Pacific ",null,{"$f":"VLOOKUP(DescriptionTable[[#This Row],[Name]],descriptions[],2,FALSE)","v":"Provides decision makers with analysis of black and grey markets, as well as guidance and evaluations of policies designed to reduce or deter them. It covers a wide spectrum of studies on illicit market sectors, from counterfeits and narcotics to humans and wildlife, as well as reports on cross-cutting facilitators of illicit trade, such as free trade zones or the use of small parcels to avoid detection. It builds on quantitative analysis and qualitative insights, and benefits from discussions with OECD and non-OECD countries as well as non-government stakeholders."}]
["OCED Governance Framework to Counter Illicit Trade ","Report/Document","Organisation for Economic Co-operation and Development (OCED)","https://www.oecd-ilibrary.org/governance/governance-frameworks-to-counter-illicit-trade_9789264291652-en","Offshore Trading and Transfer Pricing",null,"Global","Geographical application42","Europe",null,{"$f":"VLOOKUP(DescriptionTable[[#This Row],[Name]],descriptions[],2,FALSE)","v":"Provides decision makers with analysis of black and grey markets, as well as guidance and evaluations of policies designed to reduce or deter them. It covers a wide spectrum of studies on illicit market sectors, from counterfeits and narcotics to humans and wildlife, as well as reports on cross-cutting facilitators of illicit trade, such as free trade zones or the use of small parcels to avoid detection. It builds on quantitative analysis and qualitative insights, and benefits from discussions with OECD and non-OECD countries as well as non-government stakeholders."}]
["OCED Governance Framework to Counter Illicit Trade ","Report/Document","Organisation for Economic Co-operation and Development (OCED)","https://www.oecd-ilibrary.org/governance/governance-frameworks-to-counter-illicit-trade_9789264291652-en","Offshore Trading and Transfer Pricing",null,"Global","Geographical application5","North America",null,{"$f":"VLOOKUP(DescriptionTable[[#This Row],[Name]],descriptions[],2,FALSE)","v":"Provides decision makers with analysis of black and grey markets, as well as guidance and evaluations of policies designed to reduce or deter them. It covers a wide spectrum of studies on illicit market sectors, from counterfeits and narcotics to humans and wildlife, as well as reports on cross-cutting facilitators of illicit trade, such as free trade zones or the use of small parcels to avoid detection. It builds on quantitative analysis and qualitative insights, and benefits from discussions with OECD and non-OECD countries as well as non-government stakeholders."}]
["Rapid Response Assessment- The Environmental Crime Crisis ","Report/Document","UN Environmental Programme and INTERPOL","https://www.unep.org/resources/report/environmental-crime-crisis-threats-sustainable-development-illegal-exploitation","Offshore Trading and Transfer Pricing",null,"Global","Geographical application2","Africa",null,{"$f":"VLOOKUP(DescriptionTable[[#This Row],[Name]],descriptions[],2,FALSE)","v":"A publication by the UN Environment Programme providing information/insights to a range of topics related to environmental crime. The areas of discussion includes wildlife trafficking, forest crime, role of wood and illegal wildlife trade for threat finance, and responses."}]
["Rapid Response Assessment- The Environmental Crime Crisis ","Report/Document","UN Environmental Programme and INTERPOL","https://www.unep.org/resources/report/environmental-crime-crisis-threats-sustainable-development-illegal-exploitation","Offshore Trading and Transfer Pricing",null,"Global","Geographical application3","Latin America",null,{"$f":"VLOOKUP(DescriptionTable[[#This Row],[Name]],descriptions[],2,FALSE)","v":"A publication by the UN Environment Programme providing information/insights to a range of topics related to environmental crime. The areas of discussion includes wildlife trafficking, forest crime, role of wood and illegal wildlife trade for threat finance, and responses."}]
["Rapid Response Assessment- The Environmental Crime Crisis ","Report/Document","UN Environmental Programme and INTERPOL","https://www.unep.org/resources/report/environmental-crime-crisis-threats-sustainable-development-illegal-exploitation","Offshore Trading and Transfer Pricing",null,"Global","Geographical application4","Asia Pacific ",null,{"$f":"VLOOKUP(DescriptionTable[[#This Row],[Name]],descriptions[],2,FALSE)","v":"A publication by the UN Environment Programme providing information/insights to a range of topics related to environmental crime. The areas of discussion includes wildlife trafficking, forest crime, role of wood and illegal wildlife trade for threat finance, and responses."}]
["Rapid Response Assessment- The Environmental Crime Crisis ","Report/Document","UN Environmental Programme and INTERPOL","https://www.unep.org/resources/report/environmental-crime-crisis-threats-sustainable-development-illegal-exploitation","Offshore Trading and Transfer Pricing",null,"Global","Geographical application42","Europe",null,{"$f":"VLOOKUP(DescriptionTable[[#This Row],[Name]],descriptions[],2,FALSE)","v":"A publication by the UN Environment Programme providing information/insights to a range of topics related to environmental crime. The areas of discussion includes wildlife trafficking, forest crime, role of wood and illegal wildlife trade for threat finance, and responses."}]
["Rapid Response Assessment- The Environmental Crime Crisis ","Report/Document","UN Environmental Programme and INTERPOL","https://www.unep.org/resources/report/environmental-crime-crisis-threats-sustainable-development-illegal-exploitation","Offshore Trading and Transfer Pricing",null,"Global","Geographical application5","North America",null,{"$f":"VLOOKUP(DescriptionTable[[#This Row],[Name]],descriptions[],2,FALSE)","v":"A publication by the UN Environment Programme providing information/insights to a range of topics related to environmental crime. The areas of discussion includes wildlife trafficking, forest crime, role of wood and illegal wildlife trade for threat finance, and responses."}]
["Trade Freedom Score ","Rank, Score and Analysis","World Bank","https://tcdata360.worldbank.org/indicators/trade.free.scr?country=BRA&indicator=757&viz=line_chart&years=2013,2018","Offshore Trading and Transfer Pricing",null,"Global","Geographical application2","Africa",null,{"$f":"VLOOKUP(DescriptionTable[[#This Row],[Name]],descriptions[],2,FALSE)","v":"A composite measure of the extent of tariff and non-tariff barriers that affect imports and exports of goods and services. The trade freedom score is based on two inputs: 1) The trade-weighted average tariff rate, and 2) Non-tariff barriers (NTBs)."}]
["Trade Freedom Score ","Rank, Score and Analysis","World Bank","https://tcdata360.worldbank.org/indicators/trade.free.scr?country=BRA&indicator=757&viz=line_chart&years=2013,2018","Offshore Trading and Transfer Pricing",null,"Global","Geographical application3","Latin America",null,{"$f":"VLOOKUP(DescriptionTable[[#This Row],[Name]],descriptions[],2,FALSE)","v":"A composite measure of the extent of tariff and non-tariff barriers that affect imports and exports of goods and services. The trade freedom score is based on two inputs: 1) The trade-weighted average tariff rate, and 2) Non-tariff barriers (NTBs)."}]
["Trade Freedom Score ","Rank, Score and Analysis","World Bank","https://tcdata360.worldbank.org/indicators/trade.free.scr?country=BRA&indicator=757&viz=line_chart&years=2013,2018","Offshore Trading and Transfer Pricing",null,"Global","Geographical application4","Asia Pacific ",null,{"$f":"VLOOKUP(DescriptionTable[[#This Row],[Name]],descriptions[],2,FALSE)","v":"A composite measure of the extent of tariff and non-tariff barriers that affect imports and exports of goods and services. The trade freedom score is based on two inputs: 1) The trade-weighted average tariff rate, and 2) Non-tariff barriers (NTBs)."}]
["Trade Freedom Score ","Rank, Score and Analysis","World Bank","https://tcdata360.worldbank.org/indicators/trade.free.scr?country=BRA&indicator=757&viz=line_chart&years=2013,2018","Offshore Trading and Transfer Pricing",null,"Global","Geographical application42","Europe",null,{"$f":"VLOOKUP(DescriptionTable[[#This Row],[Name]],descriptions[],2,FALSE)","v":"A composite measure of the extent of tariff and non-tariff barriers that affect imports and exports of goods and services. The trade freedom score is based on two inputs: 1) The trade-weighted average tariff rate, and 2) Non-tariff barriers (NTBs)."}]
["Trade Freedom Score ","Rank, Score and Analysis","World Bank","https://tcdata360.worldbank.org/indicators/trade.free.scr?country=BRA&indicator=757&viz=line_chart&years=2013,2018","Offshore Trading and Transfer Pricing",null,"Global","Geographical application5","North America",null,{"$f":"VLOOKUP(DescriptionTable[[#This Row],[Name]],descriptions[],2,FALSE)","v":"A composite measure of the extent of tariff and non-tariff barriers that affect imports and exports of goods and services. The trade freedom score is based on two inputs: 1) The trade-weighted average tariff rate, and 2) Non-tariff barriers (NTBs)."}]
["API (Animal Protection Index)","Index","NGO coalition led by World Animal Protection ","https://api.worldanimalprotection.org/ ","Animal Health & Welfare",null,"Global","Geographical application2","Africa",null,{"$f":"VLOOKUP(DescriptionTable[[#This Row],[Name]],descriptions[],2,FALSE)","v":"Ranks 50 countries according to their animal welfare legislation and policy. Countries are assessed on 10 indicators, which cover various categories of animals (i.e. farm animals, animals in captivity, companion animals, animals used for draught and recreational purposes, animals used in scientific research, wild animals). Each country receives a letter grade ranging from A (the highest score) to G (the weakest score) for each indicator, as well as an overall grade."}]
["API (Animal Protection Index)","Index","NGO coalition led by World Animal Protection ","https://api.worldanimalprotection.org/ ","Animal Health & Welfare",null,"Global","Geographical application3","Latin America",null,{"$f":"VLOOKUP(DescriptionTable[[#This Row],[Name]],descriptions[],2,FALSE)","v":"Ranks 50 countries according to their animal welfare legislation and policy. Countries are assessed on 10 indicators, which cover various categories of animals (i.e. farm animals, animals in captivity, companion animals, animals used for draught and recreational purposes, animals used in scientific research, wild animals). Each country receives a letter grade ranging from A (the highest score) to G (the weakest score) for each indicator, as well as an overall grade."}]
["API (Animal Protection Index)","Index","NGO coalition led by World Animal Protection ","https://api.worldanimalprotection.org/ ","Animal Health & Welfare",null,"Global","Geographical application4","Asia Pacific ",null,{"$f":"VLOOKUP(DescriptionTable[[#This Row],[Name]],descriptions[],2,FALSE)","v":"Ranks 50 countries according to their animal welfare legislation and policy. Countries are assessed on 10 indicators, which cover various categories of animals (i.e. farm animals, animals in captivity, companion animals, animals used for draught and recreational purposes, animals used in scientific research, wild animals). Each country receives a letter grade ranging from A (the highest score) to G (the weakest score) for each indicator, as well as an overall grade."}]
["API (Animal Protection Index)","Index","NGO coalition led by World Animal Protection ","https://api.worldanimalprotection.org/ ","Animal Health & Welfare",null,"Global","Geographical application42","Europe",null,{"$f":"VLOOKUP(DescriptionTable[[#This Row],[Name]],descriptions[],2,FALSE)","v":"Ranks 50 countries according to their animal welfare legislation and policy. Countries are assessed on 10 indicators, which cover various categories of animals (i.e. farm animals, animals in captivity, companion animals, animals used for draught and recreational purposes, animals used in scientific research, wild animals). Each country receives a letter grade ranging from A (the highest score) to G (the weakest score) for each indicator, as well as an overall grade."}]
["API (Animal Protection Index)","Index","NGO coalition led by World Animal Protection ","https://api.worldanimalprotection.org/ ","Animal Health & Welfare",null,"Global","Geographical application5","North America",null,{"$f":"VLOOKUP(DescriptionTable[[#This Row],[Name]],descriptions[],2,FALSE)","v":"Ranks 50 countries according to their animal welfare legislation and policy. Countries are assessed on 10 indicators, which cover various categories of animals (i.e. farm animals, animals in captivity, companion animals, animals used for draught and recreational purposes, animals used in scientific research, wild animals). Each country receives a letter grade ranging from A (the highest score) to G (the weakest score) for each indicator, as well as an overall grade."}]
["Voiceless Animal Cruelty (VACI) Index","Index","Voiceless","https://vaci.voiceless.org.au/ ","Animal Health & Welfare",null,"Global","Geographical application2","Africa",null,{"$f":"VLOOKUP(DescriptionTable[[#This Row],[Name]],descriptions[],2,FALSE)","v":"The VACI is an interactive index that evaluates and ranks countries based on the nature, extent and intensity of cruelty associated with farmed animal production and consumption in a sample of 50 countries that together account for almost 80% of the world’s farmed animal population. The VACI complements and makes use of the World Animal Protection Index (API). While the API addresses the quality of animal welfare legislation and regulation across countries, the VACI seeks to measure the full extent of actual farmed animal cruelty. The VACI focuses on outcomes by providing estimates of the origins, scope, and intensity of human-induced animal suffering."}]
["Voiceless Animal Cruelty (VACI) Index","Index","Voiceless","https://vaci.voiceless.org.au/ ","Animal Health & Welfare",null,"Global","Geographical application3","Latin America",null,{"$f":"VLOOKUP(DescriptionTable[[#This Row],[Name]],descriptions[],2,FALSE)","v":"The VACI is an interactive index that evaluates and ranks countries based on the nature, extent and intensity of cruelty associated with farmed animal production and consumption in a sample of 50 countries that together account for almost 80% of the world’s farmed animal population. The VACI complements and makes use of the World Animal Protection Index (API). While the API addresses the quality of animal welfare legislation and regulation across countries, the VACI seeks to measure the full extent of actual farmed animal cruelty. The VACI focuses on outcomes by providing estimates of the origins, scope, and intensity of human-induced animal suffering."}]
["Voiceless Animal Cruelty (VACI) Index","Index","Voiceless","https://vaci.voiceless.org.au/ ","Animal Health & Welfare",null,"Global","Geographical application4","Asia Pacific ",null,{"$f":"VLOOKUP(DescriptionTable[[#This Row],[Name]],descriptions[],2,FALSE)","v":"The VACI is an interactive index that evaluates and ranks countries based on the nature, extent and intensity of cruelty associated with farmed animal production and consumption in a sample of 50 countries that together account for almost 80% of the world’s farmed animal population. The VACI complements and makes use of the World Animal Protection Index (API). While the API addresses the quality of animal welfare legislation and regulation across countries, the VACI seeks to measure the full extent of actual farmed animal cruelty. The VACI focuses on outcomes by providing estimates of the origins, scope, and intensity of human-induced animal suffering."}]
["Voiceless Animal Cruelty (VACI) Index","Index","Voiceless","https://vaci.voiceless.org.au/ ","Animal Health & Welfare",null,"Global","Geographical application42","Europe",null,{"$f":"VLOOKUP(DescriptionTable[[#This Row],[Name]],descriptions[],2,FALSE)","v":"The VACI is an interactive index that evaluates and ranks countries based on the nature, extent and intensity of cruelty associated with farmed animal production and consumption in a sample of 50 countries that together account for almost 80% of the world’s farmed animal population. The VACI complements and makes use of the World Animal Protection Index (API). While the API addresses the quality of animal welfare legislation and regulation across countries, the VACI seeks to measure the full extent of actual farmed animal cruelty. The VACI focuses on outcomes by providing estimates of the origins, scope, and intensity of human-induced animal suffering."}]
["Voiceless Animal Cruelty (VACI) Index","Index","Voiceless","https://vaci.voiceless.org.au/ ","Animal Health & Welfare",null,"Global","Geographical application5","North America",null,{"$f":"VLOOKUP(DescriptionTable[[#This Row],[Name]],descriptions[],2,FALSE)","v":"The VACI is an interactive index that evaluates and ranks countries based on the nature, extent and intensity of cruelty associated with farmed animal production and consumption in a sample of 50 countries that together account for almost 80% of the world’s farmed animal population. The VACI complements and makes use of the World Animal Protection Index (API). While the API addresses the quality of animal welfare legislation and regulation across countries, the VACI seeks to measure the full extent of actual farmed animal cruelty. The VACI focuses on outcomes by providing estimates of the origins, scope, and intensity of human-induced animal suffering."}]
["World Organisation for Animal Health (WOAH) Webpage","Database","World Organisation for Animal Health (WOAH)","https://www.woah.org/en/home/","Animal Health & Welfare",null,"Global","Geographical application2","Africa",null,{"$f":"VLOOKUP(DescriptionTable[[#This Row],[Name]],descriptions[],2,FALSE)","v":"An intergovernmental organisation, focusing on transparently disseminating information on animal diseases, improving animal health globally and thus build a safer, healthier and more sustainable world. WAHIS (https://wahis.woah.org/#/home) is the global animal health reference database of the World Organisation for Animal Health (WOAH). WAHIS data reflects the validated information since 2005 reported by the Veterinary Services from Member and non-Member Countries and Territories on terrestrial and aquatic Listed diseases in domestic animals and wildlife, as well as on emerging diseases and zoonoses."}]
["World Organisation for Animal Health (WOAH) Webpage","Database","World Organisation for Animal Health (WOAH)","https://www.woah.org/en/home/","Animal Health & Welfare",null,"Global","Geographical application3","Latin America",null,{"$f":"VLOOKUP(DescriptionTable[[#This Row],[Name]],descriptions[],2,FALSE)","v":"An intergovernmental organisation, focusing on transparently disseminating information on animal diseases, improving animal health globally and thus build a safer, healthier and more sustainable world. WAHIS (https://wahis.woah.org/#/home) is the global animal health reference database of the World Organisation for Animal Health (WOAH). WAHIS data reflects the validated information since 2005 reported by the Veterinary Services from Member and non-Member Countries and Territories on terrestrial and aquatic Listed diseases in domestic animals and wildlife, as well as on emerging diseases and zoonoses."}]
["World Organisation for Animal Health (WOAH) Webpage","Database","World Organisation for Animal Health (WOAH)","https://www.woah.org/en/home/","Animal Health & Welfare",null,"Global","Geographical application4","Asia Pacific ",null,{"$f":"VLOOKUP(DescriptionTable[[#This Row],[Name]],descriptions[],2,FALSE)","v":"An intergovernmental organisation, focusing on transparently disseminating information on animal diseases, improving animal health globally and thus build a safer, healthier and more sustainable world. WAHIS (https://wahis.woah.org/#/home) is the global animal health reference database of the World Organisation for Animal Health (WOAH). WAHIS data reflects the validated information since 2005 reported by the Veterinary Services from Member and non-Member Countries and Territories on terrestrial and aquatic Listed diseases in domestic animals and wildlife, as well as on emerging diseases and zoonoses."}]
["World Organisation for Animal Health (WOAH) Webpage","Database","World Organisation for Animal Health (WOAH)","https://www.woah.org/en/home/","Animal Health & Welfare",null,"Global","Geographical application42","Europe",null,{"$f":"VLOOKUP(DescriptionTable[[#This Row],[Name]],descriptions[],2,FALSE)","v":"An intergovernmental organisation, focusing on transparently disseminating information on animal diseases, improving animal health globally and thus build a safer, healthier and more sustainable world. WAHIS (https://wahis.woah.org/#/home) is the global animal health reference database of the World Organisation for Animal Health (WOAH). WAHIS data reflects the validated information since 2005 reported by the Veterinary Services from Member and non-Member Countries and Territories on terrestrial and aquatic Listed diseases in domestic animals and wildlife, as well as on emerging diseases and zoonoses."}]
["World Organisation for Animal Health (WOAH) Webpage","Database","World Organisation for Animal Health (WOAH)","https://www.woah.org/en/home/","Animal Health & Welfare",null,"Global","Geographical application5","North America",null,{"$f":"VLOOKUP(DescriptionTable[[#This Row],[Name]],descriptions[],2,FALSE)","v":"An intergovernmental organisation, focusing on transparently disseminating information on animal diseases, improving animal health globally and thus build a safer, healthier and more sustainable world. WAHIS (https://wahis.woah.org/#/home) is the global animal health reference database of the World Organisation for Animal Health (WOAH). WAHIS data reflects the validated information since 2005 reported by the Veterinary Services from Member and non-Member Countries and Territories on terrestrial and aquatic Listed diseases in domestic animals and wildlife, as well as on emerging diseases and zoonoses."}]
["Animal Welfare Legislation Database (AWLD)","Database","Global Animal Law (GAL)","https://www.globalanimallaw.org/index.html ","Animal Health & Welfare",null,"Global","Geographical application2","Africa",null,{"$f":"VLOOKUP(DescriptionTable[[#This Row],[Name]],descriptions[],2,FALSE)","v":"Focused on Global Animal Law. Provide key expertise and legal guidance to improve the protection of all animals worldwide. Lists down the sources of information (i.e. legislations related to animal welfare) categorized into national, European, International and Universal categories."}]
["Animal Welfare Legislation Database (AWLD)","Database","Global Animal Law (GAL)","https://www.globalanimallaw.org/index.html ","Animal Health & Welfare",null,"Global","Geographical application3","Latin America",null,{"$f":"VLOOKUP(DescriptionTable[[#This Row],[Name]],descriptions[],2,FALSE)","v":"Focused on Global Animal Law. Provide key expertise and legal guidance to improve the protection of all animals worldwide. Lists down the sources of information (i.e. legislations related to animal welfare) categorized into national, European, International and Universal categories."}]
["Animal Welfare Legislation Database (AWLD)","Database","Global Animal Law (GAL)","https://www.globalanimallaw.org/index.html ","Animal Health & Welfare",null,"Global","Geographical application4","Asia Pacific ",null,{"$f":"VLOOKUP(DescriptionTable[[#This Row],[Name]],descriptions[],2,FALSE)","v":"Focused on Global Animal Law. Provide key expertise and legal guidance to improve the protection of all animals worldwide. Lists down the sources of information (i.e. legislations related to animal welfare) categorized into national, European, International and Universal categories."}]
["Animal Welfare Legislation Database (AWLD)","Database","Global Animal Law (GAL)","https://www.globalanimallaw.org/index.html ","Animal Health & Welfare",null,"Global","Geographical application42","Europe",null,{"$f":"VLOOKUP(DescriptionTable[[#This Row],[Name]],descriptions[],2,FALSE)","v":"Focused on Global Animal Law. Provide key expertise and legal guidance to improve the protection of all animals worldwide. Lists down the sources of information (i.e. legislations related to animal welfare) categorized into national, European, International and Universal categories."}]
["Animal Welfare Legislation Database (AWLD)","Database","Global Animal Law (GAL)","https://www.globalanimallaw.org/index.html ","Animal Health & Welfare",null,"Global","Geographical application5","North America",null,{"$f":"VLOOKUP(DescriptionTable[[#This Row],[Name]],descriptions[],2,FALSE)","v":"Focused on Global Animal Law. Provide key expertise and legal guidance to improve the protection of all animals worldwide. Lists down the sources of information (i.e. legislations related to animal welfare) categorized into national, European, International and Universal categories."}]
["Conclusions of the meetings of the EU Commission expert groups supporting the implementation of EUDR","Various","n/a","n/a","Overarching Sources",null,"Country-Specific","Geographical application2","Africa"]
["Conclusions of the meetings of the EU Commission expert groups supporting the implementation of EUDR","Various","n/a","n/a","Overarching Sources",null,"Country-Specific","Geographical application3","Latin America"]
["Conclusions of the meetings of the EU Commission expert groups supporting the implementation of EUDR","Various","n/a","n/a","Overarching Sources",null,"Country-Specific","Geographical application4","Asia Pacific "]
["Conclusions of the meetings of the EU Commission expert groups supporting the implementation of EUDR","Various","n/a","n/a","Overarching Sources",null,"Country-Specific","Geographical application42","Europe"]
["Conclusions of the meetings of the EU Commission expert groups supporting the implementation of EUDR","Various","n/a","n/a","Overarching Sources",null,"Country-Specific","Geographical application5","North America"]
["Substantiated concerns submitted under EUDR Article 31, and information on the history of non-compliance of operators or traders with the EUDR","Various","n/a","n/a","Overarching Sources",null,"Country-Specific","Geographical application2","Africa"]
["Substantiated concerns submitted under EUDR Article 31, and information on the history of non-compliance of operators or traders with the EUDR","Various","n/a","n/a","Overarching Sources",null,"Country-Specific","Geographical application3","Latin America"]
["Substantiated concerns submitted under EUDR Article 31, and information on the history of non-compliance of operators or traders with the EUDR","Various","n/a","n/a","Overarching Sources",null,"Country-Specific","Geographical application4","Asia Pacific "]
["Substantiated concerns submitted under EUDR Article 31, and information on the history of non-compliance of operators or traders with the EUDR","Various","n/a","n/a","Overarching Sources",null,"Country-Specific","Geographical application42","Europe"]
["Substantiated concerns submitted under EUDR Article 31, and information on the history of non-compliance of operators or traders with the EUDR","Various","n/a","n/a","Overarching Sources",null,"Country-Specific","Geographical application5","North America"]
["Government reports and assessments of compliance with related laws and regulations","Various","n/a","n/a","Overall Governance",null,"Country-Specific","Geographical application2","Africa"]
["Government reports and assessments of compliance with related laws and regulations","Various","n/a","n/a","Overall Governance",null,"Country-Specific","Geographical application3","Latin America"]
["Government reports and assessments of compliance with related laws and regulations","Various","n/a","n/a","Overall Governance",null,"Country-Specific","Geographical application4","Asia Pacific "]
["Government reports and assessments of compliance with related laws and regulations","Various","n/a","n/a","Overall Governance",null,"Country-Specific","Geographical application42","Europe"]
["Government reports and assessments of compliance with related laws and regulations","Various","n/a","n/a","Overall Governance",null,"Country-Specific","Geographical application5","North America"]
["Independent reports and assessments of compliance with related laws and regulations","Various","n/a","n/a","Overall Governance",null,"Country-Specific","Geographical application2","Africa"]
["Independent reports and assessments of compliance with related laws and regulations","Various","n/a","n/a","Overall Governance",null,"Country-Specific","Geographical application3","Latin America"]
["Independent reports and assessments of compliance with related laws and regulations","Various","n/a","n/a","Overall Governance",null,"Country-Specific","Geographical application4","Asia Pacific "]
["Independent reports and assessments of compliance with related laws and regulations","Various","n/a","n/a","Overall Governance",null,"Country-Specific","Geographical application42","Europe"]
["Independent reports and assessments of compliance with related laws and regulations","Various","n/a","n/a","Overall Governance",null,"Country-Specific","Geographical application5","North America"]
["Justice Tribunal Records","Various","n/a","n/a","Overall Governance",null,"Country-Specific","Geographical application2","Africa"]
["Justice Tribunal Records","Various","n/a","n/a","Overall Governance",null,"Country-Specific","Geographical application3","Latin America"]
["Justice Tribunal Records","Various","n/a","n/a","Overall Governance",null,"Country-Specific","Geographical application4","Asia Pacific "]
["Justice Tribunal Records","Various","n/a","n/a","Overall Governance",null,"Country-Specific","Geographical application42","Europe"]
["Justice Tribunal Records","Various","n/a","n/a","Overall Governance",null,"Country-Specific","Geographical application5","North America"]
["Public summaries of other 3rd party forest legality certification/verification systems","Various","n/a","n/a","Overall Governance",null,"Country-Specific","Geographical application2","Africa"]
["Public summaries of other 3rd party forest legality certification/verification systems","Various","n/a","n/a","Overall Governance",null,"Country-Specific","Geographical application3","Latin America"]
["Public summaries of other 3rd party forest legality certification/verification systems","Various","n/a","n/a","Overall Governance",null,"Country-Specific","Geographical application4","Asia Pacific "]
["Public summaries of other 3rd party forest legality certification/verification systems","Various","n/a","n/a","Overall Governance",null,"Country-Specific","Geographical application42","Europe"]
["Public summaries of other 3rd party forest legality certification/verification systems","Various","n/a","n/a","Overall Governance",null,"Country-Specific","Geographical application5","North America"]
["Available outcomes of consultation with local experts and stakeholders","Various","n/a","n/a","High Conservation Values (HCVs)",null,"Country-Specific","Geographical application2","Africa"]
["Available outcomes of consultation with local experts and stakeholders","Various","n/a","n/a","High Conservation Values (HCVs)",null,"Country-Specific","Geographical application3","Latin America"]
["Available outcomes of consultation with local experts and stakeholders","Various","n/a","n/a","High Conservation Values (HCVs)",null,"Country-Specific","Geographical application4","Asia Pacific "]
["Available outcomes of consultation with local experts and stakeholders","Various","n/a","n/a","High Conservation Values (HCVs)",null,"Country-Specific","Geographical application42","Europe"]
["Available outcomes of consultation with local experts and stakeholders","Various","n/a","n/a","High Conservation Values (HCVs)",null,"Country-Specific","Geographical application5","North America"]
["Available outcomes of consultations on social values (HCV 5 and/or 6) with: Indigenous Peoples, traditional peoples and local communities and/or relevant authorities liaising with indigenous peoples and community rights issues; community groups dependent upon the forest for basic needs as identified, anthropologists or social scientists with local forest expertise, cultural heritage list/authorities, etc.. ","Various","n/a","n/a","High Conservation Values (HCVs)",null,"Country-Specific","Geographical application2","Africa"]
["Available outcomes of consultations on social values (HCV 5 and/or 6) with: Indigenous Peoples, traditional peoples and local communities and/or relevant authorities liaising with indigenous peoples and community rights issues; community groups dependent upon the forest for basic needs as identified, anthropologists or social scientists with local forest expertise, cultural heritage list/authorities, etc.. ","Various","n/a","n/a","High Conservation Values (HCVs)",null,"Country-Specific","Geographical application3","Latin America"]
["Available outcomes of consultations on social values (HCV 5 and/or 6) with: Indigenous Peoples, traditional peoples and local communities and/or relevant authorities liaising with indigenous peoples and community rights issues; community groups dependent upon the forest for basic needs as identified, anthropologists or social scientists with local forest expertise, cultural heritage list/authorities, etc.. ","Various","n/a","n/a","High Conservation Values (HCVs)",null,"Country-Specific","Geographical application4","Asia Pacific "]
["Available outcomes of consultations on social values (HCV 5 and/or 6) with: Indigenous Peoples, traditional peoples and local communities and/or relevant authorities liaising with indigenous peoples and community rights issues; community groups dependent upon the forest for basic needs as identified, anthropologists or social scientists with local forest expertise, cultural heritage list/authorities, etc.. ","Various","n/a","n/a","High Conservation Values (HCVs)",null,"Country-Specific","Geographical application42","Europe"]
["Available outcomes of consultations on social values (HCV 5 and/or 6) with: Indigenous Peoples, traditional peoples and local communities and/or relevant authorities liaising with indigenous peoples and community rights issues; community groups dependent upon the forest for basic needs as identified, anthropologists or social scientists with local forest expertise, cultural heritage list/authorities, etc.. ","Various","n/a","n/a","High Conservation Values (HCVs)",null,"Country-Specific","Geographical application5","North America"]
["Critical habitat mapping if supported by experts and stakeholders","Various","n/a","n/a","High Conservation Values (HCVs)",null,"Country-Specific","Geographical application2","Africa"]
["Critical habitat mapping if supported by experts and stakeholders","Various","n/a","n/a","High Conservation Values (HCVs)",null,"Country-Specific","Geographical application3","Latin America"]
["Critical habitat mapping if supported by experts and stakeholders","Various","n/a","n/a","High Conservation Values (HCVs)",null,"Country-Specific","Geographical application4","Asia Pacific "]
["Critical habitat mapping if supported by experts and stakeholders","Various","n/a","n/a","High Conservation Values (HCVs)",null,"Country-Specific","Geographical application42","Europe"]
["Critical habitat mapping if supported by experts and stakeholders","Various","n/a","n/a","High Conservation Values (HCVs)",null,"Country-Specific","Geographical application5","North America"]
["Data and consultation outcomes in local or regional water management districts","Various","n/a","n/a","High Conservation Values (HCVs)",null,"Country-Specific","Geographical application2","Africa"]
["Data and consultation outcomes in local or regional water management districts","Various","n/a","n/a","High Conservation Values (HCVs)",null,"Country-Specific","Geographical application3","Latin America"]
["Data and consultation outcomes in local or regional water management districts","Various","n/a","n/a","High Conservation Values (HCVs)",null,"Country-Specific","Geographical application4","Asia Pacific "]
["Data and consultation outcomes in local or regional water management districts","Various","n/a","n/a","High Conservation Values (HCVs)",null,"Country-Specific","Geographical application42","Europe"]
["Data and consultation outcomes in local or regional water management districts","Various","n/a","n/a","High Conservation Values (HCVs)",null,"Country-Specific","Geographical application5","North America"]
["Existing divisions into spatial units used for reporting purposes( e.g., bioregions)","Various","n/a","n/a","High Conservation Values (HCVs)",null,"Country-Specific","Geographical application2","Africa"]
["Existing divisions into spatial units used for reporting purposes( e.g., bioregions)","Various","n/a","n/a","High Conservation Values (HCVs)",null,"Country-Specific","Geographical application3","Latin America"]
["Existing divisions into spatial units used for reporting purposes( e.g., bioregions)","Various","n/a","n/a","High Conservation Values (HCVs)",null,"Country-Specific","Geographical application4","Asia Pacific "]
["Existing divisions into spatial units used for reporting purposes( e.g., bioregions)","Various","n/a","n/a","High Conservation Values (HCVs)",null,"Country-Specific","Geographical application42","Europe"]
["Existing divisions into spatial units used for reporting purposes( e.g., bioregions)","Various","n/a","n/a","High Conservation Values (HCVs)",null,"Country-Specific","Geographical application5","North America"]
["Intact Forest Landscapes (http://www.intactforests.org/world.map.html)","Various","n/a","n/a","High Conservation Values (HCVs)",null,"Country-Specific","Geographical application2","Africa"]
["Intact Forest Landscapes (http://www.intactforests.org/world.map.html)","Various","n/a","n/a","High Conservation Values (HCVs)",null,"Country-Specific","Geographical application3","Latin America"]
["Intact Forest Landscapes (http://www.intactforests.org/world.map.html)","Various","n/a","n/a","High Conservation Values (HCVs)",null,"Country-Specific","Geographical application4","Asia Pacific "]
["Intact Forest Landscapes (http://www.intactforests.org/world.map.html)","Various","n/a","n/a","High Conservation Values (HCVs)",null,"Country-Specific","Geographical application42","Europe"]
["Intact Forest Landscapes (http://www.intactforests.org/world.map.html)","Various","n/a","n/a","High Conservation Values (HCVs)",null,"Country-Specific","Geographical application5","North America"]
["Hydrological/edaphic data (e.g., gathered from federal agencies or research institutions)","Various","n/a","n/a","High Conservation Values (HCVs)",null,"Country-Specific","Geographical application2","Africa"]
["Hydrological/edaphic data (e.g., gathered from federal agencies or research institutions)","Various","n/a","n/a","High Conservation Values (HCVs)",null,"Country-Specific","Geographical application3","Latin America"]
["Hydrological/edaphic data (e.g., gathered from federal agencies or research institutions)","Various","n/a","n/a","High Conservation Values (HCVs)",null,"Country-Specific","Geographical application4","Asia Pacific "]
["Hydrological/edaphic data (e.g., gathered from federal agencies or research institutions)","Various","n/a","n/a","High Conservation Values (HCVs)",null,"Country-Specific","Geographical application42","Europe"]
["Hydrological/edaphic data (e.g., gathered from federal agencies or research institutions)","Various","n/a","n/a","High Conservation Values (HCVs)",null,"Country-Specific","Geographical application5","North America"]
["Independent scientific assessments of HCVs and their protection measures, specific to the area under assessment","Various","n/a","n/a","High Conservation Values (HCVs)",null,"Country-Specific","Geographical application2","Africa"]
["Independent scientific assessments of HCVs and their protection measures, specific to the area under assessment","Various","n/a","n/a","High Conservation Values (HCVs)",null,"Country-Specific","Geographical application3","Latin America"]
["Independent scientific assessments of HCVs and their protection measures, specific to the area under assessment","Various","n/a","n/a","High Conservation Values (HCVs)",null,"Country-Specific","Geographical application4","Asia Pacific "]
["Independent scientific assessments of HCVs and their protection measures, specific to the area under assessment","Various","n/a","n/a","High Conservation Values (HCVs)",null,"Country-Specific","Geographical application42","Europe"]
["Independent scientific assessments of HCVs and their protection measures, specific to the area under assessment","Various","n/a","n/a","High Conservation Values (HCVs)",null,"Country-Specific","Geographical application5","North America"]
["Known and available inventory data relevant for HCVs","Various","n/a","n/a","High Conservation Values (HCVs)",null,"Country-Specific","Geographical application2","Africa"]
["Known and available inventory data relevant for HCVs","Various","n/a","n/a","High Conservation Values (HCVs)",null,"Country-Specific","Geographical application3","Latin America"]
["Known and available inventory data relevant for HCVs","Various","n/a","n/a","High Conservation Values (HCVs)",null,"Country-Specific","Geographical application4","Asia Pacific "]
["Known and available inventory data relevant for HCVs","Various","n/a","n/a","High Conservation Values (HCVs)",null,"Country-Specific","Geographical application42","Europe"]
["Known and available inventory data relevant for HCVs","Various","n/a","n/a","High Conservation Values (HCVs)",null,"Country-Specific","Geographical application5","North America"]
["Lists of threatened species (available at least for countries that are signatories to the Convention on Biological Diversity)","Various","n/a","n/a","High Conservation Values (HCVs)",null,"Country-Specific","Geographical application2","Africa"]
["Lists of threatened species (available at least for countries that are signatories to the Convention on Biological Diversity)","Various","n/a","n/a","High Conservation Values (HCVs)",null,"Country-Specific","Geographical application3","Latin America"]
["Lists of threatened species (available at least for countries that are signatories to the Convention on Biological Diversity)","Various","n/a","n/a","High Conservation Values (HCVs)",null,"Country-Specific","Geographical application4","Asia Pacific "]
["Lists of threatened species (available at least for countries that are signatories to the Convention on Biological Diversity)","Various","n/a","n/a","High Conservation Values (HCVs)",null,"Country-Specific","Geographical application42","Europe"]
["Lists of threatened species (available at least for countries that are signatories to the Convention on Biological Diversity)","Various","n/a","n/a","High Conservation Values (HCVs)",null,"Country-Specific","Geographical application5","North America"]
["Maps, databases, and other sources of information on the types of HCVs","Various","n/a","n/a","High Conservation Values (HCVs)",null,"Country-Specific","Geographical application2","Africa"]
["Maps, databases, and other sources of information on the types of HCVs","Various","n/a","n/a","High Conservation Values (HCVs)",null,"Country-Specific","Geographical application3","Latin America"]
["Maps, databases, and other sources of information on the types of HCVs","Various","n/a","n/a","High Conservation Values (HCVs)",null,"Country-Specific","Geographical application4","Asia Pacific "]
["Maps, databases, and other sources of information on the types of HCVs","Various","n/a","n/a","High Conservation Values (HCVs)",null,"Country-Specific","Geographical application42","Europe"]
["Maps, databases, and other sources of information on the types of HCVs","Various","n/a","n/a","High Conservation Values (HCVs)",null,"Country-Specific","Geographical application5","North America"]
["Maps of road systems (e.g., GIS assessments of road-less forest areas)","Various","n/a","n/a","High Conservation Values (HCVs)",null,"Country-Specific","Geographical application2","Africa"]
["Maps of road systems (e.g., GIS assessments of road-less forest areas)","Various","n/a","n/a","High Conservation Values (HCVs)",null,"Country-Specific","Geographical application3","Latin America"]
["Maps of road systems (e.g., GIS assessments of road-less forest areas)","Various","n/a","n/a","High Conservation Values (HCVs)",null,"Country-Specific","Geographical application4","Asia Pacific "]
["Maps of road systems (e.g., GIS assessments of road-less forest areas)","Various","n/a","n/a","High Conservation Values (HCVs)",null,"Country-Specific","Geographical application42","Europe"]
["Maps of road systems (e.g., GIS assessments of road-less forest areas)","Various","n/a","n/a","High Conservation Values (HCVs)",null,"Country-Specific","Geographical application5","North America"]
["National or regional datasets or maps assessing importance of watersheds for drinking water supply","Various","n/a","n/a","High Conservation Values (HCVs)",null,"Country-Specific","Geographical application2","Africa"]
["National or regional datasets or maps assessing importance of watersheds for drinking water supply","Various","n/a","n/a","High Conservation Values (HCVs)",null,"Country-Specific","Geographical application3","Latin America"]
["National or regional datasets or maps assessing importance of watersheds for drinking water supply","Various","n/a","n/a","High Conservation Values (HCVs)",null,"Country-Specific","Geographical application4","Asia Pacific "]
["National or regional datasets or maps assessing importance of watersheds for drinking water supply","Various","n/a","n/a","High Conservation Values (HCVs)",null,"Country-Specific","Geographical application42","Europe"]
["National or regional datasets or maps assessing importance of watersheds for drinking water supply","Various","n/a","n/a","High Conservation Values (HCVs)",null,"Country-Specific","Geographical application5","North America"]
["National Wilderness Assessments or inventories","Various","n/a","n/a","High Conservation Values (HCVs)",null,"Country-Specific","Geographical application2","Africa"]
["National Wilderness Assessments or inventories","Various","n/a","n/a","High Conservation Values (HCVs)",null,"Country-Specific","Geographical application3","Latin America"]
["National Wilderness Assessments or inventories","Various","n/a","n/a","High Conservation Values (HCVs)",null,"Country-Specific","Geographical application4","Asia Pacific "]
["National Wilderness Assessments or inventories","Various","n/a","n/a","High Conservation Values (HCVs)",null,"Country-Specific","Geographical application42","Europe"]
["National Wilderness Assessments or inventories","Various","n/a","n/a","High Conservation Values (HCVs)",null,"Country-Specific","Geographical application5","North America"]
["Relevant ecological assessments, species population viability analysis, Environmental and Social Impact Assessments","Various","n/a","n/a","High Conservation Values (HCVs)",null,"Country-Specific","Geographical application2","Africa"]
["Relevant ecological assessments, species population viability analysis, Environmental and Social Impact Assessments","Various","n/a","n/a","High Conservation Values (HCVs)",null,"Country-Specific","Geographical application3","Latin America"]
["Relevant ecological assessments, species population viability analysis, Environmental and Social Impact Assessments","Various","n/a","n/a","High Conservation Values (HCVs)",null,"Country-Specific","Geographical application4","Asia Pacific "]
["Relevant ecological assessments, species population viability analysis, Environmental and Social Impact Assessments","Various","n/a","n/a","High Conservation Values (HCVs)",null,"Country-Specific","Geographical application42","Europe"]
["Relevant ecological assessments, species population viability analysis, Environmental and Social Impact Assessments","Various","n/a","n/a","High Conservation Values (HCVs)",null,"Country-Specific","Geographical application5","North America"]
["Review of multilateral conservation agreements (international treaties and/or protocols, etc.) on the migratory pathways of the global migratory species","Various","n/a","n/a","High Conservation Values (HCVs)",null,"Country-Specific","Geographical application2","Africa"]
["Review of multilateral conservation agreements (international treaties and/or protocols, etc.) on the migratory pathways of the global migratory species","Various","n/a","n/a","High Conservation Values (HCVs)",null,"Country-Specific","Geographical application3","Latin America"]
["Review of multilateral conservation agreements (international treaties and/or protocols, etc.) on the migratory pathways of the global migratory species","Various","n/a","n/a","High Conservation Values (HCVs)",null,"Country-Specific","Geographical application4","Asia Pacific "]
["Review of multilateral conservation agreements (international treaties and/or protocols, etc.) on the migratory pathways of the global migratory species","Various","n/a","n/a","High Conservation Values (HCVs)",null,"Country-Specific","Geographical application42","Europe"]
["Review of multilateral conservation agreements (international treaties and/or protocols, etc.) on the migratory pathways of the global migratory species","Various","n/a","n/a","High Conservation Values (HCVs)",null,"Country-Specific","Geographical application5","North America"]
["Stakeholder and expert consultation outcomes regarding the presence of HCVs in the area under assessment (related and not related to the NRA process);","Various","n/a","n/a","High Conservation Values (HCVs)",null,"Country-Specific","Geographical application2","Africa"]
["Stakeholder and expert consultation outcomes regarding the presence of HCVs in the area under assessment (related and not related to the NRA process);","Various","n/a","n/a","High Conservation Values (HCVs)",null,"Country-Specific","Geographical application3","Latin America"]
["Stakeholder and expert consultation outcomes regarding the presence of HCVs in the area under assessment (related and not related to the NRA process);","Various","n/a","n/a","High Conservation Values (HCVs)",null,"Country-Specific","Geographical application4","Asia Pacific "]
["Stakeholder and expert consultation outcomes regarding the presence of HCVs in the area under assessment (related and not related to the NRA process);","Various","n/a","n/a","High Conservation Values (HCVs)",null,"Country-Specific","Geographical application42","Europe"]
["Stakeholder and expert consultation outcomes regarding the presence of HCVs in the area under assessment (related and not related to the NRA process);","Various","n/a","n/a","High Conservation Values (HCVs)",null,"Country-Specific","Geographical application5","North America"]
["Strategic Forest Management Planning regulations and implementation reports","Various","n/a","n/a","High Conservation Values (HCVs)",null,"Country-Specific","Geographical application2","Africa"]
["Strategic Forest Management Planning regulations and implementation reports","Various","n/a","n/a","High Conservation Values (HCVs)",null,"Country-Specific","Geographical application3","Latin America"]
["Strategic Forest Management Planning regulations and implementation reports","Various","n/a","n/a","High Conservation Values (HCVs)",null,"Country-Specific","Geographical application4","Asia Pacific "]
["Strategic Forest Management Planning regulations and implementation reports","Various","n/a","n/a","High Conservation Values (HCVs)",null,"Country-Specific","Geographical application42","Europe"]
["Strategic Forest Management Planning regulations and implementation reports","Various","n/a","n/a","High Conservation Values (HCVs)",null,"Country-Specific","Geographical application5","North America"]
["Data on endemism (http://simple.wikipedia.org/wiki/Endemism)","Various","n/a","n/a","High Conservation Values (HCVs)",null,"Country-Specific","Geographical application2","Africa"]
["Data on endemism (http://simple.wikipedia.org/wiki/Endemism)","Various","n/a","n/a","High Conservation Values (HCVs)",null,"Country-Specific","Geographical application3","Latin America"]
["Data on endemism (http://simple.wikipedia.org/wiki/Endemism)","Various","n/a","n/a","High Conservation Values (HCVs)",null,"Country-Specific","Geographical application4","Asia Pacific "]
["Data on endemism (http://simple.wikipedia.org/wiki/Endemism)","Various","n/a","n/a","High Conservation Values (HCVs)",null,"Country-Specific","Geographical application42","Europe"]
["Data on endemism (http://simple.wikipedia.org/wiki/Endemism)","Various","n/a","n/a","High Conservation Values (HCVs)",null,"Country-Specific","Geographical application5","North America"]
["Threatened species recovery plans/implementation reports","Various","n/a","n/a","High Conservation Values (HCVs)",null,"Country-Specific","Geographical application2","Africa"]
["Threatened species recovery plans/implementation reports","Various","n/a","n/a","High Conservation Values (HCVs)",null,"Country-Specific","Geographical application3","Latin America"]
["Threatened species recovery plans/implementation reports","Various","n/a","n/a","High Conservation Values (HCVs)",null,"Country-Specific","Geographical application4","Asia Pacific "]
["Threatened species recovery plans/implementation reports","Various","n/a","n/a","High Conservation Values (HCVs)",null,"Country-Specific","Geographical application42","Europe"]
["Threatened species recovery plans/implementation reports","Various","n/a","n/a","High Conservation Values (HCVs)",null,"Country-Specific","Geographical application5","North America"]
["Country reports made at bioregional/eco-regional scale (e.g: https://www.awe.gov.au/agriculture-land/land/nrs/science/ibra)","Various","n/a","n/a","High Conservation Values (HCVs)",null,"Country-Specific","Geographical application2","Africa"]
["Country reports made at bioregional/eco-regional scale (e.g: https://www.awe.gov.au/agriculture-land/land/nrs/science/ibra)","Various","n/a","n/a","High Conservation Values (HCVs)",null,"Country-Specific","Geographical application3","Latin America"]
["Country reports made at bioregional/eco-regional scale (e.g: https://www.awe.gov.au/agriculture-land/land/nrs/science/ibra)","Various","n/a","n/a","High Conservation Values (HCVs)",null,"Country-Specific","Geographical application4","Asia Pacific "]
["Country reports made at bioregional/eco-regional scale (e.g: https://www.awe.gov.au/agriculture-land/land/nrs/science/ibra)","Various","n/a","n/a","High Conservation Values (HCVs)",null,"Country-Specific","Geographical application42","Europe"]
["Country reports made at bioregional/eco-regional scale (e.g: https://www.awe.gov.au/agriculture-land/land/nrs/science/ibra)","Various","n/a","n/a","High Conservation Values (HCVs)",null,"Country-Specific","Geographical application5","North America"]
["Remote Sensing and other aerial data showing forest land-cover (e.g: Google Earth: https://www.google.de/intl/de/earth/index.html)","Various","n/a","n/a","High Conservation Values (HCVs)",null,"Country-Specific","Geographical application2","Africa"]
["Remote Sensing and other aerial data showing forest land-cover (e.g: Google Earth: https://www.google.de/intl/de/earth/index.html)","Various","n/a","n/a","High Conservation Values (HCVs)",null,"Country-Specific","Geographical application3","Latin America"]
["Remote Sensing and other aerial data showing forest land-cover (e.g: Google Earth: https://www.google.de/intl/de/earth/index.html)","Various","n/a","n/a","High Conservation Values (HCVs)",null,"Country-Specific","Geographical application4","Asia Pacific "]
["Remote Sensing and other aerial data showing forest land-cover (e.g: Google Earth: https://www.google.de/intl/de/earth/index.html)","Various","n/a","n/a","High Conservation Values (HCVs)",null,"Country-Specific","Geographical application42","Europe"]
["Remote Sensing and other aerial data showing forest land-cover (e.g: Google Earth: https://www.google.de/intl/de/earth/index.html)","Various","n/a","n/a","High Conservation Values (HCVs)",null,"Country-Specific","Geographical application5","North America"]
["Analysis of economic incentives for conversion vs. land cover changes","Various","n/a","n/a","Deforestation and Forest Degradation",null,"Country-Specific","Geographical application2","Africa"]
["Analysis of economic incentives for conversion vs. land cover changes","Various","n/a","n/a","Deforestation and Forest Degradation",null,"Country-Specific","Geographical application3","Latin America"]
["Analysis of economic incentives for conversion vs. land cover changes","Various","n/a","n/a","Deforestation and Forest Degradation",null,"Country-Specific","Geographical application4","Asia Pacific "]
["Analysis of economic incentives for conversion vs. land cover changes","Various","n/a","n/a","Deforestation and Forest Degradation",null,"Country-Specific","Geographical application42","Europe"]
["Analysis of economic incentives for conversion vs. land cover changes","Various","n/a","n/a","Deforestation and Forest Degradation",null,"Country-Specific","Geographical application5","North America"]
["Data on land use change and observed trends (including analysis of eco-regional trends)","Various","n/a","n/a","Deforestation and Forest Degradation",null,"Country-Specific","Geographical application2","Africa"]
["Data on land use change and observed trends (including analysis of eco-regional trends)","Various","n/a","n/a","Deforestation and Forest Degradation",null,"Country-Specific","Geographical application3","Latin America"]
["Data on land use change and observed trends (including analysis of eco-regional trends)","Various","n/a","n/a","Deforestation and Forest Degradation",null,"Country-Specific","Geographical application4","Asia Pacific "]
["Data on land use change and observed trends (including analysis of eco-regional trends)","Various","n/a","n/a","Deforestation and Forest Degradation",null,"Country-Specific","Geographical application42","Europe"]
["Data on land use change and observed trends (including analysis of eco-regional trends)","Various","n/a","n/a","Deforestation and Forest Degradation",null,"Country-Specific","Geographical application5","North America"]
["Economic modelling","Various","n/a","n/a","Deforestation and Forest Degradation",null,"Country-Specific","Geographical application2","Africa"]
["Economic modelling","Various","n/a","n/a","Deforestation and Forest Degradation",null,"Country-Specific","Geographical application3","Latin America"]
["Economic modelling","Various","n/a","n/a","Deforestation and Forest Degradation",null,"Country-Specific","Geographical application4","Asia Pacific "]
["Economic modelling","Various","n/a","n/a","Deforestation and Forest Degradation",null,"Country-Specific","Geographical application42","Europe"]
["Economic modelling","Various","n/a","n/a","Deforestation and Forest Degradation",null,"Country-Specific","Geographical application5","North America"]
["Information on directly/indirectly paid incentives that favor conversion","Various","n/a","n/a","Deforestation and Forest Degradation",null,"Country-Specific","Geographical application2","Africa"]
["Information on directly/indirectly paid incentives that favor conversion","Various","n/a","n/a","Deforestation and Forest Degradation",null,"Country-Specific","Geographical application3","Latin America"]
["Information on directly/indirectly paid incentives that favor conversion","Various","n/a","n/a","Deforestation and Forest Degradation",null,"Country-Specific","Geographical application4","Asia Pacific "]
["Information on directly/indirectly paid incentives that favor conversion","Various","n/a","n/a","Deforestation and Forest Degradation",null,"Country-Specific","Geographical application42","Europe"]
["Information on directly/indirectly paid incentives that favor conversion","Various","n/a","n/a","Deforestation and Forest Degradation",null,"Country-Specific","Geographical application5","North America"]
["Market conditions for conversion in respect of alternative land use (e.g., palm oil, livestock, etc.)","Various","n/a","n/a","Deforestation and Forest Degradation",null,"Country-Specific","Geographical application2","Africa"]
["Market conditions for conversion in respect of alternative land use (e.g., palm oil, livestock, etc.)","Various","n/a","n/a","Deforestation and Forest Degradation",null,"Country-Specific","Geographical application3","Latin America"]
["Market conditions for conversion in respect of alternative land use (e.g., palm oil, livestock, etc.)","Various","n/a","n/a","Deforestation and Forest Degradation",null,"Country-Specific","Geographical application4","Asia Pacific "]
["Market conditions for conversion in respect of alternative land use (e.g., palm oil, livestock, etc.)","Various","n/a","n/a","Deforestation and Forest Degradation",null,"Country-Specific","Geographical application42","Europe"]
["Market conditions for conversion in respect of alternative land use (e.g., palm oil, livestock, etc.)","Various","n/a","n/a","Deforestation and Forest Degradation",null,"Country-Specific","Geographical application5","North America"]
["Related or independent (binding) public policy that prohibits conversion","Various","n/a","n/a","Deforestation and Forest Degradation",null,"Country-Specific","Geographical application2","Africa"]
["Related or independent (binding) public policy that prohibits conversion","Various","n/a","n/a","Deforestation and Forest Degradation",null,"Country-Specific","Geographical application3","Latin America"]
["Related or independent (binding) public policy that prohibits conversion","Various","n/a","n/a","Deforestation and Forest Degradation",null,"Country-Specific","Geographical application4","Asia Pacific "]
["Related or independent (binding) public policy that prohibits conversion","Various","n/a","n/a","Deforestation and Forest Degradation",null,"Country-Specific","Geographical application42","Europe"]
["Related or independent (binding) public policy that prohibits conversion","Various","n/a","n/a","Deforestation and Forest Degradation",null,"Country-Specific","Geographical application5","North America"]
["Remote sensing and other aerial geographic data","Various","n/a","n/a","Deforestation and Forest Degradation",null,"Country-Specific","Geographical application2","Africa"]
["Remote sensing and other aerial geographic data","Various","n/a","n/a","Deforestation and Forest Degradation",null,"Country-Specific","Geographical application3","Latin America"]
["Remote sensing and other aerial geographic data","Various","n/a","n/a","Deforestation and Forest Degradation",null,"Country-Specific","Geographical application4","Asia Pacific "]
["Remote sensing and other aerial geographic data","Various","n/a","n/a","Deforestation and Forest Degradation",null,"Country-Specific","Geographical application42","Europe"]
["Remote sensing and other aerial geographic data","Various","n/a","n/a","Deforestation and Forest Degradation",null,"Country-Specific","Geographical application5","North America"]
["Data provided by National indigenous peoples or traditional peoples’ organizations; governmental institutions in charge of indigenous peoples’ affairs; NGOs; relevant census data","Various","n/a","n/a","Indigenous People's and Traditional People's Rights",null,"Country-Specific","Geographical application2","Africa"]
["Data provided by National indigenous peoples or traditional peoples’ organizations; governmental institutions in charge of indigenous peoples’ affairs; NGOs; relevant census data","Various","n/a","n/a","Indigenous People's and Traditional People's Rights",null,"Country-Specific","Geographical application3","Latin America"]
["Data provided by National indigenous peoples or traditional peoples’ organizations; governmental institutions in charge of indigenous peoples’ affairs; NGOs; relevant census data","Various","n/a","n/a","Indigenous People's and Traditional People's Rights",null,"Country-Specific","Geographical application4","Asia Pacific "]
["Data provided by National indigenous peoples or traditional peoples’ organizations; governmental institutions in charge of indigenous peoples’ affairs; NGOs; relevant census data","Various","n/a","n/a","Indigenous People's and Traditional People's Rights",null,"Country-Specific","Geographical application42","Europe"]
["Data provided by National indigenous peoples or traditional peoples’ organizations; governmental institutions in charge of indigenous peoples’ affairs; NGOs; relevant census data","Various","n/a","n/a","Indigenous People's and Traditional People's Rights",null,"Country-Specific","Geographical application5","North America"]
["Data about participation of indigenous or traditional peoples in decision making and refusing to participate (e.g., on the basis of an unfair process, etc.)","Various","n/a","n/a","Indigenous People's and Traditional People's Rights",null,"Country-Specific","Geographical application2","Africa"]
["Data about participation of indigenous or traditional peoples in decision making and refusing to participate (e.g., on the basis of an unfair process, etc.)","Various","n/a","n/a","Indigenous People's and Traditional People's Rights",null,"Country-Specific","Geographical application3","Latin America"]
["Data about participation of indigenous or traditional peoples in decision making and refusing to participate (e.g., on the basis of an unfair process, etc.)","Various","n/a","n/a","Indigenous People's and Traditional People's Rights",null,"Country-Specific","Geographical application4","Asia Pacific "]
["Data about participation of indigenous or traditional peoples in decision making and refusing to participate (e.g., on the basis of an unfair process, etc.)","Various","n/a","n/a","Indigenous People's and Traditional People's Rights",null,"Country-Specific","Geographical application42","Europe"]
["Data about participation of indigenous or traditional peoples in decision making and refusing to participate (e.g., on the basis of an unfair process, etc.)","Various","n/a","n/a","Indigenous People's and Traditional People's Rights",null,"Country-Specific","Geographical application5","North America"]
["NGO documentation of cases of conflict (historic or ongoing) involving indigenous peoples and traditional peoples","Various","n/a","n/a","Indigenous People's and Traditional People's Rights",null,"Country-Specific","Geographical application2","Africa"]
["NGO documentation of cases of conflict (historic or ongoing) involving indigenous peoples and traditional peoples","Various","n/a","n/a","Indigenous People's and Traditional People's Rights",null,"Country-Specific","Geographical application3","Latin America"]
["NGO documentation of cases of conflict (historic or ongoing) involving indigenous peoples and traditional peoples","Various","n/a","n/a","Indigenous People's and Traditional People's Rights",null,"Country-Specific","Geographical application4","Asia Pacific "]
["NGO documentation of cases of conflict (historic or ongoing) involving indigenous peoples and traditional peoples","Various","n/a","n/a","Indigenous People's and Traditional People's Rights",null,"Country-Specific","Geographical application42","Europe"]
["NGO documentation of cases of conflict (historic or ongoing) involving indigenous peoples and traditional peoples","Various","n/a","n/a","Indigenous People's and Traditional People's Rights",null,"Country-Specific","Geographical application5","North America"]
["Data about land use conflicts, and disputes (historical/outstanding grievances and legal disputes)","Various","n/a","n/a","Human Rights protected under International Law",null,"Country-Specific","Geographical application2","Africa"]
["Data about land use conflicts, and disputes (historical/outstanding grievances and legal disputes)","Various","n/a","n/a","Human Rights protected under International Law",null,"Country-Specific","Geographical application3","Latin America"]
["Data about land use conflicts, and disputes (historical/outstanding grievances and legal disputes)","Various","n/a","n/a","Human Rights protected under International Law",null,"Country-Specific","Geographical application4","Asia Pacific "]
["Data about land use conflicts, and disputes (historical/outstanding grievances and legal disputes)","Various","n/a","n/a","Human Rights protected under International Law",null,"Country-Specific","Geographical application42","Europe"]
["Data about land use conflicts, and disputes (historical/outstanding grievances and legal disputes)","Various","n/a","n/a","Human Rights protected under International Law",null,"Country-Specific","Geographical application5","North America"]
["National/regional records of claims on lands, negotiations in progress or concluded, etc","Various","n/a","n/a","Human Rights protected under International Law",null,"Country-Specific","Geographical application2","Africa"]
["National/regional records of claims on lands, negotiations in progress or concluded, etc","Various","n/a","n/a","Human Rights protected under International Law",null,"Country-Specific","Geographical application3","Latin America"]
["National/regional records of claims on lands, negotiations in progress or concluded, etc","Various","n/a","n/a","Human Rights protected under International Law",null,"Country-Specific","Geographical application4","Asia Pacific "]
["National/regional records of claims on lands, negotiations in progress or concluded, etc","Various","n/a","n/a","Human Rights protected under International Law",null,"Country-Specific","Geographical application42","Europe"]
["National/regional records of claims on lands, negotiations in progress or concluded, etc","Various","n/a","n/a","Human Rights protected under International Law",null,"Country-Specific","Geographical application5","North America"]
["National land bureau tenure records, maps, titles and registration","Various","n/a","n/a","Human Rights protected under International Law",null,"Country-Specific","Geographical application2","Africa"]
["National land bureau tenure records, maps, titles and registration","Various","n/a","n/a","Human Rights protected under International Law",null,"Country-Specific","Geographical application3","Latin America"]
["National land bureau tenure records, maps, titles and registration","Various","n/a","n/a","Human Rights protected under International Law",null,"Country-Specific","Geographical application4","Asia Pacific "]
["National land bureau tenure records, maps, titles and registration","Various","n/a","n/a","Human Rights protected under International Law",null,"Country-Specific","Geographical application42","Europe"]
["National land bureau tenure records, maps, titles and registration","Various","n/a","n/a","Human Rights protected under International Law",null,"Country-Specific","Geographical application5","North America"]
["Social Responsibility Contracts (Cahier des Charges) established according to FPIC (Free Prior Informed Consent) principles","Various","n/a","n/a","Human Rights protected under International Law",null,"Country-Specific","Geographical application2","Africa"]
["Social Responsibility Contracts (Cahier des Charges) established according to FPIC (Free Prior Informed Consent) principles","Various","n/a","n/a","Human Rights protected under International Law",null,"Country-Specific","Geographical application3","Latin America"]
["Social Responsibility Contracts (Cahier des Charges) established according to FPIC (Free Prior Informed Consent) principles","Various","n/a","n/a","Human Rights protected under International Law",null,"Country-Specific","Geographical application4","Asia Pacific "]
["Social Responsibility Contracts (Cahier des Charges) established according to FPIC (Free Prior Informed Consent) principles","Various","n/a","n/a","Human Rights protected under International Law",null,"Country-Specific","Geographical application42","Europe"]
["Social Responsibility Contracts (Cahier des Charges) established according to FPIC (Free Prior Informed Consent) principles","Various","n/a","n/a","Human Rights protected under International Law",null,"Country-Specific","Geographical application5","North America"]
["International, national and local trade/labor unions","Various","n/a","n/a","Human Rights protected under International Law",null,"Country-Specific","Geographical application2","Africa"]
["International, national and local trade/labor unions","Various","n/a","n/a","Human Rights protected under International Law",null,"Country-Specific","Geographical application3","Latin America"]
["International, national and local trade/labor unions","Various","n/a","n/a","Human Rights protected under International Law",null,"Country-Specific","Geographical application4","Asia Pacific "]
["International, national and local trade/labor unions","Various","n/a","n/a","Human Rights protected under International Law",null,"Country-Specific","Geographical application42","Europe"]
["International, national and local trade/labor unions","Various","n/a","n/a","Human Rights protected under International Law",null,"Country-Specific","Geographical application5","North America"]

{"sheet":"Country Overview","index":4,"n_rows":14,"n_cols":2,"rows_kept":14,"cut":false,"hidden":false,"merged":[[12,0,12,1],[1,0,1,1],[0,0,0,1],[11,0,11,1],[10,0,10,1],[9,0,9,1],[2,0,2,1]]}
["Country Overview"]
["Describe the country context regarding agriculture and forestry. Elements that may be taken into account include geographical features, land tenure, governance of forestry and agriculture, role of agriculture and foresty on GDP, main agricultural commodities, presence of Indigeneous Peoples, etc. Other topics relevant to the country can also be included.\n"]
["Scope of the risk assessment: Commodity & Geographical Scope"]
["Topic","Description"]
["Geographical scope (country/countries)"]
["Geographical scope (subnational) \n"]
["Commodities Impacted (from EUDR Annex 1/FSC Product Classification [FSC-STD-40-004a])"]
["Indicator Coverage"]
["Specific Indicators (if applicable)"]
["Short Summary\n (approximately 150 words)"]
[]
["Full Description"]
[]
["Key aspect","Description"]

{"sheet":"Supply Chain","index":5,"n_rows":5,"n_cols":2,"rows_kept":5,"cut":false,"hidden":false,"merged":[[0,0,0,1],[1,0,1,1],[2,0,2,1],[3,0,3,1]]}
["Supply chain transparency and traceability"]
["This section is concerned with the structure of the sector in order to understand in greater detail the transparency and traceability of wood products through supply chains. Please provide a long form description (approximately 200-300 words, or more if applicable) describing the general picture of transparency and traceability of supply chain in the country (or countries) listed in the 'Country Overview' tab.\n\nThis description should contain explanations of how the trade and supply chain is typically managed. \nKey questions to consider when assessing risks associated with supply chains are whether:\n• Supply chain mapping is particularly difficult in the country, either due to lack of transparency and/or frequent information gaps in traceability;\n• Cross-border (national, sub-national) trade and transport adds risk that material has been traded illegally. For example, this might include material illegally harvested in one country and imported to the country under assessment, where the legal origin of the material is not verified or evaluated;\n• Entities exist (and are a common in the sector) which frequently inhibit transparency and traceability of the products through supply chains. Examples include some forms of auctions, spot markets, etc.;\n• There is an elevated occurrence of false declarations of origin and/or species;\n• There is an elevated occurrence of falsification of documentation within the sector; and/or.\n• Trade and administrative practices are inhibiting the availability of information on the traceability of products"]
[]
["Key documents for supply chain mapping and verification of entities"]
["Short reference name","Is the document relevant to verify trade links or entities in the supply chain? "]

{"sheet":"Geopolitical Scale","index":6,"n_rows":1,"n_cols":6,"rows_kept":1,"cut":false,"hidden":false,"merged":[]}
["#","Name of the geopolitical scale\nList the geopolitical scales applicable to the country (.e.g each region/department/district/state)","Forest Type","Differences in legislation compared to national level","Other Characteristics/Comments","Geographical data"]

{"sheet":"Source Types","index":7,"n_rows":1,"n_cols":8,"rows_kept":1,"cut":false,"hidden":false,"merged":[]}
["Name of Source type","Description ","Land Classification","Type of Forest","Ownership Type","Management Regime","Related License/Permits","Other Comments"]

{"sheet":"References","index":8,"n_rows":2,"n_cols":11,"rows_kept":2,"cut":false,"hidden":false,"merged":[]}
["Number","Short Name","Authors name / source name","Date (dd/mm/year)","Title in English","Title (in original language)","Link","Other Comments","Type of evidence","Justification of source","Indicator"]
["R1 - \nexample","E.g. Larson (2022)","E.g. Larson, B. ","E.g. 31/04/2022","E.g. How to avoid illegal logging","E.g. Hvordan undgår man illegal hugst","E.g. www.Denwideverden.dk",null,"Report","Provide justification if the source can be considered dubious or debatable. If the source is older than 5 years, justification for relevance shall always be provided.","E.g. 1; 3; 5; 10"]

{"sheet":"Experts","index":9,"n_rows":2,"n_cols":7,"rows_kept":2,"cut":false,"hidden":false,"merged":[]}
["Number","Name","Organisation","Position","Area of expertise","Date of consultation (dd/mm/year)","Notes"]
["E1 - example","Mr. John Smith","e.g. ILO","Policy Manager","Labour Law","2023-10-10","n/a"]

{"sheet":"Legislation","index":10,"n_rows":2,"n_cols":10,"rows_kept":2,"cut":false,"hidden":false,"merged":[]}
["Number","Short reference name","Full title (English)","Full title (orginal language)","Date of signature (dd/mm/year)","Effective date (dd/mm/year)","if no longer valid, since when? (dd/mm/year)","Relevant legal implementing authority","Additional Comments","Link"]
["L1 - example","E.g. Forest law","E.g. Forest law","E.g. Skovloven","E.g. 01/01/2019","E.g. 12/08/2019","E.g. N/A",null,null,"E.g. https://www.retsinformation.dk/eli/lta/2019/315"]

{"sheet":"Assessment of Indicators","index":11,"n_rows":4,"n_cols":14,"rows_kept":4,"cut":false,"hidden":false,"merged":[]}
[]
[]
["Number","Indicator category","Risk indicator","Risk conclusion","Geopolitical scale","Source types","Risk threshold(s)","Short description of risk","Long description issue/risk ","References","Experts","Legislation","Description of legal requirements","Limitations of Sources"]
["1 (Example)","Management activities and environmental protection","14.  Development and maintenance of infrastructure associated with management activities comply with applicable codes and legal requirements for the protection of environmental values.","Non-negligible risk","Province X, Province Y","Custom Source Type 1, Custom Source Type 2","14c. Violations of identified laws are not followed up by preventative actions taken by the relevant entities.","In the country being assessed, relevant entities frequently fail to follow up on violations of identified laws, leading to repeat offenses.","In the country being assessed, relevant entities frequently fail to follow up on violations of identified laws, leading to repeat offenses. This is in large part due to ….etc.","E.g. Larson (2022)","Mr. John Smith, Expert 1, Expert 2","Law 1, Law 2, the Forest Law","The Forest Law requires that relevant entities identy violations of the law, and follow up with 30 calendar days. Additionally, the Forest Law specifies penalties for non-compliance.","Larsson (2022) explains the consequences of this lack of follow-up, but does not provide a good indication of root causes (which are still being studied)."]

{"sheet":"Risk Mitigation (RM)","index":12,"n_rows":2,"n_cols":11,"rows_kept":2,"cut":false,"hidden":false,"merged":[]}
["Risk Indicator","Risk Level","Geopolitical Scale","Source Type","Risk Threshold","Description of Risk","Risk Mitigation Measures - Type of Verifier","Mitigation Requirement Level","Risk Mitigation Measures - Associated Documents","Risk Mitigation Measures","Other Relevant Information"]
[{"$f":"_xlfn._xlws.FILTER(AssessmentofIndicators[[#All],[Risk indicator]:[Short description of risk]],(AssessmentofIndicators[[#All],[Risk conclusion]]=\"Non-negligible risk\"),\"\")","v":"14.  Development and maintenance of infrastructure associated with management activities comply with applicable codes and legal requirements for the protection of environmental values."},"Non-negligible risk","Province X, Province Y","Custom Source Type 1, Custom Source Type 2","14c. Violations of identified laws are not followed up by preventative actions taken by the relevant entities.","In the country being assessed, relevant entities frequently fail to follow up on violations of identified laws, leading to repeat offenses.","Document verification","Recommended","Maintenance records of equipment","The maintenance records of equipment are verified to ensure that they have been inspected/maintained in the last two years.","N/A"]

{"sheet":"RM Documents","index":13,"n_rows":2,"n_cols":12,"rows_kept":2,"cut":false,"hidden":false,"merged":[]}
["Short reference name","Full title (English)","Full title (original language)","Date document is required from (dd/mm/year)"," Date since when no longer valid (dd/mm/year)","Applicable to","Holder of document","Document issued by","Signature required by","Key considerations when checking the document","Purpose and content of document","Limitations and weakness when using the document as evidence in due diligence implementation"]
["E.g. Forest tenure certificate",null,"E.g. 林权证",null,"E.g. N/A","All forest entities and forest farmers who manage forest or plantation shall have evidence of ownership or use rights.   \nNote that companies can have other types of certificates to show ownership/use rights.   \nAn Immovable Property Certificate for forest has the same legal effect as a Forest Tenure Certificate. ","Forest management entities ","Government at the county level or above","Government at the county level or above","• Is the name of the owner (at least owner of forest and use right of forest), location, forest compartment number, forest type the same as on the harvesting permit? \n• Is the name of the owner the same as on the VAT invoice/receipt issued by the timber owner?  \n• Is the name the same as on the business license (if the forest is managed by a forest entity)? \n• Is the species the same as on the harvesting permit or does it cover the species on the harvest permit? \n• Is there a stamp of government or forest authority at or above the county level? ","A Forest Tenure Certificate shows use right and ownership of forest and forest land. It is also an important document for applying for a harvesting permit. Without a Forest Tenure Certificate or other concrete evidence of use right and ownership of forest and forest land, the harvesting permit cannot be issued.  The duration of the Forest tenure Certificate is usually between 30-70 years.  The contents of a Forest Tenure Certificate include: The owner of forest and forest land, owner of use right of forest and forest land, location of forest/plantation, forest compartment number, area of forest land, main species, number of trees, forest type, valid period, metes and bounds, etc. \nIn China, land can be owned only by the state/government or collectively owned (village committee or sub-village). Individuals or private companies do not have ownership rights to land. However, forest and use rights of forest and forest land can be owned by individuals (including farmers), entities or other organisations via renting agreements, transference agreements, or other mechanisms.  ","• No publicly available database or website exists to verify this certificate. \n• In some regions, there is no clear information (e.g., GPS coordinates, maps) on the location of the land described on the certificate.  \n• Usually, the number of trees is missing on this certificate, despite being required to be included in the certificate). "]

{"sheet":"Lookup-Description","index":14,"n_rows":157,"n_cols":2,"rows_kept":157,"cut":false,"hidden":true,"merged":[]}
["Name","Description"]
["Assessing and Monitoring Forest Governance","A guide to diagnosing strengths and weaknesses in forest governance using a tool developed by PROFOR (Program on Forests). The tool consists of a set of indicators and a protocol for scoring the indicators. The indicators are in the form of multiple-choice questions about aspects of forest governance. Some cover general features of governance, some touch on specifics, and some serve as proxies for factors that are difficult to assess directly. As a whole, the tool examines forest sector governance broadly, serving as a self-assessment to identify areas deserving improvement. "]
["Governance of Forests Initiative (GFI) Indicator Framework (Version 1) ","The GFI seeks to apply principles of good governance to the challenges of sustaining forests in developing countries. It provides a common definition and conceptual framework for understanding the meaning of good governance of forests across different country contexts, and a practical tool for civil society organizations to diagnose the integrity of institutions and processes that govern forests in their countries. It also provides measurable, reportable and verifiable indicators of good forest governance."]
["FSC Forest Stewardship Standards (FSS)","FSC standards for responsible forest management certification, which are adapted to the national or sub-national level based on the International Generic Indicators (IGI), following the FSC Principles and Criteria for Forest Stewardship. These standards reflect the diverse legal, social and geographical conditions of forests in different parts of the world. NOTE: A country with a high percentage of FSC certified areas may be used as an important source to support a 'negligible risk' designation in a country/region. "]
["FSC FSS Risk Assessments","Assessment of the risk of nonconformity with the requirements of a FSS, developed according to FSC-PRO-60-010. The resulting FSS Risk Assessment considers the likelihood and impact of non-conformity with indicators of the FSS in the national or regional context. FSS Risk Assessments will assist certification bodies to focus on the criteria or indicators of the FSS with greater risk of non-conformity."]
["Global Forest Watch ","Applies to High Conservation Values and Deforestation and Forest Degradation. An online platform that provides data and tools for monitoring forests. By harnessing cutting-edge technology, GFW allows anyone to access near real-time information about where and how forests are changing around the world. The Dashboard includes information categorised at country level addressing the fields of Land Cover, Forest Change, Fires, and Climate."]
["Forest Stewardship Council Risk Assessment Platform","Provides a simplified, easy-to-use overview of the contents of approved FSC risk assessments."]
["Center for International Forestry Research (CIFOR): Publications","CIFOR publishes over 400 publications every year on forests and climate change, landscape restoration, rights, forest policy, agroforestry, etc. in multiple languages."]
["US AID: Country Profiles","Deseminates USAID knowledge on fields including Human Rignts, Environment, Water and Sanitation, Anti-Corruption, Gender Equality, etc. and including country profiles."]
["Index of Economic Freedom","Measure economic freedom based on 12 quantitative and qualitative factors, grouped into four broad categories, or pillars, of economic freedom: Rule of Law (property rights, government integrity, judicial effectiveness), Government Size (government spending, tax burden, fiscal health), Regulatory Efficiency (business freedom, labor freedom, monetary freedom), Open Markets (trade freedom, investment freedom, financial freedom)"]
["Environmental Performance Index (EPI)","Applies to High Conservation Values and Protection of Environmental Values. Provides a data-driven summary of the state of sustainability around the world, using 40 performance indicators across 11 issue categories. The EPI ranks 180 countries on their progress toward improving environmental health, protecting ecosystem vitality, and mitigating climate change. "]
["SDG Tracker: Our World in Data","Presents data across all available indicators from the Our World in Data database, using official statistics from the UN and other international organizations. This free, open-access information tracks global progress towards the SDGs and allows people worldwide to hold their governments accountable for achieving the agreed goals."]
["Chatham House: Country Profiles","Chatham House is a reputable platform for in-depth policy research and debate on forest governance. This website delivers forest policy assessment for several countries, estimates of legal and illegal timber trade, and stimulate innovation towards just and sustainable forest economies."]
["ELDIS regional and country profiles ","ELDIS provides free access to relevant, up-to-date and diverse research on international development issues. Our database includes over 50,000 summaries and provides free links to full-text research and policy documents from over 8,000 publishers."]
["Environmental Investigation Agency (EIA) Crime Tracker","The interactive Global Environmental Crime Tracker consists up-to-date data collected from publicly available information, including government reports, enforcement agency press releases and non-governmental and academic papers. EIA monitors, collects and analyses data on the illegal trade in wildlife, timber and dangerous global warming refrigerant gases. It tracks the global trends through dashboards and maps that illustrate the smuggling and trafficking hotspots as well as the transportation routes and we chart the links between the criminal networks and key individuals involved. The Tracker covers criminal activities in Asia, Africa and Europe. Not an exhaustive dataset, represents only a fraction of actual enforcement and illegal trade activity globally."]
["VPA Africa-Latin America Country Profiles","The VPA Africa – Latin America Facility supports the negotiation and implementation of Voluntary Partnership Agreements (VPAs) on Forest Law Enforcement Governance and Trade (FLEGT). VPAs are a key component of the EU FLEGT Action Plan to address illegal logging and the trade in associated timber products."]
["Forest Legality Alliance: Tools and Resources","The Open Timber Portal (OTP) is a web platform that promotes compliance with legal requirements in timber harvest and trade. It seeks to bring transparency to timber operations and improve access to country-specific information about forest management and harvesting, while increasing the effectiveness of regulations on illegal logging. The World Forest ID collects georeferenced physical wood samples from at-risk forests across the globe and help build international analytic capacity whereby partner laboratories can assist in developing reference databases. "]
["INTERPOL records on Environmental Crime","Provides a range of reports, case studies and other resources related to Environmental Crime ranging from wildlife trafficking and overfishing of protected species, to illegal logging and the dumping of hazardous waste."]
["Public summaries of FSC forest management certification reports published at connect.fsc.org","These summaries contain information on legal areas where non compliances have been identified during the certification process."]
["Worldwide Governance Indicators","Aggregates individual governance indicators for over 200 countries and territories (most recently for 1996–2021), for six dimensions of governance: Voice and Accountability, Political Stability and Absence of Violence, Government Effectiveness, Regulatory Quality, Rule of Law, and Control of Corruption. Data comprises from more than 30 think tanks, international organizations, nongovernmental organizations, and private firms across the world selected on the basis of three key criteria: they are produced by credible organizations, they provide comparable cross-country data, and they are regularly updated."]
["Project Profiles: FAO-EU FLEGT (Forest Law Enforcement Governance and Trade) Programme ","The FAO-EU FLEGT Programme provides technical support and resources to projects in 23 countries globally. The database provides detailed information on the projects.  "]
["Global Land Governance Index","LANDex monitors land governance according to the 10 Commitments of the International Land Coalition. The data, collected and centralised from various sources, gives a comprehensive understanding of the state of land governance in each country according to the legal framework, levels of implementation and outcomes. Each country's LANDex score is set on a scale of 0-100, where 100 is the most desirable. The country score reflects an average of all the LANDex indicators in the country, which are also set on a standard scale of 0-100."]
["LandMark- Global Platform of Indigenous and Community Lands","The platform includes maps and data on indigenous and community lands that are publicly available as well as information directly from individuals and organizations with their permission as detailed in a data-sharing agreement. Data are generated from research (e.g., legal reviews, literature reviews, interviews), expert knowledge, and spatial data analysis. The contributing individuals and organizations are documented under the Data Providers tab whom fully responsible for the accuracy of the data. Amendments will be made on a periodic basis. "]
["Property Rights Score : World Bank TCdata360","The property rights component is a qualitative assessment of the extent to which a country's legal framework allows individuals to freely accumulate private property, secured by clear laws that are enforced effectively by the government. It measures the degree to which a country's laws protect private property rights and the extent to which those laws are respected. It also assesses the likelihood that private property will be expropriated by the state and analyzes the independence of the judiciary, the existence of corruption within the judiciary, and the ability of individuals and businesses to enforcecontracts."]
["The Global Economy :  Property Rights Index ","The property rights index measures the degree to which a country’s laws protect private property rights and the degree to which its government enforces those laws. It also assesses the likelihood that private property will be expropriated and analyzes the independence of the judiciary, the existence of corruption within the judiciary, and the ability of individuals and businesses to enforce contracts. Higher index values denote more certain legal protection of property (The highest value being 100 and the lowest is 0). The indicator is available from 1995 to 2023. "]
["International Property Rights Index ","Critical economic, social and demographic indicator for all countries and regions selected from 200+ public datasets by a team of experts."]
["Global Property Rights Index ","Provides comparable open-source data on perceptions of tenure security at the global and local level conducting policy-relevant research and offering monitoring, evaluation and learning (MEL) services."]
["Land Matrix Dataset ","An independent land monitoring initiative that promotes transparency and accountability in decisions over Large Scale Land Aquisitions (LSLAs) in low- and middle-income countries by capturing and sharing data about these deals at global, regional, and national level. The open access platform shares detailed information about deals in almost 100 countries, including intended, concluded, and failed attempts to acquire land through purchase, lease or concession for a wide range of intended uses, from agricultural production, timber extraction, and renewable energy production, to carbon trading, industry, conservation, and tourism."]
["Tax Statistics: OCED (Organisation for Economic Co-operation and Development)","Comparative information on a range of tax rates and statistics in the OECD member countries, and corporate tax statistics and effective tax rates for inclusive framework countries, covering personal income tax rates and social security contributions applying to labour income, corporate tax rates and statistics, effective tax rates, tax rates on consumption, and environmental taxes."]
["Corporate Tax Haven Index ","The Corporate Tax Haven Index is a ranking of jurisdictions most complicit in helping multinational corporations underpay corporate income tax. It evaluates each jurisdiction's tax and financial systems to create a clear picture of the world’s greatest enablers of global corporate tax abuse, and to highlight the laws and policies that policymakers can amend to reduce their jurisdiction’s enabling of corporate tax abuse."]
["International Tax Competitiveness Index","Measure the extent to which a country’s tax system adheres to two important aspects of tax policy: competitiveness and neutrality. The Index is reflected countrywise as overall score, Cooperate tax Rank, Individual Tax Rank, Consumption Tax Rank, Property Tax Rank, and Cross Border Tax Rules Rank."]
["Ease of doing business rank ","Ease of doing business ranks economies from 1 to 190, with first place being the best. The ranking of economies is determined by sorting the aggregate ease of doing business scores. A high ranking (a low numerical rank) means that the regulatory environment is conducive to business operation."]
["Logistics Performance Index","Logistics professionals' perception of the efficiency of country's customs clearance processes (i.e. speed, simplicity and predictability of formalities), on a rating ranging from 1 (very low) to 5 (very high). Scores are averaged across all respondents."]
["European Commission: online services and databases for customs","Managed by the Directorate-General for Taxation and Customs Union. Provides 21 different platforms/information systems related to customs and taxation (e.g.: AEO - Authorised Economic Operator, CDS - Customs Decisions System, etc.)"]
["Approved HCV assessment frameworks (or part thereof) that have been developed as part of the development of FSC Forest Stewardship Standards (FSS)","HCV Frameworks include nationally and/or regionally specific designations of HCVs and sources of Best Available Information for identifying, assessing, managing and monitoring these HCVs in the country or region that is part of the scope of the FSS. "]
["IUCN Red List","An inventory of the global conservation status and extinction risk of biological species. A series of Regional Red Lists, which assess the risk of extinction to species within a political management unit, are also produced by countries and organizations. The goals of the Red List are to provide scientifically-based information on the status of species and subspecies at a global level."]
["Global 200 Ecoregions ","Analyses global patterns of biodiversity to identify a set of the Earth's terrestrial, freshwater, and marine ecoregions that harbor exceptional biodiversity and are representative of its ecosystems. Earth's ecoregions are placed within a system of 30 biomes and biogeographic realms to facilitate a representation analysis. Biodiversity features were compared among ecoregions to assess their irreplaceability or distinctiveness. These features include species richness, endemic species, unusual higher taxa, unusual ecological or evolutionary phenomena, and the global rarity of habitats. For more information see publication: https://doi.org/10.2307/3298564"]
["National Biodiversity Strategies and Action Plans - Convention on Biologival Diversity","Presents data drawn from the online 6 National Reports related to the implementation status of each global target. Examples of measures and outcomes drawn respectively from post-COP10 National Biodiversity Strategies and Action Plans and 6 National Reports, from each UN region, are also provided. Various resources that can assist parties and stakeholders in implementing each global target are highlighted as well."]
["National Reports - Convention on Biologival Diversity","Presents data drawn from the online 6 National Reports related to the implementation status of each global target. Examples of measures and outcomes drawn respectively from post-COP10 National Biodiversity Strategies and Action Plans and 6 National Reports, from each UN region, are also provided. Various resources that can assist parties and stakeholders in implementing each global target are highlighted as well."]
["EU Observatory on deforestation and forest degradation","The EUFO web portal provides global maps on forests (cover, attributes and changes) and visualizes the trade of commodities and products. A specific development for the EUDR is a new global forest cover map for the year 2020 with 10m spatial resolution."]
["Data for Detecting Deforestation (RADD) : Wageningen University","Monitors forest disturbances in near real-time. It can detect changes in forest cover even through clouds. It map new forest disturbances (complete or partial removal of tree cover within 10m) in near real-time within a span of 6-12 days. The layer uses a probabilistic approach to confirm or reject the alerts based on subsequent observations, which means that only high-confidence alerts with a probability of above 97.5% are confirmed, in addition, while the layer is continuously assessed, it is designed to provide near real-time alerts and not to represent the true area of disturbances. "]
["Tropical Moist Forest (TMF) Dataset","Dataset on the extent of TMF and related disturbances (degradation and deforestation). Each disturbance is characterized by its timing and intensity.  From 2022 the resolution is of 10m. It uses 41 years of satellite imagery to map forest cover change   in tropical moist forests with new data and maps available annually. TMF dataset can capture short and long-term-duration disturbances (e.g., selective logging, fires, and weather events). In addition, because it has documented forest disturbances over decades, it can delimit an approximate extent of primary forest. As part of their mapping approach, three initial classes are defined based on visual interpretation: (i) moist forest types; (ii) deciduous forest, logged areas, savanna, bare soil, irrigated and non-irrigated cropland, evergreen shrubland, and water (for the potential disruption class); and (iii) clouds, haze, and cloud shadows (for the invalid observations).  After the classes were defined, they analyzed the initial extent of the forest and identified any change from this initial extent to determine if degradation or deforestation was happening. For this, classes of transition were established: (1)Short-duration degradation followed by a recovery period (not followed by deforestation). (2) Long-duration degradation followed by a recovery period (not followed by deforestation). (3) Degradation followed by a recovery period, followed by deforestation.  (4)Degradation is followed by a recovery period, followed by de-forestation, and followed by a recovery period in itself (regrowth). "]
["Global Land Cover Product Dataset","Potential to use the global forest cover landcover class that will be used in determining the amount of forest cover at risk of degradation. This product has 11 distinct classes of landcover, amongst which is tree cover. However, there is no differentiation between the various types of forest cover in which primarily forest degradation and deforestation is easily defined. Potential to look at conversion from ‘forests’ (trees) to crop land. Similar layer at the one from GLAD and ESRI, but for analysis of landcover at global scale, the ESA product is well suited since it has a high spatial resolution  and is freely available.                                                                         "]
["ESRI Land Cover Dataset","9-class map of the surface including vegetation types, bare surface, water, cropland and built areas. Potential to look at conversion from ‘forests’ (trees) to crop land. he layer is based on analysis of Sentinel 2 optical data. However, this is averaged over a whole year, thus the reporting mechanism would be based on a specific year coverage. Similar layer at the one from ESA and ESRI. "]
["Tree Cover Loss by Dominant Driver: World Resources Institute (WRI) /Curtis et.al","High-resolution Google Earth imagery was used to map and classify the causes of global forest loss. It uses metrics from different datasets (e.g., Hansen tree cover, tree cover gain, and tree cover loss, NASA fires, global land cover, and population count). This is the only known dataset providing a global overview of logging related forest disturbances as it can detect where commodity-driven deforestation is happening. "]
["Version 4 Tree Canopy Cover (TCC) product dataset","Derived from Landsat data, it is a global dataset of percent tree cover. The layers contain estimates of the percentage of horizontal ground in each 30-m pixel covered by woody vegetation greater than 5 meters in height. The product is derived from all seven bands of Landsat-5 Thematic Mapper (TM) and/or Landsat-t Enhanced Thematic Mapper Plus (ETM+): Tree cover, the proportional, vertically projected area of vegetation (including leaves, stems, branches, etc.) of woody plants above a given height, affects terrestrial energy and water exchanges, photosynthesis and transpiration, net primary production, and carbon and nutrient fluxes."]
["Above ground biomass and carbon stock dataset","Based on Earth observation data from multiple sources and includes estimates of above-ground forest biomass. No continued AGB product has being generated after 2020, thus we cannot use it so much.  Would be a good source to train another model using high resolution data."]
["Global Forest Landscapes Dataset","Identifies the remaining unfragmented forest landscape by 2020 and the reduction on the area of intact forest from 2000 to 2020. Not a standalone product. With other available datasets could allow for identification of the transformation of primary forest to plantations"]
["Global Forest Change Dataset","Time analysis of Landsat satellite imagery and characterizes the extent and change of forest. It can be accessed via Google Earth Engine asset ID for analysis instead of downloading the large tiff.Has a lot of potential as it also has IFL data overlays. "]
["Forest Canopy Height Dataset","Developed using NASA spaceborne lidar instrument specially designed for measuring vegetation structure. Data quality limitations, time spans would not make it feasible to use the product but would be used in creating a model that can use canopy height.                                                                                                                                          "]
["Tree Canopy Geight Change in Europe Dataset","Developed using a mix of data from the Landsat archive and calibration data from Airborne Laser Scanning (ALS) and spaceborne Global Ecosystem Dynamics Investigation (GEDI) lidars. "]
["Global Forest Canopy Height Dataset","It maps the global forest canopy height. Developed using global Landsat data that was extrapolated with the Global Ecosystem Dynamics Investigation (GEDI) lidar data. Forest is defined as land cover with a canopy of >5m."]
["Sentinel-2 Forest Loss Alert Dataset","Loss of primary forest is mapped in near-real time at 10m resolution using Sentinel-2 multispectral data. Cloud, shadow, water are detected in each new Sentinel-2 image and a forest loss algorithm is applied to all remaining clear land observations. The algorithm relies on the spectral data in each new image in combination with spectral metrics from a baseline period of the previous two years. Confidence is built through repeated loss observations in the consequent images."]
["The land disturbance product (DIST-ALERT) Dataset","The land disturbance product (DIST-ALERT) maps vegetation loss as well as any spectral variation outside a historical norm using Harmonized Landsat Sentinel-2 (HLS) scenes. Vegetation disturbance is defined as loss of vegetation percent cover relative to the minimum of the baseline, and is reported as the total reduction in vegetation percent cover. Generic disturbance is measured by the distance of the spectral reflectance of an observation from the baseline distribution. Both methods use a baseline of all cloud-free observations from the previous three years within a 31-day window. "]
["Boreal Forest monitoring Dataset","Using Landsat imagery, it maps boreal forest cover and change. Tested within European Russia., the results are comparable with the forest loss data from the Russian government. "]
["Soy bean expansion in South America: Dataset","Produced using data from Landsat and MODIS satellite and, Sentinel 2 as well as 3 years of field observations. The map is constrained to match field-based sample area estimates so it is precise."]
["Global land Cover and Land Use Change Dataset","Developed with Landsat analysis ready data, it quantifies changes in forest extent and forest height, cropland, built-up lands, surface water and snow and ice extent.                                                                                                  "]
["Global Crop land Expansion in the 21st Century: Dataset","Derived from Landsat satellite data archive and machine learning classification. It analysed the estimate cropland area every 4 years.  In this dataset, cropland is defined as land used for annual and perennial herbaceous crops for human consumption, forage, and biofuel.                                                                                                                                     "]
["Primary Humid Tropical Rainforests: Dataset","It maps primary humid tropical forest extent, with primary forest defined as mature natural humid tropical forest cover that has not been cleared and regrown in recent history. "]
["Fate of Tropical Forest Fragments: Dataset","Quantifies the probability of tropical forest loss, including primary forest loss and loss of forests in protected areas, as fragments decrease in size. "]
["Pan Tropical Forest Strata: Dataset","It delineate regions (strata) of tropical forest to estimate aboveground carbon (AGC) loss. The tropical forest strata was defined using tree canopy cover, tree height, and forest intactness, and can separate AGC from natural forest and managed forest."]
["Planetary Variables: Dataset","Developed by integrating several data sources, it is a commercial product that allows measuring changes in the conditions on the earth’s surface, with a focus on soil, temperature and biomass. FSC has access to them via the tech consortium. "]
["Global Land Cover: Dataset","The data has 9 landcover classes. Land cover maps represent spatial information on different types (classes) of physical coverage of the Earth's surface, e.g. forests, grasslands, croplands, lakes, wetlands. Dynamic land cover maps include transitions of land cover classes over time and hence captures land cover changes. Land use maps contain spatial information on the arrangements, activities and inputs people undertake in a certain land cover type to produce, change or maintain it."]
["Global Forest Resources Assessments Country Reports ","The information provided by the Global Forest Resources Assessment (FRA) presents a comprehensive view of the world’s forests and the ways in which the resource is changing. Supports the development of sound policies, practices and investments affecting forests and forestry."]
["Information Sources in REDD+ data (Reducing Emissions from Deforestation and Forest Degradation)","The aim of REDD+ is to encourage developing countries to contribute to climate change mitigation efforts by reducing greenhouse gas emissions (GHG) by slowing, halting and reversing forest loss and degradation, and increasing removal of GHGs from the earth’s atmosphere through the conservation, management and expansion of forests. Countries interested in REDD+ are required to progress through three phases, which are closely linked with one another: readiness phase, implementation of national strategies and results-based demonstration activities, and results-based demonstration activities. The information sources provides a set of information sources (e-learning, multimedia, publications, and tools) related to the REDD+ mitigation measures stated above. "]
["GeneWatch UK (reports/consultations/press articles)","Serves as knowledge dissemination of the GeneWatch on Genetically modified Trees (GM Trees). Consists of reports, consultation responses, press articles and external links related to the GeneWatch measures on GM Trees."]
["World Rainforest Movement publications","Publishes books, reports, booklets and brochures, both on its own and in conjunction with partner organizations. Content can be filtered by subject and country, and is free to download."]
["Forests and Genetically Modified Trees","The publication covers deals with the science of genetic engineering in forest trees: the position of genetic engineering in the biotechnology spectrum, how it is carried out, traits of interest, gene flow, genetic containment, integration of the technology in tree improvement programmes and ethical, environmental, social, regulatory and trade aspects, and examines the technology’s potential outside the realm of timber production."]
["FAO: Search Entries on Genetically Modified Organisms (GMO)","The Food and Agriculture Organization (FAO) is a specialized agency of the United Nations that leads international efforts to defeat hunger. The search entries on GMO (Genetically Modified Organisms) and GMO Forestry lists down sources of information related to this field that are listed under the UN FAO website classified under the categories: Data, Projects, News, Themes and Publications."]
["Convention on International Trade in Endangered Species of Wild Fauna and Flora ","CITES is an international agreement between governments, with its aim to ensure that international trade in specimens of wild animals and plants does not threaten the survival of the species. Drafted as a result of a resolution adopted in 1963 at a meeting of members of IUCN (The World Conservation Union). The text of the Convention was finally agreed at a meeting of representatives of 80 countries in Washington, D.C., United States of America."]
["ILO Declaration on Fundamental Principles and Rights at Work: annual review reports ","Adopted in 1998 and amended in 2022, is an expression of commitment by governments, employers' and workers' organizations to uphold basic human values - values that are vital to our social and economic lives. It affirms the obligations and commitments that are inherent in membership of the ILO, namely: a) freedom of association and the effective recognition of the right to collective bargaining; b) the elimination of all forms of forced or compulsory labour; c) the effective abolition of child labour; d) the elimination of discrimination in respect of employment and occupation; and e) a safe and healthy working environment."]
["ILO Conventions Database","Lists down the convensions of ILO in three different categories: Fundamental, Governance (Priority) and Technical."]
["ILO Helpdesk for Business on International Labour Standards ","Provides information on a wide range of labour topics, all included in the ILO MNE Declaration (Tripartite declaration of principles concerning multinational enterprises and social policy). It also assists companies as well as workers' and employers' organizations in conducting due diligence, according to the provisions in the MNE Declaration."]
["Committee on the Elimination of Discrimination against Women (CEDAW): States parties reporting","Lists down country-wise information sources/ reports related to the issues on Discrimination against Women."]
["Global Witness: Country Reports","Focus on abusive actors, misuse of power and financial flows, but have turned our focus on some of the most urgent issues facing humanity: the climate emergency and attacks on civic space."]
["Human Rights Watch: Country Profiles","Investigates and reports by country experts, lawyers, journalists, and others who work to protect the most at risk on abuses happening in all corners of the world. "]
["Global Peace Index (GPI) 2023 Briefing","GPI is the world’s leading measure of global peacefulness. The GPI covers 163 countries comprising 99.7% of the world’s population, using 23 qualitative and quantitative indicators from highly respected sources, and measures the state of peace across three domains: the level of Societal Safety and Security; the extent of Ongoing Domestic and International Conflict; and the degree of Militarisation. For updated versions please visit: https://www.economicsandpeace.org/reports/"]
["Global Peace Index (GPI) 2023","GPI is the world’s leading measure of global peacefulness. The GPI covers 163 countries comprising 99.7% of the world’s population, using 23 qualitative and quantitative indicators from highly respected sources, and measures the state of peace across three domains: the level of Societal Safety and Security; the extent of ongoing Domestic and International Conflict; and the degree of Militarisation."]
["The UN Security Council Sanctions and Other Committees ","Lists all UN Security Council Sanctions declared so far in chronological order and countrywise."]
["Fund for Peace (FFP): Fragile States Index","A comprehensive tool that assesses and ranks 178 countries based on a mixed approach of qualitative and quantitative data sources, particularly utilizing the Conflict Assessment System Tool (CAST) framework, to highlight vulnerabilities contributing to the risk of state fragility, enabling policymakers and the public to understand and address the underlying issues and potential conflict risks in a rapidly interconnected world. Ranks states based on the total scores obtained under 12 indicators. The total score is the sum of the 12 indicators and is on a scale of 0-120. "]
["World Economic Forum: Global Gender Gap Report","The Global Gender Gap Index annually benchmarks the current state and evolution of gender parity across four key dimensions (Economic Participation and Opportunity, Educational Attainment, Health and Survival, and Political Empowerment). It is the longest-standing index tracking the progress of numerous countries’ efforts towards closing these gaps over time since its inception in 2006."]
["Amnesty International Annual Report: The state of the world’s human rights - information on key human rights issues, including: freedom of expression; international justice; corporate accountability; the death penalty; and reproductive rights ","Lists down Amnesity International's sources of information on Human Rights, categorized in to countries, resource types (e.g.: Action, Annual Reports, Campaigns, etc.), and topics (e.g.: Armed Conflicts, Child Labour, etc.)"]
["Human Freedom Index ","Presents the state of human freedom in the world based on a broad measure that encompasses personal, civil, and economic freedom. The Human Freedom Index is a resource that can help to more objectively observe relationships between freedom and other social and economic phenomena, as well as the ways in which the various dimensions of freedom interact with one another. Published annually."]
["Gender Equality and Non-Discrimination Indicators (GEND) ","List down ILOSTAT datasets related to Gender Equality and Non-discrimination"]
["MIPEX: Migrant Integration Policy Index","Measures policies to integrate migrants in countries across six continents, including all EU Member States (including the UK), other European countries (Albania, Iceland, North Macedonia, Moldova, Norway, Serbia, Switzerland, Russia, Turkey and Ukraine), Asian countries (China, India, Indonesia, Israel, Japan, Jordan, Saudi Arabia, South Korea, United Arab Emirates), North American countries (Canada, Mexico and US), South American countries (Argentina, Brazil, Chile), South Africa, and Australia and New Zealand in Oceania."]
["Women, business and the law indicator","Women, Business and the Law Indicator strengthens insights into how women’s employment and entrepreneurship are affected by legal gender discrimination, and in turn how this affects economic outcomes. "]
["Gender Statistics Dataset","Data on key gender topics. Themes included are demographics, education, health, labor force, and political participation."]
["Gender Inequality Index (GII) ","A composite metric of gender inequality using three dimensions: reproductive health, empowerment and the labour market. A low GII value indicates low inequality between women and men, and vice-versa."]
["Social Institution and Gende Index ","Social Institutions and Gender Index (SIGI) measures discrimination against women in social institutions across 179 countries. By taking into account laws, social norms and practices that restrict women’s and girls’ rights and access to empowerment opportunities and resources, the SIGI captures the underlying drivers of gender inequality."]
["Women workspace equality index ","Ranks 189 countries based on legal barriers affecting women's economic participation, examining indicators such as accessing institutions, getting a job, protecting women from violence, providing incentives to work, and using property, thereby highlighting disparities in legal frameworks impacting gender equality in the workplace."]
["Women, peace and security index","Scores and ranks 177 countries in terms of women’s inclusion, justice, and security. The WPS Index offers a tool for identifying where resources and accountability are needed most to advance women’s status."]
["Gender Equality Index","A tool to measure the progress of gender equality in the EU, developed by EIGE. It gives more visibility to areas that need improvement and ultimately supports policy makers to design more effective gender equality measures."]
["UN Committee on the Rights of the Child: State Party Reporting","Lists country-wise state party reports on matters regarding Rights of the Child."]
["IPEC Information on Regions and Countries","Provides regional-wise information on matters related to the status of child labour and rights of the child in that specific region, while also providing external sources that are related."]
["IPEC Child Labour Statistics","Statistical Information and Monitoring Programme on Child Labour (SIMPOC) is the statistical arm of IPEC. It provides numbers on the extent, characteristics and determinants of child labour. ISIMPOC assists countries in the collection, documentation, processing and analysis of child labour relevant data. This website makes available a wealth of statistical tools, data, reports, like specific questionnaires for child labour surveys, manuals and training kits on how to carry out child labour data collection in households, schools and at the workplace, guidance on how to properly process and analyse the collected information; micro datasets and survey reports from around the world, research on critical statistical issues, regular trend reports."]
["ILO SDG Labour Market Indicator 8.7.1: Proportion of children engaged in economic activity and household chores (%) -- Annual","Estimates on economic activity and household chores among children aged 5-17 refer to: (a) children 5–11 years old who, during the reference week, did at least one hour of economic activity or at least 21 hours of household chores, (b) children 12–14 years old who, during the reference week, did at least 14 hours of economic activity or at least 21 hours of household chores, (c) children 15–17 years old who, during the reference week, did at least 43 hours of economic activity."]
["UNICEF Child Labour Data ","Provides UNICEF's available data on Child Labour and relevent data resources. The issue of child labour is guided by three main international conventions: the International Labour Organization (ILO) Convention No. 138 concerning minimum age for admission to employment and Recommendation No. 146 (1973), ILO Convention No. 182 concerning the prohibition and immediate action for the elimination of the worst forms of child labour and Recommendation No. 190 (1999), and the United Nations Convention on the Rights of the Child. These conventions frame the concept of child labour and form the basis for child labour legislation enacted by countries that are signatories."]
["Verisk Maplecroft: Child Labour Index ","Includes a comprehensive assessment of a country’s commitment to combatting child labour, the quality of its domestic legal framework, its enforcement capabilities and the extent of reported violations. The Child Labour Index helps to: Perform due-diligence risk assessments and prioritise actions, Build strong resilience, adequate policies and monitoring systems for combatting child labour in the value chain, Safeguard company reputation, Promote responsible business practices in line with international guidelines."]
["US Department of Labour: List of Goods Produced by Child Labour or Forced Labour","A list of goods and their source countries which it has reason to believe are produced by child labor or forced labor in violation of international standards, as required under the Trafficking Victims Protection Reauthorization Act (TVPRA)."]
["Resource Centre: Global March ","A worldwide network of trade unions, teachers’ associations and civil society organisations that work together towards the shared development goals of eliminating and preventing all forms of child labour, slavery and trafficking and ensuring access by all children to free, meaningful and good quality public education."]
["UN Declaration on the Rights of Indigenous Peoples (UNDRIP)","Published on 13 September 2007 by the Office of the High Commissioner for Human Rights, this declaration is the most comprehensive instrument detailing the rights of indigenous peoples in international law and policy, containing minimum standards for the recognition, protection and promotion of these rights. It establishes a universal framework of minimum standards for the survival, dignity, wellbeing and rights of the world's indigenous peoples."]
["Indigenous Navigator: Country Profiles","The Country profiles present  country-wise data on the presence of indigenous or traditional peoples and their location/distribution. It also shares recent updates related to these communities. "]
["Survival International: Tribes and Indigenous Profiles","Provides information on recognised Indiginous Tribes worldwide categorised into regions: The Americas, Africa, Asia and Australasia."]
["Free, Prior and Informed Consent: Report ","Free, prior and informed consent is a manifestation of indigenous peoples’ right to self-determine their political, social, economic and cultural priorities. It constitutes three interrelated and cumulative rights of indigenous peoples: the right to be consulted, the right to participate, the right to their lands, territories and resources."]
["Integrated Forest Observatory System (IFOROS): Preylang Community Network","Community patrol data, with access to photos and categorization, info about the Economic Land concessions of Cambodia plus satellite monitoring data on deforestation stemming from the FCDM tool developed from the Joint Research Center of European Commission  (JRC-EC) and the more widely known GLAD alerts and forest loss dataset from the University of Maryland."]
["List of Fragile and Conflict-Affected Situations (FCS)","FCS is released annually by the World Bank Group (WBG) and aims to inform strategic and operational decision-making within the WBG. The list is based on publicly available global indicators followed by an internal review; and is updated every year on July 1st to reflect changes in country situations. The list distinguishes between countries based on the nature of issues they face. The classification uses the following categories: Countries with high levels of institutional and social fragility, identified based on indicators that measure the quality of policy and institutions, and manifestations of fragility. Countries affected by violent conflict, identified based on a threshold number of conflict-related deaths relative to the population. "]
["Global Witness: Briefing to conflict timber ","Aims to underscore the critical issue of illegal logging, particularly in conflict zones, advocate for a comprehensive approach by the European Union to address conflict timber."]
["CrisisWatch: Global Conflict Tracker","An early warning tool designed to help prevent deadly violence. It keeps decision-makers up-to-date with developments in over 70 conflicts and crises every month, identifying trends and alerting them to risks of escalation and opportunities to advance peace. "]
["Worldwide Governance Indicator for Control of Corruption ","Perceptions of the extent to which public power is exercised for private gain, including both petty and grand forms of corruption, as well as \"capture\" of the state by elites and private interests."]
["Corruption perception Index ","The Corruption Perceptions Index (CPI) aggregates data from a number of different sources that provide perceptions by business people and country experts of the level of corruption in the public sector"]
["Global Corruption Index ","Display the corruption risk exposure deriving from both the public and private sectors. The GCI  also includes issues related to white collar crimes and more specifically to money-laundering and terrorism financing. The GCI relies on various methods for collecting data reflecting the variety of ways available to estimate corruption. "]
["The Capacity to Combat Corruption(CCC) Index ","Evaluates and ranks countries based on how effectively they can combat corruption. The CCC Index looks at 14 key variables, including the independence of judicial institutions, the strength of investigative journalism, and the level of resources available for combating white collar crime. Countries with a higher score are deemed more likely to see corrupt actors prosecuted and punished. Continued impunity is more likely in countries at the lower end of the scale. "]
["Anti-Corruption Knowledge Hub","An online space where Transparency International (TI) presents its research output. It is the home of the Anti-Corruption Helpdesk, TI's expert network, a series of topic guides and country-specific research. In addition, the Hub hosts many of the studies, tools and knowledge which lie behind what Transparency International's work."]
["Analyzing corruption in the Forestry Sector:  A manual for risk assessment of corrupt practices Risk assessment of corrupt practices; and risk management through monitoring of anti- Risk management through monitoring of anti-corruption corruption corruption instruments (2010)","Provides a toolkit for local FGI Units and Transparency International (TI) national chapters in the Asia-Pacific region to conduct risk assessments to identify priorities in fighting corrupt practices, assess existing instruments for tackling them and monitor the priority anti-corruption instruments in the region."]
["OCED Data on Average Wages","Average wages are obtained by dividing the national-accounts-based total wage bill by the average number of employees in the total economy, which is then multiplied by the ratio of the average usual weekly hours per full-time employee to the average usually weekly hours for all employees. This indicator is measured in USD constant prices using 2016 base year and Purchasing Power Parities (PPPs) for private consumption of the same year."]
["Coallition Resource Library","Provides benchmark studies, refernece values, case studies and working papers on living wages (globally) categorized by countries, industry and benchmark study."]
["ILOSTAT: Statistics on Wages ","Provides introduction, data catalogue, latests posts, methods and publications related to living wage statistics."]
["ILO: Working Conditions Laws Database ","Provides a picture of the regulatory environment of working time, minimum wages and maternity protection in more than 100 countries around the world. It contains comprehensive legal information, which allows you to conduct customized research on a specific country, to compare the legislation of several countries or regions on a particular subject or to perform searches by text. "]
["Global Rights Index ","Rates countries annually depending on their compliance with collective labour rights and document violations by governments and employers of internationally recognised rights."]
["Labour Rights Index ","Measures major aspects of employment regulation affecting a worker during the employment life cycle in 135 countries. It covers 10 indicators and 46 evaluation criteria based on substantive elements of the Decent Work Agenda. The criteria are all grounded in UDHR, five UN Conventions, five ILO Declarations, 35 ILO Conventions, and four ILO Recommendations. "]
["Global Slavery Index ","Provides national estimates of modern slavery for 160 countries. The estimates draw on thousands of interviews with survivors collected through nationally representative household surveys across 75 countries and our assessment of national-level vulnerability."]
["EuroFound Surveys : Data explorer ","Regularly, repeated, and pan-European surveys that could contribute to the planning and establishment of better living and working conditions. The surveys offer a source of comparative information on the quality of living and working conditions across the EU. "]
["OSH Barometer (Data Visualization Tool)","EU-wide public information system on the most important facts and figures of Occupational Safety and Health. The system provides visualised information for important OSH indicators at EU and national level; it is based on statistics, surveys and public data."]
["ILOSTAT: Statistics and Information on Safety and Health at work ","Lists ILOSTAT indicators related to occupational health safety and country-wise case files related to incidents on occupational health and safety."]
["Verisk Maplecroft: Working Conditions Indices ","Shows the risk of the association with violations of the payment of decent wages, working time and health and safety standards. The Working Conditions indices helps to: screen and compare operations and supply chains for labour rights violations risks, understand the areas that pose most threat to establishing decent working conditions for workers, align corporate strategy with global standards like the Sustainable Development Goals (SDGs)."]
["Environmental, Social and Governance (ESG) Index ","A tool that encompasses three major issues in risk analysis, aggregated to a global scoring through a weighted geometric mean. Concerns are weighted as:  environment (30%), human rights (50%) and health & safety (20%)."]
["Infrastructure Maintenance","Infrastructure maintenance covers spending on preservation of the existing transport network. It only covers maintenance expenditure financed by public administrations."]
["SoiLEX Soil Related Legal Instruments and Legal Governance ","A global database that aims to facilitate access to information on existing legal instruments on soil protection and prevention of soil degradation. The legal and policy instruments can be searched by country profiles or by soil-related keywords (e.g: Conservation, Quality, Restoration and Remidiation, Monitoring, Erosion, etc.). The information provided by the database allows users to have the complete document as well as a detailed summary of its content, focusing mainly on the purpose and specific objectives of the instrument."]
["Status of the World Soil Information ","A reference document on the status of global soil resources that provides regional assessments of soil change. The information is based on peer-reviewed scientific literature, complemented with expert knowledge and project outputs. It provides a description and a ranking of ten major soil threats that endanger ecosystem functions, goods and services globally and in each region separately. Additionally, it describes direct and indirect pressures on soils and ways and means to combat s oil degradation. The report contains a Synthesis report for policy makers that summarizes its findings, conclusions and recommendations."]
["Water Pollution from Agriculture: a global review (Publication) ","An executive summary prepared by the Food and Agriculture Organisation (FAO) of the UN in par with the Sustainable Development Goal (SDG) 6: By 2030, improve water quality by reducing pollution, eliminating dumping and minimizing release of hazardous chemicals and materials, halving the proportion of untreated wastewater and substantially increasing recycling and safe reuse globally."]
["AQUASTAT Global Information System for Water and Agriculture ","FAO's global Information System on Water and Agriculture. Useful for international organizations, policy makers, researchers and all stakeholders involved in ensuring a sustainable water management in agriculture and the achievement of SDG 6 - Water for all. Designed to improve the access to the data and information related to water management and agriculture. Key features include: comprehensive data repository, improved speed and responsiveness, user-friendly interface, advanced search functionality, multiple ways of visualizing the data, data visualization on maps, and data download in Excel and CSV formats."]
["UN Water SDG6 (Sustainable Development Goal 6) Data Portal ","SDG6 Data brings together data on all the SDG6 (Access to safe water, sanitation and hygiene) global indicators and other key social, economic and environmental parameters. The SDG6 Data Portal is an entry point to the set of water and sanitation information available within the UN system. Indicator-specific databases are listed down as main points of reference for further details on specific indicators, including additional datasets, metadata and a qualitative assessment and analysis of the current status and progress."]
["EU Soil Observatory (EUSO) ","A dynamic and inclusive platform that aims to support policymaking by providing the commission services and the broader soil user community with the soil knowledge and data flows needed to safeguard soils, supporting EU research & innovation on soils, and raising societal awareness of the value of soils."]
["European Soil Data Centre ","A thematic centre for soil related data in Europe (e.g.: Soil organic carbon content, soil erosion, soil biodiversity, etc.). Contains resources that are organized and presented in datasets, services/applications, maps, documents, events, projects and external links."]
["Global Soil Biodiversity Atlas ","Maps the soil biodiversity of the entire planet. Provides a detailed analysis of soil organisms and the threats to soil biodiversity at global scale. The Atlas was launched by the Joint research Centre (JRC) and Global Soil Biodiversity Initiative (GSBI) at the 2nd UN Environment Assembly (UNEA) in Nairobi on 25 May 2016."]
["World Soil Information","Holds free, reliable, and relevant soil data and information such as: 1) World Data Centre for Soils (being a regular member of the ISC (International Science Council) World Data System (WDS), provides soil-related collections and information services, including soil specimens, country documentation, and geo-referenced databases), 2) Scientific research, 3) Spatial Data Infrastructure- SDI (provide access to a growing range of global information products following FAIR principles, the soil reference collection and World Soil Museum, and tools and services developed to support sustainable land management decision making), and 4) Reference collection and library (a library of 10,000 digitized maps and 17,000 reports and books comprised over 1100 monoliths from 82 countries with supporting morphological and analytical information)."]
["Web Soil Survey ","Provides access to relevant soil and related information needed to make land-use and management decisions. The WSS provides: quicker delivery of information,  access to full soil survey report content, access to the most current data, and the ability to download spatial, tabular, and thematic soils data for use in GIS."]
["Aqueduct 3.0 Country Rankings ","Shows countries and provinces’ average exposure to six of Aqueduct 3.0's water risk indicators: baseline water stress, riverine flood risk, and drought risk."]
["Aqueduct tools ","Includes: Aqueduct Water Risk Atlas (which maps and analyzes current and future water risks across locations), Aqueduct Country Rankings (which allows decision-makers to understand and compare national and subnational water risks), Aqueduct Food, (which identifies current and future water risks to agriculture and food security), and Aqueduct Floods (which identifies coastal and riverine flood risks, and analyzes the costs and benefits of investing in flood protection)."]
["Blue Peace Index ","Evaluates the effectiveness of countries and basins in achieving sustainable and equitable management of shared water resources through a comprehensive assessment of five domains: 1) Policy and legal frameworks, 2) Institutional arrangements and participation, 3) Water management instruments, 4) Infrastructure and financing, and 5) Cooperation context, considering factors such as political, economic, and environmental realities to promote peace in the management of water resources."]
["Waste water treatment dataset ","Presents sewage treatment connection rates, i.e. the percentage of the population connected to a wastewater treatment plant. “Connected” means actually connected to a wastewater treatment plant through a public sewage network. It does not take into account independent private facilities, used where public systems are not economic.This indicator is measured in percentage."]
["OCED Studies on Water ","Provides policy analysis and guidance on the economic, financial and governance aspects of water resources management categorized into countries and topics related to waste water management."]
["Climate Change Dataset ","Presents up to date data on climate systems, exposure to climate impacts, resilience, greenhouse gas emissions, and energy use collected by the World bank."]
["Climate Change Knowledge Portal (CCKP)","The Climate Change Knowledge Portal (CCKP) is the hub for climate-related information, data, and tools for the World Bank Group (WBG). The Portal provides an online platform from which access and analyze comprehensive data related to climate change and development. Climate data aggregations are currently offered at national, sub-national, and watershed scales."]
["Carbon Pricing Dashboard","Carbon Pricing Dashboard is an interactive online platform that provides up-to-date information on existing and emerging carbon pricing initiatives around the world. It builds on the data and analyses of the annual State and Trends of Carbon Pricing report series."]
["Climate Action Tracker ","An independent scientific project that tracks government climate action and measures it against the globally agreed Paris Agreement aim of \"holding warming well below 2°C, and pursuing efforts to limit warming to 1.5°C\". CAT quantifies and evaluates climate change mitigation targets, policies and action. It also aggregates country action to the global level, determining likely temperature increases during the 21st century using the MAGICC climate model. CAT further develops sectoral analysis to illustrate required pathways for meeting the global temperature goals."]
["Climate Watch data ","Climate Watch fffers open access data, visualizations and analysis to help policymakers, researchers and other stakeholders gather insights on countries' climate progress. It lets the users analyze and compare the Nationally Determined Contributions (NDCs) under the Paris Agreement, access historical emissions data, discover how countries can leverage their climate goals to achieve their sustainable development objectives and use models to map new pathways to a lower carbon, prosperous future. It also enables the users to create and share custom data visualizations and comparisons of national climate commitments. "]
["Climate Change Performance Index (CCPI) ","Indicates the climate mitigation efforts of 59 countries and the EU, which collectively account for over 90% of global greenhouse gas (GHG) emissions. Results are compiled with the aid of 400 national experts evaluating their countries’ most recent national and international climate policies."]
["Emmissions from Forests ","Consists of CO2 emissions and removals corresponding to forest carbon stock changes (aboveground and belowground living biomass). Estimates are computed following the 2006 IPCC Guidelines for National greenhouse gas Inventories (IPCC, 2006). Data from the Forest Resources Assessment 2020 (FAO, 2020) are used as input. Estimates are available by country, with global coverage, for the period 1990–2021."]
["CO2 Emmissions Data ","Carbon dioxide (CO2) emissions are those stemming from the burning of fossil fuels and the manufacture of cement. They include carbon dioxide produced during consumption of solid, liquid, and gas fuels and gas flaring. Data sourced from Climate Watch Historical GHG Emissions ( 1990-2020 ). 2023. Washington, DC: World Resources Institute. "]
["OCED Governance Framework to Counter Illicit Trade ","Provides decision makers with analysis of black and grey markets, as well as guidance and evaluations of policies designed to reduce or deter them. It covers a wide spectrum of studies on illicit market sectors, from counterfeits and narcotics to humans and wildlife, as well as reports on cross-cutting facilitators of illicit trade, such as free trade zones or the use of small parcels to avoid detection. It builds on quantitative analysis and qualitative insights, and benefits from discussions with OECD and non-OECD countries as well as non-government stakeholders."]
["Rapid Response Assessment- The Environmental Crime Crisis ","A publication by the UN Environment Programme providing information/insights to a range of topics related to environmental crime. The areas of discussion includes wildlife trafficking, forest crime, role of wood and illegal wildlife trade for threat finance, and responses."]
["Trade Freedom Score ","A composite measure of the extent of tariff and non-tariff barriers that affect imports and exports of goods and services. The trade freedom score is based on two inputs: 1) The trade-weighted average tariff rate, and 2) Non-tariff barriers (NTBs)."]
["API (Animal Protection Index)","Ranks 50 countries according to their animal welfare legislation and policy. Countries are assessed on 10 indicators, which cover various categories of animals (i.e. farm animals, animals in captivity, companion animals, animals used for draught and recreational purposes, animals used in scientific research, wild animals). Each country receives a letter grade ranging from A (the highest score) to G (the weakest score) for each indicator, as well as an overall grade."]
["Voiceless Animal Cruelty (VACI) Index","The VACI is an interactive index that evaluates and ranks countries based on the nature, extent and intensity of cruelty associated with farmed animal production and consumption in a sample of 50 countries that together account for almost 80% of the world’s farmed animal population. The VACI complements and makes use of the World Animal Protection Index (API). While the API addresses the quality of animal welfare legislation and regulation across countries, the VACI seeks to measure the full extent of actual farmed animal cruelty. The VACI focuses on outcomes by providing estimates of the origins, scope, and intensity of human-induced animal suffering."]
["World Organisation for Animal Health (WOAH) Webpage","An intergovernmental organisation, focusing on transparently disseminating information on animal diseases, improving animal health globally and thus build a safer, healthier and more sustainable world. WAHIS (https://wahis.woah.org/#/home) is the global animal health reference database of the World Organisation for Animal Health (WOAH). WAHIS data reflects the validated information since 2005 reported by the Veterinary Services from Member and non-Member Countries and Territories on terrestrial and aquatic Listed diseases in domestic animals and wildlife, as well as on emerging diseases and zoonoses."]
["Animal Welfare Legislation Database (AWLD)","Focused on Global Animal Law. Provide key expertise and legal guidance to improve the protection of all animals worldwide. Lists down the sources of information (i.e. legislations related to animal welfare) categorized into national, European, International and Universal categories."]

{"sheet":"Type of variables","index":15,"n_rows":32,"n_cols":8,"rows_kept":32,"cut":false,"hidden":true,"merged":[]}
["Risk conclusions","Risk mitigation types","Type of evidence","CountryOVCat","NTFPs","Tenure or Ownership","Land classification","Management Regime"]
["Not assessed","Field verification","Statistics & Figures","Geographic Context","N1 Barks","Public","Forest","Small or Low-Intensity Managed Forests (SLIMF)"]
["Negligible risk","Stakeholder consultation","Stakeholder feedback","Legal Context","N2 Soil conditioner and substrates for plants","Private","Non-Forest","Non-SLIMF"]
["Non-negligible risk","Do not buy","Scientific Journal Article","Context of Certification / Standard Development","N3 Cork and articles of cork","Corporate","Other (Specify)","Particular Planning Requirements (Specify)"]
["Not applicable","Document verification","Report","Ownership, Management, and Tenure Characteristics","N3.1 Natural cork, raw or boiled","Indigenous",null,"Other (Specify)"]
[null,"No mitigation options defined","Other","Relevant Industry Practices","N4 Straw, wicker, rattan and similar","Community Forest"]
[null,"Scientific testing","News article","Industry Size and Economic Impact","N4.1 Rattan cane (rough form)","State"]
[null,"Buy certified",null,"International Trade and Market Dynamics","N5 Bamboo and articles of bamboo","Other (Specify)"]
[null,"Database verification",null,"Sustainability and Environmental Considerations","N5.1 Natural bamboo"]
[null,"Not applicable",null,"Cultural Considerations ","N5.2 Edible bamboo"]
[null,"Others",null,"Land Use/ Agricultural Characteristics","N5.3 Fuel bamboo"]
[null,null,null,null,"N6 Plants and Parts of Plants"]
[null,null,null,null,"N6.1 Flowers"]
[null,null,null,null,"N6.2 Grasses, ferns, mosses and lichens"]
[null,null,null,null,"N6.3 Whole trees or plants"]
[null,null,null,null,"N6.4 Pine cones"]
[null,null,null,null,"N6.3.1 Christmas trees"]
[null,null,null,null,"N7 Natural gums, resins, oils and derivatives"]
[null,null,null,null,"N7.1 Rubber/latex"]
[null,null,null,null,"N7.2 Gum resin"]
[null,null,null,"Risk Mitigation Mandatory?","N7.3 Resin and manufactured resin products"]
[null,null,null,null,"N7.4 Tannin"]
[null,null,null,null,"N7.5 Essential oils"]
[null,null,null,null,"N8 Chemical, medicinal, and cosmetic products"]
[null,null,null,null,"N8.2 Medicinal plants and products"]
[null,null,null,null,"N9 Food"]
[null,null,null,null,"N9.1 Nuts"]
[null,null,null,null,"N9.2 Tea"]
[null,null,null,null,"N9.3 Palm-hearts"]
[null,null,null,null,"N9.4 Mushrooms, truffles"]
[null,null,null,null,"N9.5 Fruits"]
[null,null,null,null,"N9.6 Sap-based foods"]